Workbook

Sheet Instructions
C3: LipidPioneer
D5: A community data tool to support lipidomics data workflows, used to generate exact masses for common adducts resulting from MS and MS/MS analysis of targeted lipids.
C10: Introduction
C11: - | D11: Lipid classes are separated into worksheets for convenience.
C12: - | D12: Use the "Navigation" worksheet to quickly skip back and forth between lipid classes and to identify lipid class abbreviations.
C14: - | D14: Please enable macros and content if necessary.
C15: - | D15: As lipids are added to the list on each worksheet, the exact mass of common adducts (listed in each column) are automatically filled using Visual Basic for Applications (VBA) scripting.
C20: Instructions
C21: - | D21: Step 1 | E21: Identify which lipids will be targeted.
C22: - | D22: Step 2 | E22: Save a copy of this workbook with a meaningful name. Overwriting the original file may have unintended side effects.
C24: - | D24: Step 3 | E24: Fill each lipid name sequentially in column A of the appropriate lipid class worksheet. Use the input guidelines listed below (scroll down).
E26: See the example(s) already populated in each worksheet.
E27: A single column of names can be pasted without loss of function.
C28: - | D28: Step 4 | E28: Exact masses are automatically calculated for several common adducts during data entry.
E30: Additional columns should not be added; users doing so assume the responsibility of modifying formulae appropriately.
C32: - | D32: Step 5
B35: To delete an entry, select the lipid species and delete the SHEET ROW using the home tab (Excel ribbon)
C40: Supplemental Information
C42: Inputs: Compound Name, By total carbons and double bonds | L42: Inputs: Ether-Linked Lipids (Compound Name,By total carbons and double bonds)
C43: Start with the acronym found in the worksheet for that lipid type | L43: Start with the the acronym found in the worksheet for that lipid type
C44: Then add a space, the total carbons and double bonds separated by a colon ":" | L44: Then add a space and a "P-" for plasmenyl ethers and "O-" for plasmanyl ethers
C45: For example: MG 18:0, PC 34:1, PE 34:2, TG 62:4, etc. | L45: Follow with the total carbons and double bonds separated by a colon ":"
L46: For example: MG P-18:0, PC O-34:1, PE P-34:2, TG P-62:4, etc.
C48: Inputs: Compound Name, By acyl constituents | L48: Inputs: Ether-Linked Lipids (Compound Name, By acyl constituents)
C49: Start with the acronym found in the current worksheet (eg. TG, PC, PMe…) | L49: Start with the acronym found in the current worksheet (eg. TG, PC, PMe…)
C50: Follow with "(", and acyl chains, each denoted by total carbons and unsaturations | L50: Follow with "(", and acyl chains, each denoted by total carbons and unsaturations
C51: Each acyl chain can be seperated by an "/" (known fatty acyl chain position) | L51: The first acyl chain should start with a "P-" for plasmenyl ethers and "O-" for plasmanyl ethers
C52: Each acyl chain can be seperated by an "_" (unknown fatty acyl chain position) | L52: Each acyl chain can be seperated by an "/" or "_" for known or unknown fatty acyl chain positions
C53: For example: PC(18:0/16:0), PE(20:0_22:6), TG(16:0_18:1_20:1) | L53: Note that di- or tri-vinyl ether and ether linked lipids are not supported
L54: For example: PC(P-16:0_18:0), PE(O-16:1/18:2), TG(O-16:0_18:1_18:3)
C56: Inputs: Oxidized Lipids | L56: Disclaimer:
C57: You can make ANY lipid a long chain or short chain oxidation product | L57: LipidPioneer templates are fluid and user-modifiable to account for multiple sample matrices.
C58: add __O__ for ketone / epoxy addition | L58: It is possible to generate exact masses for lipids that are not biologically possible.
C59: add __OH__ for hydroxide addition | L59: A detailed review of the biology is critical to ensure that the lipid identified is possible.
C60: add __OOH__ for hydrogen peroxide addition | L60: Mammalian lipid fatty acyl chains generally contain 0-6 degrees of unsaturation and 12-22 carbons.
C61: add __CHO__ for a short chain product ending in aldehyde
C62: Just add __COOH__ for a short chain product ending in carboxylic acid | L62: See the following references for biologically-relevant lipid restraints:
C63: Note that there are two underscores "_" on either side | L63: Shevchenko, A. et. al. Nat. Rev. Mol. Cell Biol. 11, 593-598 (2010)
C64: Note that there should be NO space after the lipid and the oxidization notation | L64: Domingues, M.R.M. et. al. Chem. Phys. Lipids. 156, 1-12 (2008)
C65: For example: PC(18:0/18:0)__OH__, PE(16:0/18:0)__COH, DG 34:1__OOH__O__ | L65: Sparvero, L.J. et. al. J. Neurochem. 115, 1322-1336 (2010)
L66: Spickett, C.M. et. al. Antioxid. Redox Signal. 22, 1646-1666 (2015)
C67: Note: Sheets without inputs | L67: Stutts, W.L. et. al. Anal. Chem. 85, 11410-11419 (2013)
C68: The worksheet titled extra, bile acids, and eicosanoids are static libraries
C69: This means you cannot put in new names and get new masses and formulas
C71: For public beta release under the NIST Software Disclaimer.
C72: Associated with [publication DOI: XXXXXXXXXXXX]
C73: Please refer questions, bug reports, or suggestions to authors at:
C74: Candice Ulmer, PhD* | F74: candice.ulmer@nist.gov
C75: Jeremy Koelmel | F75: jeremykoelmel@gmail.com
C76: Jared M. Ragland | F76: jared.ragland@nist.gov
C77: Timothy Garrett, PhD | F77: tgarrett@ufl.edu | J77: Version 1.0
C78: John Bowden, PhD | F78: john.bowden@nist.gov | J78: 1 August 2017

Sheet Navigation
B2: Sheet Name | C2: Sheet Definition or Purpose
B3: Instructions | C3: The landing page to begin use of LipidPioneer with instructions for use.
B4: Free Fatty Acids
B5: MG | C5: MG_ether
B6: DG | C6: DG_ether
B7: TG | C7: TG_ether
B8: BMP
B9: CL | C9: CL_ether
B10: Cer
B11: CerP
B12: CerOH
B13: HexCer
B14: Hex2Cer
B15: Hex3Cer
B16: LacCer
B17: GM1Cer
B18: GM2Cer
B19: GM3Cer
B20: CE
B21: LPC | C21: LPC_ether
B22: PC | C22: PC_ether
B23: LPA | C23: LPA_ether
B24: PA | C24: PA_ether
B25: LPE | C25: LPE_ether
B26: PE | C26: PE_ether
B27: LPG | C27: LPG_ether
B28: PG | C28: PG_ether
B29: LPI | C29: LPI_ether
B30: PI | C30: PI_ether
B31: LPS | C31: LPS_ether
B32: PS | C32: PS_ether
B33: SM
B34: LSM
B35: dMePE | C35: dMePE_ether
B36: LdMePE | C36: LdMePE_ether
B37: cPA
B38: PEt | C38: PEt_ether
B39: PIP | C39: PIP_ether
B40: PMe | C40: PMe_ether
B41: MGDG | C41: MGDG_ether
B42: OAHFA
B43: So
B44: ZyE
B45: Extra
B46: Bile Acids
B47: Eicosanoids
B48: Summary | C48: A convenience summary sheet with exact masses for all requested adducts.

Sheet Free Fatty Acids
A1: Lipid | B1: Sum Composition | G1: #C | H1: #H | I1: #O | L1: Formula | M1: Molecular Weight | N1: Neutral Mass | O1: [M+H]+ | P1: [M+H-H2O]+ | Q1: [M+NH4]+ | R1: [M+Na]+ | S1: [M+K]+ | T1: [M+Li]+ | U1: [M-H]- | V1: [M+HCOO]- | W1: [M+CH3COO]-
A2: FA 12:1 | B2: =IF(ISNUMBER(SEARCH("(",A2)),IF(ISNUMBER(SEARCH("/",A2)),CONCATENATE(MID(A2,1,2)," ",(SUM(MID(A2,FIND("(",A2)+1,FIND(":",A2)-FIND("(",A2)-1),MID(A2,FIND("/",A2)+1,FIND(":",A2,FIND("/",A2))-FIND("/",A2)-1))),":",SUM(MID(A2,FIND(":",A2)+1,FIND("/",A2)-FIND(":",A2)-1),MID(A2,FIND(":",A2,FIND("/",A2))+1,FIND(")",A2)-FIND(":",A2,FIND("/",A2))-1)),MID(A2,(FIND(")",A2)+1),100)),CONCATENATE(MID(A2,1,2)," ",(SUM(MID(A2,FIND("(",A2)+1,FIND(":",A2)-FIND("(",A2)-1),MID(A2,FIND("_",A2)+1,FIND(":",A2,FIND("_",A2))-FIND("_",A2)-1))),":",SUM(MID(A2,FIND(":",A2)+1,FIND("_",A2)-FIND(":",A2)-1),MID(A2,FIND(":",A2,FIND("_",A2))+1,FIND(")",A2)-FIND(":",A2,FIND("_",A2))-1)),MID(A2,(FIND(")",A2)+1),100))),A2) -> FA 12:1 | C2: =MID(B2,4,FIND(":",B2)-FIND(" ",B2)-1) -> 12 | D2: =IF(ISNUMBER(SEARCH("__",B2)),MID(B2,FIND(":",B2)+1,FIND("__",B2)-FIND(":",B2)-1),MID(B2,FIND(":",B2)+1,7)) -> 1 | G2: =C2 -> 12 | H2: =2*G2-(2*D2)-((LEN(A2)-LEN(SUBSTITUTE(A2,"_O_","")))/LEN("_O_"))*2-((LEN(A2)-LEN(SUBSTITUTE(A2,"_CHO_","")))/LEN("_CHO_"))*2-((LEN(A2)-LEN(SUBSTITUTE(A2,"_COOH_","")))/LEN("_COOH_"))*2 -> 22 | I2: =2+((LEN(A2)-LEN(SUBSTITUTE(A2,"_OH_","")))/LEN("_OH_"))*1+((LEN(A2)-LEN(SUBSTITUTE(A2,"_OOH_","")))/LEN("_OOH_"))*2+((LEN(A2)-LEN(SUBSTITUTE(A2,"_O_","")))/LEN("_O_"))*1+((LEN(A2)-LEN(SUBSTITUTE(A2,"_CHO_","")))/LEN("_CHO_"))*1+((LEN(A2)-LEN(SUBSTITUTE(A2,"_COOH_","")))/LEN("_COOH_"))*2 -> 2 | L2: =CONCATENATE("C",G2,"H",H2,"O",I2) -> C12H22O2 | M2: =(G2*12.0107)+(H2*1.00794)+(I2*15.9994) -> 198.30188 | N2: =(G2*12)+(H2*1.0078246)+(I2*15.994915) -> 198.1619712 | O2: =N2+1.0078246-0.00055 -> 199.1692458 | P2: =O2-18.01057-0.00055 -> 181.1581258 | Q2: =N2+18.03437-0.00055 -> 216.1957912 | R2: =N2+22.98977-0.00055 -> 221.1511912 | S2: =N2+38.96371-0.00055 -> 237.1251312 | T2: =N2+7.01601-0.00055 -> 205.1774312 | U2: =N2-1.0078246+0.00055 -> 197.1546966 | V2: =N2+44.99767+0.00055 -> 243.1601912 | W2: =N2+59.01332+0.00055 -> 257.1758412
A3: FA 12:0__O__ | B3: =IF(ISNUMBER(SEARCH("(",A3)),IF(ISNUMBER(SEARCH("/",A3)),CONCATENATE(MID(A3,1,2)," ",(SUM(MID(A3,FIND("(",A3)+1,FIND(":",A3)-FIND("(",A3)-1),MID(A3,FIND("/",A3)+1,FIND(":",A3,FIND("/",A3))-FIND("/",A3)-1))),":",SUM(MID(A3,FIND(":",A3)+1,FIND("/",A3)-FIND(":",A3)-1),MID(A3,FIND(":",A3,FIND("/",A3))+1,FIND(")",A3)-FIND(":",A3,FIND("/",A3))-1)),MID(A3,(FIND(")",A3)+1),100)),CONCATENATE(MID(A3,1,2)," ",(SUM(MID(A3,FIND("(",A3)+1,FIND(":",A3)-FIND("(",A3)-1),MID(A3,FIND("_",A3)+1,FIND(":",A3,FIND("_",A3))-FIND("_",A3)-1))),":",SUM(MID(A3,FIND(":",A3)+1,FIND("_",A3)-FIND(":",A3)-1),MID(A3,FIND(":",A3,FIND("_",A3))+1,FIND(")",A3)-FIND(":",A3,FIND("_",A3))-1)),MID(A3,(FIND(")",A3)+1),100))),A3) -> FA 12:0__O__ | C3: 12 | D3: 0 | G3: 12 | H3: 22 | I3: 3 | L3: C12H22O3 | M3: 214.30128 | N3: 214.1568862 | O3: 215.1641608 | P3: 197.1530408 | Q3: 232.1907062 | R3: 237.1461062 | S3: 253.1200462 | T3: 221.1723462 | U3: 213.1496116 | V3: 259.1551062 | W3: 273.1707562
A4: FA 20:0 | B4: =IF(ISNUMBER(SEARCH("(",A4)),IF(ISNUMBER(SEARCH("/",A4)),CONCATENATE(MID(A4,1,2)," ",(SUM(MID(A4,FIND("(",A4)+1,FIND(":",A4)-FIND("(",A4)-1),MID(A4,FIND("/",A4)+1,FIND(":",A4,FIND("/",A4))-FIND("/",A4)-1))),":",SUM(MID(A4,FIND(":",A4)+1,FIND("/",A4)-FIND(":",A4)-1),MID(A4,FIND(":",A4,FIND("/",A4))+1,FIND(")",A4)-FIND(":",A4,FIND("/",A4))-1)),MID(A4,(FIND(")",A4)+1),100)),CONCATENATE(MID(A4,1,2)," ",(SUM(MID(A4,FIND("(",A4)+1,FIND(":",A4)-FIND("(",A4)-1),MID(A4,FIND("_",A4)+1,FIND(":",A4,FIND("_",A4))-FIND("_",A4)-1))),":",SUM(MID(A4,FIND(":",A4)+1,FIND("_",A4)-FIND(":",A4)-1),MID(A4,FIND(":",A4,FIND("_",A4))+1,FIND(")",A4)-FIND(":",A4,FIND("_",A4))-1)),MID(A4,(FIND(")",A4)+1),100))),A4) -> FA 20:0 | C4: 20 | D4: 0 | G4: 20 | H4: 40 | I4: 2 | L4: C20H40O2 | M4: 312.5304 | N4: 312.302814 | O4: 313.3100886 | P4: 295.2989686 | Q4: 330.336634 | R4: 335.292034 | S4: 351.265974 | T4: 319.318274 | U4: 311.2955394 | V4: 357.301034 | W4: 371.316684
A5: FA 18:3 | B5: =IF(ISNUMBER(SEARCH("(",A5)),IF(ISNUMBER(SEARCH("/",A5)),CONCATENATE(MID(A5,1,2)," ",(SUM(MID(A5,FIND("(",A5)+1,FIND(":",A5)-FIND("(",A5)-1),MID(A5,FIND("/",A5)+1,FIND(":",A5,FIND("/",A5))-FIND("/",A5)-1))),":",SUM(MID(A5,FIND(":",A5)+1,FIND("/",A5)-FIND(":",A5)-1),MID(A5,FIND(":",A5,FIND("/",A5))+1,FIND(")",A5)-FIND(":",A5,FIND("/",A5))-1)),MID(A5,(FIND(")",A5)+1),100)),CONCATENATE(MID(A5,1,2)," ",(SUM(MID(A5,FIND("(",A5)+1,FIND(":",A5)-FIND("(",A5)-1),MID(A5,FIND("_",A5)+1,FIND(":",A5,FIND("_",A5))-FIND("_",A5)-1))),":",SUM(MID(A5,FIND(":",A5)+1,FIND("_",A5)-FIND(":",A5)-1),MID(A5,FIND(":",A5,FIND("_",A5))+1,FIND(")",A5)-FIND(":",A5,FIND("_",A5))-1)),MID(A5,(FIND(")",A5)+1),100))),A5) -> FA 18:3 | C5: =MID(B5,4,FIND(":",B5)-FIND(" ",B5)-1) -> 18 | D5: 3 | G5: =C5 -> 18 | H5: =2*G5-(2*D5)-((LEN(A5)-LEN(SUBSTITUTE(A5,"_O_","")))/LEN("_O_"))*2-((LEN(A5)-LEN(SUBSTITUTE(A5,"_CHO_","")))/LEN("_CHO_"))*2-((LEN(A5)-LEN(SUBSTITUTE(A5,"_COOH_","")))/LEN("_COOH_"))*2 -> 30 | I5: =2+((LEN(A5)-LEN(SUBSTITUTE(A5,"_OH_","")))/LEN("_OH_"))*1+((LEN(A5)-LEN(SUBSTITUTE(A5,"_OOH_","")))/LEN("_OOH_"))*2+((LEN(A5)-LEN(SUBSTITUTE(A5,"_O_","")))/LEN("_O_"))*1+((LEN(A5)-LEN(SUBSTITUTE(A5,"_CHO_","")))/LEN("_CHO_"))*1+((LEN(A5)-LEN(SUBSTITUTE(A5,"_COOH_","")))/LEN("_COOH_"))*2 -> 2 | L5: =CONCATENATE("C",G5,"H",H5,"O",I5) -> C18H30O2 | M5: 278.4296 | N5: =(G5*12)+(H5*1.0078246)+(I5*15.994915) -> 278.224568 | O5: =N5+1.0078246-0.00055 -> 279.2318426 | P5: =O5-18.01057-0.00055 -> 261.2207226 | Q5: =N5+18.03437-0.00055 -> 296.258388 | R5: =N5+22.98977-0.00055 -> 301.213788 | S5: =N5+38.96371-0.00055 -> 317.187728 | T5: =N5+7.01601-0.00055 -> 285.240028 | U5: =N5-1.0078246+0.00055 -> 277.2172934 | V5: =N5+44.99767+0.00055 -> 323.222788 | W5: =N5+59.01332+0.00055 -> 337.238438
A6: FA 16:0 | B6: =IF(ISNUMBER(SEARCH("(",A6)),IF(ISNUMBER(SEARCH("/",A6)),CONCATENATE(MID(A6,1,2)," ",(SUM(MID(A6,FIND("(",A6)+1,FIND(":",A6)-FIND("(",A6)-1),MID(A6,FIND("/",A6)+1,FIND(":",A6,FIND("/",A6))-FIND("/",A6)-1))),":",SUM(MID(A6,FIND(":",A6)+1,FIND("/",A6)-FIND(":",A6)-1),MID(A6,FIND(":",A6,FIND("/",A6))+1,FIND(")",A6)-FIND(":",A6,FIND("/",A6))-1)),MID(A6,(FIND(")",A6)+1),100)),CONCATENATE(MID(A6,1,2)," ",(SUM(MID(A6,FIND("(",A6)+1,FIND(":",A6)-FIND("(",A6)-1),MID(A6,FIND("_",A6)+1,FIND(":",A6,FIND("_",A6))-FIND("_",A6)-1))),":",SUM(MID(A6,FIND(":",A6)+1,FIND("_",A6)-FIND(":",A6)-1),MID(A6,FIND(":",A6,FIND("_",A6))+1,FIND(")",A6)-FIND(":",A6,FIND("_",A6))-1)),MID(A6,(FIND(")",A6)+1),100))),A6) -> FA 16:0 | C6: 16 | D6: 0 | G6: 16 | H6: 32 | I6: 2 | L6: C16H32O2 | M6: 256.42408 | N6: 256.2402172 | O6: 257.2474918 | P6: 239.2363718 | Q6: 274.2740372 | R6: 279.2294372 | S6: 295.2033772 | T6: 263.2556772 | U6: 255.2329426 | V6: 301.2384372 | W6: 315.2540872
A7: FA 18:4 | B7: =IF(ISNUMBER(SEARCH("(",A7)),IF(ISNUMBER(SEARCH("/",A7)),CONCATENATE(MID(A7,1,2)," ",(SUM(MID(A7,FIND("(",A7)+1,FIND(":",A7)-FIND("(",A7)-1),MID(A7,FIND("/",A7)+1,FIND(":",A7,FIND("/",A7))-FIND("/",A7)-1))),":",SUM(MID(A7,FIND(":",A7)+1,FIND("/",A7)-FIND(":",A7)-1),MID(A7,FIND(":",A7,FIND("/",A7))+1,FIND(")",A7)-FIND(":",A7,FIND("/",A7))-1)),MID(A7,(FIND(")",A7)+1),100)),CONCATENATE(MID(A7,1,2)," ",(SUM(MID(A7,FIND("(",A7)+1,FIND(":",A7)-FIND("(",A7)-1),MID(A7,FIND("_",A7)+1,FIND(":",A7,FIND("_",A7))-FIND("_",A7)-1))),":",SUM(MID(A7,FIND(":",A7)+1,FIND("_",A7)-FIND(":",A7)-1),MID(A7,FIND(":",A7,FIND("_",A7))+1,FIND(")",A7)-FIND(":",A7,FIND("_",A7))-1)),MID(A7,(FIND(")",A7)+1),100))),A7) -> FA 18:4 | C7: 18 | D7: 4 | G7: 18 | H7: 28 | I7: 2 | L7: C18H28O2 | M7: 276.41372 | N7: 276.2089188 | O7: 277.2161934 | P7: 259.2050734 | Q7: 294.2427388 | R7: 299.1981388 | S7: 315.1720788 | T7: 283.2243788 | U7: 275.2016442 | V7: 321.2071388 | W7: 335.2227888

Sheet MG
A1: Lipid | B1: Sum Composition | F1: #C | G1: #H | H1: #O | L1: Formula | M1: Molecular Weight | N1: Neutral Mass | O1: [M+H]+ | P1: [M+H-H2O]+ | Q1: [M+NH4]+ | R1: [M+Na]+ | S1: [M+K]+ | T1: [M+Li]+ | U1: [M-H]- | V1: [M+HCOO]- | W1: [M+CH3COO]-
A2: MG 12:0__O__ | B2: =IF(ISNUMBER(SEARCH("(",A2)),IF(ISNUMBER(SEARCH("/",A2)),CONCATENATE(MID(A2,1,2)," ",(SUM(MID(A2,FIND("(",A2)+1,FIND(":",A2)-FIND("(",A2)-1),MID(A2,FIND("/",A2)+1,FIND(":",A2,FIND("/",A2))-FIND("/",A2)-1))),":",SUM(MID(A2,FIND(":",A2)+1,FIND("/",A2)-FIND(":",A2)-1),MID(A2,FIND(":",A2,FIND("/",A2))+1,FIND(")",A2)-FIND(":",A2,FIND("/",A2))-1)),MID(A2,(FIND(")",A2)+1),100)),CONCATENATE(MID(A2,1,2)," ",(SUM(MID(A2,FIND("(",A2)+1,FIND(":",A2)-FIND("(",A2)-1),MID(A2,FIND("_",A2)+1,FIND(":",A2,FIND("_",A2))-FIND("_",A2)-1))),":",SUM(MID(A2,FIND(":",A2)+1,FIND("_",A2)-FIND(":",A2)-1),MID(A2,FIND(":",A2,FIND("_",A2))+1,FIND(")",A2)-FIND(":",A2,FIND("_",A2))-1)),MID(A2,(FIND(")",A2)+1),100))),A2) -> MG 12:0__O__ | C2: =MID(B2,4,FIND(":",B2)-FIND(" ",B2)-1) -> 12 | D2: =IF(ISNUMBER(SEARCH("__",B2)),MID(B2,FIND(":",B2)+1,FIND("__",B2)-FIND(":",B2)-1),MID(B2,FIND(":",B2)+1,7)) -> 0 | F2: =C2+3 -> 15 | G2: =2*F2-(2*D2)-((LEN(A2)-LEN(SUBSTITUTE(A2,"_O_","")))/LEN("_O_"))*2-((LEN(A2)-LEN(SUBSTITUTE(A2,"_CHO_","")))/LEN("_CHO_"))*2-((LEN(A2)-LEN(SUBSTITUTE(A2,"_COOH_","")))/LEN("_COOH_"))*2 -> 28 | H2: =4+((LEN(A2)-LEN(SUBSTITUTE(A2,"_OH_","")))/LEN("_OH_"))*1+((LEN(A2)-LEN(SUBSTITUTE(A2,"_OOH_","")))/LEN("_OOH_"))*2+((LEN(A2)-LEN(SUBSTITUTE(A2,"_O_","")))/LEN("_O_"))*1+((LEN(A2)-LEN(SUBSTITUTE(A2,"_CHO_","")))/LEN("_CHO_"))*1+((LEN(A2)-LEN(SUBSTITUTE(A2,"_COOH_","")))/LEN("_COOH_"))*2 -> 5 | L2: =CONCATENATE("C",F2,"H",G2,"O",H2) -> C15H28O5 | M2: =(F2*12.0107)+(G2*1.00794)+(H2*15.9994) -> 288.37982 | N2: =(F2*12)+(G2*1.0078246)+(H2*15.994915) -> 288.1936638 | O2: =N2+1.0078246-0.00055 -> 289.2009384 | P2: =O2-18.01057-0.00055 -> 271.1898184 | Q2: =N2+18.03437-0.00055 -> 306.2274838 | R2: =N2+22.98977-0.00055 -> 311.1828838 | S2: =N2+38.96371-0.00055 -> 327.1568238 | T2: =N2+7.01601-0.00055 -> 295.2091238 | U2: =N2-1.0078246+0.00055 -> 287.1863892 | V2: =N2+44.99767+0.00055 -> 333.1918838 | W2: =N2+59.01332+0.00055 -> 347.2075338
A3: MG 16:0__CHO__ | B3: =IF(ISNUMBER(SEARCH("(",A3)),IF(ISNUMBER(SEARCH("/",A3)),CONCATENATE(MID(A3,1,2)," ",(SUM(MID(A3,FIND("(",A3)+1,FIND(":",A3)-FIND("(",A3)-1),MID(A3,FIND("/",A3)+1,FIND(":",A3,FIND("/",A3))-FIND("/",A3)-1))),":",SUM(MID(A3,FIND(":",A3)+1,FIND("/",A3)-FIND(":",A3)-1),MID(A3,FIND(":",A3,FIND("/",A3))+1,FIND(")",A3)-FIND(":",A3,FIND("/",A3))-1)),MID(A3,(FIND(")",A3)+1),100)),CONCATENATE(MID(A3,1,2)," ",(SUM(MID(A3,FIND("(",A3)+1,FIND(":",A3)-FIND("(",A3)-1),MID(A3,FIND("_",A3)+1,FIND(":",A3,FIND("_",A3))-FIND("_",A3)-1))),":",SUM(MID(A3,FIND(":",A3)+1,FIND("_",A3)-FIND(":",A3)-1),MID(A3,FIND(":",A3,FIND("_",A3))+1,FIND(")",A3)-FIND(":",A3,FIND("_",A3))-1)),MID(A3,(FIND(")",A3)+1),100))),A3) -> MG 16:0__CHO__ | C3: =MID(B3,4,FIND(":",B3)-FIND(" ",B3)-1) -> 16 | D3: =IF(ISNUMBER(SEARCH("__",B3)),MID(B3,FIND(":",B3)+1,FIND("__",B3)-FIND(":",B3)-1),MID(B3,FIND(":",B3)+1,7)) -> 0 | F3: =C3+3 -> 19 | G3: =2*F3-(2*D3)-((LEN(A3)-LEN(SUBSTITUTE(A3,"_O_","")))/LEN("_O_"))*2-((LEN(A3)-LEN(SUBSTITUTE(A3,"_CHO_","")))/LEN("_CHO_"))*2-((LEN(A3)-LEN(SUBSTITUTE(A3,"_COOH_","")))/LEN("_COOH_"))*2 -> 36 | H3: =4+((LEN(A3)-LEN(SUBSTITUTE(A3,"_OH_","")))/LEN("_OH_"))*1+((LEN(A3)-LEN(SUBSTITUTE(A3,"_OOH_","")))/LEN("_OOH_"))*2+((LEN(A3)-LEN(SUBSTITUTE(A3,"_O_","")))/LEN("_O_"))*1+((LEN(A3)-LEN(SUBSTITUTE(A3,"_CHO_","")))/LEN("_CHO_"))*1+((LEN(A3)-LEN(SUBSTITUTE(A3,"_COOH_","")))/LEN("_COOH_"))*2 -> 5 | L3: =CONCATENATE("C",F3,"H",G3,"O",H3) -> C19H36O5 | M3: =(F3*12.0107)+(G3*1.00794)+(H3*15.9994) -> 344.48614 | N3: =(F3*12)+(G3*1.0078246)+(H3*15.994915) -> 344.2562606 | O3: =N3+1.0078246-0.00055 -> 345.2635352 | P3: =O3-18.01057-0.00055 -> 327.2524152 | Q3: =N3+18.03437-0.00055 -> 362.2900806 | R3: =N3+22.98977-0.00055 -> 367.2454806 | S3: =N3+38.96371-0.00055 -> 383.2194206 | T3: =N3+7.01601-0.00055 -> 351.2717206 | U3: =N3-1.0078246+0.00055 -> 343.248986 | V3: =N3+44.99767+0.00055 -> 389.2544806 | W3: =N3+59.01332+0.00055 -> 403.2701306
A4: MG 12:0__O__ | B4: MG 12:0__O__ | C4: 12 | D4: 0 | F4: 15 | G4: =2*F4-(2*D4)-((LEN(A4)-LEN(SUBSTITUTE(A4,"_O_","")))/LEN("_O_"))*2-((LEN(A4)-LEN(SUBSTITUTE(A4,"_CHO_","")))/LEN("_CHO_"))*2-((LEN(A4)-LEN(SUBSTITUTE(A4,"_COOH_","")))/LEN("_COOH_"))*2 -> 28 | H4: =4+((LEN(A4)-LEN(SUBSTITUTE(A4,"_OH_","")))/LEN("_OH_"))*1+((LEN(A4)-LEN(SUBSTITUTE(A4,"_OOH_","")))/LEN("_OOH_"))*2+((LEN(A4)-LEN(SUBSTITUTE(A4,"_O_","")))/LEN("_O_"))*1+((LEN(A4)-LEN(SUBSTITUTE(A4,"_CHO_","")))/LEN("_CHO_"))*1+((LEN(A4)-LEN(SUBSTITUTE(A4,"_COOH_","")))/LEN("_COOH_"))*2 -> 5 | L4: =CONCATENATE("C",F4,"H",G4,"O",H4) -> C15H28O5 | M4: =(F4*12.0107)+(G4*1.00794)+(H4*15.9994) -> 288.37982 | N4: =(F4*12)+(G4*1.0078246)+(H4*15.994915) -> 288.1936638 | O4: =N4+1.0078246-0.00055 -> 289.2009384 | P4: =O4-18.01057-0.00055 -> 271.1898184 | Q4: =N4+18.03437-0.00055 -> 306.2274838 | R4: =N4+22.98977-0.00055 -> 311.1828838 | S4: =N4+38.96371-0.00055 -> 327.1568238 | T4: =N4+7.01601-0.00055 -> 295.2091238 | U4: =N4-1.0078246+0.00055 -> 287.1863892 | V4: =N4+44.99767+0.00055 -> 333.1918838 | W4: =N4+59.01332+0.00055 -> 347.2075338
A5: MG 18:1 | B5: =IF(ISNUMBER(SEARCH("(",A5)),IF(ISNUMBER(SEARCH("/",A5)),CONCATENATE(MID(A5,1,2)," ",(SUM(MID(A5,FIND("(",A5)+1,FIND(":",A5)-FIND("(",A5)-1),MID(A5,FIND("/",A5)+1,FIND(":",A5,FIND("/",A5))-FIND("/",A5)-1))),":",SUM(MID(A5,FIND(":",A5)+1,FIND("/",A5)-FIND(":",A5)-1),MID(A5,FIND(":",A5,FIND("/",A5))+1,FIND(")",A5)-FIND(":",A5,FIND("/",A5))-1)),MID(A5,(FIND(")",A5)+1),100)),CONCATENATE(MID(A5,1,2)," ",(SUM(MID(A5,FIND("(",A5)+1,FIND(":",A5)-FIND("(",A5)-1),MID(A5,FIND("_",A5)+1,FIND(":",A5,FIND("_",A5))-FIND("_",A5)-1))),":",SUM(MID(A5,FIND(":",A5)+1,FIND("_",A5)-FIND(":",A5)-1),MID(A5,FIND(":",A5,FIND("_",A5))+1,FIND(")",A5)-FIND(":",A5,FIND("_",A5))-1)),MID(A5,(FIND(")",A5)+1),100))),A5) -> MG 18:1 | C5: =MID(B5,4,FIND(":",B5)-FIND(" ",B5)-1) -> 18 | D5: =IF(ISNUMBER(SEARCH("__",B5)),MID(B5,FIND(":",B5)+1,FIND("__",B5)-FIND(":",B5)-1),MID(B5,FIND(":",B5)+1,7)) -> 1 | F5: 21 | G5: =2*F5-(2*D5)-((LEN(A5)-LEN(SUBSTITUTE(A5,"_O_","")))/LEN("_O_"))*2-((LEN(A5)-LEN(SUBSTITUTE(A5,"_CHO_","")))/LEN("_CHO_"))*2-((LEN(A5)-LEN(SUBSTITUTE(A5,"_COOH_","")))/LEN("_COOH_"))*2 -> 40 | H5: =4+((LEN(A5)-LEN(SUBSTITUTE(A5,"_OH_","")))/LEN("_OH_"))*1+((LEN(A5)-LEN(SUBSTITUTE(A5,"_OOH_","")))/LEN("_OOH_"))*2+((LEN(A5)-LEN(SUBSTITUTE(A5,"_O_","")))/LEN("_O_"))*1+((LEN(A5)-LEN(SUBSTITUTE(A5,"_CHO_","")))/LEN("_CHO_"))*1+((LEN(A5)-LEN(SUBSTITUTE(A5,"_COOH_","")))/LEN("_COOH_"))*2 -> 4 | L5: =CONCATENATE("C",F5,"H",G5,"O",H5) -> C21H40O4 | M5: =(F5*12.0107)+(G5*1.00794)+(H5*15.9994) -> 356.5399 | N5: =(F5*12)+(G5*1.0078246)+(H5*15.994915) -> 356.292644 | O5: =N5+1.0078246-0.00055 -> 357.2999186 | P5: =O5-18.01057-0.00055 -> 339.2887986 | Q5: =N5+18.03437-0.00055 -> 374.326464 | R5: =N5+22.98977-0.00055 -> 379.281864 | S5: =N5+38.96371-0.00055 -> 395.255804 | T5: =N5+7.01601-0.00055 -> 363.308104 | U5: =N5-1.0078246+0.00055 -> 355.2853694 | V5: =N5+44.99767+0.00055 -> 401.290864 | W5: =N5+59.01332+0.00055 -> 415.306514

Sheet DG
A1: Lipid | B1: Sum Composition | F1: #C | G1: #H | H1: #O | L1: Formula | M1: Molecular Weight | N1: Neutral Mass | O1: [M+H]+ | P1: [M+H-H2O]+ | Q1: [M+NH4]+ | R1: [M+Na]+ | S1: [M+K]+ | T1: [M+Li]+ | U1: [M-H]- | V1: [M+HCOO]- | W1: [M+CH3COO]-
A2: DG(5:15/18:3) | B2: =IF(ISNUMBER(SEARCH("(",A2)),IF(ISNUMBER(SEARCH("/",A2)),CONCATENATE(MID(A2,1,2)," ",(SUM(MID(A2,FIND("(",A2)+1,FIND(":",A2)-FIND("(",A2)-1),MID(A2,FIND("/",A2)+1,FIND(":",A2,FIND("/",A2))-FIND("/",A2)-1))),":",SUM(MID(A2,FIND(":",A2)+1,FIND("/",A2)-FIND(":",A2)-1),MID(A2,FIND(":",A2,FIND("/",A2))+1,FIND(")",A2)-FIND(":",A2,FIND("/",A2))-1)),MID(A2,(FIND(")",A2)+1),100)),CONCATENATE(MID(A2,1,2)," ",(SUM(MID(A2,FIND("(",A2)+1,FIND(":",A2)-FIND("(",A2)-1),MID(A2,FIND("_",A2)+1,FIND(":",A2,FIND("_",A2))-FIND("_",A2)-1))),":",SUM(MID(A2,FIND(":",A2)+1,FIND("_",A2)-FIND(":",A2)-1),MID(A2,FIND(":",A2,FIND("_",A2))+1,FIND(")",A2)-FIND(":",A2,FIND("_",A2))-1)),MID(A2,(FIND(")",A2)+1),100))),A2) -> DG 23:18 | C2: =MID(B2,4,FIND(":",B2)-FIND(" ",B2)-1) -> 23 | D2: =IF(ISNUMBER(SEARCH("__",B2)),MID(B2,FIND(":",B2)+1,FIND("__",B2)-FIND(":",B2)-1),MID(B2,FIND(":",B2)+1,7)) -> 18 | F2: =C2+3 -> 26 | G2: =2*F2-(2*D2)-2-((LEN(A2)-LEN(SUBSTITUTE(A2,"_O_","")))/LEN("_O_"))*2-((LEN(A2)-LEN(SUBSTITUTE(A2,"_CHO_","")))/LEN("_CHO_"))*2-((LEN(A2)-LEN(SUBSTITUTE(A2,"_COOH_","")))/LEN("_COOH_"))*2 -> 14 | H2: =5+((LEN(A2)-LEN(SUBSTITUTE(A2,"_OH_","")))/LEN("_OH_"))*1+((LEN(A2)-LEN(SUBSTITUTE(A2,"_OOH_","")))/LEN("_OOH_"))*2+((LEN(A2)-LEN(SUBSTITUTE(A2,"_O_","")))/LEN("_O_"))*1+((LEN(A2)-LEN(SUBSTITUTE(A2,"_CHO_","")))/LEN("_CHO_"))*1+((LEN(A2)-LEN(SUBSTITUTE(A2,"_COOH_","")))/LEN("_COOH_"))*2 -> 5 | L2: =CONCATENATE("C",F2,"H",G2,"O",H2) -> C26H14O5 | M2: =(F2*12.0107)+(G2*1.00794)+(H2*15.9994) -> 406.38636 | N2: =(F2*12)+(G2*1.0078246)+(H2*15.994915) -> 406.0841194 | O2: =N2+1.0078246-0.00055 -> 407.091394 | P2: =O2-18.01057-0.00055 -> 389.080274 | Q2: =N2+18.03437-0.00055 -> 424.1179394 | R2: =N2+22.98977-0.00055 -> 429.0733394 | S2: =N2+38.96371-0.00055 -> 445.0472794 | T2: =N2+7.01601-0.00055 -> 413.0995794 | U2: =N2-1.0078246+0.00055 -> 405.0768448 | V2: =N2+44.99767+0.00055 -> 451.0823394 | W2: =N2+59.01332+0.00055 -> 465.0979894
A3: DG(16:0_18:1)__O__ | B3: =IF(ISNUMBER(SEARCH("(",A3)),IF(ISNUMBER(SEARCH("/",A3)),CONCATENATE(MID(A3,1,2)," ",(SUM(MID(A3,FIND("(",A3)+1,FIND(":",A3)-FIND("(",A3)-1),MID(A3,FIND("/",A3)+1,FIND(":",A3,FIND("/",A3))-FIND("/",A3)-1))),":",SUM(MID(A3,FIND(":",A3)+1,FIND("/",A3)-FIND(":",A3)-1),MID(A3,FIND(":",A3,FIND("/",A3))+1,FIND(")",A3)-FIND(":",A3,FIND("/",A3))-1)),MID(A3,(FIND(")",A3)+1),100)),CONCATENATE(MID(A3,1,2)," ",(SUM(MID(A3,FIND("(",A3)+1,FIND(":",A3)-FIND("(",A3)-1),MID(A3,FIND("_",A3)+1,FIND(":",A3,FIND("_",A3))-FIND("_",A3)-1))),":",SUM(MID(A3,FIND(":",A3)+1,FIND("_",A3)-FIND(":",A3)-1),MID(A3,FIND(":",A3,FIND("_",A3))+1,FIND(")",A3)-FIND(":",A3,FIND("_",A3))-1)),MID(A3,(FIND(")",A3)+1),100))),A3) -> DG 34:1__O__ | C3: =MID(B3,4,FIND(":",B3)-FIND(" ",B3)-1) -> 34 | D3: =IF(ISNUMBER(SEARCH("__",B3)),MID(B3,FIND(":",B3)+1,FIND("__",B3)-FIND(":",B3)-1),MID(B3,FIND(":",B3)+1,7)) -> 1 | F3: =C3+3 -> 37 | G3: =2*F3-(2*D3)-2-((LEN(A3)-LEN(SUBSTITUTE(A3,"_O_","")))/LEN("_O_"))*2-((LEN(A3)-LEN(SUBSTITUTE(A3,"_CHO_","")))/LEN("_CHO_"))*2-((LEN(A3)-LEN(SUBSTITUTE(A3,"_COOH_","")))/LEN("_COOH_"))*2 -> 68 | H3: =5+((LEN(A3)-LEN(SUBSTITUTE(A3,"_OH_","")))/LEN("_OH_"))*1+((LEN(A3)-LEN(SUBSTITUTE(A3,"_OOH_","")))/LEN("_OOH_"))*2+((LEN(A3)-LEN(SUBSTITUTE(A3,"_O_","")))/LEN("_O_"))*1+((LEN(A3)-LEN(SUBSTITUTE(A3,"_CHO_","")))/LEN("_CHO_"))*1+((LEN(A3)-LEN(SUBSTITUTE(A3,"_COOH_","")))/LEN("_COOH_"))*2 -> 6 | L3: =CONCATENATE("C",F3,"H",G3,"O",H3) -> C37H68O6 | M3: =(F3*12.0107)+(G3*1.00794)+(H3*15.9994) -> 608.93222 | N3: =(F3*12)+(G3*1.0078246)+(H3*15.994915) -> 608.5015628 | O3: =N3+1.0078246-0.00055 -> 609.5088374 | P3: =O3-18.01057-0.00055 -> 591.4977174 | Q3: =N3+18.03437-0.00055 -> 626.5353828 | R3: =N3+22.98977-0.00055 -> 631.4907828 | S3: =N3+38.96371-0.00055 -> 647.4647228 | T3: =N3+7.01601-0.00055 -> 615.5170228 | U3: =N3-1.0078246+0.00055 -> 607.4942882 | V3: =N3+44.99767+0.00055 -> 653.4997828 | W3: =N3+59.01332+0.00055 -> 667.5154328
A4: DG 34:0 | B4: DG 34:0 | C4: 34 | D4: 0 | F4: 37 | G4: 72 | H4: 5 | L4: C37H72O5 | M4: =(F4*12.0107)+(G4*1.00794)+(H4*15.9994) -> 596.96458 | N4: 596.5379462 | O4: 597.5452208 | P4: 579.5341008 | Q4: 614.5717662 | R4: 619.5271662 | S4: 635.5011062 | T4: 603.5534062 | U4: 595.5306716 | V4: 641.5361662 | W4: 655.5518162
A5: DG(16:0_20:1)__O__ | B5: DG 36:1__O__ | C5: 36 | D5: 1 | F5: 39 | G5: 72 | H5: 6 | L5: C39H72O6 | M5: =(F5*12.0107)+(G5*1.00794)+(H5*15.9994) -> 636.98538 | N5: 636.5328612 | O5: 637.5401358 | P5: 619.5290158 | Q5: 654.5666812 | R5: 659.5220812 | S5: 675.4960212 | T5: 643.5483212 | U5: 635.5255866 | V5: 681.5310812 | W5: 695.5467312
A6: DG(16:1/18:2)__CHO__ | B6: DG 34:3__CHO__ | C6: 34 | D6: 3 | F6: 37 | G6: 64 | H6: 6 | L6: C37H64O6 | M6: =(F6*12.0107)+(G6*1.00794)+(H6*15.9994) -> 604.90046 | N6: 604.4702644 | O6: 605.477539 | P6: 587.466419 | Q6: 622.5040844 | R6: 627.4594844 | S6: 643.4334244 | T6: 611.4857244 | U6: 603.4629898 | V6: 649.4684844 | W6: 663.4841344

Sheet TG
A1: Lipid | B1: Sum Composition | E1: : | G1: #C | H1: #H | I1: #O | L1: Formula | M1: Molecular Weight | N1: Neutral Mass | O1: [M+H]+ | P1: [M+H-H2O]+ | Q1: [M+NH4]+ | R1: [M+Na]+ | S1: [M+K]+ | T1: [M+Li]+ | U1: [M-H]- | V1: [M+HCOO]- | W1: [M+CH3COO]-
A2: TG(11:10/12:13/13:2)__CHO__CHO__ | B2: =IF(ISNUMBER(SEARCH("(",A2)),IF(ISNUMBER(SEARCH("/",A2)),CONCATENATE(MID(A2,1,2)," ",(SUM(MID(A2,FIND("(",A2)+1,FIND(":",A2)-FIND("(",A2)-1),MID(A2,FIND("/",A2)+1,FIND(":",A2,FIND("/",A2))-FIND("/",A2)-1),MID(A2,FIND("/",A2,FIND("/",A2)+1)+1,FIND(":",A2,FIND("/",A2,FIND("/",A2)+1))-FIND("/",A2,FIND("/",A2)+1)-1))),":",SUM(MID(A2,FIND(":",A2)+1,FIND("/",A2)-FIND(":",A2)-1),MID(A2,FIND(":",A2,FIND("/",A2))+1,(FIND("/",A2,FIND("/",A2)+1)-FIND(":",A2,FIND("/",A2))-1)),VALUE(MID(A2,FIND(":",A2,FIND("/",A2,FIND("/",A2)+1))+1,FIND(")",A2)-FIND(":",A2,FIND("/",A2,FIND("/",A2)+1))-1)))," ",MID(A2,(FIND(")",A2)+1),100)),CONCATENATE(MID(A2,1,2)," ",(SUM(MID(A2,FIND("(",A2)+1,FIND(":",A2)-FIND("(",A2)-1),MID(A2,FIND("_",A2)+1,FIND(":",A2,FIND("_",A2))-FIND("_",A2)-1),MID(A2,FIND("_",A2,FIND("_",A2)+1)+1,FIND(":",A2,FIND("_",A2,FIND("_",A2)+1))-FIND("_",A2,FIND("_",A2)+1)-1))),":",SUM(MID(A2,FIND(":",A2)+1,FIND("_",A2)-FIND(":",A2)-1),MID(A2,FIND(":",A2,FIND("_",A2))+1,(FIND("_",A2,FIND("_",A2)+1)-FIND(":",A2,FIND("_",A2))-1)),VALUE(MID(A2,FIND(":",A2,FIND("_",A2,FIND("_",A2)+1))+1,FIND(")",A2)-FIND(":",A2,FIND("_",A2,FIND("_",A2)+1))-1)))," ",MID(A2,(FIND(")",A2)+1),100))),A2) -> TG 36:25 __CHO__CHO__ | C2: =MID(B2,4,FIND(":",B2)-FIND(" ",B2)-1) -> 36 | D2: =IF(ISNUMBER(SEARCH("__",B2)),MID(B2,FIND(":",B2)+1,FIND("__",B2)-FIND(":",B2)-1),MID(B2,FIND(":",B2)+1,7)) -> 25 | G2: =C2+3 -> 39 | H2: =(G2*2)-(4+D2*2)-((LEN(A2)-LEN(SUBSTITUTE(A2,"_O_","")))/LEN("_O_"))*2-((LEN(A2)-LEN(SUBSTITUTE(A2,"_CHO_","")))/LEN("_CHO_"))*2-((LEN(A2)-LEN(SUBSTITUTE(A2,"_COOH_","")))/LEN("_COOH_"))*2 -> 20 | I2: =6+((LEN(A2)-LEN(SUBSTITUTE(A2,"_OH_","")))/LEN("_OH_"))*1+((LEN(A2)-LEN(SUBSTITUTE(A2,"_OOH_","")))/LEN("_OOH_"))*2+((LEN(A2)-LEN(SUBSTITUTE(A2,"_O_","")))/LEN("_O_"))*1+((LEN(A2)-LEN(SUBSTITUTE(A2,"_CHO_","")))/LEN("_CHO_"))*1+((LEN(A2)-LEN(SUBSTITUTE(A2,"_COOH_","")))/LEN("_COOH_"))*2 -> 8 | L2: =CONCATENATE("C",G2,"H",H2,"O",I2) -> C39H20O8 | M2: =(G2*12.0107)+(H2*1.00794)+(I2*15.9994) -> 616.5713 | N2: =(G2*12)+(H2*1.0078246)+(I2*15.994915) -> 616.115812 | O2: =N2+1.0078246-0.00055 -> 617.1230866 | P2: =O2-18.01057-0.00055 -> 599.1119666 | Q2: =N2+18.03437-0.00055 -> 634.149632 | R2: =N2+22.98977-0.00055 -> 639.105032 | S2: =N2+38.96371-0.00055 -> 655.078972 | T2: =N2+7.01601-0.00055 -> 623.131272 | U2: =N2-1.0078246+0.00055 -> 615.1085374 | V2: =N2+44.99767+0.00055 -> 661.114032 | W2: =N2+59.01332+0.00055 -> 675.129682
A3: TG 28:0__O__ | B3: =IF(ISNUMBER(SEARCH("(",A3)),IF(ISNUMBER(SEARCH("/",A3)),CONCATENATE(MID(A3,1,2)," ",(SUM(MID(A3,FIND("(",A3)+1,FIND(":",A3)-FIND("(",A3)-1),MID(A3,FIND("/",A3)+1,FIND(":",A3,FIND("/",A3))-FIND("/",A3)-1),MID(A3,FIND("/",A3,FIND("/",A3)+1)+1,FIND(":",A3,FIND("/",A3,FIND("/",A3)+1))-FIND("/",A3,FIND("/",A3)+1)-1))),":",SUM(MID(A3,FIND(":",A3)+1,FIND("/",A3)-FIND(":",A3)-1),MID(A3,FIND(":",A3,FIND("/",A3))+1,(FIND("/",A3,FIND("/",A3)+1)-FIND(":",A3,FIND("/",A3))-1)),VALUE(MID(A3,FIND(":",A3,FIND("/",A3,FIND("/",A3)+1))+1,FIND(")",A3)-FIND(":",A3,FIND("/",A3,FIND("/",A3)+1))-1)))," ",MID(A3,(FIND(")",A3)+1),100)),CONCATENATE(MID(A3,1,2)," ",(SUM(MID(A3,FIND("(",A3)+1,FIND(":",A3)-FIND("(",A3)-1),MID(A3,FIND("_",A3)+1,FIND(":",A3,FIND("_",A3))-FIND("_",A3)-1),MID(A3,FIND("_",A3,FIND("_",A3)+1)+1,FIND(":",A3,FIND("_",A3,FIND("_",A3)+1))-FIND("_",A3,FIND("_",A3)+1)-1))),":",SUM(MID(A3,FIND(":",A3)+1,FIND("_",A3)-FIND(":",A3)-1),MID(A3,FIND(":",A3,FIND("_",A3))+1,(FIND("_",A3,FIND("_",A3)+1)-FIND(":",A3,FIND("_",A3))-1)),VALUE(MID(A3,FIND(":",A3,FIND("_",A3,FIND("_",A3)+1))+1,FIND(")",A3)-FIND(":",A3,FIND("_",A3,FIND("_",A3)+1))-1)))," ",MID(A3,(FIND(")",A3)+1),100))),A3) -> TG 28:0__O__ | C3: =MID(B3,4,FIND(":",B3)-FIND(" ",B3)-1) -> 28 | D3: =IF(ISNUMBER(SEARCH("__",B3)),MID(B3,FIND(":",B3)+1,FIND("__",B3)-FIND(":",B3)-1),MID(B3,FIND(":",B3)+1,7)) -> 0 | G3: =C3+3 -> 31 | H3: =(G3*2)-(4+D3*2)-((LEN(A3)-LEN(SUBSTITUTE(A3,"_O_","")))/LEN("_O_"))*2-((LEN(A3)-LEN(SUBSTITUTE(A3,"_CHO_","")))/LEN("_CHO_"))*2-((LEN(A3)-LEN(SUBSTITUTE(A3,"_COOH_","")))/LEN("_COOH_"))*2 -> 56 | I3: =6+((LEN(A3)-LEN(SUBSTITUTE(A3,"_OH_","")))/LEN("_OH_"))*1+((LEN(A3)-LEN(SUBSTITUTE(A3,"_OOH_","")))/LEN("_OOH_"))*2+((LEN(A3)-LEN(SUBSTITUTE(A3,"_O_","")))/LEN("_O_"))*1+((LEN(A3)-LEN(SUBSTITUTE(A3,"_CHO_","")))/LEN("_CHO_"))*1+((LEN(A3)-LEN(SUBSTITUTE(A3,"_COOH_","")))/LEN("_COOH_"))*2 -> 7 | L3: =CONCATENATE("C",G3,"H",H3,"O",I3) -> C31H56O7 | M3: =(G3*12.0107)+(H3*1.00794)+(I3*15.9994) -> 540.77214 | N3: =(G3*12)+(H3*1.0078246)+(I3*15.994915) -> 540.4025826 | O3: =N3+1.0078246-0.00055 -> 541.4098572 | P3: =O3-18.01057-0.00055 -> 523.3987372 | Q3: =N3+18.03437-0.00055 -> 558.4364026 | R3: =N3+22.98977-0.00055 -> 563.3918026 | S3: =N3+38.96371-0.00055 -> 579.3657426 | T3: =N3+7.01601-0.00055 -> 547.4180426 | U3: =N3-1.0078246+0.00055 -> 539.395308 | V3: =N3+44.99767+0.00055 -> 585.4008026 | W3: =N3+59.01332+0.00055 -> 599.4164526
A4: TG(12:0/16:0/18:2) | B4: =IF(ISNUMBER(SEARCH("(",A4)),IF(ISNUMBER(SEARCH("/",A4)),CONCATENATE(MID(A4,1,2)," ",(SUM(MID(A4,FIND("(",A4)+1,FIND(":",A4)-FIND("(",A4)-1),MID(A4,FIND("/",A4)+1,FIND(":",A4,FIND("/",A4))-FIND("/",A4)-1),MID(A4,FIND("/",A4,FIND("/",A4)+1)+1,FIND(":",A4,FIND("/",A4,FIND("/",A4)+1))-FIND("/",A4,FIND("/",A4)+1)-1))),":",SUM(MID(A4,FIND(":",A4)+1,FIND("/",A4)-FIND(":",A4)-1),MID(A4,FIND(":",A4,FIND("/",A4))+1,(FIND("/",A4,FIND("/",A4)+1)-FIND(":",A4,FIND("/",A4))-1)),VALUE(MID(A4,FIND(":",A4,FIND("/",A4,FIND("/",A4)+1))+1,FIND(")",A4)-FIND(":",A4,FIND("/",A4,FIND("/",A4)+1))-1)))," ",MID(A4,(FIND(")",A4)+1),100)),CONCATENATE(MID(A4,1,2)," ",(SUM(MID(A4,FIND("(",A4)+1,FIND(":",A4)-FIND("(",A4)-1),MID(A4,FIND("_",A4)+1,FIND(":",A4,FIND("_",A4))-FIND("_",A4)-1),MID(A4,FIND("_",A4,FIND("_",A4)+1)+1,FIND(":",A4,FIND("_",A4,FIND("_",A4)+1))-FIND("_",A4,FIND("_",A4)+1)-1))),":",SUM(MID(A4,FIND(":",A4)+1,FIND("_",A4)-FIND(":",A4)-1),MID(A4,FIND(":",A4,FIND("_",A4))+1,(FIND("_",A4,FIND("_",A4)+1)-FIND(":",A4,FIND("_",A4))-1)),VALUE(MID(A4,FIND(":",A4,FIND("_",A4,FIND("_",A4)+1))+1,FIND(")",A4)-FIND(":",A4,FIND("_",A4,FIND("_",A4)+1))-1)))," ",MID(A4,(FIND(")",A4)+1),100))),A4) -> TG 46:2 | C4: 46 | D4: 2 | G4: =C4+3 -> 49 | H4: =(G4*2)-(4+D4*2)-((LEN(A4)-LEN(SUBSTITUTE(A4,"_O_","")))/LEN("_O_"))*2-((LEN(A4)-LEN(SUBSTITUTE(A4,"_CHO_","")))/LEN("_CHO_"))*2-((LEN(A4)-LEN(SUBSTITUTE(A4,"_COOH_","")))/LEN("_COOH_"))*2 -> 90 | I4: =6+((LEN(A4)-LEN(SUBSTITUTE(A4,"_OH_","")))/LEN("_OH_"))*1+((LEN(A4)-LEN(SUBSTITUTE(A4,"_OOH_","")))/LEN("_OOH_"))*2+((LEN(A4)-LEN(SUBSTITUTE(A4,"_O_","")))/LEN("_O_"))*1+((LEN(A4)-LEN(SUBSTITUTE(A4,"_CHO_","")))/LEN("_CHO_"))*1+((LEN(A4)-LEN(SUBSTITUTE(A4,"_COOH_","")))/LEN("_COOH_"))*2 -> 6 | L4: =CONCATENATE("C",G4,"H",H4,"O",I4) -> C49H90O6 | M4: =(G4*12.0107)+(H4*1.00794)+(I4*15.9994) -> 775.2353 | N4: 774.673704 | O4: =N4+1.0078246-0.00055 -> 775.6809786 | P4: =O4-18.01057-0.00055 -> 757.6698586 | Q4: =N4+18.03437-0.00055 -> 792.707524 | R4: =N4+22.98977-0.00055 -> 797.662924 | S4: =N4+38.96371-0.00055 -> 813.636864 | T4: =N4+7.01601-0.00055 -> 781.689164 | U4: =N4-1.0078246+0.00055 -> 773.6664294 | V4: =N4+44.99767+0.00055 -> 819.671924 | W4: =N4+59.01332+0.00055 -> 833.687574
A5: TG(16:2_18:1_20:1) | B5: TG 54:4 | C5: 54 | D5: 4 | G5: =C5+3 -> 57 | H5: =(G5*2)-(4+D5*2)-((LEN(A5)-LEN(SUBSTITUTE(A5,"_O_","")))/LEN("_O_"))*2-((LEN(A5)-LEN(SUBSTITUTE(A5,"_CHO_","")))/LEN("_CHO_"))*2-((LEN(A5)-LEN(SUBSTITUTE(A5,"_COOH_","")))/LEN("_COOH_"))*2 -> 102 | I5: =6+((LEN(A5)-LEN(SUBSTITUTE(A5,"_OH_","")))/LEN("_OH_"))*1+((LEN(A5)-LEN(SUBSTITUTE(A5,"_OOH_","")))/LEN("_OOH_"))*2+((LEN(A5)-LEN(SUBSTITUTE(A5,"_O_","")))/LEN("_O_"))*1+((LEN(A5)-LEN(SUBSTITUTE(A5,"_CHO_","")))/LEN("_CHO_"))*1+((LEN(A5)-LEN(SUBSTITUTE(A5,"_COOH_","")))/LEN("_COOH_"))*2 -> 6 | L5: =CONCATENATE("C",G5,"H",H5,"O",I5) -> C57H102O6 | M5: =(G5*12.0107)+(H5*1.00794)+(I5*15.9994) -> 883.41618 | N5: 882.7675992 | O5: =N5+1.0078246-0.00055 -> 883.7748738 | P5: =O5-18.01057-0.00055 -> 865.7637538 | Q5: =N5+18.03437-0.00055 -> 900.8014192 | R5: =N5+22.98977-0.00055 -> 905.7568192 | S5: =N5+38.96371-0.00055 -> 921.7307592 | T5: =N5+7.01601-0.00055 -> 889.7830592 | U5: =N5-1.0078246+0.00055 -> 881.7603246 | V5: =N5+44.99767+0.00055 -> 927.7658192 | W5: =N5+59.01332+0.00055 -> 941.7814692

Sheet BMP
A1: Lipid | B1: Sum Composition | G1: #C | H1: #H | I1: #N | J1: #O | K1: #P | L1: Formula | M1: Molecular Weight | N1: Neutral Mass | O1: [M+H]+ | P1: [M+H-H2O]+ | Q1: [M+NH4]+ | R1: [M+Na]+ | S1: [M+K]+ | T1: [M+Li]+ | U1: [M-H]- | V1: [M+HCOO]- | W1: [M+CH3COO]-
A2: BMP(18:1/18:10) | B2: =IF(ISNUMBER(SEARCH("(",A2)),IF(ISNUMBER(SEARCH("/",A2)),CONCATENATE(MID(A2,1,3)," ",(SUM(MID(A2,FIND("(",A2)+1,FIND(":",A2)-FIND("(",A2)-1),MID(A2,FIND("/",A2)+1,FIND(":",A2,FIND("/",A2))-FIND("/",A2)-1))),":",SUM(MID(A2,FIND(":",A2)+1,FIND("/",A2)-FIND(":",A2)-1),MID(A2,FIND(":",A2,FIND("/",A2))+1,FIND(")",A2)-FIND(":",A2,FIND("/",A2))-1)),MID(A2,(FIND(")",A2)+1),100)),CONCATENATE(MID(A2,1,3)," ",(SUM(MID(A2,FIND("(",A2)+1,FIND(":",A2)-FIND("(",A2)-1),MID(A2,FIND("_",A2)+1,FIND(":",A2,FIND("_",A2))-FIND("_",A2)-1))),":",SUM(MID(A2,FIND(":",A2)+1,FIND("_",A2)-FIND(":",A2)-1),MID(A2,FIND(":",A2,FIND("_",A2))+1,FIND(")",A2)-FIND(":",A2,FIND("_",A2))-1)),MID(A2,(FIND(")",A2)+1),100))),A2) -> BMP 36:11 | C2: =MID(B2,5,FIND(":",B2)-FIND(" ",B2)-1) -> 36 | D2: =IF(ISNUMBER(SEARCH("__",B2)),MID(B2,FIND(":",B2)+1,FIND("__",B2)-FIND(":",B2)-1),MID(B2,FIND(":",B2)+1,7)) -> 11 | G2: =C2+6 -> 42 | H2: =2*G2-(2*D2)+2-((LEN(A2)-LEN(SUBSTITUTE(A2,"_O_","")))/LEN("_O_"))*2-((LEN(A2)-LEN(SUBSTITUTE(A2,"_CHO_","")))/LEN("_CHO_"))*2-((LEN(A2)-LEN(SUBSTITUTE(A2,"_COOH_","")))/LEN("_COOH_"))*2 -> 64 | I2: 1 | J2: =10+((LEN(A2)-LEN(SUBSTITUTE(A2,"_OH_","")))/LEN("_OH_"))*1+((LEN(A2)-LEN(SUBSTITUTE(A2,"_OOH_","")))/LEN("_OOH_"))*2+((LEN(A2)-LEN(SUBSTITUTE(A2,"_O_","")))/LEN("_O_"))*1+((LEN(A2)-LEN(SUBSTITUTE(A2,"_CHO_","")))/LEN("_CHO_"))*1+((LEN(A2)-LEN(SUBSTITUTE(A2,"_COOH_","")))/LEN("_COOH_"))*2 -> 10 | K2: 1 | L2: =CONCATENATE("C",G2,"H",H2,"N",I2,"O",J2,"P",K2) -> C42H64N1O10P1 | M2: =(G2*12.0107)+(H2*1.00794)+(I2*14.0067)+(J2*15.9994)+(K2*30.973762) -> 773.932022 | N2: =(G2*12)+(H2*1.0078246)+(I2*14.003074)+(J2*15.994915)+(K2*30.973763) -> 773.4267614 | O2: =N2+1.0078246-0.00055 -> 774.434036 | P2: =O2-18.01057-0.00055 -> 756.422916 | Q2: =N2+18.03437-0.00055 -> 791.4605814 | R2: =N2+22.98977-0.00055 -> 796.4159814 | S2: =N2+38.96371-0.00055 -> 812.3899214 | T2: =N2+7.01601-0.00055 -> 780.4422214 | U2: =N2-1.0078246+0.00055 -> 772.4194868 | V2: =N2+44.99767+0.00055 -> 818.4249814 | W2: =N2+59.01332+0.00055 -> 832.4406314
A3: BMP(18:1_18:3)__O__ | B3: =IF(ISNUMBER(SEARCH("(",A3)),IF(ISNUMBER(SEARCH("/",A3)),CONCATENATE(MID(A3,1,3)," ",(SUM(MID(A3,FIND("(",A3)+1,FIND(":",A3)-FIND("(",A3)-1),MID(A3,FIND("/",A3)+1,FIND(":",A3,FIND("/",A3))-FIND("/",A3)-1))),":",SUM(MID(A3,FIND(":",A3)+1,FIND("/",A3)-FIND(":",A3)-1),MID(A3,FIND(":",A3,FIND("/",A3))+1,FIND(")",A3)-FIND(":",A3,FIND("/",A3))-1)),MID(A3,(FIND(")",A3)+1),100)),CONCATENATE(MID(A3,1,3)," ",(SUM(MID(A3,FIND("(",A3)+1,FIND(":",A3)-FIND("(",A3)-1),MID(A3,FIND("_",A3)+1,FIND(":",A3,FIND("_",A3))-FIND("_",A3)-1))),":",SUM(MID(A3,FIND(":",A3)+1,FIND("_",A3)-FIND(":",A3)-1),MID(A3,FIND(":",A3,FIND("_",A3))+1,FIND(")",A3)-FIND(":",A3,FIND("_",A3))-1)),MID(A3,(FIND(")",A3)+1),100))),A3) -> BMP 36:4__O__ | C3: =MID(B3,5,FIND(":",B3)-FIND(" ",B3)-1) -> 36 | D3: =IF(ISNUMBER(SEARCH("__",B3)),MID(B3,FIND(":",B3)+1,FIND("__",B3)-FIND(":",B3)-1),MID(B3,FIND(":",B3)+1,7)) -> 4 | G3: =C3+6 -> 42 | H3: =2*G3-(2*D3)+2-((LEN(A3)-LEN(SUBSTITUTE(A3,"_O_","")))/LEN("_O_"))*2-((LEN(A3)-LEN(SUBSTITUTE(A3,"_CHO_","")))/LEN("_CHO_"))*2-((LEN(A3)-LEN(SUBSTITUTE(A3,"_COOH_","")))/LEN("_COOH_"))*2 -> 76 | I3: 1 | J3: =10+((LEN(A3)-LEN(SUBSTITUTE(A3,"_OH_","")))/LEN("_OH_"))*1+((LEN(A3)-LEN(SUBSTITUTE(A3,"_OOH_","")))/LEN("_OOH_"))*2+((LEN(A3)-LEN(SUBSTITUTE(A3,"_O_","")))/LEN("_O_"))*1+((LEN(A3)-LEN(SUBSTITUTE(A3,"_CHO_","")))/LEN("_CHO_"))*1+((LEN(A3)-LEN(SUBSTITUTE(A3,"_COOH_","")))/LEN("_COOH_"))*2 -> 11 | K3: 1 | L3: =CONCATENATE("C",G3,"H",H3,"N",I3,"O",J3,"P",K3) -> C42H76N1O11P1 | M3: =(G3*12.0107)+(H3*1.00794)+(I3*14.0067)+(J3*15.9994)+(K3*30.973762) -> 802.026702 | N3: =(G3*12)+(H3*1.0078246)+(I3*14.003074)+(J3*15.994915)+(K3*30.973763) -> 801.5155716 | O3: =N3+1.0078246-0.00055 -> 802.5228462 | P3: =O3-18.01057-0.00055 -> 784.5117262 | Q3: =N3+18.03437-0.00055 -> 819.5493916 | R3: =N3+22.98977-0.00055 -> 824.5047916 | S3: =N3+38.96371-0.00055 -> 840.4787316 | T3: =N3+7.01601-0.00055 -> 808.5310316 | U3: =N3-1.0078246+0.00055 -> 800.508297 | V3: =N3+44.99767+0.00055 -> 846.5137916 | W3: =N3+59.01332+0.00055 -> 860.5294416
A4: BMP 36:2 __O__ | B4: =IF(ISNUMBER(SEARCH("(",A4)),IF(ISNUMBER(SEARCH("/",A4)),CONCATENATE(MID(A4,1,3)," ",(SUM(MID(A4,FIND("(",A4)+1,FIND(":",A4)-FIND("(",A4)-1),MID(A4,FIND("/",A4)+1,FIND(":",A4,FIND("/",A4))-FIND("/",A4)-1))),":",SUM(MID(A4,FIND(":",A4)+1,FIND("/",A4)-FIND(":",A4)-1),MID(A4,FIND(":",A4,FIND("/",A4))+1,FIND(")",A4)-FIND(":",A4,FIND("/",A4))-1)),MID(A4,(FIND(")",A4)+1),100)),CONCATENATE(MID(A4,1,3)," ",(SUM(MID(A4,FIND("(",A4)+1,FIND(":",A4)-FIND("(",A4)-1),MID(A4,FIND("_",A4)+1,FIND(":",A4,FIND("_",A4))-FIND("_",A4)-1))),":",SUM(MID(A4,FIND(":",A4)+1,FIND("_",A4)-FIND(":",A4)-1),MID(A4,FIND(":",A4,FIND("_",A4))+1,FIND(")",A4)-FIND(":",A4,FIND("_",A4))-1)),MID(A4,(FIND(")",A4)+1),100))),A4) -> BMP 36:2 __O__ | C4: 36 | D4: 2 | G4: =C4+6 -> 42 | H4: =2*G4-(2*D4)+2-((LEN(A4)-LEN(SUBSTITUTE(A4,"_O_","")))/LEN("_O_"))*2-((LEN(A4)-LEN(SUBSTITUTE(A4,"_CHO_","")))/LEN("_CHO_"))*2-((LEN(A4)-LEN(SUBSTITUTE(A4,"_COOH_","")))/LEN("_COOH_"))*2 -> 80 | I4: 1 | J4: =10+((LEN(A4)-LEN(SUBSTITUTE(A4,"_OH_","")))/LEN("_OH_"))*1+((LEN(A4)-LEN(SUBSTITUTE(A4,"_OOH_","")))/LEN("_OOH_"))*2+((LEN(A4)-LEN(SUBSTITUTE(A4,"_O_","")))/LEN("_O_"))*1+((LEN(A4)-LEN(SUBSTITUTE(A4,"_CHO_","")))/LEN("_CHO_"))*1+((LEN(A4)-LEN(SUBSTITUTE(A4,"_COOH_","")))/LEN("_COOH_"))*2 -> 11 | K4: 1 | L4: =CONCATENATE("C",G4,"H",H4,"N",I4,"O",J4,"P",K4) -> C42H80N1O11P1 | M4: =(G4*12.0107)+(H4*1.00794)+(I4*14.0067)+(J4*15.9994)+(K4*30.973762) -> 806.058462 | N4: =(G4*12)+(H4*1.0078246)+(I4*14.003074)+(J4*15.994915)+(K4*30.973763) -> 805.54687 | O4: =N4+1.0078246-0.00055 -> 806.5541446 | P4: =O4-18.01057-0.00055 -> 788.5430246 | Q4: =N4+18.03437-0.00055 -> 823.58069 | R4: =N4+22.98977-0.00055 -> 828.53609 | S4: =N4+38.96371-0.00055 -> 844.51003 | T4: =N4+7.01601-0.00055 -> 812.56233 | U4: =N4-1.0078246+0.00055 -> 804.5395954 | V4: =N4+44.99767+0.00055 -> 850.54509 | W4: =N4+59.01332+0.00055 -> 864.56074
A5: BMP 32:2 | B5: BMP 32:2 | C5: 32 | D5: 2 | G5: =C5+6 -> 38 | H5: =2*G5-(2*D5)+2-((LEN(A5)-LEN(SUBSTITUTE(A5,"_O_","")))/LEN("_O_"))*2-((LEN(A5)-LEN(SUBSTITUTE(A5,"_CHO_","")))/LEN("_CHO_"))*2-((LEN(A5)-LEN(SUBSTITUTE(A5,"_COOH_","")))/LEN("_COOH_"))*2 -> 74 | I5: 1 | J5: =10+((LEN(A5)-LEN(SUBSTITUTE(A5,"_OH_","")))/LEN("_OH_"))*1+((LEN(A5)-LEN(SUBSTITUTE(A5,"_OOH_","")))/LEN("_OOH_"))*2+((LEN(A5)-LEN(SUBSTITUTE(A5,"_O_","")))/LEN("_O_"))*1+((LEN(A5)-LEN(SUBSTITUTE(A5,"_CHO_","")))/LEN("_CHO_"))*1+((LEN(A5)-LEN(SUBSTITUTE(A5,"_COOH_","")))/LEN("_COOH_"))*2 -> 10 | K5: 1 | L5: C38H74N1O10P1 | M5: =(G5*12.0107)+(H5*1.00794)+(I5*14.0067)+(J5*15.9994)+(K5*30.973762) -> 735.968622 | N5: =(G5*12)+(H5*1.0078246)+(I5*14.003074)+(J5*15.994915)+(K5*30.973763) -> 735.5050074 | O5: =N5+1.0078246-0.00055 -> 736.512282 | P5: =O5-18.01057-0.00055 -> 718.501162 | Q5: =N5+18.03437-0.00055 -> 753.5388274 | R5: =N5+22.98977-0.00055 -> 758.4942274 | S5: =N5+38.96371-0.00055 -> 774.4681674 | T5: =N5+7.01601-0.00055 -> 742.5204674 | U5: =N5-1.0078246+0.00055 -> 734.4977328 | V5: =N5+44.99767+0.00055 -> 780.5032274 | W5: =N5+59.01332+0.00055 -> 794.5188774
A6: BMP(18:1/18:2) | B6: =IF(ISNUMBER(SEARCH("(",A6)),IF(ISNUMBER(SEARCH("/",A6)),CONCATENATE(MID(A6,1,3)," ",(SUM(MID(A6,FIND("(",A6)+1,FIND(":",A6)-FIND("(",A6)-1),MID(A6,FIND("/",A6)+1,FIND(":",A6,FIND("/",A6))-FIND("/",A6)-1))),":",SUM(MID(A6,FIND(":",A6)+1,FIND("/",A6)-FIND(":",A6)-1),MID(A6,FIND(":",A6,FIND("/",A6))+1,FIND(")",A6)-FIND(":",A6,FIND("/",A6))-1)),MID(A6,(FIND(")",A6)+1),100)),CONCATENATE(MID(A6,1,3)," ",(SUM(MID(A6,FIND("(",A6)+1,FIND(":",A6)-FIND("(",A6)-1),MID(A6,FIND("_",A6)+1,FIND(":",A6,FIND("_",A6))-FIND("_",A6)-1))),":",SUM(MID(A6,FIND(":",A6)+1,FIND("_",A6)-FIND(":",A6)-1),MID(A6,FIND(":",A6,FIND("_",A6))+1,FIND(")",A6)-FIND(":",A6,FIND("_",A6))-1)),MID(A6,(FIND(")",A6)+1),100))),A6) -> BMP 36:3 | C6: =MID(B6,5,FIND(":",B6)-FIND(" ",B6)-1) -> 36 | D6: =IF(ISNUMBER(SEARCH("__",B6)),MID(B6,FIND(":",B6)+1,FIND("__",B6)-FIND(":",B6)-1),MID(B6,FIND(":",B6)+1,7)) -> 3 | G6: =C6+6 -> 42 | H6: =2*G6-(2*D6)+2-((LEN(A6)-LEN(SUBSTITUTE(A6,"_O_","")))/LEN("_O_"))*2-((LEN(A6)-LEN(SUBSTITUTE(A6,"_CHO_","")))/LEN("_CHO_"))*2-((LEN(A6)-LEN(SUBSTITUTE(A6,"_COOH_","")))/LEN("_COOH_"))*2 -> 80 | I6: 1 | J6: =10+((LEN(A6)-LEN(SUBSTITUTE(A6,"_OH_","")))/LEN("_OH_"))*1+((LEN(A6)-LEN(SUBSTITUTE(A6,"_OOH_","")))/LEN("_OOH_"))*2+((LEN(A6)-LEN(SUBSTITUTE(A6,"_O_","")))/LEN("_O_"))*1+((LEN(A6)-LEN(SUBSTITUTE(A6,"_CHO_","")))/LEN("_CHO_"))*1+((LEN(A6)-LEN(SUBSTITUTE(A6,"_COOH_","")))/LEN("_COOH_"))*2 -> 10 | K6: 1 | L6: C42H80N1O10P1 | M6: =(G6*12.0107)+(H6*1.00794)+(I6*14.0067)+(J6*15.9994)+(K6*30.973762) -> 790.059062 | N6: =(G6*12)+(H6*1.0078246)+(I6*14.003074)+(J6*15.994915)+(K6*30.973763) -> 789.551955 | O6: =N6+1.0078246-0.00055 -> 790.5592296 | P6: =O6-18.01057-0.00055 -> 772.5481096 | Q6: =N6+18.03437-0.00055 -> 807.585775 | R6: =N6+22.98977-0.00055 -> 812.541175 | S6: =N6+38.96371-0.00055 -> 828.515115 | T6: =N6+7.01601-0.00055 -> 796.567415 | U6: =N6-1.0078246+0.00055 -> 788.5446804 | V6: =N6+44.99767+0.00055 -> 834.550175 | W6: =N6+59.01332+0.00055 -> 848.565825

Sheet CL
A1: Lipid | B1: Sum Composition | E1: #C | F1: #H | G1: #N | H1: #O | I1: #P | L1: Formula | M1: Molecular Weight | N1: Neutral Mass | O1: [M+H]+ | P1: [M+H-H2O]+ | Q1: [M+NH4]+ | R1: [M+Na]+ | S1: [M+K]+ | T1: [M+Li]+ | U1: [M-H]- | V1: [M+HCOO]- | W1: [M+CH3COO]-
A2: CL(1'-[16:1/17:1],3'-[18:2/19:4])__O__ | B2: =IF(ISNUMBER(SEARCH("[",A2)),IF(ISNUMBER(SEARCH("/",A2)),CONCATENATE(MID(A2,1,2)," ",(SUM(MID(A2,FIND("[",A2)+1,FIND(":",A2)-FIND("[",A2)-1),MID(A2,FIND("/",A2)+1,FIND(":",A2,FIND("/",A2))-FIND("/",A2)-1),MID(A2,FIND("[",A2,FIND("[",A2)+1)+1,(FIND(":",A2,FIND("[",A2))-FIND("[",A2)-1)),MID(A2,FIND("/",A2,FIND("/",A2)+1)+1,FIND(":",A2,FIND("/",A2,FIND("[",A2,FIND("[",A2)+1)+1))-FIND("/",A2,FIND("[",A2,FIND("[",A2)+1)+1)-1))),":",SUM(MID(A2,FIND(":",A2)+1,FIND("/",A2)-FIND(":",A2)-1),MID(A2,FIND(":",A2,FIND("/",A2))+1,FIND("]",A2)-FIND(":",A2,FIND("/",A2))-1),MID(A2,FIND(":",A2,FIND("[",A2,FIND("[",A2)+1))+1,(FIND("/",A2,FIND("[",A2,FIND("[",A2)+1)+1)-FIND(":",A2,FIND("[",A2,FIND("[",A2)+1))-1)),MID(A2,FIND(":",A2,FIND("/",A2,FIND("]",A2)+1))+1,(FIND("]",A2,FIND("[",A2,FIND("[",A2)+1)+1)-FIND(":",A2,FIND("/",A2,FIND("]",A2)+1))-1))),MID(A2,(FIND(")",A2)+1),100)),CONCATENATE(MID(A2,1,2)," ",(SUM(MID(A2,FIND("[",A2)+1,FIND(":",A2)-FIND("[",A2)-1),MID(A2,FIND("_",A2)+1,FIND(":",A2,FIND("_",A2))-FIND("_",A2)-1),MID(A2,FIND("[",A2,FIND("[",A2)+1)+1,(FIND(":",A2,FIND("[",A2))-FIND("[",A2)-1)),MID(A2,FIND("_",A2,FIND("_",A2)+1)+1,FIND(":",A2,FIND("_",A2,FIND("[",A2,FIND("[",A2)+1)+1))-FIND("_",A2,FIND("[",A2,FIND("[",A2)+1)+1)-1))),":",SUM(MID(A2,FIND(":",A2)+1,FIND("_",A2)-FIND(":",A2)-1),MID(A2,FIND(":",A2,FIND("_",A2))+1,FIND("]",A2)-FIND(":",A2,FIND("_",A2))-1),MID(A2,FIND(":",A2,FIND("[",A2,FIND("[",A2)+1))+1,(FIND("_",A2,FIND("[",A2,FIND("[",A2)+1)+1)-FIND(":",A2,FIND("[",A2,FIND("[",A2)+1))-1)),MID(A2,FIND(":",A2,FIND("_",A2,FIND("]",A2)+1))+1,(FIND("]",A2,FIND("[",A2,FIND("[",A2)+1)+1)-FIND(":",A2,FIND("_",A2,FIND("]",A2)+1))-1))),MID(A2,(FIND(")",A2)+1),100))),A2) -> CL 70:8__O__ | C2: =MID(B2,4,FIND(":",B2)-FIND(" ",B2)-1) -> 70 | D2: =IF(ISNUMBER(SEARCH("__",B2)),MID(B2,FIND(":",B2)+1,FIND("__",B2)-FIND(":",B2)-1),MID(B2,FIND(":",B2)+1,7)) -> 8 | E2: =C2+9 -> 79 | F2: =2*E2-(2*D2)-4-((LEN(A2)-LEN(SUBSTITUTE(A2,"_O_","")))/LEN("_O_"))*2-((LEN(A2)-LEN(SUBSTITUTE(A2,"_CHO_","")))/LEN("_CHO_"))*2-((LEN(A2)-LEN(SUBSTITUTE(A2,"_COOH_","")))/LEN("_COOH_"))*2 -> 136 | G2: 0 | H2: =17+((LEN(A2)-LEN(SUBSTITUTE(A2,"_OH_","")))/LEN("_OH_"))*1+((LEN(A2)-LEN(SUBSTITUTE(A2,"_OOH_","")))/LEN("_OOH_"))*2+((LEN(A2)-LEN(SUBSTITUTE(A2,"_O_","")))/LEN("_O_"))*1+((LEN(A2)-LEN(SUBSTITUTE(A2,"_CHO_","")))/LEN("_CHO_"))*1+((LEN(A2)-LEN(SUBSTITUTE(A2,"_COOH_","")))/LEN("_COOH_"))*2 -> 18 | I2: 2 | L2: =CONCATENATE("C",E2,"H",F2,"O",H2,"P",I2) -> C79H136O18P2 | M2: =(E2*12.0107)+(F2*1.00794)+(G2*14.0067)+(H2*15.9994)+(I2*30.973762) -> 1435.861864 | N2: =(E2*12)+(F2*1.0078246)+(G2*14.003074)+(H2*15.994915)+(I2*30.973763) -> 1434.920142 | O2: =N2+1.0078246-0.00055 -> 1435.927416 | P2: =O2-18.01057-0.00055 -> 1417.916296 | Q2: =N2+18.03437-0.00055 -> 1452.953962 | R2: =N2+22.98977-0.00055 -> 1457.909362 | S2: =N2+38.96371-0.00055 -> 1473.883302 | T2: =N2+7.01601-0.00055 -> 1441.935602 | U2: =N2-1.0078246+0.00055 -> 1433.912867 | V2: =N2+44.99767+0.00055 -> 1479.918362 | W2: =N2+59.01332+0.00055 -> 1493.934012
A3: CL 68:2 | B3: =IF(ISNUMBER(SEARCH("[",A3)),IF(ISNUMBER(SEARCH("/",A3)),CONCATENATE(MID(A3,1,2)," ",(SUM(MID(A3,FIND("[",A3)+1,FIND(":",A3)-FIND("[",A3)-1),MID(A3,FIND("/",A3)+1,FIND(":",A3,FIND("/",A3))-FIND("/",A3)-1),MID(A3,FIND("[",A3,FIND("[",A3)+1)+1,(FIND(":",A3,FIND("[",A3))-FIND("[",A3)-1)),MID(A3,FIND("/",A3,FIND("/",A3)+1)+1,FIND(":",A3,FIND("/",A3,FIND("[",A3,FIND("[",A3)+1)+1))-FIND("/",A3,FIND("[",A3,FIND("[",A3)+1)+1)-1))),":",SUM(MID(A3,FIND(":",A3)+1,FIND("/",A3)-FIND(":",A3)-1),MID(A3,FIND(":",A3,FIND("/",A3))+1,FIND("]",A3)-FIND(":",A3,FIND("/",A3))-1),MID(A3,FIND(":",A3,FIND("[",A3,FIND("[",A3)+1))+1,(FIND("/",A3,FIND("[",A3,FIND("[",A3)+1)+1)-FIND(":",A3,FIND("[",A3,FIND("[",A3)+1))-1)),MID(A3,FIND(":",A3,FIND("/",A3,FIND("]",A3)+1))+1,(FIND("]",A3,FIND("[",A3,FIND("[",A3)+1)+1)-FIND(":",A3,FIND("/",A3,FIND("]",A3)+1))-1))),MID(A3,(FIND(")",A3)+1),100)),CONCATENATE(MID(A3,1,2)," ",(SUM(MID(A3,FIND("[",A3)+1,FIND(":",A3)-FIND("[",A3)-1),MID(A3,FIND("_",A3)+1,FIND(":",A3,FIND("_",A3))-FIND("_",A3)-1),MID(A3,FIND("[",A3,FIND("[",A3)+1)+1,(FIND(":",A3,FIND("[",A3))-FIND("[",A3)-1)),MID(A3,FIND("_",A3,FIND("_",A3)+1)+1,FIND(":",A3,FIND("_",A3,FIND("[",A3,FIND("[",A3)+1)+1))-FIND("_",A3,FIND("[",A3,FIND("[",A3)+1)+1)-1))),":",SUM(MID(A3,FIND(":",A3)+1,FIND("_",A3)-FIND(":",A3)-1),MID(A3,FIND(":",A3,FIND("_",A3))+1,FIND("]",A3)-FIND(":",A3,FIND("_",A3))-1),MID(A3,FIND(":",A3,FIND("[",A3,FIND("[",A3)+1))+1,(FIND("_",A3,FIND("[",A3,FIND("[",A3)+1)+1)-FIND(":",A3,FIND("[",A3,FIND("[",A3)+1))-1)),MID(A3,FIND(":",A3,FIND("_",A3,FIND("]",A3)+1))+1,(FIND("]",A3,FIND("[",A3,FIND("[",A3)+1)+1)-FIND(":",A3,FIND("_",A3,FIND("]",A3)+1))-1))),MID(A3,(FIND(")",A3)+1),100))),A3) -> CL 68:2 | C3: =MID(B3,4,FIND(":",B3)-FIND(" ",B3)-1) -> 68 | D3: =IF(ISNUMBER(SEARCH("__",B3)),MID(B3,FIND(":",B3)+1,FIND("__",B3)-FIND(":",B3)-1),MID(B3,FIND(":",B3)+1,7)) -> 2 | E3: =C3+9 -> 77 | F3: =2*E3-(2*D3)-4-((LEN(A3)-LEN(SUBSTITUTE(A3,"_O_","")))/LEN("_O_"))*2-((LEN(A3)-LEN(SUBSTITUTE(A3,"_CHO_","")))/LEN("_CHO_"))*2-((LEN(A3)-LEN(SUBSTITUTE(A3,"_COOH_","")))/LEN("_COOH_"))*2 -> 146 | G3: 0 | H3: =17+((LEN(A3)-LEN(SUBSTITUTE(A3,"_OH_","")))/LEN("_OH_"))*1+((LEN(A3)-LEN(SUBSTITUTE(A3,"_OOH_","")))/LEN("_OOH_"))*2+((LEN(A3)-LEN(SUBSTITUTE(A3,"_O_","")))/LEN("_O_"))*1+((LEN(A3)-LEN(SUBSTITUTE(A3,"_CHO_","")))/LEN("_CHO_"))*1+((LEN(A3)-LEN(SUBSTITUTE(A3,"_COOH_","")))/LEN("_COOH_"))*2 -> 17 | I3: 2 | L3: =CONCATENATE("C",E3,"H",F3,"O",H3,"P",I3) -> C77H146O17P2 | M3: =(E3*12.0107)+(F3*1.00794)+(G3*14.0067)+(H3*15.9994)+(I3*30.973762) -> 1405.920464 | N3: =(E3*12)+(F3*1.0078246)+(G3*14.003074)+(H3*15.994915)+(I3*30.973763) -> 1405.003473 | O3: =N3+1.0078246-0.00055 -> 1406.010747 | P3: =O3-18.01057-0.00055 -> 1387.999627 | Q3: =N3+18.03437-0.00055 -> 1423.037293 | R3: =N3+22.98977-0.00055 -> 1427.992693 | S3: =N3+38.96371-0.00055 -> 1443.966633 | T3: =N3+7.01601-0.00055 -> 1412.018933 | U3: =N3-1.0078246+0.00055 -> 1403.996198 | V3: =N3+44.99767+0.00055 -> 1450.001693 | W3: =N3+59.01332+0.00055 -> 1464.017343
A4: CL 66:2__O__ | B4: =IF(ISNUMBER(SEARCH("[",A4)),IF(ISNUMBER(SEARCH("/",A4)),CONCATENATE(MID(A4,1,2)," ",(SUM(MID(A4,FIND("[",A4)+1,FIND(":",A4)-FIND("[",A4)-1),MID(A4,FIND("/",A4)+1,FIND(":",A4,FIND("/",A4))-FIND("/",A4)-1),MID(A4,FIND("[",A4,FIND("[",A4)+1)+1,(FIND(":",A4,FIND("[",A4))-FIND("[",A4)-1)),MID(A4,FIND("/",A4,FIND("/",A4)+1)+1,FIND(":",A4,FIND("/",A4,FIND("[",A4,FIND("[",A4)+1)+1))-FIND("/",A4,FIND("[",A4,FIND("[",A4)+1)+1)-1))),":",SUM(MID(A4,FIND(":",A4)+1,FIND("/",A4)-FIND(":",A4)-1),MID(A4,FIND(":",A4,FIND("/",A4))+1,FIND("]",A4)-FIND(":",A4,FIND("/",A4))-1),MID(A4,FIND(":",A4,FIND("[",A4,FIND("[",A4)+1))+1,(FIND("/",A4,FIND("[",A4,FIND("[",A4)+1)+1)-FIND(":",A4,FIND("[",A4,FIND("[",A4)+1))-1)),MID(A4,FIND(":",A4,FIND("/",A4,FIND("]",A4)+1))+1,(FIND("]",A4,FIND("[",A4,FIND("[",A4)+1)+1)-FIND(":",A4,FIND("/",A4,FIND("]",A4)+1))-1))),MID(A4,(FIND(")",A4)+1),100)),CONCATENATE(MID(A4,1,2)," ",(SUM(MID(A4,FIND("[",A4)+1,FIND(":",A4)-FIND("[",A4)-1),MID(A4,FIND("_",A4)+1,FIND(":",A4,FIND("_",A4))-FIND("_",A4)-1),MID(A4,FIND("[",A4,FIND("[",A4)+1)+1,(FIND(":",A4,FIND("[",A4))-FIND("[",A4)-1)),MID(A4,FIND("_",A4,FIND("_",A4)+1)+1,FIND(":",A4,FIND("_",A4,FIND("[",A4,FIND("[",A4)+1)+1))-FIND("_",A4,FIND("[",A4,FIND("[",A4)+1)+1)-1))),":",SUM(MID(A4,FIND(":",A4)+1,FIND("_",A4)-FIND(":",A4)-1),MID(A4,FIND(":",A4,FIND("_",A4))+1,FIND("]",A4)-FIND(":",A4,FIND("_",A4))-1),MID(A4,FIND(":",A4,FIND("[",A4,FIND("[",A4)+1))+1,(FIND("_",A4,FIND("[",A4,FIND("[",A4)+1)+1)-FIND(":",A4,FIND("[",A4,FIND("[",A4)+1))-1)),MID(A4,FIND(":",A4,FIND("_",A4,FIND("]",A4)+1))+1,(FIND("]",A4,FIND("[",A4,FIND("[",A4)+1)+1)-FIND(":",A4,FIND("_",A4,FIND("]",A4)+1))-1))),MID(A4,(FIND(")",A4)+1),100))),A4) -> CL 66:2__O__ | C4: 66 | D4: 2 | E4: 75 | F4: =2*E4-(2*D4)-4-((LEN(A4)-LEN(SUBSTITUTE(A4,"_O_","")))/LEN("_O_"))*2-((LEN(A4)-LEN(SUBSTITUTE(A4,"_CHO_","")))/LEN("_CHO_"))*2-((LEN(A4)-LEN(SUBSTITUTE(A4,"_COOH_","")))/LEN("_COOH_"))*2 -> 140 | G4: 0 | H4: =17+((LEN(A4)-LEN(SUBSTITUTE(A4,"_OH_","")))/LEN("_OH_"))*1+((LEN(A4)-LEN(SUBSTITUTE(A4,"_OOH_","")))/LEN("_OOH_"))*2+((LEN(A4)-LEN(SUBSTITUTE(A4,"_O_","")))/LEN("_O_"))*1+((LEN(A4)-LEN(SUBSTITUTE(A4,"_CHO_","")))/LEN("_CHO_"))*1+((LEN(A4)-LEN(SUBSTITUTE(A4,"_COOH_","")))/LEN("_COOH_"))*2 -> 18 | I4: 2 | L4: =CONCATENATE("C",E4,"H",F4,"O",H4,"P",I4) -> C75H140O18P2 | M4: =(E4*12.0107)+(F4*1.00794)+(G4*14.0067)+(H4*15.9994)+(I4*30.973762) -> 1391.850824 | N4: 1390.95144 | O4: =N4+1.0078246-0.00055 -> 1391.958715 | P4: =O4-18.01057-0.00055 -> 1373.947595 | Q4: =N4+18.03437-0.00055 -> 1408.98526 | R4: =N4+22.98977-0.00055 -> 1413.94066 | S4: =N4+38.96371-0.00055 -> 1429.9146 | T4: =N4+7.01601-0.00055 -> 1397.9669 | U4: =N4-1.0078246+0.00055 -> 1389.944165 | V4: =N4+44.99767+0.00055 -> 1435.94966 | W4: =N4+59.01332+0.00055 -> 1449.96531
A5: CL(1'-[16:1/18:1],3'-[18:1/18:1])__O__ | B5: =IF(ISNUMBER(SEARCH("[",A5)),IF(ISNUMBER(SEARCH("/",A5)),CONCATENATE(MID(A5,1,2)," ",(SUM(MID(A5,FIND("[",A5)+1,FIND(":",A5)-FIND("[",A5)-1),MID(A5,FIND("/",A5)+1,FIND(":",A5,FIND("/",A5))-FIND("/",A5)-1),MID(A5,FIND("[",A5,FIND("[",A5)+1)+1,(FIND(":",A5,FIND("[",A5))-FIND("[",A5)-1)),MID(A5,FIND("/",A5,FIND("/",A5)+1)+1,FIND(":",A5,FIND("/",A5,FIND("[",A5,FIND("[",A5)+1)+1))-FIND("/",A5,FIND("[",A5,FIND("[",A5)+1)+1)-1))),":",SUM(MID(A5,FIND(":",A5)+1,FIND("/",A5)-FIND(":",A5)-1),MID(A5,FIND(":",A5,FIND("/",A5))+1,FIND("]",A5)-FIND(":",A5,FIND("/",A5))-1),MID(A5,FIND(":",A5,FIND("[",A5,FIND("[",A5)+1))+1,(FIND("/",A5,FIND("[",A5,FIND("[",A5)+1)+1)-FIND(":",A5,FIND("[",A5,FIND("[",A5)+1))-1)),MID(A5,FIND(":",A5,FIND("/",A5,FIND("]",A5)+1))+1,(FIND("]",A5,FIND("[",A5,FIND("[",A5)+1)+1)-FIND(":",A5,FIND("/",A5,FIND("]",A5)+1))-1))),MID(A5,(FIND(")",A5)+1),100)),CONCATENATE(MID(A5,1,2)," ",(SUM(MID(A5,FIND("[",A5)+1,FIND(":",A5)-FIND("[",A5)-1),MID(A5,FIND("_",A5)+1,FIND(":",A5,FIND("_",A5))-FIND("_",A5)-1),MID(A5,FIND("[",A5,FIND("[",A5)+1)+1,(FIND(":",A5,FIND("[",A5))-FIND("[",A5)-1)),MID(A5,FIND("_",A5,FIND("_",A5)+1)+1,FIND(":",A5,FIND("_",A5,FIND("[",A5,FIND("[",A5)+1)+1))-FIND("_",A5,FIND("[",A5,FIND("[",A5)+1)+1)-1))),":",SUM(MID(A5,FIND(":",A5)+1,FIND("_",A5)-FIND(":",A5)-1),MID(A5,FIND(":",A5,FIND("_",A5))+1,FIND("]",A5)-FIND(":",A5,FIND("_",A5))-1),MID(A5,FIND(":",A5,FIND("[",A5,FIND("[",A5)+1))+1,(FIND("_",A5,FIND("[",A5,FIND("[",A5)+1)+1)-FIND(":",A5,FIND("[",A5,FIND("[",A5)+1))-1)),MID(A5,FIND(":",A5,FIND("_",A5,FIND("]",A5)+1))+1,(FIND("]",A5,FIND("[",A5,FIND("[",A5)+1)+1)-FIND(":",A5,FIND("_",A5,FIND("]",A5)+1))-1))),MID(A5,(FIND(")",A5)+1),100))),A5) -> CL 70:4__O__ | C5: =MID(B5,4,FIND(":",B5)-FIND(" ",B5)-1) -> 70 | D5: =IF(ISNUMBER(SEARCH("__",B5)),MID(B5,FIND(":",B5)+1,FIND("__",B5)-FIND(":",B5)-1),MID(B5,FIND(":",B5)+1,7)) -> 4 | E5: 79 | F5: =2*E5-(2*D5)-4-((LEN(A5)-LEN(SUBSTITUTE(A5,"_O_","")))/LEN("_O_"))*2-((LEN(A5)-LEN(SUBSTITUTE(A5,"_CHO_","")))/LEN("_CHO_"))*2-((LEN(A5)-LEN(SUBSTITUTE(A5,"_COOH_","")))/LEN("_COOH_"))*2 -> 144 | G5: 0 | H5: =17+((LEN(A5)-LEN(SUBSTITUTE(A5,"_OH_","")))/LEN("_OH_"))*1+((LEN(A5)-LEN(SUBSTITUTE(A5,"_OOH_","")))/LEN("_OOH_"))*2+((LEN(A5)-LEN(SUBSTITUTE(A5,"_O_","")))/LEN("_O_"))*1+((LEN(A5)-LEN(SUBSTITUTE(A5,"_CHO_","")))/LEN("_CHO_"))*1+((LEN(A5)-LEN(SUBSTITUTE(A5,"_COOH_","")))/LEN("_COOH_"))*2 -> 18 | I5: 2 | L5: =CONCATENATE("C",E5,"H",F5,"O",H5,"P",I5) -> C79H144O18P2 | M5: =(E5*12.0107)+(F5*1.00794)+(G5*14.0067)+(H5*15.9994)+(I5*30.973762) -> 1443.925384 | N5: 1442.982738 | O5: =N5+1.0078246-0.00055 -> 1443.990013 | P5: =O5-18.01057-0.00055 -> 1425.978893 | Q5: =N5+18.03437-0.00055 -> 1461.016558 | R5: =N5+22.98977-0.00055 -> 1465.971958 | S5: =N5+38.96371-0.00055 -> 1481.945898 | T5: =N5+7.01601-0.00055 -> 1449.998198 | U5: =N5-1.0078246+0.00055 -> 1441.975464 | V5: =N5+44.99767+0.00055 -> 1487.980958 | W5: =N5+59.01332+0.00055 -> 1501.996608
A6: CL(1'-[18:2_20:1],3'-[18:2_22:4])__O__ | B6: =IF(ISNUMBER(SEARCH("[",A6)),IF(ISNUMBER(SEARCH("/",A6)),CONCATENATE(MID(A6,1,2)," ",(SUM(MID(A6,FIND("[",A6)+1,FIND(":",A6)-FIND("[",A6)-1),MID(A6,FIND("/",A6)+1,FIND(":",A6,FIND("/",A6))-FIND("/",A6)-1),MID(A6,FIND("[",A6,FIND("[",A6)+1)+1,(FIND(":",A6,FIND("[",A6))-FIND("[",A6)-1)),MID(A6,FIND("/",A6,FIND("/",A6)+1)+1,FIND(":",A6,FIND("/",A6,FIND("[",A6,FIND("[",A6)+1)+1))-FIND("/",A6,FIND("[",A6,FIND("[",A6)+1)+1)-1))),":",SUM(MID(A6,FIND(":",A6)+1,FIND("/",A6)-FIND(":",A6)-1),MID(A6,FIND(":",A6,FIND("/",A6))+1,FIND("]",A6)-FIND(":",A6,FIND("/",A6))-1),MID(A6,FIND(":",A6,FIND("[",A6,FIND("[",A6)+1))+1,(FIND("/",A6,FIND("[",A6,FIND("[",A6)+1)+1)-FIND(":",A6,FIND("[",A6,FIND("[",A6)+1))-1)),MID(A6,FIND(":",A6,FIND("/",A6,FIND("]",A6)+1))+1,(FIND("]",A6,FIND("[",A6,FIND("[",A6)+1)+1)-FIND(":",A6,FIND("/",A6,FIND("]",A6)+1))-1))),MID(A6,(FIND(")",A6)+1),100)),CONCATENATE(MID(A6,1,2)," ",(SUM(MID(A6,FIND("[",A6)+1,FIND(":",A6)-FIND("[",A6)-1),MID(A6,FIND("_",A6)+1,FIND(":",A6,FIND("_",A6))-FIND("_",A6)-1),MID(A6,FIND("[",A6,FIND("[",A6)+1)+1,(FIND(":",A6,FIND("[",A6))-FIND("[",A6)-1)),MID(A6,FIND("_",A6,FIND("_",A6)+1)+1,FIND(":",A6,FIND("_",A6,FIND("[",A6,FIND("[",A6)+1)+1))-FIND("_",A6,FIND("[",A6,FIND("[",A6)+1)+1)-1))),":",SUM(MID(A6,FIND(":",A6)+1,FIND("_",A6)-FIND(":",A6)-1),MID(A6,FIND(":",A6,FIND("_",A6))+1,FIND("]",A6)-FIND(":",A6,FIND("_",A6))-1),MID(A6,FIND(":",A6,FIND("[",A6,FIND("[",A6)+1))+1,(FIND("_",A6,FIND("[",A6,FIND("[",A6)+1)+1)-FIND(":",A6,FIND("[",A6,FIND("[",A6)+1))-1)),MID(A6,FIND(":",A6,FIND("_",A6,FIND("]",A6)+1))+1,(FIND("]",A6,FIND("[",A6,FIND("[",A6)+1)+1)-FIND(":",A6,FIND("_",A6,FIND("]",A6)+1))-1))),MID(A6,(FIND(")",A6)+1),100))),A6) -> CL 78:9__O__ | C6: =MID(B6,4,FIND(":",B6)-FIND(" ",B6)-1) -> 78 | D6: =IF(ISNUMBER(SEARCH("__",B6)),MID(B6,FIND(":",B6)+1,FIND("__",B6)-FIND(":",B6)-1),MID(B6,FIND(":",B6)+1,7)) -> 9 | E6: =C6+9 -> 87 | F6: =2*E6-(2*D6)-4-((LEN(A6)-LEN(SUBSTITUTE(A6,"_O_","")))/LEN("_O_"))*2-((LEN(A6)-LEN(SUBSTITUTE(A6,"_CHO_","")))/LEN("_CHO_"))*2-((LEN(A6)-LEN(SUBSTITUTE(A6,"_COOH_","")))/LEN("_COOH_"))*2 -> 150 | G6: 0 | H6: =17+((LEN(A6)-LEN(SUBSTITUTE(A6,"_OH_","")))/LEN("_OH_"))*1+((LEN(A6)-LEN(SUBSTITUTE(A6,"_OOH_","")))/LEN("_OOH_"))*2+((LEN(A6)-LEN(SUBSTITUTE(A6,"_O_","")))/LEN("_O_"))*1+((LEN(A6)-LEN(SUBSTITUTE(A6,"_CHO_","")))/LEN("_CHO_"))*1+((LEN(A6)-LEN(SUBSTITUTE(A6,"_COOH_","")))/LEN("_COOH_"))*2 -> 18 | I6: 2 | L6: =CONCATENATE("C",E6,"H",F6,"O",H6,"P",I6) -> C87H150O18P2 | M6: =(E6*12.0107)+(F6*1.00794)+(G6*14.0067)+(H6*15.9994)+(I6*30.973762) -> 1546.058624 | N6: =(E6*12)+(F6*1.0078246)+(G6*14.003074)+(H6*15.994915)+(I6*30.973763) -> 1545.029686 | O6: =N6+1.0078246-0.00055 -> 1546.036961 | P6: =O6-18.01057-0.00055 -> 1528.025841 | Q6: =N6+18.03437-0.00055 -> 1563.063506 | R6: =N6+22.98977-0.00055 -> 1568.018906 | S6: =N6+38.96371-0.00055 -> 1583.992846 | T6: =N6+7.01601-0.00055 -> 1552.045146 | U6: =N6-1.0078246+0.00055 -> 1544.022411 | V6: =N6+44.99767+0.00055 -> 1590.027906 | W6: =N6+59.01332+0.00055 -> 1604.043556

Sheet Cer
A1: Lipid | B1: Sum Composition | G1: #C | H1: #H | I1: #N | J1: #O | K1: #P | L1: Formula | M1: Molecular Weight | N1: Neutral Mass | O1: [M+H]+ | P1: [M+H-H2O]+ | Q1: [M+NH4]+ | R1: [M+Na]+ | S1: [M+K]+ | T1: [M+Li]+ | U1: [M-H]- | V1: [M+HCOO]- | W1: [M+CH3COO]-
A2: Cer(d18:1/16:0) | B2: =IF(ISNUMBER(SEARCH("(",A2)),IF(ISNUMBER(SEARCH("/",A2)),CONCATENATE(MID(A2,1,3)," ","d",(SUM(MID(A2,FIND("(",A2)+2,FIND(":",A2)-FIND("(",A2)-2),MID(A2,FIND("/",A2)+1,FIND(":",A2,FIND("/",A2))-FIND("/",A2)-1))),":",SUM(MID(A2,FIND(":",A2)+1,FIND("/",A2)-FIND(":",A2)-1),MID(A2,FIND(":",A2,FIND("/",A2))+1,FIND(")",A2)-FIND(":",A2,FIND("/",A2))-1)),MID(A2,(FIND(")",A2)+1),100)),CONCATENATE(MID(A2,1,3)," ","d",(SUM(MID(A2,FIND("(",A2)+2,FIND(":",A2)-FIND("(",A2)-2),MID(A2,FIND("_",A2)+1,FIND(":",A2,FIND("_",A2))-FIND("_",A2)-1))),":",SUM(MID(A2,FIND(":",A2)+1,FIND("_",A2)-FIND(":",A2)-1),MID(A2,FIND(":",A2,FIND("_",A2))+1,FIND(")",A2)-FIND(":",A2,FIND("_",A2))-1)),MID(A2,(FIND(")",A2)+1),100))),CONCATENATE(MID(A2,1,3)," ","d",MID(A2,6,100))) -> Cer d34:1 | C2: =MID(B2,6,FIND(":",B2)-FIND("d",B2)-1) -> 34 | D2: =IF(ISNUMBER(SEARCH("__",B2)),MID(B2,FIND(":",B2)+1,FIND("__",B2)-FIND(":",B2)-1),MID(B2,FIND(":",B2)+1,7)) -> 1 | G2: =C2 -> 34 | H2: =2*G2-(2*D2)+1-((LEN(A2)-LEN(SUBSTITUTE(A2,"_O_","")))/LEN("_O_"))*2-((LEN(A2)-LEN(SUBSTITUTE(A2,"_CHO_","")))/LEN("_CHO_"))*2-((LEN(A2)-LEN(SUBSTITUTE(A2,"_COOH_","")))/LEN("_COOH_"))*2 -> 67 | I2: 1 | J2: =3+((LEN(A2)-LEN(SUBSTITUTE(A2,"_OH_","")))/LEN("_OH_"))*1+((LEN(A2)-LEN(SUBSTITUTE(A2,"_OOH_","")))/LEN("_OOH_"))*2+((LEN(A2)-LEN(SUBSTITUTE(A2,"_O_","")))/LEN("_O_"))*1+((LEN(A2)-LEN(SUBSTITUTE(A2,"_CHO_","")))/LEN("_CHO_"))*1+((LEN(A2)-LEN(SUBSTITUTE(A2,"_COOH_","")))/LEN("_COOH_"))*2 -> 3 | L2: =CONCATENATE("C",G2,"H",H2,"N",I2,"O",J2) -> C34H67N1O3 | M2: =(G2*12.0107)+(H2*1.00794)+(I2*14.0067)+(J2*15.9994) -> 537.90068 | N2: =(G2*12)+(H2*1.0078246)+(I2*14.003074)+(J2*15.994915) -> 537.5120672 | O2: =N2+1.0078246-0.00055 -> 538.5193418 | P2: =O2-18.01057-0.00055 -> 520.5082218 | Q2: =N2+18.03437-0.00055 -> 555.5458872 | R2: =N2+22.98977-0.00055 -> 560.5012872 | S2: =N2+38.96371-0.00055 -> 576.4752272 | T2: =N2+7.01601-0.00055 -> 544.5275272 | U2: =N2-1.0078246+0.00055 -> 536.5047926 | V2: =N2+44.99767+0.00055 -> 582.5102872 | W2: =N2+59.01332+0.00055 -> 596.5259372
A3: Cer(d18:1_18:1) | B3: =IF(ISNUMBER(SEARCH("(",A3)),IF(ISNUMBER(SEARCH("/",A3)),CONCATENATE(MID(A3,1,3)," ","d",(SUM(MID(A3,FIND("(",A3)+2,FIND(":",A3)-FIND("(",A3)-2),MID(A3,FIND("/",A3)+1,FIND(":",A3,FIND("/",A3))-FIND("/",A3)-1))),":",SUM(MID(A3,FIND(":",A3)+1,FIND("/",A3)-FIND(":",A3)-1),MID(A3,FIND(":",A3,FIND("/",A3))+1,FIND(")",A3)-FIND(":",A3,FIND("/",A3))-1)),MID(A3,(FIND(")",A3)+1),100)),CONCATENATE(MID(A3,1,3)," ","d",(SUM(MID(A3,FIND("(",A3)+2,FIND(":",A3)-FIND("(",A3)-2),MID(A3,FIND("_",A3)+1,FIND(":",A3,FIND("_",A3))-FIND("_",A3)-1))),":",SUM(MID(A3,FIND(":",A3)+1,FIND("_",A3)-FIND(":",A3)-1),MID(A3,FIND(":",A3,FIND("_",A3))+1,FIND(")",A3)-FIND(":",A3,FIND("_",A3))-1)),MID(A3,(FIND(")",A3)+1),100))),CONCATENATE(MID(A3,1,3)," ","d",MID(A3,6,100))) -> Cer d36:2 | C3: =MID(B3,6,FIND(":",B3)-FIND("d",B3)-1) -> 36 | D3: =IF(ISNUMBER(SEARCH("__",B3)),MID(B3,FIND(":",B3)+1,FIND("__",B3)-FIND(":",B3)-1),MID(B3,FIND(":",B3)+1,7)) -> 2 | G3: =C3 -> 36 | H3: =2*G3-(2*D3)+1-((LEN(A3)-LEN(SUBSTITUTE(A3,"_O_","")))/LEN("_O_"))*2-((LEN(A3)-LEN(SUBSTITUTE(A3,"_CHO_","")))/LEN("_CHO_"))*2-((LEN(A3)-LEN(SUBSTITUTE(A3,"_COOH_","")))/LEN("_COOH_"))*2 -> 69 | I3: 1 | J3: =3+((LEN(A3)-LEN(SUBSTITUTE(A3,"_OH_","")))/LEN("_OH_"))*1+((LEN(A3)-LEN(SUBSTITUTE(A3,"_OOH_","")))/LEN("_OOH_"))*2+((LEN(A3)-LEN(SUBSTITUTE(A3,"_O_","")))/LEN("_O_"))*1+((LEN(A3)-LEN(SUBSTITUTE(A3,"_CHO_","")))/LEN("_CHO_"))*1+((LEN(A3)-LEN(SUBSTITUTE(A3,"_COOH_","")))/LEN("_COOH_"))*2 -> 3 | L3: =CONCATENATE("C",G3,"H",H3,"N",I3,"O",J3) -> C36H69N1O3 | M3: 563.93796 | N3: =(G3*12)+(H3*1.0078246)+(I3*14.003074)+(J3*15.994915) -> 563.5277164 | O3: =N3+1.0078246-0.00055 -> 564.534991 | P3: =O3-18.01057-0.00055 -> 546.523871 | Q3: =N3+18.03437-0.00055 -> 581.5615364 | R3: =N3+22.98977-0.00055 -> 586.5169364 | S3: =N3+38.96371-0.00055 -> 602.4908764 | T3: =N3+7.01601-0.00055 -> 570.5431764 | U3: =N3-1.0078246+0.00055 -> 562.5204418 | V3: =N3+44.99767+0.00055 -> 608.5259364 | W3: =N3+59.01332+0.00055 -> 622.5415864
A4: Cer(d18:1/18:0)__O__ | B4: Cer d36:1__O__ | C4: 36 | D4: 1 | G4: 36 | H4: 69 | I4: 1 | J4: 4 | L4: C36H69N1O4 | M4: 579.93736 | N4: 579.5226314 | O4: 580.529906 | P4: 562.518786 | Q4: 597.5564514 | R4: 602.5118514 | S4: 618.4857914 | T4: 586.5380914 | U4: 578.5153568 | V4: 624.5208514 | W4: 638.5365014
A5: Cer(d18:1/20:0) | B5: Cer d38:1 | C5: 38 | D5: 1 | G5: 38 | H5: 75 | I5: 1 | J5: 3 | L5: C38H75N1O3 | M5: 594.007 | N5: 593.574664 | O5: 594.5819386 | P5: 576.5708186 | Q5: 611.608484 | R5: 616.563884 | S5: 632.537824 | T5: 600.590124 | U5: 592.5673894 | V5: 638.572884 | W5: 652.588534
A6: Cer d40:1__O__ | B6: Cer d40:1__O__ | C6: 40 | D6: 1 | G6: 40 | H6: 77 | I6: 1 | J6: 4 | L6: C40H77N1O4 | M6: 636.04368 | N6: 635.5852282 | O6: 636.5925028 | P6: 618.5813828 | Q6: 653.6190482 | R6: 658.5744482 | S6: 674.5483882 | T6: 642.6006882 | U6: 634.5779536 | V6: 680.5834482 | W6: 694.5990982
A7: Cer(d18:1_24:1) | B7: Cer d42:2 | C7: 42 | D7: 2 | G7: 42 | H7: 81 | I7: 1 | J7: 3 | L7: C42H81N1O3 | M7: 648.09744 | N7: 647.6216116 | O7: 648.6288862 | P7: 630.6177662 | Q7: 665.6554316 | R7: 670.6108316 | S7: 686.5847716 | T7: 654.6370716 | U7: 646.614337 | V7: 692.6198316 | W7: 706.6354816

Sheet CerP
A1: Lipid | B1: Sum Composition | G1: #C | H1: #H | I1: #N | J1: #O | K1: #P | L1: Formula | M1: Molecular Weight | N1: Neutral Mass | O1: [M+H]+ | P1: [M+H-H2O]+ | Q1: [M+NH4]+ | R1: [M+Na]+ | S1: [M+K]+ | T1: [M+Li]+ | U1: [M-H]- | V1: [M+HCOO]- | W1: [M+CH3COO]-
A2: CerP(d18:1/16:0) | B2: =IF(ISNUMBER(SEARCH("(",A2)),IF(ISNUMBER(SEARCH("/",A2)),CONCATENATE(MID(A2,1,4)," ","d",(SUM(MID(A2,FIND("(",A2)+2,FIND(":",A2)-FIND("(",A2)-2),MID(A2,FIND("/",A2)+1,FIND(":",A2,FIND("/",A2))-FIND("/",A2)-1))),":",SUM(MID(A2,FIND(":",A2)+1,FIND("/",A2)-FIND(":",A2)-1),MID(A2,FIND(":",A2,FIND("/",A2))+1,FIND(")",A2)-FIND(":",A2,FIND("/",A2))-1)),MID(A2,(FIND(")",A2)+1),100)),CONCATENATE(MID(A2,1,4)," ","d",(SUM(MID(A2,FIND("(",A2)+2,FIND(":",A2)-FIND("(",A2)-2),MID(A2,FIND("_",A2)+1,FIND(":",A2,FIND("_",A2))-FIND("_",A2)-1))),":",SUM(MID(A2,FIND(":",A2)+1,FIND("_",A2)-FIND(":",A2)-1),MID(A2,FIND(":",A2,FIND("_",A2))+1,FIND(")",A2)-FIND(":",A2,FIND("_",A2))-1)),MID(A2,(FIND(")",A2)+1),100))),CONCATENATE(MID(A2,1,4)," ","d",MID(A2,7,100))) -> CerP d34:1 | C2: =MID(B2,7,FIND(":",B2)-FIND("d",B2)-1) -> 34 | D2: =IF(ISNUMBER(SEARCH("__",B2)),MID(B2,FIND(":",B2)+1,FIND("__",B2)-FIND(":",B2)-1),MID(B2,FIND(":",B2)+1,7)) -> 1 | G2: =C2 -> 34 | H2: =2*G2-(2*D2)+2-((LEN(A2)-LEN(SUBSTITUTE(A2,"_O_","")))/LEN("_O_"))*2-((LEN(A2)-LEN(SUBSTITUTE(A2,"_CHO_","")))/LEN("_CHO_"))*2-((LEN(A2)-LEN(SUBSTITUTE(A2,"_COOH_","")))/LEN("_COOH_"))*2 -> 68 | I2: 1 | J2: =6+((LEN(A2)-LEN(SUBSTITUTE(A2,"_OH_","")))/LEN("_OH_"))*1+((LEN(A2)-LEN(SUBSTITUTE(A2,"_OOH_","")))/LEN("_OOH_"))*2+((LEN(A2)-LEN(SUBSTITUTE(A2,"_O_","")))/LEN("_O_"))*1+((LEN(A2)-LEN(SUBSTITUTE(A2,"_CHO_","")))/LEN("_CHO_"))*1+((LEN(A2)-LEN(SUBSTITUTE(A2,"_COOH_","")))/LEN("_COOH_"))*2 -> 6 | K2: 1 | L2: =CONCATENATE("C",G2,"H",H2,"N",I2,"O",J2,"P",K2) -> C34H68N1O6P1 | M2: =(G2*12.0107)+(H2*1.00794)+(I2*14.0067)+(J2*15.9994)+(K2*30.973762) -> 617.880582 | N2: =(G2*12)+(H2*1.0078246)+(I2*14.003074)+(J2*15.994915)+(K2*30.973763) -> 617.4783998 | O2: =N2+1.0078246-0.00055 -> 618.4856744 | P2: =O2-18.01057-0.00055 -> 600.4745544 | Q2: =N2+18.03437-0.00055 -> 635.5122198 | R2: =N2+22.98977-0.00055 -> 640.4676198 | S2: =N2+38.96371-0.00055 -> 656.4415598 | T2: =N2+7.01601-0.00055 -> 624.4938598 | U2: =N2-1.0078246+0.00055 -> 616.4711252 | V2: =N2+44.99767+0.00055 -> 662.4766198 | W2: =N2+59.01332+0.00055 -> 676.4922698
A3: CerP d34:2__O__ | B3: =IF(ISNUMBER(SEARCH("(",A3)),IF(ISNUMBER(SEARCH("/",A3)),CONCATENATE(MID(A3,1,4)," ","d",(SUM(MID(A3,FIND("(",A3)+2,FIND(":",A3)-FIND("(",A3)-2),MID(A3,FIND("/",A3)+1,FIND(":",A3,FIND("/",A3))-FIND("/",A3)-1))),":",SUM(MID(A3,FIND(":",A3)+1,FIND("/",A3)-FIND(":",A3)-1),MID(A3,FIND(":",A3,FIND("/",A3))+1,FIND(")",A3)-FIND(":",A3,FIND("/",A3))-1)),MID(A3,(FIND(")",A3)+1),100)),CONCATENATE(MID(A3,1,4)," ","d",(SUM(MID(A3,FIND("(",A3)+2,FIND(":",A3)-FIND("(",A3)-2),MID(A3,FIND("_",A3)+1,FIND(":",A3,FIND("_",A3))-FIND("_",A3)-1))),":",SUM(MID(A3,FIND(":",A3)+1,FIND("_",A3)-FIND(":",A3)-1),MID(A3,FIND(":",A3,FIND("_",A3))+1,FIND(")",A3)-FIND(":",A3,FIND("_",A3))-1)),MID(A3,(FIND(")",A3)+1),100))),CONCATENATE(MID(A3,1,4)," ","d",MID(A3,7,100))) -> CerP d34:2__O__ | C3: =MID(B3,7,FIND(":",B3)-FIND("d",B3)-1) -> 34 | D3: =IF(ISNUMBER(SEARCH("__",B3)),MID(B3,FIND(":",B3)+1,FIND("__",B3)-FIND(":",B3)-1),MID(B3,FIND(":",B3)+1,7)) -> 2 | G3: =C3 -> 34 | H3: =2*G3-(2*D3)+2-((LEN(A3)-LEN(SUBSTITUTE(A3,"_O_","")))/LEN("_O_"))*2-((LEN(A3)-LEN(SUBSTITUTE(A3,"_CHO_","")))/LEN("_CHO_"))*2-((LEN(A3)-LEN(SUBSTITUTE(A3,"_COOH_","")))/LEN("_COOH_"))*2 -> 64 | I3: 1 | J3: =6+((LEN(A3)-LEN(SUBSTITUTE(A3,"_OH_","")))/LEN("_OH_"))*1+((LEN(A3)-LEN(SUBSTITUTE(A3,"_OOH_","")))/LEN("_OOH_"))*2+((LEN(A3)-LEN(SUBSTITUTE(A3,"_O_","")))/LEN("_O_"))*1+((LEN(A3)-LEN(SUBSTITUTE(A3,"_CHO_","")))/LEN("_CHO_"))*1+((LEN(A3)-LEN(SUBSTITUTE(A3,"_COOH_","")))/LEN("_COOH_"))*2 -> 7 | K3: 1 | L3: =CONCATENATE("C",G3,"H",H3,"N",I3,"O",J3,"P",K3) -> C34H64N1O7P1 | M3: =(G3*12.0107)+(H3*1.00794)+(I3*14.0067)+(J3*15.9994)+(K3*30.973762) -> 629.848222 | N3: =(G3*12)+(H3*1.0078246)+(I3*14.003074)+(J3*15.994915)+(K3*30.973763) -> 629.4420164 | O3: =N3+1.0078246-0.00055 -> 630.449291 | P3: =O3-18.01057-0.00055 -> 612.438171 | Q3: =N3+18.03437-0.00055 -> 647.4758364 | R3: =N3+22.98977-0.00055 -> 652.4312364 | S3: =N3+38.96371-0.00055 -> 668.4051764 | T3: =N3+7.01601-0.00055 -> 636.4574764 | U3: =N3-1.0078246+0.00055 -> 628.4347418 | V3: =N3+44.99767+0.00055 -> 674.4402364 | W3: =N3+59.01332+0.00055 -> 688.4558864
A4: CerP d36:1__COOH__ | B4: CerP d36:1__COOH__ | C4: 36 | D4: 1 | G4: 36 | H4: 70 | I4: 1 | J4: 8 | K4: 1 | L4: C36H70N1O8P1 | M4: =(G4*12.0107)+(H4*1.00794)+(I4*14.0067)+(J4*15.9994)+(K4*30.973762) -> 675.916662 | N4: 675.483879 | O4: 676.4911536 | P4: 658.4800336 | Q4: 693.517699 | R4: 698.473099 | S4: 714.447039 | T4: 682.499339 | U4: 674.4766044 | V4: 720.482099 | W4: 734.497749
A5: CerP(d18:1/16:0) | B5: CerP d34:1 | C5: 34 | D5: 1 | G5: 34 | H5: 68 | I5: 1 | J5: 6 | K5: 1 | L5: C34H68N1O6P1 | M5: =(G5*12.0107)+(H5*1.00794)+(I5*14.0067)+(J5*15.9994)+(K5*30.973762) -> 617.880582 | N5: 617.4783998 | O5: 618.4856744 | P5: 600.4745544 | Q5: 635.5122198 | R5: 640.4676198 | S5: 656.4415598 | T5: 624.4938598 | U5: 616.4711252 | V5: 662.4766198 | W5: 676.4922698
A6: CerP(d18:1/18:1)__CHO__ | B6: CerP d36:2__CHO__ | C6: 36 | D6: 2 | G6: 36 | H6: 68 | I6: 1 | J6: 7 | K6: 1 | L6: C36H68N1O7P1 | M6: =(G6*12.0107)+(H6*1.00794)+(I6*14.0067)+(J6*15.9994)+(K6*30.973762) -> 657.901382 | N6: 657.4733148 | O6: 658.4805894 | P6: 640.4694694 | Q6: 675.5071348 | R6: 680.4625348 | S6: 696.4364748 | T6: 664.4887748 | U6: 656.4660402 | V6: 702.4715348 | W6: 716.4871848

Sheet CerOH
A1: Lipid | B1: Sum Composition | G1: #C | H1: #H | I1: #N | J1: #O | K1: #P | L1: Formula | M1: Molecular Weight | N1: Neutral Mass | O1: [M+H]+ | P1: [M+H-H2O]+ | Q1: [M+NH4]+ | R1: [M+Na]+ | S1: [M+K]+ | T1: [M+Li]+ | U1: [M-H]- | V1: [M+HCOO]- | W1: [M+CH3COO]-
A2: Cer(d18:0/16:0)-OH | B2: =IF(ISNUMBER(SEARCH("(",A2)),IF(ISNUMBER(SEARCH("/",A2)),CONCATENATE(MID(A2,1,3)," ","d",(SUM(MID(A2,FIND("(",A2)+2,FIND(":",A2)-FIND("(",A2)-2),MID(A2,FIND("/",A2)+1,FIND(":",A2,FIND("/",A2))-FIND("/",A2)-1))),":",SUM(MID(A2,FIND(":",A2)+1,FIND("/",A2)-FIND(":",A2)-1),MID(A2,FIND(":",A2,FIND("/",A2))+1,FIND(")",A2)-FIND(":",A2,FIND("/",A2))-1)),MID(A2,(FIND(")",A2)+1),100)),CONCATENATE(MID(A2,1,3)," ","d",(SUM(MID(A2,FIND("(",A2)+2,FIND(":",A2)-FIND("(",A2)-2),MID(A2,FIND("_",A2)+1,FIND(":",A2,FIND("_",A2))-FIND("_",A2)-1))),":",SUM(MID(A2,FIND(":",A2)+1,FIND("_",A2)-FIND(":",A2)-1),MID(A2,FIND(":",A2,FIND("_",A2))+1,FIND(")",A2)-FIND(":",A2,FIND("_",A2))-1)),MID(A2,(FIND(")",A2)+1),100))),CONCATENATE(MID(A2,1,3)," ","d",MID(A2,6,100))) -> Cer d34:0-OH | C2: =MID(B2,6,FIND(":",B2)-FIND("d",B2)-1) -> 34 | D2: =MID(B2,FIND(":",B2)+1,FIND("-",B2)-FIND(":",B2)-1) -> 0 | G2: =C2 -> 34 | H2: =2*G2-(2*D2)+1-((LEN(A2)-LEN(SUBSTITUTE(A2,"_O_","")))/LEN("_O_"))*2-((LEN(A2)-LEN(SUBSTITUTE(A2,"_CHO_","")))/LEN("_CHO_"))*2-((LEN(A2)-LEN(SUBSTITUTE(A2,"_COOH_","")))/LEN("_COOH_"))*2 -> 69 | I2: 1 | J2: =4+((LEN(A2)-LEN(SUBSTITUTE(A2,"_OH_","")))/LEN("_OH_"))*1+((LEN(A2)-LEN(SUBSTITUTE(A2,"_OOH_","")))/LEN("_OOH_"))*2+((LEN(A2)-LEN(SUBSTITUTE(A2,"_O_","")))/LEN("_O_"))*1+((LEN(A2)-LEN(SUBSTITUTE(A2,"_CHO_","")))/LEN("_CHO_"))*1+((LEN(A2)-LEN(SUBSTITUTE(A2,"_COOH_","")))/LEN("_COOH_"))*2 -> 4 | L2: =CONCATENATE("C",G2,"H",H2,"N",I2,"O",J2) -> C34H69N1O4 | M2: =(G2*12.0107)+(H2*1.00794)+(I2*14.0067)+(J2*15.9994) -> 555.91596 | N2: =(G2*12)+(H2*1.0078246)+(I2*14.003074)+(J2*15.994915) -> 555.5226314 | O2: =N2+1.0078246-0.00055 -> 556.529906 | P2: =O2-18.01057-0.00055 -> 538.518786 | Q2: =N2+18.03437-0.00055 -> 573.5564514 | R2: =N2+22.98977-0.00055 -> 578.5118514 | S2: =N2+38.96371-0.00055 -> 594.4857914 | T2: =N2+7.01601-0.00055 -> 562.5380914 | U2: =N2-1.0078246+0.00055 -> 554.5153568 | V2: =N2+44.99767+0.00055 -> 600.5208514 | W2: =N2+59.01332+0.00055 -> 614.5365014
A3: Cer(d18:0/24:1)-OH__O__ | B3: =IF(ISNUMBER(SEARCH("(",A3)),IF(ISNUMBER(SEARCH("/",A3)),CONCATENATE(MID(A3,1,3)," ","d",(SUM(MID(A3,FIND("(",A3)+2,FIND(":",A3)-FIND("(",A3)-2),MID(A3,FIND("/",A3)+1,FIND(":",A3,FIND("/",A3))-FIND("/",A3)-1))),":",SUM(MID(A3,FIND(":",A3)+1,FIND("/",A3)-FIND(":",A3)-1),MID(A3,FIND(":",A3,FIND("/",A3))+1,FIND(")",A3)-FIND(":",A3,FIND("/",A3))-1)),MID(A3,(FIND(")",A3)+1),100)),CONCATENATE(MID(A3,1,3)," ","d",(SUM(MID(A3,FIND("(",A3)+2,FIND(":",A3)-FIND("(",A3)-2),MID(A3,FIND("_",A3)+1,FIND(":",A3,FIND("_",A3))-FIND("_",A3)-1))),":",SUM(MID(A3,FIND(":",A3)+1,FIND("_",A3)-FIND(":",A3)-1),MID(A3,FIND(":",A3,FIND("_",A3))+1,FIND(")",A3)-FIND(":",A3,FIND("_",A3))-1)),MID(A3,(FIND(")",A3)+1),100))),CONCATENATE(MID(A3,1,3)," ","d",MID(A3,6,100))) -> Cer d42:1-OH__O__ | C3: =MID(B3,6,FIND(":",B3)-FIND("d",B3)-1) -> 42 | D3: =MID(B3,FIND(":",B3)+1,FIND("-",B3)-FIND(":",B3)-1) -> 1 | G3: =C3 -> 42 | H3: =2*G3-(2*D3)+1-((LEN(A3)-LEN(SUBSTITUTE(A3,"_O_","")))/LEN("_O_"))*2-((LEN(A3)-LEN(SUBSTITUTE(A3,"_CHO_","")))/LEN("_CHO_"))*2-((LEN(A3)-LEN(SUBSTITUTE(A3,"_COOH_","")))/LEN("_COOH_"))*2 -> 81 | I3: 1 | J3: =4+((LEN(A3)-LEN(SUBSTITUTE(A3,"_OH_","")))/LEN("_OH_"))*1+((LEN(A3)-LEN(SUBSTITUTE(A3,"_OOH_","")))/LEN("_OOH_"))*2+((LEN(A3)-LEN(SUBSTITUTE(A3,"_O_","")))/LEN("_O_"))*1+((LEN(A3)-LEN(SUBSTITUTE(A3,"_CHO_","")))/LEN("_CHO_"))*1+((LEN(A3)-LEN(SUBSTITUTE(A3,"_COOH_","")))/LEN("_COOH_"))*2 -> 5 | L3: =CONCATENATE("C",G3,"H",H3,"N",I3,"O",J3) -> C42H81N1O5 | M3: =(G3*12.0107)+(H3*1.00794)+(I3*14.0067)+(J3*15.9994) -> 680.09624 | N3: =(G3*12)+(H3*1.0078246)+(I3*14.003074)+(J3*15.994915) -> 679.6114416 | O3: =N3+1.0078246-0.00055 -> 680.6187162 | P3: =O3-18.01057-0.00055 -> 662.6075962 | Q3: =N3+18.03437-0.00055 -> 697.6452616 | R3: =N3+22.98977-0.00055 -> 702.6006616 | S3: =N3+38.96371-0.00055 -> 718.5746016 | T3: =N3+7.01601-0.00055 -> 686.6269016 | U3: =N3-1.0078246+0.00055 -> 678.604167 | V3: =N3+44.99767+0.00055 -> 724.6096616 | W3: =N3+59.01332+0.00055 -> 738.6253116
A4: Cer d36:1-OH | B4: Cer d36:1-OH | C4: 36 | D4: 1 | G4: 36 | H4: 71 | I4: 1 | J4: 4 | L4: C36H71N1O4 | M4: =(G4*12.0107)+(H4*1.00794)+(I4*14.0067)+(J4*15.9994) -> 581.95324 | N4: 581.5382806 | O4: 582.5455552 | P4: 564.5344352 | Q4: 599.5721006 | R4: 604.5275006 | S4: 620.5014406 | T4: 588.5537406 | U4: 580.531006 | V4: 626.5365006 | W4: 640.5521506

Sheet HexCer
A1: Lipid | B1: Sum Composition | G1: #C | H1: #H | I1: #N | J1: #O | K1: #P | L1: Formula | M1: Molecular Weight | N1: Neutral Mass | O1: [M+H]+ | P1: [M+H-H2O]+ | Q1: [M+NH4]+ | R1: [M+Na]+ | S1: [M+K]+ | T1: [M+Li]+ | U1: [M-H]- | V1: [M+HCOO]- | W1: [M+CH3COO]-
A2: HexCer(d18:0/26:10) | B2: =IF(ISNUMBER(SEARCH("(",A2)),IF(ISNUMBER(SEARCH("/",A2)),CONCATENATE(MID(A2,1,6)," ","d",(SUM(MID(A2,FIND("(",A2)+2,FIND(":",A2)-FIND("(",A2)-2),MID(A2,FIND("/",A2)+1,FIND(":",A2,FIND("/",A2))-FIND("/",A2)-1))),":",SUM(MID(A2,FIND(":",A2)+1,FIND("/",A2)-FIND(":",A2)-1),MID(A2,FIND(":",A2,FIND("/",A2))+1,FIND(")",A2)-FIND(":",A2,FIND("/",A2))-1)),MID(A2,(FIND(")",A2)+1),100)),CONCATENATE(MID(A2,1,6)," ","d",(SUM(MID(A2,FIND("(",A2)+2,FIND(":",A2)-FIND("(",A2)-2),MID(A2,FIND("_",A2)+1,FIND(":",A2,FIND("_",A2))-FIND("_",A2)-1))),":",SUM(MID(A2,FIND(":",A2)+1,FIND("_",A2)-FIND(":",A2)-1),MID(A2,FIND(":",A2,FIND("_",A2))+1,FIND(")",A2)-FIND(":",A2,FIND("_",A2))-1)),MID(A2,(FIND(")",A2)+1),100))),CONCATENATE(MID(A2,1,6)," ","d",MID(A2,9,100))) -> HexCer d44:10 | C2: =MID(B2,9,FIND(":",B2)-FIND("d",B2)-1) -> 44 | D2: =IF(ISNUMBER(SEARCH("__",B2)),MID(B2,FIND(":",B2)+1,FIND("__",B2)-FIND(":",B2)-1),MID(B2,FIND(":",B2)+1,7)) -> 10 | G2: =C2+6 -> 50 | H2: =2*G2-(2*D2)-1-((LEN(A2)-LEN(SUBSTITUTE(A2,"_O_","")))/LEN("_O_"))*2-((LEN(A2)-LEN(SUBSTITUTE(A2,"_CHO_","")))/LEN("_CHO_"))*2-((LEN(A2)-LEN(SUBSTITUTE(A2,"_COOH_","")))/LEN("_COOH_"))*2 -> 79 | I2: 1 | J2: =8+((LEN(A2)-LEN(SUBSTITUTE(A2,"_OH_","")))/LEN("_OH_"))*1+((LEN(A2)-LEN(SUBSTITUTE(A2,"_OOH_","")))/LEN("_OOH_"))*2+((LEN(A2)-LEN(SUBSTITUTE(A2,"_O_","")))/LEN("_O_"))*1+((LEN(A2)-LEN(SUBSTITUTE(A2,"_CHO_","")))/LEN("_CHO_"))*1+((LEN(A2)-LEN(SUBSTITUTE(A2,"_COOH_","")))/LEN("_COOH_"))*2 -> 8 | L2: =CONCATENATE("C",G2,"H",H2,"N",I2,"O",J2) -> C50H79N1O8 | M2: =(G2*12.0107)+(H2*1.00794)+(I2*14.0067)+(J2*15.9994) -> 822.16416 | N2: =(G2*12)+(H2*1.0078246)+(I2*14.003074)+(J2*15.994915) -> 821.5805374 | O2: =N2+1.0078246-0.00055 -> 822.587812 | P2: =O2-18.01057-0.00055 -> 804.576692 | Q2: =N2+18.03437-0.00055 -> 839.6143574 | R2: =N2+22.98977-0.00055 -> 844.5697574 | S2: =N2+38.96371-0.00055 -> 860.5436974 | T2: =N2+7.01601-0.00055 -> 828.5959974 | U2: =N2-1.0078246+0.00055 -> 820.5732628 | V2: =N2+44.99767+0.00055 -> 866.5787574 | W2: =N2+59.01332+0.00055 -> 880.5944074
A3: GlcCer(d18:0/20:1) | B3: =IF(ISNUMBER(SEARCH("(",A3)),IF(ISNUMBER(SEARCH("/",A3)),CONCATENATE(MID(A3,1,6)," ","d",(SUM(MID(A3,FIND("(",A3)+2,FIND(":",A3)-FIND("(",A3)-2),MID(A3,FIND("/",A3)+1,FIND(":",A3,FIND("/",A3))-FIND("/",A3)-1))),":",SUM(MID(A3,FIND(":",A3)+1,FIND("/",A3)-FIND(":",A3)-1),MID(A3,FIND(":",A3,FIND("/",A3))+1,FIND(")",A3)-FIND(":",A3,FIND("/",A3))-1)),MID(A3,(FIND(")",A3)+1),100)),CONCATENATE(MID(A3,1,6)," ","d",(SUM(MID(A3,FIND("(",A3)+2,FIND(":",A3)-FIND("(",A3)-2),MID(A3,FIND("_",A3)+1,FIND(":",A3,FIND("_",A3))-FIND("_",A3)-1))),":",SUM(MID(A3,FIND(":",A3)+1,FIND("_",A3)-FIND(":",A3)-1),MID(A3,FIND(":",A3,FIND("_",A3))+1,FIND(")",A3)-FIND(":",A3,FIND("_",A3))-1)),MID(A3,(FIND(")",A3)+1),100))),CONCATENATE(MID(A3,1,6)," ","d",MID(A3,9,100))) -> GlcCer d38:1 | C3: =MID(B3,9,FIND(":",B3)-FIND("d",B3)-1) -> 38 | D3: =IF(ISNUMBER(SEARCH("__",B3)),MID(B3,FIND(":",B3)+1,FIND("__",B3)-FIND(":",B3)-1),MID(B3,FIND(":",B3)+1,7)) -> 1 | G3: =C3+6 -> 44 | H3: =2*G3-(2*D3)-1-((LEN(A3)-LEN(SUBSTITUTE(A3,"_O_","")))/LEN("_O_"))*2-((LEN(A3)-LEN(SUBSTITUTE(A3,"_CHO_","")))/LEN("_CHO_"))*2-((LEN(A3)-LEN(SUBSTITUTE(A3,"_COOH_","")))/LEN("_COOH_"))*2 -> 85 | I3: 1 | J3: =8+((LEN(A3)-LEN(SUBSTITUTE(A3,"_OH_","")))/LEN("_OH_"))*1+((LEN(A3)-LEN(SUBSTITUTE(A3,"_OOH_","")))/LEN("_OOH_"))*2+((LEN(A3)-LEN(SUBSTITUTE(A3,"_O_","")))/LEN("_O_"))*1+((LEN(A3)-LEN(SUBSTITUTE(A3,"_CHO_","")))/LEN("_CHO_"))*1+((LEN(A3)-LEN(SUBSTITUTE(A3,"_COOH_","")))/LEN("_COOH_"))*2 -> 8 | L3: =CONCATENATE("C",G3,"H",H3,"N",I3,"O",J3) -> C44H85N1O8 | M3: =(G3*12.0107)+(H3*1.00794)+(I3*14.0067)+(J3*15.9994) -> 756.1476 | N3: =(G3*12)+(H3*1.0078246)+(I3*14.003074)+(J3*15.994915) -> 755.627485 | O3: =N3+1.0078246-0.00055 -> 756.6347596 | P3: =O3-18.01057-0.00055 -> 738.6236396 | Q3: =N3+18.03437-0.00055 -> 773.661305 | R3: =N3+22.98977-0.00055 -> 778.616705 | S3: =N3+38.96371-0.00055 -> 794.590645 | T3: =N3+7.01601-0.00055 -> 762.642945 | U3: =N3-1.0078246+0.00055 -> 754.6202104 | V3: =N3+44.99767+0.00055 -> 800.625705 | W3: =N3+59.01332+0.00055 -> 814.641355
A4: HexCer(d18:1/16:0)__OH__ | B4: HexCer d34:1__OH__ | C4: 34 | D4: 1 | G4: 40 | H4: 77 | I4: 1 | J4: 9 | L4: C40H77N1O9 | M4: =(G4*12.0107)+(H4*1.00794)+(I4*14.0067)+(J4*15.9994) -> 716.04068 | N4: 715.5598032 | O4: 716.5670778 | P4: 698.5559578 | Q4: 733.5936232 | R4: 738.5490232 | S4: 754.5229632 | T4: 722.5752632 | U4: 714.5525286 | V4: 760.5580232 | W4: 774.5736732
A5: HexCer d42:1 | B5: HexCer d42:1 | C5: 42 | D5: 1 | G5: 48 | H5: 93 | I5: 1 | J5: 8 | L5: C48H93N1O8 | M5: =(G5*12.0107)+(H5*1.00794)+(I5*14.0067)+(J5*15.9994) -> 812.25392 | N5: 811.6900818 | O5: 812.6973564 | P5: 794.6862364 | Q5: 829.7239018 | R5: 834.6793018 | S5: 850.6532418 | T5: 818.7055418 | U5: 810.6828072 | V5: 856.6883018 | W5: 870.7039518

Sheet Hex2Cer
A1: Lipid | B1: Sum Composition | G1: #C | H1: #H | I1: #N | J1: #O | K1: #P | L1: Formula | M1: Molecular Weight | N1: Neutral Mass | O1: [M+H]+ | P1: [M+H-H2O]+ | Q1: [M+NH4]+ | R1: [M+Na]+ | S1: [M+K]+ | T1: [M+Li]+ | U1: [M-H]- | V1: [M+HCOO]- | W1: [M+CH3COO]-
A2: Hex2Cer(d18:1/16:0) | B2: =IF(ISNUMBER(SEARCH("(",A2)),IF(ISNUMBER(SEARCH("/",A2)),CONCATENATE(MID(A2,1,7)," ","d",(SUM(MID(A2,FIND("(",A2)+2,FIND(":",A2)-FIND("(",A2)-2),MID(A2,FIND("/",A2)+1,FIND(":",A2,FIND("/",A2))-FIND("/",A2)-1))),":",SUM(MID(A2,FIND(":",A2)+1,FIND("/",A2)-FIND(":",A2)-1),MID(A2,FIND(":",A2,FIND("/",A2))+1,FIND(")",A2)-FIND(":",A2,FIND("/",A2))-1)),MID(A2,(FIND(")",A2)+1),100)),CONCATENATE(MID(A2,1,7)," ","d",(SUM(MID(A2,FIND("(",A2)+2,FIND(":",A2)-FIND("(",A2)-2),MID(A2,FIND("_",A2)+1,FIND(":",A2,FIND("_",A2))-FIND("_",A2)-1))),":",SUM(MID(A2,FIND(":",A2)+1,FIND("_",A2)-FIND(":",A2)-1),MID(A2,FIND(":",A2,FIND("_",A2))+1,FIND(")",A2)-FIND(":",A2,FIND("_",A2))-1)),MID(A2,(FIND(")",A2)+1),100))),CONCATENATE(MID(A2,1,7)," ","d",MID(A2,10,100))) -> Hex2Cer d34:1 | C2: =MID(B2,10,FIND(":",B2)-FIND("d",B2)-1) -> 34 | D2: =IF(ISNUMBER(SEARCH("__",B2)),MID(B2,FIND(":",B2)+1,FIND("__",B2)-FIND(":",B2)-1),MID(B2,FIND(":",B2)+1,7)) -> 1 | G2: =C2+12 -> 46 | H2: =2*G2-(2*D2)-3-((LEN(A2)-LEN(SUBSTITUTE(A2,"_O_","")))/LEN("_O_"))*2-((LEN(A2)-LEN(SUBSTITUTE(A2,"_CHO_","")))/LEN("_CHO_"))*2-((LEN(A2)-LEN(SUBSTITUTE(A2,"_COOH_","")))/LEN("_COOH_"))*2 -> 87 | I2: 1 | J2: =13+((LEN(A2)-LEN(SUBSTITUTE(A2,"_OH_","")))/LEN("_OH_"))*1+((LEN(A2)-LEN(SUBSTITUTE(A2,"_OOH_","")))/LEN("_OOH_"))*2+((LEN(A2)-LEN(SUBSTITUTE(A2,"_O_","")))/LEN("_O_"))*1+((LEN(A2)-LEN(SUBSTITUTE(A2,"_CHO_","")))/LEN("_CHO_"))*1+((LEN(A2)-LEN(SUBSTITUTE(A2,"_COOH_","")))/LEN("_COOH_"))*2 -> 13 | L2: =CONCATENATE("C",G2,"H",H2,"N",I2,"O",J2) -> C46H87N1O13 | M2: =(G2*12.0107)+(H2*1.00794)+(I2*14.0067)+(J2*15.9994) -> 862.18188 | N2: =(G2*12)+(H2*1.0078246)+(I2*14.003074)+(J2*15.994915) -> 861.6177092 | O2: =N2+1.0078246-0.00055 -> 862.6249838 | P2: =O2-18.01057-0.00055 -> 844.6138638 | Q2: =N2+18.03437-0.00055 -> 879.6515292 | R2: =N2+22.98977-0.00055 -> 884.6069292 | S2: =N2+38.96371-0.00055 -> 900.5808692 | T2: =N2+7.01601-0.00055 -> 868.6331692 | U2: =N2-1.0078246+0.00055 -> 860.6104346 | V2: =N2+44.99767+0.00055 -> 906.6159292 | W2: =N2+59.01332+0.00055 -> 920.6315792
A3: Hex2Cer(d18:1/18:1)__O__ | B3: =IF(ISNUMBER(SEARCH("(",A3)),IF(ISNUMBER(SEARCH("/",A3)),CONCATENATE(MID(A3,1,7)," ","d",(SUM(MID(A3,FIND("(",A3)+2,FIND(":",A3)-FIND("(",A3)-2),MID(A3,FIND("/",A3)+1,FIND(":",A3,FIND("/",A3))-FIND("/",A3)-1))),":",SUM(MID(A3,FIND(":",A3)+1,FIND("/",A3)-FIND(":",A3)-1),MID(A3,FIND(":",A3,FIND("/",A3))+1,FIND(")",A3)-FIND(":",A3,FIND("/",A3))-1)),MID(A3,(FIND(")",A3)+1),100)),CONCATENATE(MID(A3,1,7)," ","d",(SUM(MID(A3,FIND("(",A3)+2,FIND(":",A3)-FIND("(",A3)-2),MID(A3,FIND("_",A3)+1,FIND(":",A3,FIND("_",A3))-FIND("_",A3)-1))),":",SUM(MID(A3,FIND(":",A3)+1,FIND("_",A3)-FIND(":",A3)-1),MID(A3,FIND(":",A3,FIND("_",A3))+1,FIND(")",A3)-FIND(":",A3,FIND("_",A3))-1)),MID(A3,(FIND(")",A3)+1),100))),CONCATENATE(MID(A3,1,7)," ","d",MID(A3,10,100))) -> Hex2Cer d36:2__O__ | C3: =MID(B3,10,FIND(":",B3)-FIND("d",B3)-1) -> 36 | D3: =IF(ISNUMBER(SEARCH("__",B3)),MID(B3,FIND(":",B3)+1,FIND("__",B3)-FIND(":",B3)-1),MID(B3,FIND(":",B3)+1,7)) -> 2 | G3: =C3+12 -> 48 | H3: =2*G3-(2*D3)-3-((LEN(A3)-LEN(SUBSTITUTE(A3,"_O_","")))/LEN("_O_"))*2-((LEN(A3)-LEN(SUBSTITUTE(A3,"_CHO_","")))/LEN("_CHO_"))*2-((LEN(A3)-LEN(SUBSTITUTE(A3,"_COOH_","")))/LEN("_COOH_"))*2 -> 87 | I3: 1 | J3: =13+((LEN(A3)-LEN(SUBSTITUTE(A3,"_OH_","")))/LEN("_OH_"))*1+((LEN(A3)-LEN(SUBSTITUTE(A3,"_OOH_","")))/LEN("_OOH_"))*2+((LEN(A3)-LEN(SUBSTITUTE(A3,"_O_","")))/LEN("_O_"))*1+((LEN(A3)-LEN(SUBSTITUTE(A3,"_CHO_","")))/LEN("_CHO_"))*1+((LEN(A3)-LEN(SUBSTITUTE(A3,"_COOH_","")))/LEN("_COOH_"))*2 -> 14 | L3: =CONCATENATE("C",G3,"H",H3,"N",I3,"O",J3) -> C48H87N1O14 | M3: =(G3*12.0107)+(H3*1.00794)+(I3*14.0067)+(J3*15.9994) -> 902.20268 | N3: =(G3*12)+(H3*1.0078246)+(I3*14.003074)+(J3*15.994915) -> 901.6126242 | O3: =N3+1.0078246-0.00055 -> 902.6198988 | P3: =O3-18.01057-0.00055 -> 884.6087788 | Q3: =N3+18.03437-0.00055 -> 919.6464442 | R3: =N3+22.98977-0.00055 -> 924.6018442 | S3: =N3+38.96371-0.00055 -> 940.5757842 | T3: =N3+7.01601-0.00055 -> 908.6280842 | U3: =N3-1.0078246+0.00055 -> 900.6053496 | V3: =N3+44.99767+0.00055 -> 946.6108442 | W3: =N3+59.01332+0.00055 -> 960.6264942
A4: Hex2Cer d42:2 | B4: Hex2Cer d42:2 | C4: 42 | D4: 2 | G4: 54 | H4: 101 | I4: 1 | J4: 13 | L4: C54H101N1O13 | M4: =(G4*12.0107)+(H4*1.00794)+(I4*14.0067)+(J4*15.9994) -> 972.37864 | N4: 971.7272536 | O4: 972.7345282 | P4: 954.7234082 | Q4: 989.7610736 | R4: 994.7164736 | S4: 1010.690414 | T4: 978.7427136 | U4: 970.719979 | V4: 1016.725474 | W4: 1030.741124

Sheet Hex3Cer
A1: Lipid | B1: Sum Composition | G1: #C | H1: #H | I1: #N | J1: #O | K1: #P | L1: Formula | M1: Molecular Weight | N1: Neutral Mass | O1: [M+H]+ | P1: [M+H-H2O]+ | Q1: [M+NH4]+ | R1: [M+Na]+ | S1: [M+K]+ | T1: [M+Li]+ | U1: [M-H]- | V1: [M+HCOO]- | W1: [M+CH3COO]-
A2: Hex3Cer(d18:1/16:0) | B2: =IF(ISNUMBER(SEARCH("(",A2)),IF(ISNUMBER(SEARCH("/",A2)),CONCATENATE(MID(A2,1,7)," ","d",(SUM(MID(A2,FIND("(",A2)+2,FIND(":",A2)-FIND("(",A2)-2),MID(A2,FIND("/",A2)+1,FIND(":",A2,FIND("/",A2))-FIND("/",A2)-1))),":",SUM(MID(A2,FIND(":",A2)+1,FIND("/",A2)-FIND(":",A2)-1),MID(A2,FIND(":",A2,FIND("/",A2))+1,FIND(")",A2)-FIND(":",A2,FIND("/",A2))-1)),MID(A2,(FIND(")",A2)+1),100)),CONCATENATE(MID(A2,1,7)," ","d",(SUM(MID(A2,FIND("(",A2)+2,FIND(":",A2)-FIND("(",A2)-2),MID(A2,FIND("_",A2)+1,FIND(":",A2,FIND("_",A2))-FIND("_",A2)-1))),":",SUM(MID(A2,FIND(":",A2)+1,FIND("_",A2)-FIND(":",A2)-1),MID(A2,FIND(":",A2,FIND("_",A2))+1,FIND(")",A2)-FIND(":",A2,FIND("_",A2))-1)),MID(A2,(FIND(")",A2)+1),100))),CONCATENATE(MID(A2,1,7)," ","d",MID(A2,10,100))) -> Hex3Cer d34:1 | C2: =MID(B2,10,FIND(":",B2)-FIND("d",B2)-1) -> 34 | D2: =IF(ISNUMBER(SEARCH("__",B2)),MID(B2,FIND(":",B2)+1,FIND("__",B2)-FIND(":",B2)-1),MID(B2,FIND(":",B2)+1,7)) -> 1 | G2: =C2+18 -> 52 | H2: =2*G2-(2*D2)-5-((LEN(A2)-LEN(SUBSTITUTE(A2,"_O_","")))/LEN("_O_"))*2-((LEN(A2)-LEN(SUBSTITUTE(A2,"_CHO_","")))/LEN("_CHO_"))*2-((LEN(A2)-LEN(SUBSTITUTE(A2,"_COOH_","")))/LEN("_COOH_"))*2 -> 97 | I2: 1 | J2: =18+((LEN(A2)-LEN(SUBSTITUTE(A2,"_OH_","")))/LEN("_OH_"))*1+((LEN(A2)-LEN(SUBSTITUTE(A2,"_OOH_","")))/LEN("_OOH_"))*2+((LEN(A2)-LEN(SUBSTITUTE(A2,"_O_","")))/LEN("_O_"))*1+((LEN(A2)-LEN(SUBSTITUTE(A2,"_CHO_","")))/LEN("_CHO_"))*1+((LEN(A2)-LEN(SUBSTITUTE(A2,"_COOH_","")))/LEN("_COOH_"))*2 -> 18 | L2: =CONCATENATE("C",G2,"H",H2,"N",I2,"O",J2) -> C52H97N1O18 | M2: =(G2*12.0107)+(H2*1.00794)+(I2*14.0067)+(J2*15.9994) -> 1024.32248 | N2: =(G2*12)+(H2*1.0078246)+(I2*14.003074)+(J2*15.994915) -> 1023.67053 | O2: =N2+1.0078246-0.00055 -> 1024.677805 | P2: =O2-18.01057-0.00055 -> 1006.666685 | Q2: =N2+18.03437-0.00055 -> 1041.70435 | R2: =N2+22.98977-0.00055 -> 1046.65975 | S2: =N2+38.96371-0.00055 -> 1062.63369 | T2: =N2+7.01601-0.00055 -> 1030.68599 | U2: =N2-1.0078246+0.00055 -> 1022.663256 | V2: =N2+44.99767+0.00055 -> 1068.66875 | W2: =N2+59.01332+0.00055 -> 1082.6844
A3: Hex3Cer(d18:1/22:0)__O__ | B3: =IF(ISNUMBER(SEARCH("(",A3)),IF(ISNUMBER(SEARCH("/",A3)),CONCATENATE(MID(A3,1,7)," ","d",(SUM(MID(A3,FIND("(",A3)+2,FIND(":",A3)-FIND("(",A3)-2),MID(A3,FIND("/",A3)+1,FIND(":",A3,FIND("/",A3))-FIND("/",A3)-1))),":",SUM(MID(A3,FIND(":",A3)+1,FIND("/",A3)-FIND(":",A3)-1),MID(A3,FIND(":",A3,FIND("/",A3))+1,FIND(")",A3)-FIND(":",A3,FIND("/",A3))-1)),MID(A3,(FIND(")",A3)+1),100)),CONCATENATE(MID(A3,1,7)," ","d",(SUM(MID(A3,FIND("(",A3)+2,FIND(":",A3)-FIND("(",A3)-2),MID(A3,FIND("_",A3)+1,FIND(":",A3,FIND("_",A3))-FIND("_",A3)-1))),":",SUM(MID(A3,FIND(":",A3)+1,FIND("_",A3)-FIND(":",A3)-1),MID(A3,FIND(":",A3,FIND("_",A3))+1,FIND(")",A3)-FIND(":",A3,FIND("_",A3))-1)),MID(A3,(FIND(")",A3)+1),100))),CONCATENATE(MID(A3,1,7)," ","d",MID(A3,10,100))) -> Hex3Cer d40:1__O__ | C3: =MID(B3,10,FIND(":",B3)-FIND("d",B3)-1) -> 40 | D3: =IF(ISNUMBER(SEARCH("__",B3)),MID(B3,FIND(":",B3)+1,FIND("__",B3)-FIND(":",B3)-1),MID(B3,FIND(":",B3)+1,7)) -> 1 | G3: =C3+18 -> 58 | H3: =2*G3-(2*D3)-5-((LEN(A3)-LEN(SUBSTITUTE(A3,"_O_","")))/LEN("_O_"))*2-((LEN(A3)-LEN(SUBSTITUTE(A3,"_CHO_","")))/LEN("_CHO_"))*2-((LEN(A3)-LEN(SUBSTITUTE(A3,"_COOH_","")))/LEN("_COOH_"))*2 -> 107 | I3: 1 | J3: =18+((LEN(A3)-LEN(SUBSTITUTE(A3,"_OH_","")))/LEN("_OH_"))*1+((LEN(A3)-LEN(SUBSTITUTE(A3,"_OOH_","")))/LEN("_OOH_"))*2+((LEN(A3)-LEN(SUBSTITUTE(A3,"_O_","")))/LEN("_O_"))*1+((LEN(A3)-LEN(SUBSTITUTE(A3,"_CHO_","")))/LEN("_CHO_"))*1+((LEN(A3)-LEN(SUBSTITUTE(A3,"_COOH_","")))/LEN("_COOH_"))*2 -> 19 | L3: =CONCATENATE("C",G3,"H",H3,"N",I3,"O",J3) -> C58H107N1O19 | M3: =(G3*12.0107)+(H3*1.00794)+(I3*14.0067)+(J3*15.9994) -> 1122.46548 | N3: =(G3*12)+(H3*1.0078246)+(I3*14.003074)+(J3*15.994915) -> 1121.743691 | O3: =N3+1.0078246-0.00055 -> 1122.750966 | P3: =O3-18.01057-0.00055 -> 1104.739846 | Q3: =N3+18.03437-0.00055 -> 1139.777511 | R3: =N3+22.98977-0.00055 -> 1144.732911 | S3: =N3+38.96371-0.00055 -> 1160.706851 | T3: =N3+7.01601-0.00055 -> 1128.759151 | U3: =N3-1.0078246+0.00055 -> 1120.736417 | V3: =N3+44.99767+0.00055 -> 1166.741911 | W3: =N3+59.01332+0.00055 -> 1180.757561
A4: Hex3Cer d42:2 | B4: Hex3Cer d42:2 | C4: 42 | D4: 2 | G4: 60 | H4: 111 | I4: 1 | J4: 18 | L4: C60H111N1O18 | M4: =(G4*12.0107)+(H4*1.00794)+(I4*14.0067)+(J4*15.9994) -> 1134.51924 | N4: 1133.780075 | O4: 1134.787349 | P4: 1116.776229 | Q4: 1151.813895 | R4: 1156.769295 | S4: 1172.743235 | T4: 1140.795535 | U4: 1132.7728 | V4: 1178.778295 | W4: 1192.793945
A5: Hex3Cer(d16:0/18:0) | B5: Hex3Cer d34:0 | C5: 34 | D5: 0 | G5: 52 | H5: 99 | I5: 1 | J5: 18 | L5: C52H99N1O18 | M5: =(G5*12.0107)+(H5*1.00794)+(I5*14.0067)+(J5*15.9994) -> 1026.33836 | N5: 1025.686179 | O5: 1026.693454 | P5: 1008.682334 | Q5: 1043.719999 | R5: 1048.675399 | S5: 1064.649339 | T5: 1032.701639 | U5: 1024.678905 | V5: 1070.684399 | W5: 1084.700049

Sheet LacCer
A1: Lipid | B1: Sum Composition | G1: #C | H1: #H | I1: #N | J1: #O | K1: #P | L1: Formula | M1: Molecular Weight | N1: Neutral Mass | O1: [M+H]+ | P1: [M+H-H2O]+ | Q1: [M+NH4]+ | R1: [M+Na]+ | S1: [M+K]+ | T1: [M+Li]+ | U1: [M-H]- | V1: [M+HCOO]- | W1: [M+CH3COO]-
A2: LacCer(d18:1/12:0) | B2: =IF(ISNUMBER(SEARCH("(",A2)),IF(ISNUMBER(SEARCH("/",A2)),CONCATENATE(MID(A2,1,6)," ","d",(SUM(MID(A2,FIND("(",A2)+2,FIND(":",A2)-FIND("(",A2)-2),MID(A2,FIND("/",A2)+1,FIND(":",A2,FIND("/",A2))-FIND("/",A2)-1))),":",SUM(MID(A2,FIND(":",A2)+1,FIND("/",A2)-FIND(":",A2)-1),MID(A2,FIND(":",A2,FIND("/",A2))+1,FIND(")",A2)-FIND(":",A2,FIND("/",A2))-1)),MID(A2,(FIND(")",A2)+1),100)),CONCATENATE(MID(A2,1,6)," ","d",(SUM(MID(A2,FIND("(",A2)+2,FIND(":",A2)-FIND("(",A2)-2),MID(A2,FIND("_",A2)+1,FIND(":",A2,FIND("_",A2))-FIND("_",A2)-1))),":",SUM(MID(A2,FIND(":",A2)+1,FIND("_",A2)-FIND(":",A2)-1),MID(A2,FIND(":",A2,FIND("_",A2))+1,FIND(")",A2)-FIND(":",A2,FIND("_",A2))-1)),MID(A2,(FIND(")",A2)+1),100))),CONCATENATE(MID(A2,1,6)," ","d",MID(A2,9,100))) -> LacCer d30:1 | C2: =MID(B2,9,FIND(":",B2)-FIND("d",B2)-1) -> 30 | D2: =IF(ISNUMBER(SEARCH("__",B2)),MID(B2,FIND(":",B2)+1,FIND("__",B2)-FIND(":",B2)-1),MID(B2,FIND(":",B2)+1,7)) -> 1 | G2: =C2+12 -> 42 | H2: =2*G2-(2*D2)-3-((LEN(A2)-LEN(SUBSTITUTE(A2,"_O_","")))/LEN("_O_"))*2-((LEN(A2)-LEN(SUBSTITUTE(A2,"_CHO_","")))/LEN("_CHO_"))*2-((LEN(A2)-LEN(SUBSTITUTE(A2,"_COOH_","")))/LEN("_COOH_"))*2 -> 79 | I2: 1 | J2: =13+((LEN(A2)-LEN(SUBSTITUTE(A2,"_OH_","")))/LEN("_OH_"))*1+((LEN(A2)-LEN(SUBSTITUTE(A2,"_OOH_","")))/LEN("_OOH_"))*2+((LEN(A2)-LEN(SUBSTITUTE(A2,"_O_","")))/LEN("_O_"))*1+((LEN(A2)-LEN(SUBSTITUTE(A2,"_CHO_","")))/LEN("_CHO_"))*1+((LEN(A2)-LEN(SUBSTITUTE(A2,"_COOH_","")))/LEN("_COOH_"))*2 -> 13 | L2: =CONCATENATE("C",G2,"H",H2,"N",I2,"O",J2) -> C42H79N1O13 | M2: =(G2*12.0107)+(H2*1.00794)+(I2*14.0067)+(J2*15.9994) -> 806.07556 | N2: =(G2*12)+(H2*1.0078246)+(I2*14.003074)+(J2*15.994915) -> 805.5551124 | O2: =N2+1.0078246-0.00055 -> 806.562387 | P2: =O2-18.01057-0.00055 -> 788.551267 | Q2: =N2+18.03437-0.00055 -> 823.5889324 | R2: =N2+22.98977-0.00055 -> 828.5443324 | S2: =N2+38.96371-0.00055 -> 844.5182724 | T2: =N2+7.01601-0.00055 -> 812.5705724 | U2: =N2-1.0078246+0.00055 -> 804.5478378 | V2: =N2+44.99767+0.00055 -> 850.5533324 | W2: =N2+59.01332+0.00055 -> 864.5689824
A3: LacCer(d18:1/18:0)__O__ | B3: =IF(ISNUMBER(SEARCH("(",A3)),IF(ISNUMBER(SEARCH("/",A3)),CONCATENATE(MID(A3,1,6)," ","d",(SUM(MID(A3,FIND("(",A3)+2,FIND(":",A3)-FIND("(",A3)-2),MID(A3,FIND("/",A3)+1,FIND(":",A3,FIND("/",A3))-FIND("/",A3)-1))),":",SUM(MID(A3,FIND(":",A3)+1,FIND("/",A3)-FIND(":",A3)-1),MID(A3,FIND(":",A3,FIND("/",A3))+1,FIND(")",A3)-FIND(":",A3,FIND("/",A3))-1)),MID(A3,(FIND(")",A3)+1),100)),CONCATENATE(MID(A3,1,6)," ","d",(SUM(MID(A3,FIND("(",A3)+2,FIND(":",A3)-FIND("(",A3)-2),MID(A3,FIND("_",A3)+1,FIND(":",A3,FIND("_",A3))-FIND("_",A3)-1))),":",SUM(MID(A3,FIND(":",A3)+1,FIND("_",A3)-FIND(":",A3)-1),MID(A3,FIND(":",A3,FIND("_",A3))+1,FIND(")",A3)-FIND(":",A3,FIND("_",A3))-1)),MID(A3,(FIND(")",A3)+1),100))),CONCATENATE(MID(A3,1,6)," ","d",MID(A3,9,100))) -> LacCer d36:1__O__ | C3: =MID(B3,9,FIND(":",B3)-FIND("d",B3)-1) -> 36 | D3: =IF(ISNUMBER(SEARCH("__",B3)),MID(B3,FIND(":",B3)+1,FIND("__",B3)-FIND(":",B3)-1),MID(B3,FIND(":",B3)+1,7)) -> 1 | G3: =C3+12 -> 48 | H3: =2*G3-(2*D3)-3-((LEN(A3)-LEN(SUBSTITUTE(A3,"_O_","")))/LEN("_O_"))*2-((LEN(A3)-LEN(SUBSTITUTE(A3,"_CHO_","")))/LEN("_CHO_"))*2-((LEN(A3)-LEN(SUBSTITUTE(A3,"_COOH_","")))/LEN("_COOH_"))*2 -> 89 | I3: 1 | J3: =13+((LEN(A3)-LEN(SUBSTITUTE(A3,"_OH_","")))/LEN("_OH_"))*1+((LEN(A3)-LEN(SUBSTITUTE(A3,"_OOH_","")))/LEN("_OOH_"))*2+((LEN(A3)-LEN(SUBSTITUTE(A3,"_O_","")))/LEN("_O_"))*1+((LEN(A3)-LEN(SUBSTITUTE(A3,"_CHO_","")))/LEN("_CHO_"))*1+((LEN(A3)-LEN(SUBSTITUTE(A3,"_COOH_","")))/LEN("_COOH_"))*2 -> 14 | L3: =CONCATENATE("C",G3,"H",H3,"N",I3,"O",J3) -> C48H89N1O14 | M3: =(G3*12.0107)+(H3*1.00794)+(I3*14.0067)+(J3*15.9994) -> 904.21856 | N3: =(G3*12)+(H3*1.0078246)+(I3*14.003074)+(J3*15.994915) -> 903.6282734 | O3: =N3+1.0078246-0.00055 -> 904.635548 | P3: =O3-18.01057-0.00055 -> 886.624428 | Q3: =N3+18.03437-0.00055 -> 921.6620934 | R3: =N3+22.98977-0.00055 -> 926.6174934 | S3: =N3+38.96371-0.00055 -> 942.5914334 | T3: =N3+7.01601-0.00055 -> 910.6437334 | U3: =N3-1.0078246+0.00055 -> 902.6209988 | V3: =N3+44.99767+0.00055 -> 948.6264934 | W3: =N3+59.01332+0.00055 -> 962.6421434
A4: LacCer d44:2 | B4: LacCer d44:2 | C4: 44 | D4: 2 | G4: 56 | H4: 105 | I4: 1 | J4: 13 | L4: C56H105N1O13 | M4: =(G4*12.0107)+(H4*1.00794)+(I4*14.0067)+(J4*15.9994) -> 1000.4318 | N4: 999.758552 | O4: 1000.765827 | P4: 982.7547066 | Q4: 1017.792372 | R4: 1022.747772 | S4: 1038.721712 | T4: 1006.774012 | U4: 998.7512774 | V4: 1044.756772 | W4: 1058.772422

Sheet GM1Cer
A1: Lipid | B1: Sum Composition | G1: #C | H1: #H | I1: #N | J1: #O | K1: #P | L1: Formula | M1: Molecular Weight | N1: Neutral Mass | O1: [M+H]+ | P1: [M+H-H2O]+ | Q1: [M+NH4]+ | R1: [M+Na]+ | S1: [M+K]+ | T1: [M+Li]+ | U1: [M-H]- | V1: [M+HCOO]- | W1: [M+CH3COO]-
A2: GM1-Cer(d18:1/16:0) | B2: =IF(ISNUMBER(SEARCH("(",A2)),IF(ISNUMBER(SEARCH("/",A2)),CONCATENATE(MID(A2,1,7)," ","d",(SUM(MID(A2,FIND("(",A2)+2,FIND(":",A2)-FIND("(",A2)-2),MID(A2,FIND("/",A2)+1,FIND(":",A2,FIND("/",A2))-FIND("/",A2)-1))),":",SUM(MID(A2,FIND(":",A2)+1,FIND("/",A2)-FIND(":",A2)-1),MID(A2,FIND(":",A2,FIND("/",A2))+1,FIND(")",A2)-FIND(":",A2,FIND("/",A2))-1)),MID(A2,(FIND(")",A2)+1),100)),CONCATENATE(MID(A2,1,7)," ","d",(SUM(MID(A2,FIND("(",A2)+2,FIND(":",A2)-FIND("(",A2)-2),MID(A2,FIND("_",A2)+1,FIND(":",A2,FIND("_",A2))-FIND("_",A2)-1))),":",SUM(MID(A2,FIND(":",A2)+1,FIND("_",A2)-FIND(":",A2)-1),MID(A2,FIND(":",A2,FIND("_",A2))+1,FIND(")",A2)-FIND(":",A2,FIND("_",A2))-1)),MID(A2,(FIND(")",A2)+1),100))),CONCATENATE(MID(A2,1,7)," ","d",MID(A2,10,100))) -> GM1-Cer d34:1 | C2: =MID(B2,10,FIND(":",B2)-FIND("d",B2)-1) -> 34 | D2: =IF(ISNUMBER(SEARCH("__",B2)),MID(B2,FIND(":",B2)+1,FIND("__",B2)-FIND(":",B2)-1),MID(B2,FIND(":",B2)+1,7)) -> 1 | G2: =C2+37 -> 71 | H2: =2*G2-(2*D2)-13-((LEN(A2)-LEN(SUBSTITUTE(A2,"_O_","")))/LEN("_O_"))*2-((LEN(A2)-LEN(SUBSTITUTE(A2,"_CHO_","")))/LEN("_CHO_"))*2-((LEN(A2)-LEN(SUBSTITUTE(A2,"_COOH_","")))/LEN("_COOH_"))*2 -> 127 | I2: 3 | J2: =31+((LEN(A2)-LEN(SUBSTITUTE(A2,"_OH_","")))/LEN("_OH_"))*1+((LEN(A2)-LEN(SUBSTITUTE(A2,"_OOH_","")))/LEN("_OOH_"))*2+((LEN(A2)-LEN(SUBSTITUTE(A2,"_O_","")))/LEN("_O_"))*1+((LEN(A2)-LEN(SUBSTITUTE(A2,"_CHO_","")))/LEN("_CHO_"))*1+((LEN(A2)-LEN(SUBSTITUTE(A2,"_COOH_","")))/LEN("_COOH_"))*2 -> 31 | L2: =CONCATENATE("C",G2,"H",H2,"N",I2,"O",J2) -> C71H127N3O31 | M2: =(G2*12.0107)+(H2*1.00794)+(I2*14.0067)+(J2*15.9994)+(K2*30.973762) -> 1518.76958 | N2: =(G2*12)+(H2*1.0078246)+(I2*14.003074)+(J2*15.994915) -> 1517.845311 | O2: =N2+1.0078246-0.00055 -> 1518.852586 | P2: =O2-18.01057-0.00055 -> 1500.841466 | Q2: =N2+18.03437-0.00055 -> 1535.879131 | R2: =N2+22.98977-0.00055 -> 1540.834531 | S2: =N2+38.96371-0.00055 -> 1556.808471 | T2: =N2+7.01601-0.00055 -> 1524.860771 | U2: =N2-1.0078246+0.00055 -> 1516.838037 | V2: =N2+44.99767+0.00055 -> 1562.843531 | W2: =N2+59.01332+0.00055 -> 1576.859181
A3: GM1-Cer(d18:1/18:1)__O__ | B3: =IF(ISNUMBER(SEARCH("(",A3)),IF(ISNUMBER(SEARCH("/",A3)),CONCATENATE(MID(A3,1,7)," ","d",(SUM(MID(A3,FIND("(",A3)+2,FIND(":",A3)-FIND("(",A3)-2),MID(A3,FIND("/",A3)+1,FIND(":",A3,FIND("/",A3))-FIND("/",A3)-1))),":",SUM(MID(A3,FIND(":",A3)+1,FIND("/",A3)-FIND(":",A3)-1),MID(A3,FIND(":",A3,FIND("/",A3))+1,FIND(")",A3)-FIND(":",A3,FIND("/",A3))-1)),MID(A3,(FIND(")",A3)+1),100)),CONCATENATE(MID(A3,1,7)," ","d",(SUM(MID(A3,FIND("(",A3)+2,FIND(":",A3)-FIND("(",A3)-2),MID(A3,FIND("_",A3)+1,FIND(":",A3,FIND("_",A3))-FIND("_",A3)-1))),":",SUM(MID(A3,FIND(":",A3)+1,FIND("_",A3)-FIND(":",A3)-1),MID(A3,FIND(":",A3,FIND("_",A3))+1,FIND(")",A3)-FIND(":",A3,FIND("_",A3))-1)),MID(A3,(FIND(")",A3)+1),100))),CONCATENATE(MID(A3,1,7)," ","d",MID(A3,10,100))) -> GM1-Cer d36:2__O__ | C3: =MID(B3,10,FIND(":",B3)-FIND("d",B3)-1) -> 36 | D3: =IF(ISNUMBER(SEARCH("__",B3)),MID(B3,FIND(":",B3)+1,FIND("__",B3)-FIND(":",B3)-1),MID(B3,FIND(":",B3)+1,7)) -> 2 | G3: =C3+37 -> 73 | H3: =2*G3-(2*D3)-13-((LEN(A3)-LEN(SUBSTITUTE(A3,"_O_","")))/LEN("_O_"))*2-((LEN(A3)-LEN(SUBSTITUTE(A3,"_CHO_","")))/LEN("_CHO_"))*2-((LEN(A3)-LEN(SUBSTITUTE(A3,"_COOH_","")))/LEN("_COOH_"))*2 -> 127 | I3: 3 | J3: =31+((LEN(A3)-LEN(SUBSTITUTE(A3,"_OH_","")))/LEN("_OH_"))*1+((LEN(A3)-LEN(SUBSTITUTE(A3,"_OOH_","")))/LEN("_OOH_"))*2+((LEN(A3)-LEN(SUBSTITUTE(A3,"_O_","")))/LEN("_O_"))*1+((LEN(A3)-LEN(SUBSTITUTE(A3,"_CHO_","")))/LEN("_CHO_"))*1+((LEN(A3)-LEN(SUBSTITUTE(A3,"_COOH_","")))/LEN("_COOH_"))*2 -> 32 | L3: =CONCATENATE("C",G3,"H",H3,"N",I3,"O",J3) -> C73H127N3O32 | M3: =(G3*12.0107)+(H3*1.00794)+(I3*14.0067)+(J3*15.9994)+(K3*30.973762) -> 1558.79038 | N3: =(G3*12)+(H3*1.0078246)+(I3*14.003074)+(J3*15.994915) -> 1557.840226 | O3: =N3+1.0078246-0.00055 -> 1558.847501 | P3: =O3-18.01057-0.00055 -> 1540.836381 | Q3: =N3+18.03437-0.00055 -> 1575.874046 | R3: =N3+22.98977-0.00055 -> 1580.829446 | S3: =N3+38.96371-0.00055 -> 1596.803386 | T3: =N3+7.01601-0.00055 -> 1564.855686 | U3: =N3-1.0078246+0.00055 -> 1556.832952 | V3: =N3+44.99767+0.00055 -> 1602.838446 | W3: =N3+59.01332+0.00055 -> 1616.854096
A4: GM1-Cer d42:2 | B4: GM1-Cer d42:2 | C4: 42 | D4: 2 | G4: 79 | H4: 141 | I4: 3 | J4: 31 | L4: C79H141N3O31 | M4: =(G4*12.0107)+(H4*1.00794)+(I4*14.0067)+(J4*15.9994)+(K4*30.973762) -> 1628.96634 | N4: 1627.954856 | O4: 1628.96213 | P4: 1610.95101 | Q4: 1645.988676 | R4: 1650.944076 | S4: 1666.918016 | T4: 1634.970316 | U4: 1626.947581 | V4: 1672.953076 | W4: 1686.968726
A5: GM1-Cer(d18:1/20:1) | B5: GM1-Cer d38:2 | C5: 38 | D5: 2 | G5: 75 | H5: 133 | I5: 3 | J5: 31 | L5: C75H133N3O31 | M5: =(G5*12.0107)+(H5*1.00794)+(I5*14.0067)+(J5*15.9994)+(K5*30.973762) -> 1572.86002 | N5: 1571.892259 | O5: 1572.899533 | P5: 1554.888413 | Q5: 1589.926079 | R5: 1594.881479 | S5: 1610.855419 | T5: 1578.907719 | U5: 1570.884984 | V5: 1616.890479 | W5: 1630.906129

Sheet GM2Cer
A1: Lipid | B1: Sum Composition | G1: #C | H1: #H | I1: #N | J1: #O | K1: #P | L1: Formula | M1: Molecular Weight | N1: Neutral Mass | O1: [M+H]+ | P1: [M+H-H2O]+ | Q1: [M+NH4]+ | R1: [M+Na]+ | S1: [M+K]+ | T1: [M+Li]+ | U1: [M-H]- | V1: [M+HCOO]- | W1: [M+CH3COO]-
A2: GM2-Cer(d18:1/16:0) | B2: =IF(ISNUMBER(SEARCH("(",A2)),IF(ISNUMBER(SEARCH("/",A2)),CONCATENATE(MID(A2,1,7)," ","d",(SUM(MID(A2,FIND("(",A2)+2,FIND(":",A2)-FIND("(",A2)-2),MID(A2,FIND("/",A2)+1,FIND(":",A2,FIND("/",A2))-FIND("/",A2)-1))),":",SUM(MID(A2,FIND(":",A2)+1,FIND("/",A2)-FIND(":",A2)-1),MID(A2,FIND(":",A2,FIND("/",A2))+1,FIND(")",A2)-FIND(":",A2,FIND("/",A2))-1)),MID(A2,(FIND(")",A2)+1),100)),CONCATENATE(MID(A2,1,7)," ","d",(SUM(MID(A2,FIND("(",A2)+2,FIND(":",A2)-FIND("(",A2)-2),MID(A2,FIND("_",A2)+1,FIND(":",A2,FIND("_",A2))-FIND("_",A2)-1))),":",SUM(MID(A2,FIND(":",A2)+1,FIND("_",A2)-FIND(":",A2)-1),MID(A2,FIND(":",A2,FIND("_",A2))+1,FIND(")",A2)-FIND(":",A2,FIND("_",A2))-1)),MID(A2,(FIND(")",A2)+1),100))),CONCATENATE(MID(A2,1,7)," ","d",MID(A2,10,100))) -> GM2-Cer d34:1 | C2: =MID(B2,10,FIND(":",B2)-FIND("d",B2)-1) -> 34 | D2: =IF(ISNUMBER(SEARCH("__",B2)),MID(B2,FIND(":",B2)+1,FIND("__",B2)-FIND(":",B2)-1),MID(B2,FIND(":",B2)+1,7)) -> 1 | G2: =C2+31 -> 65 | H2: =2*G2-(2*D2)-11-((LEN(A2)-LEN(SUBSTITUTE(A2,"_O_","")))/LEN("_O_"))*2-((LEN(A2)-LEN(SUBSTITUTE(A2,"_CHO_","")))/LEN("_CHO_"))*2-((LEN(A2)-LEN(SUBSTITUTE(A2,"_COOH_","")))/LEN("_COOH_"))*2 -> 117 | I2: 3 | J2: =26+((LEN(A2)-LEN(SUBSTITUTE(A2,"_OH_","")))/LEN("_OH_"))*1+((LEN(A2)-LEN(SUBSTITUTE(A2,"_OOH_","")))/LEN("_OOH_"))*2+((LEN(A2)-LEN(SUBSTITUTE(A2,"_O_","")))/LEN("_O_"))*1+((LEN(A2)-LEN(SUBSTITUTE(A2,"_CHO_","")))/LEN("_CHO_"))*1+((LEN(A2)-LEN(SUBSTITUTE(A2,"_COOH_","")))/LEN("_COOH_"))*2 -> 26 | L2: =CONCATENATE("C",G2,"H",H2,"N",I2,"O",J2) -> C65H117N3O26 | M2: =(G2*12.0107)+(H2*1.00794)+(I2*14.0067)+(J2*15.9994)+(K2*30.973762) -> 1356.62898 | N2: =(G2*12)+(H2*1.0078246)+(I2*14.003074)+(J2*15.994915) -> 1355.79249 | O2: =N2+1.0078246-0.00055 -> 1356.799765 | P2: =O2-18.01057-0.00055 -> 1338.788645 | Q2: =N2+18.03437-0.00055 -> 1373.82631 | R2: =N2+22.98977-0.00055 -> 1378.78171 | S2: =N2+38.96371-0.00055 -> 1394.75565 | T2: =N2+7.01601-0.00055 -> 1362.80795 | U2: =N2-1.0078246+0.00055 -> 1354.785216 | V2: =N2+44.99767+0.00055 -> 1400.79071 | W2: =N2+59.01332+0.00055 -> 1414.80636
A3: GM2-Cer(d18:1/24:0)__O__ | B3: =IF(ISNUMBER(SEARCH("(",A3)),IF(ISNUMBER(SEARCH("/",A3)),CONCATENATE(MID(A3,1,7)," ","d",(SUM(MID(A3,FIND("(",A3)+2,FIND(":",A3)-FIND("(",A3)-2),MID(A3,FIND("/",A3)+1,FIND(":",A3,FIND("/",A3))-FIND("/",A3)-1))),":",SUM(MID(A3,FIND(":",A3)+1,FIND("/",A3)-FIND(":",A3)-1),MID(A3,FIND(":",A3,FIND("/",A3))+1,FIND(")",A3)-FIND(":",A3,FIND("/",A3))-1)),MID(A3,(FIND(")",A3)+1),100)),CONCATENATE(MID(A3,1,7)," ","d",(SUM(MID(A3,FIND("(",A3)+2,FIND(":",A3)-FIND("(",A3)-2),MID(A3,FIND("_",A3)+1,FIND(":",A3,FIND("_",A3))-FIND("_",A3)-1))),":",SUM(MID(A3,FIND(":",A3)+1,FIND("_",A3)-FIND(":",A3)-1),MID(A3,FIND(":",A3,FIND("_",A3))+1,FIND(")",A3)-FIND(":",A3,FIND("_",A3))-1)),MID(A3,(FIND(")",A3)+1),100))),CONCATENATE(MID(A3,1,7)," ","d",MID(A3,10,100))) -> GM2-Cer d42:1__O__ | C3: =MID(B3,10,FIND(":",B3)-FIND("d",B3)-1) -> 42 | D3: =IF(ISNUMBER(SEARCH("__",B3)),MID(B3,FIND(":",B3)+1,FIND("__",B3)-FIND(":",B3)-1),MID(B3,FIND(":",B3)+1,7)) -> 1 | G3: =C3+31 -> 73 | H3: =2*G3-(2*D3)-11-((LEN(A3)-LEN(SUBSTITUTE(A3,"_O_","")))/LEN("_O_"))*2-((LEN(A3)-LEN(SUBSTITUTE(A3,"_CHO_","")))/LEN("_CHO_"))*2-((LEN(A3)-LEN(SUBSTITUTE(A3,"_COOH_","")))/LEN("_COOH_"))*2 -> 131 | I3: 3 | J3: =26+((LEN(A3)-LEN(SUBSTITUTE(A3,"_OH_","")))/LEN("_OH_"))*1+((LEN(A3)-LEN(SUBSTITUTE(A3,"_OOH_","")))/LEN("_OOH_"))*2+((LEN(A3)-LEN(SUBSTITUTE(A3,"_O_","")))/LEN("_O_"))*1+((LEN(A3)-LEN(SUBSTITUTE(A3,"_CHO_","")))/LEN("_CHO_"))*1+((LEN(A3)-LEN(SUBSTITUTE(A3,"_COOH_","")))/LEN("_COOH_"))*2 -> 27 | L3: =CONCATENATE("C",G3,"H",H3,"N",I3,"O",J3) -> C73H131N3O27 | M3: =(G3*12.0107)+(H3*1.00794)+(I3*14.0067)+(J3*15.9994)+(K3*30.973762) -> 1482.82514 | N3: =(G3*12)+(H3*1.0078246)+(I3*14.003074)+(J3*15.994915) -> 1481.89695 | O3: =N3+1.0078246-0.00055 -> 1482.904224 | P3: =O3-18.01057-0.00055 -> 1464.893104 | Q3: =N3+18.03437-0.00055 -> 1499.93077 | R3: =N3+22.98977-0.00055 -> 1504.88617 | S3: =N3+38.96371-0.00055 -> 1520.86011 | T3: =N3+7.01601-0.00055 -> 1488.91241 | U3: =N3-1.0078246+0.00055 -> 1480.889675 | V3: =N3+44.99767+0.00055 -> 1526.89517 | W3: =N3+59.01332+0.00055 -> 1540.91082
A4: GM2-Cer d34:2 | B4: GM2-Cer d34:2 | C4: 34 | D4: 2 | G4: 65 | H4: 115 | I4: 3 | J4: 26 | L4: C65H115N3O26 | M4: =(G4*12.0107)+(H4*1.00794)+(I4*14.0067)+(J4*15.9994)+(K4*30.973762) -> 1354.6131 | N4: 1353.776841 | O4: 1354.784116 | P4: 1336.772996 | Q4: 1371.810661 | R4: 1376.766061 | S4: 1392.740001 | T4: 1360.792301 | U4: 1352.769566 | V4: 1398.775061 | W4: 1412.790711
A5: GM2-Cer(d18:0/20:0) | B5: GM2-Cer d38:0 | C5: 38 | D5: 0 | G5: 69 | H5: 127 | I5: 3 | J5: 26 | L5: C69H127N3O26 | M5: =(G5*12.0107)+(H5*1.00794)+(I5*14.0067)+(J5*15.9994)+(K5*30.973762) -> 1414.75118 | N5: 1413.870736 | O5: 1414.878011 | P5: 1396.866891 | Q5: 1431.904556 | R5: 1436.859956 | S5: 1452.833896 | T5: 1420.886196 | U5: 1412.863462 | V5: 1458.868956 | W5: 1472.884606

Sheet GM3Cer
A1: Lipid | B1: Sum Composition | G1: #C | H1: #H | I1: #N | J1: #O | K1: #P | L1: Formula | M1: Molecular Weight | N1: Neutral Mass | O1: [M+H]+ | P1: [M+H-H2O]+ | Q1: [M+NH4]+ | R1: [M+Na]+ | S1: [M+K]+ | T1: [M+Li]+ | U1: [M-H]- | V1: [M+HCOO]- | W1: [M+CH3COO]-
A2: GM3-Cer(d18:1/16:0) | B2: =IF(ISNUMBER(SEARCH("(",A2)),IF(ISNUMBER(SEARCH("/",A2)),CONCATENATE(MID(A2,1,7)," ","d",(SUM(MID(A2,FIND("(",A2)+2,FIND(":",A2)-FIND("(",A2)-2),MID(A2,FIND("/",A2)+1,FIND(":",A2,FIND("/",A2))-FIND("/",A2)-1))),":",SUM(MID(A2,FIND(":",A2)+1,FIND("/",A2)-FIND(":",A2)-1),MID(A2,FIND(":",A2,FIND("/",A2))+1,FIND(")",A2)-FIND(":",A2,FIND("/",A2))-1)),MID(A2,(FIND(")",A2)+1),100)),CONCATENATE(MID(A2,1,7)," ","d",(SUM(MID(A2,FIND("(",A2)+2,FIND(":",A2)-FIND("(",A2)-2),MID(A2,FIND("_",A2)+1,FIND(":",A2,FIND("_",A2))-FIND("_",A2)-1))),":",SUM(MID(A2,FIND(":",A2)+1,FIND("_",A2)-FIND(":",A2)-1),MID(A2,FIND(":",A2,FIND("_",A2))+1,FIND(")",A2)-FIND(":",A2,FIND("_",A2))-1)),MID(A2,(FIND(")",A2)+1),100))),CONCATENATE(MID(A2,1,7)," ","d",MID(A2,10,100))) -> GM3-Cer d34:1 | C2: =MID(B2,10,FIND(":",B2)-FIND("d",B2)-1) -> 34 | D2: =IF(ISNUMBER(SEARCH("__",B2)),MID(B2,FIND(":",B2)+1,FIND("__",B2)-FIND(":",B2)-1),MID(B2,FIND(":",B2)+1,7)) -> 1 | G2: =C2+23 -> 57 | H2: =2*G2-(2*D2)-8-((LEN(A2)-LEN(SUBSTITUTE(A2,"_O_","")))/LEN("_O_"))*2-((LEN(A2)-LEN(SUBSTITUTE(A2,"_CHO_","")))/LEN("_CHO_"))*2-((LEN(A2)-LEN(SUBSTITUTE(A2,"_COOH_","")))/LEN("_COOH_"))*2 -> 104 | I2: 2 | J2: =21+((LEN(A2)-LEN(SUBSTITUTE(A2,"_OH_","")))/LEN("_OH_"))*1+((LEN(A2)-LEN(SUBSTITUTE(A2,"_OOH_","")))/LEN("_OOH_"))*2+((LEN(A2)-LEN(SUBSTITUTE(A2,"_O_","")))/LEN("_O_"))*1+((LEN(A2)-LEN(SUBSTITUTE(A2,"_CHO_","")))/LEN("_CHO_"))*1+((LEN(A2)-LEN(SUBSTITUTE(A2,"_COOH_","")))/LEN("_COOH_"))*2 -> 21 | L2: =CONCATENATE("C",G2,"H",H2,"N",I2,"O",J2) -> C57H104N2O21 | M2: =(G2*12.0107)+(H2*1.00794)+(I2*14.0067)+(J2*15.9994)+(K2*30.973762) -> 1153.43646 | N2: =(G2*12)+(H2*1.0078246)+(I2*14.003074)+(J2*15.994915) -> 1152.713121 | O2: =N2+1.0078246-0.00055 -> 1153.720396 | P2: =O2-18.01057-0.00055 -> 1135.709276 | Q2: =N2+18.03437-0.00055 -> 1170.746941 | R2: =N2+22.98977-0.00055 -> 1175.702341 | S2: =N2+38.96371-0.00055 -> 1191.676281 | T2: =N2+7.01601-0.00055 -> 1159.728581 | U2: =N2-1.0078246+0.00055 -> 1151.705847 | V2: =N2+44.99767+0.00055 -> 1197.711341 | W2: =N2+59.01332+0.00055 -> 1211.726991
A3: GM3-Cer(d18:1/20:0)__O__ | B3: =IF(ISNUMBER(SEARCH("(",A3)),IF(ISNUMBER(SEARCH("/",A3)),CONCATENATE(MID(A3,1,7)," ","d",(SUM(MID(A3,FIND("(",A3)+2,FIND(":",A3)-FIND("(",A3)-2),MID(A3,FIND("/",A3)+1,FIND(":",A3,FIND("/",A3))-FIND("/",A3)-1))),":",SUM(MID(A3,FIND(":",A3)+1,FIND("/",A3)-FIND(":",A3)-1),MID(A3,FIND(":",A3,FIND("/",A3))+1,FIND(")",A3)-FIND(":",A3,FIND("/",A3))-1)),MID(A3,(FIND(")",A3)+1),100)),CONCATENATE(MID(A3,1,7)," ","d",(SUM(MID(A3,FIND("(",A3)+2,FIND(":",A3)-FIND("(",A3)-2),MID(A3,FIND("_",A3)+1,FIND(":",A3,FIND("_",A3))-FIND("_",A3)-1))),":",SUM(MID(A3,FIND(":",A3)+1,FIND("_",A3)-FIND(":",A3)-1),MID(A3,FIND(":",A3,FIND("_",A3))+1,FIND(")",A3)-FIND(":",A3,FIND("_",A3))-1)),MID(A3,(FIND(")",A3)+1),100))),CONCATENATE(MID(A3,1,7)," ","d",MID(A3,10,100))) -> GM3-Cer d38:1__O__ | C3: =MID(B3,10,FIND(":",B3)-FIND("d",B3)-1) -> 38 | D3: =IF(ISNUMBER(SEARCH("__",B3)),MID(B3,FIND(":",B3)+1,FIND("__",B3)-FIND(":",B3)-1),MID(B3,FIND(":",B3)+1,7)) -> 1 | G3: =C3+23 -> 61 | H3: =2*G3-(2*D3)-8-((LEN(A3)-LEN(SUBSTITUTE(A3,"_O_","")))/LEN("_O_"))*2-((LEN(A3)-LEN(SUBSTITUTE(A3,"_CHO_","")))/LEN("_CHO_"))*2-((LEN(A3)-LEN(SUBSTITUTE(A3,"_COOH_","")))/LEN("_COOH_"))*2 -> 110 | I3: 2 | J3: =21+((LEN(A3)-LEN(SUBSTITUTE(A3,"_OH_","")))/LEN("_OH_"))*1+((LEN(A3)-LEN(SUBSTITUTE(A3,"_OOH_","")))/LEN("_OOH_"))*2+((LEN(A3)-LEN(SUBSTITUTE(A3,"_O_","")))/LEN("_O_"))*1+((LEN(A3)-LEN(SUBSTITUTE(A3,"_CHO_","")))/LEN("_CHO_"))*1+((LEN(A3)-LEN(SUBSTITUTE(A3,"_COOH_","")))/LEN("_COOH_"))*2 -> 22 | L3: =CONCATENATE("C",G3,"H",H3,"N",I3,"O",J3) -> C61H110N2O22 | M3: =(G3*12.0107)+(H3*1.00794)+(I3*14.0067)+(J3*15.9994)+(K3*30.973762) -> 1223.5263 | N3: =(G3*12)+(H3*1.0078246)+(I3*14.003074)+(J3*15.994915) -> 1222.754984 | O3: =N3+1.0078246-0.00055 -> 1223.762259 | P3: =O3-18.01057-0.00055 -> 1205.751139 | Q3: =N3+18.03437-0.00055 -> 1240.788804 | R3: =N3+22.98977-0.00055 -> 1245.744204 | S3: =N3+38.96371-0.00055 -> 1261.718144 | T3: =N3+7.01601-0.00055 -> 1229.770444 | U3: =N3-1.0078246+0.00055 -> 1221.747709 | V3: =N3+44.99767+0.00055 -> 1267.753204 | W3: =N3+59.01332+0.00055 -> 1281.768854
A4: GM3-Cer d42:2 | B4: GM3-Cer d42:2 | C4: 42 | D4: 2 | G4: 65 | H4: 118 | I4: 2 | J4: 21 | L4: C65H118N2O21 | M4: =(G4*12.0107)+(H4*1.00794)+(I4*14.0067)+(J4*15.9994)+(K4*30.973762) -> 1263.63322 | N4: 1262.822666 | O4: 1263.82994 | P4: 1245.81882 | Q4: 1280.856486 | R4: 1285.811886 | S4: 1301.785826 | T4: 1269.838126 | U4: 1261.815391 | V4: 1307.820886 | W4: 1321.836536

Sheet CE
A1: Lipid | B1: Sum Composition | C1: Sum Composition | F1: #C | G1: #H | H1: #O | L1: Formula | M1: Molecular Weight | N1: Neutral Mass | O1: [M+H]+ | P1: [M+H-H2O]+ | Q1: [M+NH4]+ | R1: [M+Na]+ | S1: [M+K]+ | T1: [M+Li]+ | U1: [M-H]- | V1: [M+HCOO]- | W1: [M+CH3COO]-
A2: CE 14:0 | B2: =IF(ISNUMBER(SEARCH("(",A2)),IF(ISNUMBER(SEARCH("/",A2)),CONCATENATE(MID(A2,1,2)," ",(SUM(MID(A2,FIND("(",A2)+1,FIND(":",A2)-FIND("(",A2)-1),MID(A2,FIND("/",A2)+1,FIND(":",A2,FIND("/",A2))-FIND("/",A2)-1))),":",SUM(MID(A2,FIND(":",A2)+1,FIND("/",A2)-FIND(":",A2)-1),MID(A2,FIND(":",A2,FIND("/",A2))+1,FIND(")",A2)-FIND(":",A2,FIND("/",A2))-1)),MID(A2,(FIND(")",A2)+1),100)),CONCATENATE(MID(A2,1,2)," ",(SUM(MID(A2,FIND("(",A2)+1,FIND(":",A2)-FIND("(",A2)-1),MID(A2,FIND("_",A2)+1,FIND(":",A2,FIND("_",A2))-FIND("_",A2)-1))),":",SUM(MID(A2,FIND(":",A2)+1,FIND("_",A2)-FIND(":",A2)-1),MID(A2,FIND(":",A2,FIND("_",A2))+1,FIND(")",A2)-FIND(":",A2,FIND("_",A2))-1)),MID(A2,(FIND(")",A2)+1),100))),A2) -> CE 14:0 | C2: =MID(B2,4,FIND(":",B2)-FIND(" ",B2)-1) -> 14 | D2: =IF(ISNUMBER(SEARCH("__",B2)),MID(B2,FIND(":",B2)+1,FIND("__",B2)-FIND(":",B2)-1),MID(B2,FIND(":",B2)+1,7)) -> 0 | F2: =C2+27 -> 41 | G2: =2*F2-(10+2*D2)-((LEN(A2)-LEN(SUBSTITUTE(A2,"_O_","")))/LEN("_O_"))*2-((LEN(A2)-LEN(SUBSTITUTE(A2,"_CHO_","")))/LEN("_CHO_"))*2-((LEN(A2)-LEN(SUBSTITUTE(A2,"_COOH_","")))/LEN("_COOH_"))*2 -> 72 | H2: =2+((LEN(A2)-LEN(SUBSTITUTE(A2,"_OH_","")))/LEN("_OH_"))*1+((LEN(A2)-LEN(SUBSTITUTE(A2,"_OOH_","")))/LEN("_OOH_"))*2+((LEN(A2)-LEN(SUBSTITUTE(A2,"_O_","")))/LEN("_O_"))*1+((LEN(A2)-LEN(SUBSTITUTE(A2,"_CHO_","")))/LEN("_CHO_"))*1+((LEN(A2)-LEN(SUBSTITUTE(A2,"_COOH_","")))/LEN("_COOH_"))*2 -> 2 | L2: =CONCATENATE("C",F2,"H",G2,"O",H2) -> C41H72O2 | M2: =(F2*12.0107)+(G2*1.00794)+(H2*15.9994) -> 597.00918 | N2: =(F2*12)+(G2*1.0078246)+(H2*15.99492) -> 596.5532112 | O2: =N2+1.0078246-0.00055 -> 597.5604858 | P2: =O2-18.01057-0.00055 -> 579.5493658 | Q2: =N2+18.03437-0.00055 -> 614.5870312 | R2: =N2+22.98977-0.00055 -> 619.5424312 | S2: =N2+38.96371-0.00055 -> 635.5163712 | T2: =N2+7.01601-0.00055 -> 603.5686712 | U2: =N2-1.0078246+0.00055 -> 595.5459366 | V2: =N2+44.99767+0.00055 -> 641.5514312 | W2: =N2+59.01332+0.00055 -> 655.5670812
A3: CE 14:1__O__ | B3: =IF(ISNUMBER(SEARCH("(",A3)),IF(ISNUMBER(SEARCH("/",A3)),CONCATENATE(MID(A3,1,2)," ",(SUM(MID(A3,FIND("(",A3)+1,FIND(":",A3)-FIND("(",A3)-1),MID(A3,FIND("/",A3)+1,FIND(":",A3,FIND("/",A3))-FIND("/",A3)-1))),":",SUM(MID(A3,FIND(":",A3)+1,FIND("/",A3)-FIND(":",A3)-1),MID(A3,FIND(":",A3,FIND("/",A3))+1,FIND(")",A3)-FIND(":",A3,FIND("/",A3))-1)),MID(A3,(FIND(")",A3)+1),100)),CONCATENATE(MID(A3,1,2)," ",(SUM(MID(A3,FIND("(",A3)+1,FIND(":",A3)-FIND("(",A3)-1),MID(A3,FIND("_",A3)+1,FIND(":",A3,FIND("_",A3))-FIND("_",A3)-1))),":",SUM(MID(A3,FIND(":",A3)+1,FIND("_",A3)-FIND(":",A3)-1),MID(A3,FIND(":",A3,FIND("_",A3))+1,FIND(")",A3)-FIND(":",A3,FIND("_",A3))-1)),MID(A3,(FIND(")",A3)+1),100))),A3) -> CE 14:1__O__ | C3: =MID(B3,4,FIND(":",B3)-FIND(" ",B3)-1) -> 14 | D3: =IF(ISNUMBER(SEARCH("__",B3)),MID(B3,FIND(":",B3)+1,FIND("__",B3)-FIND(":",B3)-1),MID(B3,FIND(":",B3)+1,7)) -> 1 | F3: =C3+27 -> 41 | G3: =2*F3-(10+2*D3)-((LEN(A3)-LEN(SUBSTITUTE(A3,"_O_","")))/LEN("_O_"))*2-((LEN(A3)-LEN(SUBSTITUTE(A3,"_CHO_","")))/LEN("_CHO_"))*2-((LEN(A3)-LEN(SUBSTITUTE(A3,"_COOH_","")))/LEN("_COOH_"))*2 -> 68 | H3: =2+((LEN(A3)-LEN(SUBSTITUTE(A3,"_OH_","")))/LEN("_OH_"))*1+((LEN(A3)-LEN(SUBSTITUTE(A3,"_OOH_","")))/LEN("_OOH_"))*2+((LEN(A3)-LEN(SUBSTITUTE(A3,"_O_","")))/LEN("_O_"))*1+((LEN(A3)-LEN(SUBSTITUTE(A3,"_CHO_","")))/LEN("_CHO_"))*1+((LEN(A3)-LEN(SUBSTITUTE(A3,"_COOH_","")))/LEN("_COOH_"))*2 -> 3 | L3: =CONCATENATE("C",F3,"H",G3,"O",H3) -> C41H68O3 | M3: =(F3*12.0107)+(G3*1.00794)+(H3*15.9994) -> 608.97682 | N3: =(F3*12)+(G3*1.0078246)+(H3*15.99492) -> 608.5168328 | O3: =N3+1.0078246-0.00055 -> 609.5241074 | P3: =O3-18.01057-0.00055 -> 591.5129874 | Q3: =N3+18.03437-0.00055 -> 626.5506528 | R3: =N3+22.98977-0.00055 -> 631.5060528 | S3: =N3+38.96371-0.00055 -> 647.4799928 | T3: =N3+7.01601-0.00055 -> 615.5322928 | U3: =N3-1.0078246+0.00055 -> 607.5095582 | V3: =N3+44.99767+0.00055 -> 653.5150528 | W3: =N3+59.01332+0.00055 -> 667.5307028
A4: CE 19:0 | B4: =IF(ISNUMBER(SEARCH("(",A4)),IF(ISNUMBER(SEARCH("/",A4)),CONCATENATE(MID(A4,1,2)," ",(SUM(MID(A4,FIND("(",A4)+1,FIND(":",A4)-FIND("(",A4)-1),MID(A4,FIND("/",A4)+1,FIND(":",A4,FIND("/",A4))-FIND("/",A4)-1))),":",SUM(MID(A4,FIND(":",A4)+1,FIND("/",A4)-FIND(":",A4)-1),MID(A4,FIND(":",A4,FIND("/",A4))+1,FIND(")",A4)-FIND(":",A4,FIND("/",A4))-1)),MID(A4,(FIND(")",A4)+1),100)),CONCATENATE(MID(A4,1,2)," ",(SUM(MID(A4,FIND("(",A4)+1,FIND(":",A4)-FIND("(",A4)-1),MID(A4,FIND("_",A4)+1,FIND(":",A4,FIND("_",A4))-FIND("_",A4)-1))),":",SUM(MID(A4,FIND(":",A4)+1,FIND("_",A4)-FIND(":",A4)-1),MID(A4,FIND(":",A4,FIND("_",A4))+1,FIND(")",A4)-FIND(":",A4,FIND("_",A4))-1)),MID(A4,(FIND(")",A4)+1),100))),A4) -> CE 19:0 | C4: =MID(B4,4,FIND(":",B4)-FIND(" ",B4)-1) -> 19 | D4: =IF(ISNUMBER(SEARCH("__",B4)),MID(B4,FIND(":",B4)+1,FIND("__",B4)-FIND(":",B4)-1),MID(B4,FIND(":",B4)+1,7)) -> 0 | F4: =C4+27 -> 46 | G4: =2*F4-(10+2*D4)-((LEN(A4)-LEN(SUBSTITUTE(A4,"_O_","")))/LEN("_O_"))*2-((LEN(A4)-LEN(SUBSTITUTE(A4,"_CHO_","")))/LEN("_CHO_"))*2-((LEN(A4)-LEN(SUBSTITUTE(A4,"_COOH_","")))/LEN("_COOH_"))*2 -> 82 | H4: =2+((LEN(A4)-LEN(SUBSTITUTE(A4,"_OH_","")))/LEN("_OH_"))*1+((LEN(A4)-LEN(SUBSTITUTE(A4,"_OOH_","")))/LEN("_OOH_"))*2+((LEN(A4)-LEN(SUBSTITUTE(A4,"_O_","")))/LEN("_O_"))*1+((LEN(A4)-LEN(SUBSTITUTE(A4,"_CHO_","")))/LEN("_CHO_"))*1+((LEN(A4)-LEN(SUBSTITUTE(A4,"_COOH_","")))/LEN("_COOH_"))*2 -> 2 | L4: =CONCATENATE("C",F4,"H",G4,"O",H4) -> C46H82O2 | M4: =(F4*12.0107)+(G4*1.00794)+(H4*15.9994) -> 667.14208 | N4: =(F4*12)+(G4*1.0078246)+(H4*15.99492) -> 666.6314572 | O4: =N4+1.0078246-0.00055 -> 667.6387318 | P4: =O4-18.01057-0.00055 -> 649.6276118 | Q4: =N4+18.03437-0.00055 -> 684.6652772 | R4: =N4+22.98977-0.00055 -> 689.6206772 | S4: =N4+38.96371-0.00055 -> 705.5946172 | T4: =N4+7.01601-0.00055 -> 673.6469172 | U4: =N4-1.0078246+0.00055 -> 665.6241826 | V4: =N4+44.99767+0.00055 -> 711.6296772 | W4: =N4+59.01332+0.00055 -> 725.6453272

Sheet LPC
A1: Lipid | B1: Sum Composition | G1: #C | H1: #H | I1: #N | J1: #O | K1: #P | L1: Formula | M1: Molecular Weight | N1: Neutral Mass | O1: [M+H]+ | P1: [M+H-H2O]+ | Q1: [M+NH4]+ | R1: [M+Na]+ | S1: [M+K]+ | T1: [M+Li]+ | U1: [M-H]- | V1: [M+HCOO]- | W1: [M+CH3COO]-
A2: LPC 12:0__O__ | B2: =IF(ISNUMBER(SEARCH("(",A2)),IF(ISNUMBER(SEARCH("/",A2)),CONCATENATE(MID(A2,1,2)," ",(SUM(MID(A2,FIND("(",A2)+1,FIND(":",A2)-FIND("(",A2)-1),MID(A2,FIND("/",A2)+1,FIND(":",A2,FIND("/",A2))-FIND("/",A2)-1))),":",SUM(MID(A2,FIND(":",A2)+1,FIND("/",A2)-FIND(":",A2)-1),MID(A2,FIND(":",A2,FIND("/",A2))+1,FIND(")",A2)-FIND(":",A2,FIND("/",A2))-1)),MID(A2,(FIND(")",A2)+1),100)),CONCATENATE(MID(A2,1,2)," ",(SUM(MID(A2,FIND("(",A2)+1,FIND(":",A2)-FIND("(",A2)-1),MID(A2,FIND("_",A2)+1,FIND(":",A2,FIND("_",A2))-FIND("_",A2)-1))),":",SUM(MID(A2,FIND(":",A2)+1,FIND("_",A2)-FIND(":",A2)-1),MID(A2,FIND(":",A2,FIND("_",A2))+1,FIND(")",A2)-FIND(":",A2,FIND("_",A2))-1)),MID(A2,(FIND(")",A2)+1),100))),A2) -> LPC 12:0__O__ | C2: =MID(B2,5,FIND(":",B2)-FIND(" ",B2)-1) -> 12 | D2: =IF(ISNUMBER(SEARCH("__",B2)),MID(B2,FIND(":",B2)+1,FIND("__",B2)-FIND(":",B2)-1),MID(B2,FIND(":",B2)+1,7)) -> 0 | G2: =C2+8 -> 20 | H2: =2*G2-(2*D2)+2-((LEN(A2)-LEN(SUBSTITUTE(A2,"_O_","")))/LEN("_O_"))*2-((LEN(A2)-LEN(SUBSTITUTE(A2,"_CHO_","")))/LEN("_CHO_"))*2-((LEN(A2)-LEN(SUBSTITUTE(A2,"_COOH_","")))/LEN("_COOH_"))*2 -> 40 | I2: 1 | J2: =7+((LEN(A2)-LEN(SUBSTITUTE(A2,"_OH_","")))/LEN("_OH_"))*1+((LEN(A2)-LEN(SUBSTITUTE(A2,"_OOH_","")))/LEN("_OOH_"))*2+((LEN(A2)-LEN(SUBSTITUTE(A2,"_O_","")))/LEN("_O_"))*1+((LEN(A2)-LEN(SUBSTITUTE(A2,"_CHO_","")))/LEN("_CHO_"))*1+((LEN(A2)-LEN(SUBSTITUTE(A2,"_COOH_","")))/LEN("_COOH_"))*2 -> 8 | K2: 1 | L2: =CONCATENATE("C",G2,"H",H2,"N",I2,"O",J2,"P",K2) -> C20H40N1O8P1 | M2: =(G2*12.0107)+(H2*1.00794)+(I2*14.0067)+(J2*15.9994)+(K2*30.973762) -> 453.507262 | N2: =(G2*12)+(H2*1.0078246)+(I2*14.003074)+(J2*15.994915)+(K2*30.973763) -> 453.249141 | O2: =N2+1.0078246-0.00055 -> 454.2564156 | P2: =O2-18.01057-0.00055 -> 436.2452956 | Q2: =N2+18.03437-0.00055 -> 471.282961 | R2: =N2+22.98977-0.00055 -> 476.238361 | S2: =N2+38.96371-0.00055 -> 492.212301 | T2: =N2+7.01601-0.00055 -> 460.264601 | U2: =N2-1.0078246+0.00055 -> 452.2418664 | V2: =N2+44.99767+0.00055 -> 498.247361 | W2: =N2+59.01332+0.00055 -> 512.263011
A3: LPC 16:0 | B3: =IF(ISNUMBER(SEARCH("(",A3)),IF(ISNUMBER(SEARCH("/",A3)),CONCATENATE(MID(A3,1,2)," ",(SUM(MID(A3,FIND("(",A3)+1,FIND(":",A3)-FIND("(",A3)-1),MID(A3,FIND("/",A3)+1,FIND(":",A3,FIND("/",A3))-FIND("/",A3)-1))),":",SUM(MID(A3,FIND(":",A3)+1,FIND("/",A3)-FIND(":",A3)-1),MID(A3,FIND(":",A3,FIND("/",A3))+1,FIND(")",A3)-FIND(":",A3,FIND("/",A3))-1)),MID(A3,(FIND(")",A3)+1),100)),CONCATENATE(MID(A3,1,2)," ",(SUM(MID(A3,FIND("(",A3)+1,FIND(":",A3)-FIND("(",A3)-1),MID(A3,FIND("_",A3)+1,FIND(":",A3,FIND("_",A3))-FIND("_",A3)-1))),":",SUM(MID(A3,FIND(":",A3)+1,FIND("_",A3)-FIND(":",A3)-1),MID(A3,FIND(":",A3,FIND("_",A3))+1,FIND(")",A3)-FIND(":",A3,FIND("_",A3))-1)),MID(A3,(FIND(")",A3)+1),100))),A3) -> LPC 16:0 | C3: =MID(B3,5,FIND(":",B3)-FIND(" ",B3)-1) -> 16 | D3: =IF(ISNUMBER(SEARCH("__",B3)),MID(B3,FIND(":",B3)+1,FIND("__",B3)-FIND(":",B3)-1),MID(B3,FIND(":",B3)+1,7)) -> 0 | G3: =C3+8 -> 24 | H3: =2*G3-(2*D3)+2-((LEN(A3)-LEN(SUBSTITUTE(A3,"_O_","")))/LEN("_O_"))*2-((LEN(A3)-LEN(SUBSTITUTE(A3,"_CHO_","")))/LEN("_CHO_"))*2-((LEN(A3)-LEN(SUBSTITUTE(A3,"_COOH_","")))/LEN("_COOH_"))*2 -> 50 | I3: 1 | J3: =7+((LEN(A3)-LEN(SUBSTITUTE(A3,"_OH_","")))/LEN("_OH_"))*1+((LEN(A3)-LEN(SUBSTITUTE(A3,"_OOH_","")))/LEN("_OOH_"))*2+((LEN(A3)-LEN(SUBSTITUTE(A3,"_O_","")))/LEN("_O_"))*1+((LEN(A3)-LEN(SUBSTITUTE(A3,"_CHO_","")))/LEN("_CHO_"))*1+((LEN(A3)-LEN(SUBSTITUTE(A3,"_COOH_","")))/LEN("_COOH_"))*2 -> 7 | K3: 1 | L3: =CONCATENATE("C",G3,"H",H3,"N",I3,"O",J3,"P",K3) -> C24H50N1O7P1 | M3: =(G3*12.0107)+(H3*1.00794)+(I3*14.0067)+(J3*15.9994)+(K3*30.973762) -> 495.630062 | N3: =(G3*12)+(H3*1.0078246)+(I3*14.003074)+(J3*15.994915)+(K3*30.973763) -> 495.332472 | O3: =N3+1.0078246-0.00055 -> 496.3397466 | P3: =O3-18.01057-0.00055 -> 478.3286266 | Q3: =N3+18.03437-0.00055 -> 513.366292 | R3: =N3+22.98977-0.00055 -> 518.321692 | S3: =N3+38.96371-0.00055 -> 534.295632 | T3: =N3+7.01601-0.00055 -> 502.347932 | U3: =N3-1.0078246+0.00055 -> 494.3251974 | V3: =N3+44.99767+0.00055 -> 540.330692 | W3: =N3+59.01332+0.00055 -> 554.346342
A4: LPC 18:1 | B4: =IF(ISNUMBER(SEARCH("(",A4)),IF(ISNUMBER(SEARCH("/",A4)),CONCATENATE(MID(A4,1,2)," ",(SUM(MID(A4,FIND("(",A4)+1,FIND(":",A4)-FIND("(",A4)-1),MID(A4,FIND("/",A4)+1,FIND(":",A4,FIND("/",A4))-FIND("/",A4)-1))),":",SUM(MID(A4,FIND(":",A4)+1,FIND("/",A4)-FIND(":",A4)-1),MID(A4,FIND(":",A4,FIND("/",A4))+1,FIND(")",A4)-FIND(":",A4,FIND("/",A4))-1)),MID(A4,(FIND(")",A4)+1),100)),CONCATENATE(MID(A4,1,2)," ",(SUM(MID(A4,FIND("(",A4)+1,FIND(":",A4)-FIND("(",A4)-1),MID(A4,FIND("_",A4)+1,FIND(":",A4,FIND("_",A4))-FIND("_",A4)-1))),":",SUM(MID(A4,FIND(":",A4)+1,FIND("_",A4)-FIND(":",A4)-1),MID(A4,FIND(":",A4,FIND("_",A4))+1,FIND(")",A4)-FIND(":",A4,FIND("_",A4))-1)),MID(A4,(FIND(")",A4)+1),100))),A4) -> LPC 18:1 | C4: =MID(B4,5,FIND(":",B4)-FIND(" ",B4)-1) -> 18 | D4: =IF(ISNUMBER(SEARCH("__",B4)),MID(B4,FIND(":",B4)+1,FIND("__",B4)-FIND(":",B4)-1),MID(B4,FIND(":",B4)+1,7)) -> 1 | G4: =C4+8 -> 26 | H4: =2*G4-(2*D4)+2-((LEN(A4)-LEN(SUBSTITUTE(A4,"_O_","")))/LEN("_O_"))*2-((LEN(A4)-LEN(SUBSTITUTE(A4,"_CHO_","")))/LEN("_CHO_"))*2-((LEN(A4)-LEN(SUBSTITUTE(A4,"_COOH_","")))/LEN("_COOH_"))*2 -> 52 | I4: 1 | J4: =7+((LEN(A4)-LEN(SUBSTITUTE(A4,"_OH_","")))/LEN("_OH_"))*1+((LEN(A4)-LEN(SUBSTITUTE(A4,"_OOH_","")))/LEN("_OOH_"))*2+((LEN(A4)-LEN(SUBSTITUTE(A4,"_O_","")))/LEN("_O_"))*1+((LEN(A4)-LEN(SUBSTITUTE(A4,"_CHO_","")))/LEN("_CHO_"))*1+((LEN(A4)-LEN(SUBSTITUTE(A4,"_COOH_","")))/LEN("_COOH_"))*2 -> 7 | K4: 1 | L4: =CONCATENATE("C",G4,"H",H4,"N",I4,"O",J4,"P",K4) -> C26H52N1O7P1 | M4: =(G4*12.0107)+(H4*1.00794)+(I4*14.0067)+(J4*15.9994)+(K4*30.973762) -> 521.667342 | N4: =(G4*12)+(H4*1.0078246)+(I4*14.003074)+(J4*15.994915)+(K4*30.973763) -> 521.3481212 | O4: =N4+1.0078246-0.00055 -> 522.3553958 | P4: =O4-18.01057-0.00055 -> 504.3442758 | Q4: =N4+18.03437-0.00055 -> 539.3819412 | R4: =N4+22.98977-0.00055 -> 544.3373412 | S4: =N4+38.96371-0.00055 -> 560.3112812 | T4: =N4+7.01601-0.00055 -> 528.3635812 | U4: =N4-1.0078246+0.00055 -> 520.3408466 | V4: =N4+44.99767+0.00055 -> 566.3463412 | W4: =N4+59.01332+0.00055 -> 580.3619912

Sheet PC
A1: Lipid | B1: Sum Composition | G1: #C | H1: #H | I1: #N | J1: #O | K1: #P | L1: Formula | M1: Molecular Weight | N1: Neutral Mass | O1: [M+H]+ | P1: [M+H-H2O]+ | Q1: [M+NH4]+ | R1: [M+Na]+ | S1: [M+K]+ | T1: [M+Li]+ | U1: [M-H]- | V1: [M+HCOO]- | W1: [M+CH3COO]-
A2: PC 16:14__O__ | B2: =IF(ISNUMBER(SEARCH("(",A2)),IF(ISNUMBER(SEARCH("/",A2)),CONCATENATE(MID(A2,1,2)," ",(SUM(MID(A2,FIND("(",A2)+1,FIND(":",A2)-FIND("(",A2)-1),MID(A2,FIND("/",A2)+1,FIND(":",A2,FIND("/",A2))-FIND("/",A2)-1))),":",SUM(MID(A2,FIND(":",A2)+1,FIND("/",A2)-FIND(":",A2)-1),MID(A2,FIND(":",A2,FIND("/",A2))+1,FIND(")",A2)-FIND(":",A2,FIND("/",A2))-1)),MID(A2,(FIND(")",A2)+1),100)),CONCATENATE(MID(A2,1,2)," ",(SUM(MID(A2,FIND("(",A2)+1,FIND(":",A2)-FIND("(",A2)-1),MID(A2,FIND("_",A2)+1,FIND(":",A2,FIND("_",A2))-FIND("_",A2)-1))),":",SUM(MID(A2,FIND(":",A2)+1,FIND("_",A2)-FIND(":",A2)-1),MID(A2,FIND(":",A2,FIND("_",A2))+1,FIND(")",A2)-FIND(":",A2,FIND("_",A2))-1)),MID(A2,(FIND(")",A2)+1),100))),A2) -> PC 16:14__O__ | C2: =MID(B2,4,FIND(":",B2)-FIND(" ",B2)-1) -> 16 | D2: =IF(ISNUMBER(SEARCH("__",B2)),MID(B2,FIND(":",B2)+1,FIND("__",B2)-FIND(":",B2)-1),MID(B2,FIND(":",B2)+1,7)) -> 14 | E2: =MID(A2,5,1) -> 6 | G2: =C2+8 -> 24 | H2: =2*G2-(2*D2)-((LEN(A2)-LEN(SUBSTITUTE(A2,"_O_","")))/LEN("_O_"))*2-((LEN(A2)-LEN(SUBSTITUTE(A2,"_CHO_","")))/LEN("_CHO_"))*2-((LEN(A2)-LEN(SUBSTITUTE(A2,"_COOH_","")))/LEN("_COOH_"))*2 -> 18 | I2: 1 | J2: =8+((LEN(A2)-LEN(SUBSTITUTE(A2,"_OH_","")))/LEN("_OH_"))*1+((LEN(A2)-LEN(SUBSTITUTE(A2,"_OOH_","")))/LEN("_OOH_"))*2+((LEN(A2)-LEN(SUBSTITUTE(A2,"_O_","")))/LEN("_O_"))*1+((LEN(A2)-LEN(SUBSTITUTE(A2,"_CHO_","")))/LEN("_CHO_"))*1+((LEN(A2)-LEN(SUBSTITUTE(A2,"_COOH_","")))/LEN("_COOH_"))*2 -> 9 | K2: 1 | L2: =CONCATENATE("C",G2,"H",H2,"N",I2,"O",J2,"P",K2) -> C24H18N1O9P1 | M2: =(G2*12.0107)+(H2*1.00794)+(I2*14.0067)+(J2*15.9994)+(K2*30.973762) -> 495.374782 | N2: =(G2*12)+(H2*1.0078246)+(I2*14.003074)+(J2*15.994915)+(K2*30.973763) -> 495.0719148 | O2: =N2+1.0078246-0.00055 -> 496.0791894 | P2: =O2-18.01057-0.00055 -> 478.0680694 | Q2: =N2+18.03437-0.00055 -> 513.1057348 | R2: =N2+22.98977-0.00055 -> 518.0611348 | S2: =N2+38.96371-0.00055 -> 534.0350748 | T2: =N2+7.01601-0.00055 -> 502.0873748 | U2: =N2-1.0078246+0.00055 -> 494.0646402 | V2: =N2+44.99767+0.00055 -> 540.0701348 | W2: =N2+59.01332+0.00055 -> 554.0857848
A3: PC(16:0_18:1) | B3: =IF(ISNUMBER(SEARCH("(",A3)),IF(ISNUMBER(SEARCH("/",A3)),CONCATENATE(MID(A3,1,2)," ",(SUM(MID(A3,FIND("(",A3)+1,FIND(":",A3)-FIND("(",A3)-1),MID(A3,FIND("/",A3)+1,FIND(":",A3,FIND("/",A3))-FIND("/",A3)-1))),":",SUM(MID(A3,FIND(":",A3)+1,FIND("/",A3)-FIND(":",A3)-1),MID(A3,FIND(":",A3,FIND("/",A3))+1,FIND(")",A3)-FIND(":",A3,FIND("/",A3))-1)),MID(A3,(FIND(")",A3)+1),100)),CONCATENATE(MID(A3,1,2)," ",(SUM(MID(A3,FIND("(",A3)+1,FIND(":",A3)-FIND("(",A3)-1),MID(A3,FIND("_",A3)+1,FIND(":",A3,FIND("_",A3))-FIND("_",A3)-1))),":",SUM(MID(A3,FIND(":",A3)+1,FIND("_",A3)-FIND(":",A3)-1),MID(A3,FIND(":",A3,FIND("_",A3))+1,FIND(")",A3)-FIND(":",A3,FIND("_",A3))-1)),MID(A3,(FIND(")",A3)+1),100))),A3) -> PC 34:1 | C3: =MID(B3,4,FIND(":",B3)-FIND(" ",B3)-1) -> 34 | D3: =IF(ISNUMBER(SEARCH("__",B3)),MID(B3,FIND(":",B3)+1,FIND("__",B3)-FIND(":",B3)-1),MID(B3,FIND(":",B3)+1,7)) -> 1 | E3: =MID(A3,5,1) -> 6 | G3: =C3+8 -> 42 | H3: =2*G3-(2*D3)-((LEN(A3)-LEN(SUBSTITUTE(A3,"_O_","")))/LEN("_O_"))*2-((LEN(A3)-LEN(SUBSTITUTE(A3,"_CHO_","")))/LEN("_CHO_"))*2-((LEN(A3)-LEN(SUBSTITUTE(A3,"_COOH_","")))/LEN("_COOH_"))*2 -> 82 | I3: 1 | J3: =8+((LEN(A3)-LEN(SUBSTITUTE(A3,"_OH_","")))/LEN("_OH_"))*1+((LEN(A3)-LEN(SUBSTITUTE(A3,"_OOH_","")))/LEN("_OOH_"))*2+((LEN(A3)-LEN(SUBSTITUTE(A3,"_O_","")))/LEN("_O_"))*1+((LEN(A3)-LEN(SUBSTITUTE(A3,"_CHO_","")))/LEN("_CHO_"))*1+((LEN(A3)-LEN(SUBSTITUTE(A3,"_COOH_","")))/LEN("_COOH_"))*2 -> 8 | K3: 1 | L3: =CONCATENATE("C",G3,"H",H3,"N",I3,"O",J3,"P",K3) -> C42H82N1O8P1 | M3: =(G3*12.0107)+(H3*1.00794)+(I3*14.0067)+(J3*15.9994)+(K3*30.973762) -> 760.076142 | N3: =(G3*12)+(H3*1.0078246)+(I3*14.003074)+(J3*15.994915)+(K3*30.973763) -> 759.5777742 | O3: =N3+1.0078246-0.00055 -> 760.5850488 | P3: =O3-18.01057-0.00055 -> 742.5739288 | Q3: =N3+18.03437-0.00055 -> 777.6115942 | R3: =N3+22.98977-0.00055 -> 782.5669942 | S3: =N3+38.96371-0.00055 -> 798.5409342 | T3: =N3+7.01601-0.00055 -> 766.5932342 | U3: =N3-1.0078246+0.00055 -> 758.5704996 | V3: =N3+44.99767+0.00055 -> 804.5759942 | W3: =N3+59.01332+0.00055 -> 818.5916442
A4: PC(14:0/14:0)__O__ | B4: =IF(ISNUMBER(SEARCH("(",A4)),IF(ISNUMBER(SEARCH("/",A4)),CONCATENATE(MID(A4,1,2)," ",(SUM(MID(A4,FIND("(",A4)+1,FIND(":",A4)-FIND("(",A4)-1),MID(A4,FIND("/",A4)+1,FIND(":",A4,FIND("/",A4))-FIND("/",A4)-1))),":",SUM(MID(A4,FIND(":",A4)+1,FIND("/",A4)-FIND(":",A4)-1),MID(A4,FIND(":",A4,FIND("/",A4))+1,FIND(")",A4)-FIND(":",A4,FIND("/",A4))-1)),MID(A4,(FIND(")",A4)+1),100)),CONCATENATE(MID(A4,1,2)," ",(SUM(MID(A4,FIND("(",A4)+1,FIND(":",A4)-FIND("(",A4)-1),MID(A4,FIND("_",A4)+1,FIND(":",A4,FIND("_",A4))-FIND("_",A4)-1))),":",SUM(MID(A4,FIND(":",A4)+1,FIND("_",A4)-FIND(":",A4)-1),MID(A4,FIND(":",A4,FIND("_",A4))+1,FIND(")",A4)-FIND(":",A4,FIND("_",A4))-1)),MID(A4,(FIND(")",A4)+1),100))),A4) -> PC 28:0__O__ | C4: =MID(B4,4,FIND(":",B4)-FIND(" ",B4)-1) -> 28 | D4: =IF(ISNUMBER(SEARCH("__",B4)),MID(B4,FIND(":",B4)+1,FIND("__",B4)-FIND(":",B4)-1),MID(B4,FIND(":",B4)+1,7)) -> 0 | E4: =MID(A4,5,1) -> 4 | G4: =C4+8 -> 36 | H4: =2*G4-(2*D4)-((LEN(A4)-LEN(SUBSTITUTE(A4,"_O_","")))/LEN("_O_"))*2-((LEN(A4)-LEN(SUBSTITUTE(A4,"_CHO_","")))/LEN("_CHO_"))*2-((LEN(A4)-LEN(SUBSTITUTE(A4,"_COOH_","")))/LEN("_COOH_"))*2 -> 70 | I4: 1 | J4: =8+((LEN(A4)-LEN(SUBSTITUTE(A4,"_OH_","")))/LEN("_OH_"))*1+((LEN(A4)-LEN(SUBSTITUTE(A4,"_OOH_","")))/LEN("_OOH_"))*2+((LEN(A4)-LEN(SUBSTITUTE(A4,"_O_","")))/LEN("_O_"))*1+((LEN(A4)-LEN(SUBSTITUTE(A4,"_CHO_","")))/LEN("_CHO_"))*1+((LEN(A4)-LEN(SUBSTITUTE(A4,"_COOH_","")))/LEN("_COOH_"))*2 -> 9 | K4: 1 | L4: =CONCATENATE("C",G4,"H",H4,"N",I4,"O",J4,"P",K4) -> C36H70N1O9P1 | M4: =(G4*12.0107)+(H4*1.00794)+(I4*14.0067)+(J4*15.9994)+(K4*30.973762) -> 691.916062 | N4: =(G4*12)+(H4*1.0078246)+(I4*14.003074)+(J4*15.994915)+(K4*30.973763) -> 691.478794 | O4: =N4+1.0078246-0.00055 -> 692.4860686 | P4: =O4-18.01057-0.00055 -> 674.4749486 | Q4: =N4+18.03437-0.00055 -> 709.512614 | R4: =N4+22.98977-0.00055 -> 714.468014 | S4: =N4+38.96371-0.00055 -> 730.441954 | T4: =N4+7.01601-0.00055 -> 698.494254 | U4: =N4-1.0078246+0.00055 -> 690.4715194 | V4: =N4+44.99767+0.00055 -> 736.477014 | W4: =N4+59.01332+0.00055 -> 750.492664
A5: PC(18:1/18:1)__O__ | B5: =IF(ISNUMBER(SEARCH("(",A5)),IF(ISNUMBER(SEARCH("/",A5)),CONCATENATE(MID(A5,1,2)," ",(SUM(MID(A5,FIND("(",A5)+1,FIND(":",A5)-FIND("(",A5)-1),MID(A5,FIND("/",A5)+1,FIND(":",A5,FIND("/",A5))-FIND("/",A5)-1))),":",SUM(MID(A5,FIND(":",A5)+1,FIND("/",A5)-FIND(":",A5)-1),MID(A5,FIND(":",A5,FIND("/",A5))+1,FIND(")",A5)-FIND(":",A5,FIND("/",A5))-1)),MID(A5,(FIND(")",A5)+1),100)),CONCATENATE(MID(A5,1,2)," ",(SUM(MID(A5,FIND("(",A5)+1,FIND(":",A5)-FIND("(",A5)-1),MID(A5,FIND("_",A5)+1,FIND(":",A5,FIND("_",A5))-FIND("_",A5)-1))),":",SUM(MID(A5,FIND(":",A5)+1,FIND("_",A5)-FIND(":",A5)-1),MID(A5,FIND(":",A5,FIND("_",A5))+1,FIND(")",A5)-FIND(":",A5,FIND("_",A5))-1)),MID(A5,(FIND(")",A5)+1),100))),A5) -> PC 36:2__O__ | C5: =MID(B5,4,FIND(":",B5)-FIND(" ",B5)-1) -> 36 | D5: =IF(ISNUMBER(SEARCH("__",B5)),MID(B5,FIND(":",B5)+1,FIND("__",B5)-FIND(":",B5)-1),MID(B5,FIND(":",B5)+1,7)) -> 2 | E5: 8 | G5: =C5+8 -> 44 | H5: =2*G5-(2*D5)-((LEN(A5)-LEN(SUBSTITUTE(A5,"_O_","")))/LEN("_O_"))*2-((LEN(A5)-LEN(SUBSTITUTE(A5,"_CHO_","")))/LEN("_CHO_"))*2-((LEN(A5)-LEN(SUBSTITUTE(A5,"_COOH_","")))/LEN("_COOH_"))*2 -> 82 | I5: 1 | J5: =8+((LEN(A5)-LEN(SUBSTITUTE(A5,"_OH_","")))/LEN("_OH_"))*1+((LEN(A5)-LEN(SUBSTITUTE(A5,"_OOH_","")))/LEN("_OOH_"))*2+((LEN(A5)-LEN(SUBSTITUTE(A5,"_O_","")))/LEN("_O_"))*1+((LEN(A5)-LEN(SUBSTITUTE(A5,"_CHO_","")))/LEN("_CHO_"))*1+((LEN(A5)-LEN(SUBSTITUTE(A5,"_COOH_","")))/LEN("_COOH_"))*2 -> 9 | K5: 1 | L5: =CONCATENATE("C",G5,"H",H5,"N",I5,"O",J5,"P",K5) -> C44H82N1O9P1 | M5: =(G5*12.0107)+(H5*1.00794)+(I5*14.0067)+(J5*15.9994)+(K5*30.973762) -> 800.096942 | N5: =(G5*12)+(H5*1.0078246)+(I5*14.003074)+(J5*15.994915)+(K5*30.973763) -> 799.5726892 | O5: =N5+1.0078246-0.00055 -> 800.5799638 | P5: =O5-18.01057-0.00055 -> 782.5688438 | Q5: =N5+18.03437-0.00055 -> 817.6065092 | R5: =N5+22.98977-0.00055 -> 822.5619092 | S5: =N5+38.96371-0.00055 -> 838.5358492 | T5: =N5+7.01601-0.00055 -> 806.5881492 | U5: =N5-1.0078246+0.00055 -> 798.5654146 | V5: =N5+44.99767+0.00055 -> 844.5709092 | W5: =N5+59.01332+0.00055 -> 858.5865592
A6: PC 34:1 | B6: =IF(ISNUMBER(SEARCH("(",A6)),IF(ISNUMBER(SEARCH("/",A6)),CONCATENATE(MID(A6,1,2)," ",(SUM(MID(A6,FIND("(",A6)+1,FIND(":",A6)-FIND("(",A6)-1),MID(A6,FIND("/",A6)+1,FIND(":",A6,FIND("/",A6))-FIND("/",A6)-1))),":",SUM(MID(A6,FIND(":",A6)+1,FIND("/",A6)-FIND(":",A6)-1),MID(A6,FIND(":",A6,FIND("/",A6))+1,FIND(")",A6)-FIND(":",A6,FIND("/",A6))-1)),MID(A6,(FIND(")",A6)+1),100)),CONCATENATE(MID(A6,1,2)," ",(SUM(MID(A6,FIND("(",A6)+1,FIND(":",A6)-FIND("(",A6)-1),MID(A6,FIND("_",A6)+1,FIND(":",A6,FIND("_",A6))-FIND("_",A6)-1))),":",SUM(MID(A6,FIND(":",A6)+1,FIND("_",A6)-FIND(":",A6)-1),MID(A6,FIND(":",A6,FIND("_",A6))+1,FIND(")",A6)-FIND(":",A6,FIND("_",A6))-1)),MID(A6,(FIND(")",A6)+1),100))),A6) -> PC 34:1 | C6: =MID(B6,4,FIND(":",B6)-FIND(" ",B6)-1) -> 34 | D6: =IF(ISNUMBER(SEARCH("__",B6)),MID(B6,FIND(":",B6)+1,FIND("__",B6)-FIND(":",B6)-1),MID(B6,FIND(":",B6)+1,7)) -> 1 | E6: 4 | G6: =C6+8 -> 42 | H6: =2*G6-(2*D6)-((LEN(A6)-LEN(SUBSTITUTE(A6,"_O_","")))/LEN("_O_"))*2-((LEN(A6)-LEN(SUBSTITUTE(A6,"_CHO_","")))/LEN("_CHO_"))*2-((LEN(A6)-LEN(SUBSTITUTE(A6,"_COOH_","")))/LEN("_COOH_"))*2 -> 82 | I6: 1 | J6: =8+((LEN(A6)-LEN(SUBSTITUTE(A6,"_OH_","")))/LEN("_OH_"))*1+((LEN(A6)-LEN(SUBSTITUTE(A6,"_OOH_","")))/LEN("_OOH_"))*2+((LEN(A6)-LEN(SUBSTITUTE(A6,"_O_","")))/LEN("_O_"))*1+((LEN(A6)-LEN(SUBSTITUTE(A6,"_CHO_","")))/LEN("_CHO_"))*1+((LEN(A6)-LEN(SUBSTITUTE(A6,"_COOH_","")))/LEN("_COOH_"))*2 -> 8 | K6: 1 | L6: =CONCATENATE("C",G6,"H",H6,"N",I6,"O",J6,"P",K6) -> C42H82N1O8P1 | M6: =(G6*12.0107)+(H6*1.00794)+(I6*14.0067)+(J6*15.9994)+(K6*30.973762) -> 760.076142 | N6: =(G6*12)+(H6*1.0078246)+(I6*14.003074)+(J6*15.994915)+(K6*30.973763) -> 759.5777742 | O6: =N6+1.0078246-0.00055 -> 760.5850488 | P6: =O6-18.01057-0.00055 -> 742.5739288 | Q6: =N6+18.03437-0.00055 -> 777.6115942 | R6: =N6+22.98977-0.00055 -> 782.5669942 | S6: =N6+38.96371-0.00055 -> 798.5409342 | T6: =N6+7.01601-0.00055 -> 766.5932342 | U6: =N6-1.0078246+0.00055 -> 758.5704996 | V6: =N6+44.99767+0.00055 -> 804.5759942 | W6: =N6+59.01332+0.00055 -> 818.5916442

Sheet LPA
A1: Lipid | B1: Sum Composition | G1: #C | H1: #H | I1: #O | J1: #P | L1: Formula | M1: Molecular Weight | N1: Neutral Mass | O1: [M+H]+ | P1: [M+H-H2O]+ | Q1: [M+NH4]+ | R1: [M+Na]+ | S1: [M+K]+ | T1: [M+Li]+ | U1: [M-H]- | V1: [M+HCOO]- | W1: [M+CH3COO]-
A2: LPA 16:0 | B2: =IF(ISNUMBER(SEARCH("(",A2)),IF(ISNUMBER(SEARCH("/",A2)),CONCATENATE(MID(A2,1,2)," ",(SUM(MID(A2,FIND("(",A2)+1,FIND(":",A2)-FIND("(",A2)-1),MID(A2,FIND("/",A2)+1,FIND(":",A2,FIND("/",A2))-FIND("/",A2)-1))),":",SUM(MID(A2,FIND(":",A2)+1,FIND("/",A2)-FIND(":",A2)-1),MID(A2,FIND(":",A2,FIND("/",A2))+1,FIND(")",A2)-FIND(":",A2,FIND("/",A2))-1)),MID(A2,(FIND(")",A2)+1),100)),CONCATENATE(MID(A2,1,2)," ",(SUM(MID(A2,FIND("(",A2)+1,FIND(":",A2)-FIND("(",A2)-1),MID(A2,FIND("_",A2)+1,FIND(":",A2,FIND("_",A2))-FIND("_",A2)-1))),":",SUM(MID(A2,FIND(":",A2)+1,FIND("_",A2)-FIND(":",A2)-1),MID(A2,FIND(":",A2,FIND("_",A2))+1,FIND(")",A2)-FIND(":",A2,FIND("_",A2))-1)),MID(A2,(FIND(")",A2)+1),100))),A2) -> LPA 16:0 | C2: =MID(B2,5,FIND(":",B2)-FIND(" ",B2)-1) -> 16 | D2: =IF(ISNUMBER(SEARCH("__",B2)),MID(B2,FIND(":",B2)+1,FIND("__",B2)-FIND(":",B2)-1),MID(B2,FIND(":",B2)+1,7)) -> 0 | G2: =C2+3 -> 19 | H2: =2*G2-(2*D2)+1-((LEN(A2)-LEN(SUBSTITUTE(A2,"_O_","")))/LEN("_O_"))*2-((LEN(A2)-LEN(SUBSTITUTE(A2,"_CHO_","")))/LEN("_CHO_"))*2-((LEN(A2)-LEN(SUBSTITUTE(A2,"_COOH_","")))/LEN("_COOH_"))*2 -> 39 | I2: =7+((LEN(A2)-LEN(SUBSTITUTE(A2,"_OH_","")))/LEN("_OH_"))*1+((LEN(A2)-LEN(SUBSTITUTE(A2,"_OOH_","")))/LEN("_OOH_"))*2+((LEN(A2)-LEN(SUBSTITUTE(A2,"_O_","")))/LEN("_O_"))*1+((LEN(A2)-LEN(SUBSTITUTE(A2,"_CHO_","")))/LEN("_CHO_"))*1+((LEN(A2)-LEN(SUBSTITUTE(A2,"_COOH_","")))/LEN("_COOH_"))*2 -> 7 | J2: 1 | L2: =CONCATENATE("C",G2,"H",H2,"O",I2,"P",J2) -> C19H39O7P1 | M2: =(G2*12.0107)+(H2*1.00794)+(I2*15.9994)+(J2*30.973762) -> 410.482522 | N2: =(G2*12)+(H2*1.0078246)+(I2*15.994915)+(J2*30.973763) -> 410.2433274 | O2: =N2+1.0078246-0.00055 -> 411.250602 | P2: =O2-18.01057-0.00055 -> 393.239482 | Q2: =N2+18.03437-0.00055 -> 428.2771474 | R2: =N2+22.98977-0.00055 -> 433.2325474 | S2: =N2+38.96371-0.00055 -> 449.2064874 | T2: =N2+7.01601-0.00055 -> 417.2587874 | U2: =N2-1.0078246+0.00055 -> 409.2360528 | V2: =N2+44.99767+0.00055 -> 455.2415474 | W2: =N2+59.01332+0.00055 -> 469.2571974
A3: LPA 18:0 | B3: =IF(ISNUMBER(SEARCH("(",A3)),IF(ISNUMBER(SEARCH("/",A3)),CONCATENATE(MID(A3,1,2)," ",(SUM(MID(A3,FIND("(",A3)+1,FIND(":",A3)-FIND("(",A3)-1),MID(A3,FIND("/",A3)+1,FIND(":",A3,FIND("/",A3))-FIND("/",A3)-1))),":",SUM(MID(A3,FIND(":",A3)+1,FIND("/",A3)-FIND(":",A3)-1),MID(A3,FIND(":",A3,FIND("/",A3))+1,FIND(")",A3)-FIND(":",A3,FIND("/",A3))-1)),MID(A3,(FIND(")",A3)+1),100)),CONCATENATE(MID(A3,1,2)," ",(SUM(MID(A3,FIND("(",A3)+1,FIND(":",A3)-FIND("(",A3)-1),MID(A3,FIND("_",A3)+1,FIND(":",A3,FIND("_",A3))-FIND("_",A3)-1))),":",SUM(MID(A3,FIND(":",A3)+1,FIND("_",A3)-FIND(":",A3)-1),MID(A3,FIND(":",A3,FIND("_",A3))+1,FIND(")",A3)-FIND(":",A3,FIND("_",A3))-1)),MID(A3,(FIND(")",A3)+1),100))),A3) -> LPA 18:0 | C3: =MID(B3,5,FIND(":",B3)-FIND(" ",B3)-1) -> 18 | D3: =IF(ISNUMBER(SEARCH("__",B3)),MID(B3,FIND(":",B3)+1,FIND("__",B3)-FIND(":",B3)-1),MID(B3,FIND(":",B3)+1,7)) -> 0 | G3: =C3+3 -> 21 | H3: =2*G3-(2*D3)+1-((LEN(A3)-LEN(SUBSTITUTE(A3,"_O_","")))/LEN("_O_"))*2-((LEN(A3)-LEN(SUBSTITUTE(A3,"_CHO_","")))/LEN("_CHO_"))*2-((LEN(A3)-LEN(SUBSTITUTE(A3,"_COOH_","")))/LEN("_COOH_"))*2 -> 43 | I3: =7+((LEN(A3)-LEN(SUBSTITUTE(A3,"_OH_","")))/LEN("_OH_"))*1+((LEN(A3)-LEN(SUBSTITUTE(A3,"_OOH_","")))/LEN("_OOH_"))*2+((LEN(A3)-LEN(SUBSTITUTE(A3,"_O_","")))/LEN("_O_"))*1+((LEN(A3)-LEN(SUBSTITUTE(A3,"_CHO_","")))/LEN("_CHO_"))*1+((LEN(A3)-LEN(SUBSTITUTE(A3,"_COOH_","")))/LEN("_COOH_"))*2 -> 7 | J3: 1 | L3: =CONCATENATE("C",G3,"H",H3,"O",I3,"P",J3) -> C21H43O7P1 | M3: =(G3*12.0107)+(H3*1.00794)+(I3*15.9994)+(J3*30.973762) -> 438.535682 | N3: =(G3*12)+(H3*1.0078246)+(I3*15.994915)+(J3*30.973763) -> 438.2746258 | O3: =N3+1.0078246-0.00055 -> 439.2819004 | P3: =O3-18.01057-0.00055 -> 421.2707804 | Q3: =N3+18.03437-0.00055 -> 456.3084458 | R3: =N3+22.98977-0.00055 -> 461.2638458 | S3: =N3+38.96371-0.00055 -> 477.2377858 | T3: =N3+7.01601-0.00055 -> 445.2900858 | U3: =N3-1.0078246+0.00055 -> 437.2673512 | V3: =N3+44.99767+0.00055 -> 483.2728458 | W3: =N3+59.01332+0.00055 -> 497.2884958

Sheet PA
A1: Lipid | B1: Sum Composition | G1: #C | H1: #H | I1: #O | J1: #P | L1: Formula | M1: Molecular Weight | N1: Neutral Mass | O1: [M+H]+ | P1: [M+H-H2O]+ | Q1: [M+NH4]+ | R1: [M+Na]+ | S1: [M+K]+ | T1: [M+Li]+ | U1: [M-H]- | V1: [M+HCOO]- | W1: [M+CH3COO]-
A2: PA 48:7 | B2: =IF(ISNUMBER(SEARCH("(",A2)),IF(ISNUMBER(SEARCH("/",A2)),CONCATENATE(MID(A2,1,2)," ",(SUM(MID(A2,FIND("(",A2)+1,FIND(":",A2)-FIND("(",A2)-1),MID(A2,FIND("/",A2)+1,FIND(":",A2,FIND("/",A2))-FIND("/",A2)-1))),":",SUM(MID(A2,FIND(":",A2)+1,FIND("/",A2)-FIND(":",A2)-1),MID(A2,FIND(":",A2,FIND("/",A2))+1,FIND(")",A2)-FIND(":",A2,FIND("/",A2))-1)),MID(A2,(FIND(")",A2)+1),100)),CONCATENATE(MID(A2,1,2)," ",(SUM(MID(A2,FIND("(",A2)+1,FIND(":",A2)-FIND("(",A2)-1),MID(A2,FIND("_",A2)+1,FIND(":",A2,FIND("_",A2))-FIND("_",A2)-1))),":",SUM(MID(A2,FIND(":",A2)+1,FIND("_",A2)-FIND(":",A2)-1),MID(A2,FIND(":",A2,FIND("_",A2))+1,FIND(")",A2)-FIND(":",A2,FIND("_",A2))-1)),MID(A2,(FIND(")",A2)+1),100))),A2) -> PA 48:7 | C2: =MID(B2,4,FIND(":",B2)-FIND(" ",B2)-1) -> 48 | D2: =IF(ISNUMBER(SEARCH("__",B2)),MID(B2,FIND(":",B2)+1,FIND("__",B2)-FIND(":",B2)-1),MID(B2,FIND(":",B2)+1,7)) -> 7 | G2: =C2+3 -> 51 | H2: =2*G2-(2*D2)-1-((LEN(A2)-LEN(SUBSTITUTE(A2,"_O_","")))/LEN("_O_"))*2-((LEN(A2)-LEN(SUBSTITUTE(A2,"_CHO_","")))/LEN("_CHO_"))*2-((LEN(A2)-LEN(SUBSTITUTE(A2,"_COOH_","")))/LEN("_COOH_"))*2 -> 87 | I2: =8+((LEN(A2)-LEN(SUBSTITUTE(A2,"_OH_","")))/LEN("_OH_"))*1+((LEN(A2)-LEN(SUBSTITUTE(A2,"_OOH_","")))/LEN("_OOH_"))*2+((LEN(A2)-LEN(SUBSTITUTE(A2,"_O_","")))/LEN("_O_"))*1+((LEN(A2)-LEN(SUBSTITUTE(A2,"_CHO_","")))/LEN("_CHO_"))*1+((LEN(A2)-LEN(SUBSTITUTE(A2,"_COOH_","")))/LEN("_COOH_"))*2 -> 8 | J2: 1 | L2: =CONCATENATE("C",G2,"H",H2,"O",I2,"P",J2) -> C51H87O8P1 | M2: =(G2*12.0107)+(H2*1.00794)+(I2*15.9994)+(J2*30.973762) -> 859.205442 | N2: =(G2*12)+(H2*1.0078246)+(I2*15.994915)+(J2*30.973763) -> 858.6138232 | O2: =N2+1.0078246-0.00055 -> 859.6210978 | P2: =O2-18.01057-0.00055 -> 841.6099778 | Q2: =N2+18.03437-0.00055 -> 876.6476432 | R2: =N2+22.98977-0.00055 -> 881.6030432 | S2: =N2+38.96371-0.00055 -> 897.5769832 | T2: =N2+7.01601-0.00055 -> 865.6292832 | U2: =N2-1.0078246+0.00055 -> 857.6065486 | V2: =N2+44.99767+0.00055 -> 903.6120432 | W2: =N2+59.01332+0.00055 -> 917.6276932
A3: PA 32:0 | B3: =IF(ISNUMBER(SEARCH("(",A3)),IF(ISNUMBER(SEARCH("/",A3)),CONCATENATE(MID(A3,1,2)," ",(SUM(MID(A3,FIND("(",A3)+1,FIND(":",A3)-FIND("(",A3)-1),MID(A3,FIND("/",A3)+1,FIND(":",A3,FIND("/",A3))-FIND("/",A3)-1))),":",SUM(MID(A3,FIND(":",A3)+1,FIND("/",A3)-FIND(":",A3)-1),MID(A3,FIND(":",A3,FIND("/",A3))+1,FIND(")",A3)-FIND(":",A3,FIND("/",A3))-1)),MID(A3,(FIND(")",A3)+1),100)),CONCATENATE(MID(A3,1,2)," ",(SUM(MID(A3,FIND("(",A3)+1,FIND(":",A3)-FIND("(",A3)-1),MID(A3,FIND("_",A3)+1,FIND(":",A3,FIND("_",A3))-FIND("_",A3)-1))),":",SUM(MID(A3,FIND(":",A3)+1,FIND("_",A3)-FIND(":",A3)-1),MID(A3,FIND(":",A3,FIND("_",A3))+1,FIND(")",A3)-FIND(":",A3,FIND("_",A3))-1)),MID(A3,(FIND(")",A3)+1),100))),A3) -> PA 32:0 | C3: =MID(B3,4,FIND(":",B3)-FIND(" ",B3)-1) -> 32 | D3: =IF(ISNUMBER(SEARCH("__",B3)),MID(B3,FIND(":",B3)+1,FIND("__",B3)-FIND(":",B3)-1),MID(B3,FIND(":",B3)+1,7)) -> 0 | G3: =C3+3 -> 35 | H3: =2*G3-(2*D3)-1-((LEN(A3)-LEN(SUBSTITUTE(A3,"_O_","")))/LEN("_O_"))*2-((LEN(A3)-LEN(SUBSTITUTE(A3,"_CHO_","")))/LEN("_CHO_"))*2-((LEN(A3)-LEN(SUBSTITUTE(A3,"_COOH_","")))/LEN("_COOH_"))*2 -> 69 | I3: =8+((LEN(A3)-LEN(SUBSTITUTE(A3,"_OH_","")))/LEN("_OH_"))*1+((LEN(A3)-LEN(SUBSTITUTE(A3,"_OOH_","")))/LEN("_OOH_"))*2+((LEN(A3)-LEN(SUBSTITUTE(A3,"_O_","")))/LEN("_O_"))*1+((LEN(A3)-LEN(SUBSTITUTE(A3,"_CHO_","")))/LEN("_CHO_"))*1+((LEN(A3)-LEN(SUBSTITUTE(A3,"_COOH_","")))/LEN("_COOH_"))*2 -> 8 | J3: 1 | L3: =CONCATENATE("C",G3,"H",H3,"O",I3,"P",J3) -> C35H69O8P1 | M3: =(G3*12.0107)+(H3*1.00794)+(I3*15.9994)+(J3*30.973762) -> 648.891322 | N3: =(G3*12)+(H3*1.0078246)+(I3*15.994915)+(J3*30.973763) -> 648.4729804 | O3: =N3+1.0078246-0.00055 -> 649.480255 | P3: =O3-18.01057-0.00055 -> 631.469135 | Q3: =N3+18.03437-0.00055 -> 666.5068004 | R3: =N3+22.98977-0.00055 -> 671.4622004 | S3: =N3+38.96371-0.00055 -> 687.4361404 | T3: =N3+7.01601-0.00055 -> 655.4884404 | U3: =N3-1.0078246+0.00055 -> 647.4657058 | V3: =N3+44.99767+0.00055 -> 693.4712004 | W3: =N3+59.01332+0.00055 -> 707.4868504
A4: PA(16:0/18:1)__O__CHO__ | B4: =IF(ISNUMBER(SEARCH("(",A4)),IF(ISNUMBER(SEARCH("/",A4)),CONCATENATE(MID(A4,1,2)," ",(SUM(MID(A4,FIND("(",A4)+1,FIND(":",A4)-FIND("(",A4)-1),MID(A4,FIND("/",A4)+1,FIND(":",A4,FIND("/",A4))-FIND("/",A4)-1))),":",SUM(MID(A4,FIND(":",A4)+1,FIND("/",A4)-FIND(":",A4)-1),MID(A4,FIND(":",A4,FIND("/",A4))+1,FIND(")",A4)-FIND(":",A4,FIND("/",A4))-1)),MID(A4,(FIND(")",A4)+1),100)),CONCATENATE(MID(A4,1,2)," ",(SUM(MID(A4,FIND("(",A4)+1,FIND(":",A4)-FIND("(",A4)-1),MID(A4,FIND("_",A4)+1,FIND(":",A4,FIND("_",A4))-FIND("_",A4)-1))),":",SUM(MID(A4,FIND(":",A4)+1,FIND("_",A4)-FIND(":",A4)-1),MID(A4,FIND(":",A4,FIND("_",A4))+1,FIND(")",A4)-FIND(":",A4,FIND("_",A4))-1)),MID(A4,(FIND(")",A4)+1),100))),A4) -> PA 34:1__O__CHO__ | C4: =MID(B4,4,FIND(":",B4)-FIND(" ",B4)-1) -> 34 | D4: =IF(ISNUMBER(SEARCH("__",B4)),MID(B4,FIND(":",B4)+1,FIND("__",B4)-FIND(":",B4)-1),MID(B4,FIND(":",B4)+1,7)) -> 1 | G4: =C4+3 -> 37 | H4: =2*G4-(2*D4)-1-((LEN(A4)-LEN(SUBSTITUTE(A4,"_O_","")))/LEN("_O_"))*2-((LEN(A4)-LEN(SUBSTITUTE(A4,"_CHO_","")))/LEN("_CHO_"))*2-((LEN(A4)-LEN(SUBSTITUTE(A4,"_COOH_","")))/LEN("_COOH_"))*2 -> 67 | I4: =8+((LEN(A4)-LEN(SUBSTITUTE(A4,"_OH_","")))/LEN("_OH_"))*1+((LEN(A4)-LEN(SUBSTITUTE(A4,"_OOH_","")))/LEN("_OOH_"))*2+((LEN(A4)-LEN(SUBSTITUTE(A4,"_O_","")))/LEN("_O_"))*1+((LEN(A4)-LEN(SUBSTITUTE(A4,"_CHO_","")))/LEN("_CHO_"))*1+((LEN(A4)-LEN(SUBSTITUTE(A4,"_COOH_","")))/LEN("_COOH_"))*2 -> 10 | J4: 1 | L4: =CONCATENATE("C",G4,"H",H4,"O",I4,"P",J4) -> C37H67O10P1 | M4: =(G4*12.0107)+(H4*1.00794)+(I4*15.9994)+(J4*30.973762) -> 702.895642 | N4: 702.4471612 | O4: =N4+1.0078246-0.00055 -> 703.4544358 | P4: =O4-18.01057-0.00055 -> 685.4433158 | Q4: =N4+18.03437-0.00055 -> 720.4809812 | R4: =N4+22.98977-0.00055 -> 725.4363812 | S4: =N4+38.96371-0.00055 -> 741.4103212 | T4: =N4+7.01601-0.00055 -> 709.4626212 | U4: =N4-1.0078246+0.00055 -> 701.4398866 | V4: =N4+44.99767+0.00055 -> 747.4453812 | W4: =N4+59.01332+0.00055 -> 761.4610312
A5: PA(18:1_18:1) | B5: =IF(ISNUMBER(SEARCH("(",A5)),IF(ISNUMBER(SEARCH("/",A5)),CONCATENATE(MID(A5,1,2)," ",(SUM(MID(A5,FIND("(",A5)+1,FIND(":",A5)-FIND("(",A5)-1),MID(A5,FIND("/",A5)+1,FIND(":",A5,FIND("/",A5))-FIND("/",A5)-1))),":",SUM(MID(A5,FIND(":",A5)+1,FIND("/",A5)-FIND(":",A5)-1),MID(A5,FIND(":",A5,FIND("/",A5))+1,FIND(")",A5)-FIND(":",A5,FIND("/",A5))-1)),MID(A5,(FIND(")",A5)+1),100)),CONCATENATE(MID(A5,1,2)," ",(SUM(MID(A5,FIND("(",A5)+1,FIND(":",A5)-FIND("(",A5)-1),MID(A5,FIND("_",A5)+1,FIND(":",A5,FIND("_",A5))-FIND("_",A5)-1))),":",SUM(MID(A5,FIND(":",A5)+1,FIND("_",A5)-FIND(":",A5)-1),MID(A5,FIND(":",A5,FIND("_",A5))+1,FIND(")",A5)-FIND(":",A5,FIND("_",A5))-1)),MID(A5,(FIND(")",A5)+1),100))),A5) -> PA 36:2 | C5: =MID(B5,4,FIND(":",B5)-FIND(" ",B5)-1) -> 36 | D5: =IF(ISNUMBER(SEARCH("__",B5)),MID(B5,FIND(":",B5)+1,FIND("__",B5)-FIND(":",B5)-1),MID(B5,FIND(":",B5)+1,7)) -> 2 | G5: =C5+3 -> 39 | H5: =2*G5-(2*D5)-1-((LEN(A5)-LEN(SUBSTITUTE(A5,"_O_","")))/LEN("_O_"))*2-((LEN(A5)-LEN(SUBSTITUTE(A5,"_CHO_","")))/LEN("_CHO_"))*2-((LEN(A5)-LEN(SUBSTITUTE(A5,"_COOH_","")))/LEN("_COOH_"))*2 -> 73 | I5: =8+((LEN(A5)-LEN(SUBSTITUTE(A5,"_OH_","")))/LEN("_OH_"))*1+((LEN(A5)-LEN(SUBSTITUTE(A5,"_OOH_","")))/LEN("_OOH_"))*2+((LEN(A5)-LEN(SUBSTITUTE(A5,"_O_","")))/LEN("_O_"))*1+((LEN(A5)-LEN(SUBSTITUTE(A5,"_CHO_","")))/LEN("_CHO_"))*1+((LEN(A5)-LEN(SUBSTITUTE(A5,"_COOH_","")))/LEN("_COOH_"))*2 -> 8 | J5: 1 | L5: =CONCATENATE("C",G5,"H",H5,"O",I5,"P",J5) -> C39H73O8P1 | M5: =(G5*12.0107)+(H5*1.00794)+(I5*15.9994)+(J5*30.973762) -> 700.965882 | N5: 700.5042788 | O5: =N5+1.0078246-0.00055 -> 701.5115534 | P5: =O5-18.01057-0.00055 -> 683.5004334 | Q5: =N5+18.03437-0.00055 -> 718.5380988 | R5: =N5+22.98977-0.00055 -> 723.4934988 | S5: =N5+38.96371-0.00055 -> 739.4674388 | T5: =N5+7.01601-0.00055 -> 707.5197388 | U5: =N5-1.0078246+0.00055 -> 699.4970042 | V5: =N5+44.99767+0.00055 -> 745.5024988 | W5: =N5+59.01332+0.00055 -> 759.5181488

Sheet LPE
A1: Lipid | B1: Sum Composition | G1: #C | H1: #H | I1: #N | J1: #O | K1: #P | L1: Formula | M1: Molecular Weight | N1: Neutral Mass | O1: [M+H]+ | P1: [M+H-H2O]+ | Q1: [M+NH4]+ | R1: [M+Na]+ | S1: [M+K]+ | T1: [M+Li]+ | U1: [M-H]- | V1: [M+HCOO]- | W1: [M+CH3COO]-
A2: LPE 12:0 | B2: =IF(ISNUMBER(SEARCH("(",A2)),IF(ISNUMBER(SEARCH("/",A2)),CONCATENATE(MID(A2,1,2)," ",(SUM(MID(A2,FIND("(",A2)+1,FIND(":",A2)-FIND("(",A2)-1),MID(A2,FIND("/",A2)+1,FIND(":",A2,FIND("/",A2))-FIND("/",A2)-1))),":",SUM(MID(A2,FIND(":",A2)+1,FIND("/",A2)-FIND(":",A2)-1),MID(A2,FIND(":",A2,FIND("/",A2))+1,FIND(")",A2)-FIND(":",A2,FIND("/",A2))-1)),MID(A2,(FIND(")",A2)+1),100)),CONCATENATE(MID(A2,1,2)," ",(SUM(MID(A2,FIND("(",A2)+1,FIND(":",A2)-FIND("(",A2)-1),MID(A2,FIND("_",A2)+1,FIND(":",A2,FIND("_",A2))-FIND("_",A2)-1))),":",SUM(MID(A2,FIND(":",A2)+1,FIND("_",A2)-FIND(":",A2)-1),MID(A2,FIND(":",A2,FIND("_",A2))+1,FIND(")",A2)-FIND(":",A2,FIND("_",A2))-1)),MID(A2,(FIND(")",A2)+1),100))),A2) -> LPE 12:0 | C2: =MID(B2,5,FIND(":",B2)-FIND(" ",B2)-1) -> 12 | D2: =IF(ISNUMBER(SEARCH("__",B2)),MID(B2,FIND(":",B2)+1,FIND("__",B2)-FIND(":",B2)-1),MID(B2,FIND(":",B2)+1,7)) -> 0 | G2: =C2+5 -> 17 | H2: =2*G2-(2*D2)+2-((LEN(A2)-LEN(SUBSTITUTE(A2,"_O_","")))/LEN("_O_"))*2-((LEN(A2)-LEN(SUBSTITUTE(A2,"_CHO_","")))/LEN("_CHO_"))*2-((LEN(A2)-LEN(SUBSTITUTE(A2,"_COOH_","")))/LEN("_COOH_"))*2 -> 36 | I2: 1 | J2: =7+((LEN(A2)-LEN(SUBSTITUTE(A2,"_OH_","")))/LEN("_OH_"))*1+((LEN(A2)-LEN(SUBSTITUTE(A2,"_OOH_","")))/LEN("_OOH_"))*2+((LEN(A2)-LEN(SUBSTITUTE(A2,"_O_","")))/LEN("_O_"))*1+((LEN(A2)-LEN(SUBSTITUTE(A2,"_CHO_","")))/LEN("_CHO_"))*1+((LEN(A2)-LEN(SUBSTITUTE(A2,"_COOH_","")))/LEN("_COOH_"))*2 -> 7 | K2: 1 | L2: =CONCATENATE("C",G2,"H",H2,"N",I2,"O",J2,"P",K2) -> C17H36N1O7P1 | M2: =(G2*12.0107)+(H2*1.00794)+(I2*14.0067)+(J2*15.9994)+(K2*30.973762) -> 397.444002 | N2: =(G2*12)+(H2*1.0078246)+(I2*14.003074)+(J2*15.994915)+(K2*30.973763) -> 397.2229276 | O2: =N2+1.0078246-0.00055 -> 398.2302022 | P2: =O2-18.01057-0.00055 -> 380.2190822 | Q2: =N2+18.03437-0.00055 -> 415.2567476 | R2: =N2+22.98977-0.00055 -> 420.2121476 | S2: =N2+38.96371-0.00055 -> 436.1860876 | T2: =N2+7.01601-0.00055 -> 404.2383876 | U2: =N2-1.0078246+0.00055 -> 396.215653 | V2: =N2+44.99767+0.00055 -> 442.2211476 | W2: =N2+59.01332+0.00055 -> 456.2367976
A3: LPE 12:0 | B3: =IF(ISNUMBER(SEARCH("(",A3)),IF(ISNUMBER(SEARCH("/",A3)),CONCATENATE(MID(A3,1,2)," ",(SUM(MID(A3,FIND("(",A3)+1,FIND(":",A3)-FIND("(",A3)-1),MID(A3,FIND("/",A3)+1,FIND(":",A3,FIND("/",A3))-FIND("/",A3)-1))),":",SUM(MID(A3,FIND(":",A3)+1,FIND("/",A3)-FIND(":",A3)-1),MID(A3,FIND(":",A3,FIND("/",A3))+1,FIND(")",A3)-FIND(":",A3,FIND("/",A3))-1)),MID(A3,(FIND(")",A3)+1),100)),CONCATENATE(MID(A3,1,2)," ",(SUM(MID(A3,FIND("(",A3)+1,FIND(":",A3)-FIND("(",A3)-1),MID(A3,FIND("_",A3)+1,FIND(":",A3,FIND("_",A3))-FIND("_",A3)-1))),":",SUM(MID(A3,FIND(":",A3)+1,FIND("_",A3)-FIND(":",A3)-1),MID(A3,FIND(":",A3,FIND("_",A3))+1,FIND(")",A3)-FIND(":",A3,FIND("_",A3))-1)),MID(A3,(FIND(")",A3)+1),100))),A3) -> LPE 12:0 | C3: =MID(B3,5,FIND(":",B3)-FIND(" ",B3)-1) -> 12 | D3: =IF(ISNUMBER(SEARCH("__",B3)),MID(B3,FIND(":",B3)+1,FIND("__",B3)-FIND(":",B3)-1),MID(B3,FIND(":",B3)+1,7)) -> 0 | G3: =C3+5 -> 17 | H3: =2*G3-(2*D3)+2-((LEN(A3)-LEN(SUBSTITUTE(A3,"_O_","")))/LEN("_O_"))*2-((LEN(A3)-LEN(SUBSTITUTE(A3,"_CHO_","")))/LEN("_CHO_"))*2-((LEN(A3)-LEN(SUBSTITUTE(A3,"_COOH_","")))/LEN("_COOH_"))*2 -> 36 | I3: 1 | J3: =7+((LEN(A3)-LEN(SUBSTITUTE(A3,"_OH_","")))/LEN("_OH_"))*1+((LEN(A3)-LEN(SUBSTITUTE(A3,"_OOH_","")))/LEN("_OOH_"))*2+((LEN(A3)-LEN(SUBSTITUTE(A3,"_O_","")))/LEN("_O_"))*1+((LEN(A3)-LEN(SUBSTITUTE(A3,"_CHO_","")))/LEN("_CHO_"))*1+((LEN(A3)-LEN(SUBSTITUTE(A3,"_COOH_","")))/LEN("_COOH_"))*2 -> 7 | K3: 1 | L3: =CONCATENATE("C",G3,"H",H3,"N",I3,"O",J3,"P",K3) -> C17H36N1O7P1 | M3: =(G3*12.0107)+(H3*1.00794)+(I3*14.0067)+(J3*15.9994)+(K3*30.973762) -> 397.444002 | N3: =(G3*12)+(H3*1.0078246)+(I3*14.003074)+(J3*15.994915)+(K3*30.973763) -> 397.2229276 | O3: =N3+1.0078246-0.00055 -> 398.2302022 | P3: =O3-18.01057-0.00055 -> 380.2190822 | Q3: =N3+18.03437-0.00055 -> 415.2567476 | R3: =N3+22.98977-0.00055 -> 420.2121476 | S3: =N3+38.96371-0.00055 -> 436.1860876 | T3: =N3+7.01601-0.00055 -> 404.2383876 | U3: =N3-1.0078246+0.00055 -> 396.215653 | V3: =N3+44.99767+0.00055 -> 442.2211476 | W3: =N3+59.01332+0.00055 -> 456.2367976
A4: LPE 14:0 | B4: =IF(ISNUMBER(SEARCH("(",A4)),IF(ISNUMBER(SEARCH("/",A4)),CONCATENATE(MID(A4,1,2)," ",(SUM(MID(A4,FIND("(",A4)+1,FIND(":",A4)-FIND("(",A4)-1),MID(A4,FIND("/",A4)+1,FIND(":",A4,FIND("/",A4))-FIND("/",A4)-1))),":",SUM(MID(A4,FIND(":",A4)+1,FIND("/",A4)-FIND(":",A4)-1),MID(A4,FIND(":",A4,FIND("/",A4))+1,FIND(")",A4)-FIND(":",A4,FIND("/",A4))-1)),MID(A4,(FIND(")",A4)+1),100)),CONCATENATE(MID(A4,1,2)," ",(SUM(MID(A4,FIND("(",A4)+1,FIND(":",A4)-FIND("(",A4)-1),MID(A4,FIND("_",A4)+1,FIND(":",A4,FIND("_",A4))-FIND("_",A4)-1))),":",SUM(MID(A4,FIND(":",A4)+1,FIND("_",A4)-FIND(":",A4)-1),MID(A4,FIND(":",A4,FIND("_",A4))+1,FIND(")",A4)-FIND(":",A4,FIND("_",A4))-1)),MID(A4,(FIND(")",A4)+1),100))),A4) -> LPE 14:0 | C4: =MID(B4,5,FIND(":",B4)-FIND(" ",B4)-1) -> 14 | D4: =IF(ISNUMBER(SEARCH("__",B4)),MID(B4,FIND(":",B4)+1,FIND("__",B4)-FIND(":",B4)-1),MID(B4,FIND(":",B4)+1,7)) -> 0 | G4: 19 | H4: =2*G4-(2*D4)+2-((LEN(A4)-LEN(SUBSTITUTE(A4,"_O_","")))/LEN("_O_"))*2-((LEN(A4)-LEN(SUBSTITUTE(A4,"_CHO_","")))/LEN("_CHO_"))*2-((LEN(A4)-LEN(SUBSTITUTE(A4,"_COOH_","")))/LEN("_COOH_"))*2 -> 40 | I4: 1 | J4: =7+((LEN(A4)-LEN(SUBSTITUTE(A4,"_OH_","")))/LEN("_OH_"))*1+((LEN(A4)-LEN(SUBSTITUTE(A4,"_OOH_","")))/LEN("_OOH_"))*2+((LEN(A4)-LEN(SUBSTITUTE(A4,"_O_","")))/LEN("_O_"))*1+((LEN(A4)-LEN(SUBSTITUTE(A4,"_CHO_","")))/LEN("_CHO_"))*1+((LEN(A4)-LEN(SUBSTITUTE(A4,"_COOH_","")))/LEN("_COOH_"))*2 -> 7 | K4: 1 | L4: C19H40N1O7P1 | M4: =(G4*12.0107)+(H4*1.00794)+(I4*14.0067)+(J4*15.9994)+(K4*30.973762) -> 425.497162 | N4: 425.254226 | O4: =N4+1.0078246-0.00055 -> 426.2615006 | P4: =O4-18.01057-0.00055 -> 408.2503806 | Q4: =N4+18.03437-0.00055 -> 443.288046 | R4: =N4+22.98977-0.00055 -> 448.243446 | S4: =N4+38.96371-0.00055 -> 464.217386 | T4: =N4+7.01601-0.00055 -> 432.269686 | U4: =N4-1.0078246+0.00055 -> 424.2469514 | V4: =N4+44.99767+0.00055 -> 470.252446 | W4: =N4+59.01332+0.00055 -> 484.268096

Sheet PE
A1: Lipid | B1: Sum Composition | G1: #C | H1: #H | I1: #N | J1: #O | K1: #P | L1: Formula | M1: Molecular Weight | N1: Neutral Mass | O1: [M+H]+ | P1: [M+H-H2O]+ | Q1: [M+NH4]+ | R1: [M+Na]+ | S1: [M+K]+ | T1: [M+Li]+ | U1: [M-H]- | V1: [M+HCOO]- | W1: [M+CH3COO]-
A2: PE 19:2 | B2: =IF(ISNUMBER(SEARCH("(",A2)),IF(ISNUMBER(SEARCH("/",A2)),CONCATENATE(MID(A2,1,2)," ",(SUM(MID(A2,FIND("(",A2)+1,FIND(":",A2)-FIND("(",A2)-1),MID(A2,FIND("/",A2)+1,FIND(":",A2,FIND("/",A2))-FIND("/",A2)-1))),":",SUM(MID(A2,FIND(":",A2)+1,FIND("/",A2)-FIND(":",A2)-1),MID(A2,FIND(":",A2,FIND("/",A2))+1,FIND(")",A2)-FIND(":",A2,FIND("/",A2))-1)),MID(A2,(FIND(")",A2)+1),100)),CONCATENATE(MID(A2,1,2)," ",(SUM(MID(A2,FIND("(",A2)+1,FIND(":",A2)-FIND("(",A2)-1),MID(A2,FIND("_",A2)+1,FIND(":",A2,FIND("_",A2))-FIND("_",A2)-1))),":",SUM(MID(A2,FIND(":",A2)+1,FIND("_",A2)-FIND(":",A2)-1),MID(A2,FIND(":",A2,FIND("_",A2))+1,FIND(")",A2)-FIND(":",A2,FIND("_",A2))-1)),MID(A2,(FIND(")",A2)+1),100))),A2) -> PE 19:2 | C2: =MID(B2,4,FIND(":",B2)-FIND(" ",B2)-1) -> 19 | D2: =IF(ISNUMBER(SEARCH("__",B2)),MID(B2,FIND(":",B2)+1,FIND("__",B2)-FIND(":",B2)-1),MID(B2,FIND(":",B2)+1,7)) -> 2 | E2: =MID(A2,5,1) -> 9 | G2: =C2+5 -> 24 | H2: =2*G2-(2*D2)-((LEN(A2)-LEN(SUBSTITUTE(A2,"_O_","")))/LEN("_O_"))*2-((LEN(A2)-LEN(SUBSTITUTE(A2,"_CHO_","")))/LEN("_CHO_"))*2-((LEN(A2)-LEN(SUBSTITUTE(A2,"_COOH_","")))/LEN("_COOH_"))*2 -> 44 | I2: 1 | J2: =8+((LEN(A2)-LEN(SUBSTITUTE(A2,"_OH_","")))/LEN("_OH_"))*1+((LEN(A2)-LEN(SUBSTITUTE(A2,"_OOH_","")))/LEN("_OOH_"))*2+((LEN(A2)-LEN(SUBSTITUTE(A2,"_O_","")))/LEN("_O_"))*1+((LEN(A2)-LEN(SUBSTITUTE(A2,"_CHO_","")))/LEN("_CHO_"))*1+((LEN(A2)-LEN(SUBSTITUTE(A2,"_COOH_","")))/LEN("_COOH_"))*2 -> 8 | K2: 1 | L2: =CONCATENATE("C",G2,"H",H2,"N",I2,"O",J2,"P",K2) -> C24H44N1O8P1 | M2: =(G2*12.0107)+(H2*1.00794)+(I2*14.0067)+(J2*15.9994)+(K2*30.973762) -> 505.581822 | N2: =(G2*12)+(H2*1.0078246)+(I2*14.003074)+(J2*15.994915)+(K2*30.973763) -> 505.2804394 | O2: =N2+1.0078246-0.00055 -> 506.287714 | P2: =O2-18.01057-0.00055 -> 488.276594 | Q2: =N2+18.03437-0.00055 -> 523.3142594 | R2: =N2+22.98977-0.00055 -> 528.2696594 | S2: =N2+38.96371-0.00055 -> 544.2435994 | T2: =N2+7.01601-0.00055 -> 512.2958994 | U2: =N2-1.0078246+0.00055 -> 504.2731648 | V2: =N2+44.99767+0.00055 -> 550.2786594 | W2: =N2+59.01332+0.00055 -> 564.2943094
A3: PE(18:0/18:2)__CHO__ | B3: =IF(ISNUMBER(SEARCH("(",A3)),IF(ISNUMBER(SEARCH("/",A3)),CONCATENATE(MID(A3,1,2)," ",(SUM(MID(A3,FIND("(",A3)+1,FIND(":",A3)-FIND("(",A3)-1),MID(A3,FIND("/",A3)+1,FIND(":",A3,FIND("/",A3))-FIND("/",A3)-1))),":",SUM(MID(A3,FIND(":",A3)+1,FIND("/",A3)-FIND(":",A3)-1),MID(A3,FIND(":",A3,FIND("/",A3))+1,FIND(")",A3)-FIND(":",A3,FIND("/",A3))-1)),MID(A3,(FIND(")",A3)+1),100)),CONCATENATE(MID(A3,1,2)," ",(SUM(MID(A3,FIND("(",A3)+1,FIND(":",A3)-FIND("(",A3)-1),MID(A3,FIND("_",A3)+1,FIND(":",A3,FIND("_",A3))-FIND("_",A3)-1))),":",SUM(MID(A3,FIND(":",A3)+1,FIND("_",A3)-FIND(":",A3)-1),MID(A3,FIND(":",A3,FIND("_",A3))+1,FIND(")",A3)-FIND(":",A3,FIND("_",A3))-1)),MID(A3,(FIND(")",A3)+1),100))),A3) -> PE 36:2__CHO__ | C3: =MID(B3,4,FIND(":",B3)-FIND(" ",B3)-1) -> 36 | D3: =IF(ISNUMBER(SEARCH("__",B3)),MID(B3,FIND(":",B3)+1,FIND("__",B3)-FIND(":",B3)-1),MID(B3,FIND(":",B3)+1,7)) -> 2 | E3: =MID(A3,5,1) -> 8 | G3: =C3+5 -> 41 | H3: =2*G3-(2*D3)-((LEN(A3)-LEN(SUBSTITUTE(A3,"_O_","")))/LEN("_O_"))*2-((LEN(A3)-LEN(SUBSTITUTE(A3,"_CHO_","")))/LEN("_CHO_"))*2-((LEN(A3)-LEN(SUBSTITUTE(A3,"_COOH_","")))/LEN("_COOH_"))*2 -> 76 | I3: 1 | J3: =8+((LEN(A3)-LEN(SUBSTITUTE(A3,"_OH_","")))/LEN("_OH_"))*1+((LEN(A3)-LEN(SUBSTITUTE(A3,"_OOH_","")))/LEN("_OOH_"))*2+((LEN(A3)-LEN(SUBSTITUTE(A3,"_O_","")))/LEN("_O_"))*1+((LEN(A3)-LEN(SUBSTITUTE(A3,"_CHO_","")))/LEN("_CHO_"))*1+((LEN(A3)-LEN(SUBSTITUTE(A3,"_COOH_","")))/LEN("_COOH_"))*2 -> 9 | K3: 1 | L3: =CONCATENATE("C",G3,"H",H3,"N",I3,"O",J3,"P",K3) -> C41H76N1O9P1 | M3: =(G3*12.0107)+(H3*1.00794)+(I3*14.0067)+(J3*15.9994)+(K3*30.973762) -> 758.017202 | N3: =(G3*12)+(H3*1.0078246)+(I3*14.003074)+(J3*15.994915)+(K3*30.973763) -> 757.5257416 | O3: =N3+1.0078246-0.00055 -> 758.5330162 | P3: =O3-18.01057-0.00055 -> 740.5218962 | Q3: =N3+18.03437-0.00055 -> 775.5595616 | R3: =N3+22.98977-0.00055 -> 780.5149616 | S3: =N3+38.96371-0.00055 -> 796.4889016 | T3: =N3+7.01601-0.00055 -> 764.5412016 | U3: =N3-1.0078246+0.00055 -> 756.518467 | V3: =N3+44.99767+0.00055 -> 802.5239616 | W3: =N3+59.01332+0.00055 -> 816.5396116
A4: PE(16:0_18:1) | B4: =IF(ISNUMBER(SEARCH("(",A4)),IF(ISNUMBER(SEARCH("/",A4)),CONCATENATE(MID(A4,1,2)," ",(SUM(MID(A4,FIND("(",A4)+1,FIND(":",A4)-FIND("(",A4)-1),MID(A4,FIND("/",A4)+1,FIND(":",A4,FIND("/",A4))-FIND("/",A4)-1))),":",SUM(MID(A4,FIND(":",A4)+1,FIND("/",A4)-FIND(":",A4)-1),MID(A4,FIND(":",A4,FIND("/",A4))+1,FIND(")",A4)-FIND(":",A4,FIND("/",A4))-1)),MID(A4,(FIND(")",A4)+1),100)),CONCATENATE(MID(A4,1,2)," ",(SUM(MID(A4,FIND("(",A4)+1,FIND(":",A4)-FIND("(",A4)-1),MID(A4,FIND("_",A4)+1,FIND(":",A4,FIND("_",A4))-FIND("_",A4)-1))),":",SUM(MID(A4,FIND(":",A4)+1,FIND("_",A4)-FIND(":",A4)-1),MID(A4,FIND(":",A4,FIND("_",A4))+1,FIND(")",A4)-FIND(":",A4,FIND("_",A4))-1)),MID(A4,(FIND(")",A4)+1),100))),A4) -> PE 34:1 | C4: =MID(B4,4,FIND(":",B4)-FIND(" ",B4)-1) -> 34 | D4: =IF(ISNUMBER(SEARCH("__",B4)),MID(B4,FIND(":",B4)+1,FIND("__",B4)-FIND(":",B4)-1),MID(B4,FIND(":",B4)+1,7)) -> 1 | E4: =MID(A4,5,1) -> 6 | G4: =C4+5 -> 39 | H4: =2*G4-(2*D4)-((LEN(A4)-LEN(SUBSTITUTE(A4,"_O_","")))/LEN("_O_"))*2-((LEN(A4)-LEN(SUBSTITUTE(A4,"_CHO_","")))/LEN("_CHO_"))*2-((LEN(A4)-LEN(SUBSTITUTE(A4,"_COOH_","")))/LEN("_COOH_"))*2 -> 76 | I4: 1 | J4: =8+((LEN(A4)-LEN(SUBSTITUTE(A4,"_OH_","")))/LEN("_OH_"))*1+((LEN(A4)-LEN(SUBSTITUTE(A4,"_OOH_","")))/LEN("_OOH_"))*2+((LEN(A4)-LEN(SUBSTITUTE(A4,"_O_","")))/LEN("_O_"))*1+((LEN(A4)-LEN(SUBSTITUTE(A4,"_CHO_","")))/LEN("_CHO_"))*1+((LEN(A4)-LEN(SUBSTITUTE(A4,"_COOH_","")))/LEN("_COOH_"))*2 -> 8 | K4: 1 | L4: =CONCATENATE("C",G4,"H",H4,"N",I4,"O",J4,"P",K4) -> C39H76N1O8P1 | M4: =(G4*12.0107)+(H4*1.00794)+(I4*14.0067)+(J4*15.9994)+(K4*30.973762) -> 717.996402 | N4: =(G4*12)+(H4*1.0078246)+(I4*14.003074)+(J4*15.994915)+(K4*30.973763) -> 717.5308266 | O4: =N4+1.0078246-0.00055 -> 718.5381012 | P4: =O4-18.01057-0.00055 -> 700.5269812 | Q4: =N4+18.03437-0.00055 -> 735.5646466 | R4: =N4+22.98977-0.00055 -> 740.5200466 | S4: =N4+38.96371-0.00055 -> 756.4939866 | T4: =N4+7.01601-0.00055 -> 724.5462866 | U4: =N4-1.0078246+0.00055 -> 716.523552 | V4: =N4+44.99767+0.00055 -> 762.5290466 | W4: =N4+59.01332+0.00055 -> 776.5446966

Sheet LPG
A1: Lipid | B1: Sum Composition | G1: #C | H1: #H | I1: #O | J1: #P | L1: Formula | M1: Molecular Weight | N1: Neutral Mass | O1: [M+H]+ | P1: [M+H-H2O]+ | Q1: [M+NH4]+ | R1: [M+Na]+ | S1: [M+K]+ | T1: [M+Li]+ | U1: [M-H]- | V1: [M+HCOO]- | W1: [M+CH3COO]-
A2: LPG 16:0__O__ | B2: =IF(ISNUMBER(SEARCH("(",A2)),IF(ISNUMBER(SEARCH("/",A2)),CONCATENATE(MID(A2,1,2)," ",(SUM(MID(A2,FIND("(",A2)+1,FIND(":",A2)-FIND("(",A2)-1),MID(A2,FIND("/",A2)+1,FIND(":",A2,FIND("/",A2))-FIND("/",A2)-1))),":",SUM(MID(A2,FIND(":",A2)+1,FIND("/",A2)-FIND(":",A2)-1),MID(A2,FIND(":",A2,FIND("/",A2))+1,FIND(")",A2)-FIND(":",A2,FIND("/",A2))-1)),MID(A2,(FIND(")",A2)+1),100)),CONCATENATE(MID(A2,1,2)," ",(SUM(MID(A2,FIND("(",A2)+1,FIND(":",A2)-FIND("(",A2)-1),MID(A2,FIND("_",A2)+1,FIND(":",A2,FIND("_",A2))-FIND("_",A2)-1))),":",SUM(MID(A2,FIND(":",A2)+1,FIND("_",A2)-FIND(":",A2)-1),MID(A2,FIND(":",A2,FIND("_",A2))+1,FIND(")",A2)-FIND(":",A2,FIND("_",A2))-1)),MID(A2,(FIND(")",A2)+1),100))),A2) -> LPG 16:0__O__ | C2: =MID(B2,5,FIND(":",B2)-FIND(" ",B2)-1) -> 16 | D2: =IF(ISNUMBER(SEARCH("__",B2)),MID(B2,FIND(":",B2)+1,FIND("__",B2)-FIND(":",B2)-1),MID(B2,FIND(":",B2)+1,7)) -> 0 | G2: =C2+6 -> 22 | H2: =2*G2-(2*D2)+1-((LEN(A2)-LEN(SUBSTITUTE(A2,"_O_","")))/LEN("_O_"))*2-((LEN(A2)-LEN(SUBSTITUTE(A2,"_CHO_","")))/LEN("_CHO_"))*2-((LEN(A2)-LEN(SUBSTITUTE(A2,"_COOH_","")))/LEN("_COOH_"))*2 -> 43 | I2: =9+((LEN(A2)-LEN(SUBSTITUTE(A2,"_OH_","")))/LEN("_OH_"))*1+((LEN(A2)-LEN(SUBSTITUTE(A2,"_OOH_","")))/LEN("_OOH_"))*2+((LEN(A2)-LEN(SUBSTITUTE(A2,"_O_","")))/LEN("_O_"))*1+((LEN(A2)-LEN(SUBSTITUTE(A2,"_CHO_","")))/LEN("_CHO_"))*1+((LEN(A2)-LEN(SUBSTITUTE(A2,"_COOH_","")))/LEN("_COOH_"))*2 -> 10 | J2: 1 | L2: =CONCATENATE("C",G2,"H",H2,"O",I2,"P",J2) -> C22H43O10P1 | M2: =(G2*12.0107)+(H2*1.00794)+(I2*14.0067)+(J2*15.9994)+(K2*30.973762) -> 463.64322 | N2: =(G2*12)+(H2*1.0078246)+(I2*15.994915)+(J2*30.973763) -> 498.2593708 | O2: =N2+1.0078246-0.00055 -> 499.2666454 | P2: =O2-18.01057-0.00055 -> 481.2555254 | Q2: =N2+18.03437-0.00055 -> 516.2931908 | R2: =N2+22.98977-0.00055 -> 521.2485908 | S2: =N2+38.96371-0.00055 -> 537.2225308 | T2: =N2+7.01601-0.00055 -> 505.2748308 | U2: =N2-1.0078246+0.00055 -> 497.2520962 | V2: =N2+44.99767+0.00055 -> 543.2575908 | W2: =N2+59.01332+0.00055 -> 557.2732408
A3: LPG 18:0 | B3: =IF(ISNUMBER(SEARCH("(",A3)),IF(ISNUMBER(SEARCH("/",A3)),CONCATENATE(MID(A3,1,2)," ",(SUM(MID(A3,FIND("(",A3)+1,FIND(":",A3)-FIND("(",A3)-1),MID(A3,FIND("/",A3)+1,FIND(":",A3,FIND("/",A3))-FIND("/",A3)-1))),":",SUM(MID(A3,FIND(":",A3)+1,FIND("/",A3)-FIND(":",A3)-1),MID(A3,FIND(":",A3,FIND("/",A3))+1,FIND(")",A3)-FIND(":",A3,FIND("/",A3))-1)),MID(A3,(FIND(")",A3)+1),100)),CONCATENATE(MID(A3,1,2)," ",(SUM(MID(A3,FIND("(",A3)+1,FIND(":",A3)-FIND("(",A3)-1),MID(A3,FIND("_",A3)+1,FIND(":",A3,FIND("_",A3))-FIND("_",A3)-1))),":",SUM(MID(A3,FIND(":",A3)+1,FIND("_",A3)-FIND(":",A3)-1),MID(A3,FIND(":",A3,FIND("_",A3))+1,FIND(")",A3)-FIND(":",A3,FIND("_",A3))-1)),MID(A3,(FIND(")",A3)+1),100))),A3) -> LPG 18:0 | C3: =MID(B3,5,FIND(":",B3)-FIND(" ",B3)-1) -> 18 | D3: =IF(ISNUMBER(SEARCH("__",B3)),MID(B3,FIND(":",B3)+1,FIND("__",B3)-FIND(":",B3)-1),MID(B3,FIND(":",B3)+1,7)) -> 0 | G3: =C3+6 -> 24 | H3: =2*G3-(2*D3)+1-((LEN(A3)-LEN(SUBSTITUTE(A3,"_O_","")))/LEN("_O_"))*2-((LEN(A3)-LEN(SUBSTITUTE(A3,"_CHO_","")))/LEN("_CHO_"))*2-((LEN(A3)-LEN(SUBSTITUTE(A3,"_COOH_","")))/LEN("_COOH_"))*2 -> 49 | I3: =9+((LEN(A3)-LEN(SUBSTITUTE(A3,"_OH_","")))/LEN("_OH_"))*1+((LEN(A3)-LEN(SUBSTITUTE(A3,"_OOH_","")))/LEN("_OOH_"))*2+((LEN(A3)-LEN(SUBSTITUTE(A3,"_O_","")))/LEN("_O_"))*1+((LEN(A3)-LEN(SUBSTITUTE(A3,"_CHO_","")))/LEN("_CHO_"))*1+((LEN(A3)-LEN(SUBSTITUTE(A3,"_COOH_","")))/LEN("_COOH_"))*2 -> 9 | J3: 1 | L3: =CONCATENATE("C",G3,"H",H3,"O",I3,"P",J3) -> C24H49O9P1 | M3: =(G3*12.0107)+(H3*1.00794)+(I3*14.0067)+(J3*15.9994)+(K3*30.973762) -> 479.70556 | N3: =(G3*12)+(H3*1.0078246)+(I3*15.994915)+(J3*30.973763) -> 512.3114034 | O3: =N3+1.0078246-0.00055 -> 513.318678 | P3: =O3-18.01057-0.00055 -> 495.307558 | Q3: =N3+18.03437-0.00055 -> 530.3452234 | R3: =N3+22.98977-0.00055 -> 535.3006234 | S3: =N3+38.96371-0.00055 -> 551.2745634 | T3: =N3+7.01601-0.00055 -> 519.3268634 | U3: =N3-1.0078246+0.00055 -> 511.3041288 | V3: =N3+44.99767+0.00055 -> 557.3096234 | W3: =N3+59.01332+0.00055 -> 571.3252734

Sheet PG
A1: Lipid | B1: Sum Composition | G1: #C | H1: #H | I1: #O | J1: #P | L1: Formula | M1: Molecular Weight | N1: Neutral Mass | O1: [M+H]+ | P1: [M+H-H2O]+ | Q1: [M+NH4]+ | R1: [M+Na]+ | S1: [M+K]+ | T1: [M+Li]+ | U1: [M-H]- | V1: [M+HCOO]- | W1: [M+CH3COO]-
A2: PG 32:1 | B2: =IF(ISNUMBER(SEARCH("(",A2)),IF(ISNUMBER(SEARCH("/",A2)),CONCATENATE(MID(A2,1,2)," ",(SUM(MID(A2,FIND("(",A2)+1,FIND(":",A2)-FIND("(",A2)-1),MID(A2,FIND("/",A2)+1,FIND(":",A2,FIND("/",A2))-FIND("/",A2)-1))),":",SUM(MID(A2,FIND(":",A2)+1,FIND("/",A2)-FIND(":",A2)-1),MID(A2,FIND(":",A2,FIND("/",A2))+1,FIND(")",A2)-FIND(":",A2,FIND("/",A2))-1)),MID(A2,(FIND(")",A2)+1),100)),CONCATENATE(MID(A2,1,2)," ",(SUM(MID(A2,FIND("(",A2)+1,FIND(":",A2)-FIND("(",A2)-1),MID(A2,FIND("_",A2)+1,FIND(":",A2,FIND("_",A2))-FIND("_",A2)-1))),":",SUM(MID(A2,FIND(":",A2)+1,FIND("_",A2)-FIND(":",A2)-1),MID(A2,FIND(":",A2,FIND("_",A2))+1,FIND(")",A2)-FIND(":",A2,FIND("_",A2))-1)),MID(A2,(FIND(")",A2)+1),100))),A2) -> PG 32:1 | C2: =MID(B2,4,FIND(":",B2)-FIND(" ",B2)-1) -> 32 | D2: =IF(ISNUMBER(SEARCH("__",B2)),MID(B2,FIND(":",B2)+1,FIND("__",B2)-FIND(":",B2)-1),MID(B2,FIND(":",B2)+1,7)) -> 1 | G2: =C2+6 -> 38 | H2: =2*G2-(2*D2)-1-((LEN(A2)-LEN(SUBSTITUTE(A2,"_O_","")))/LEN("_O_"))*2-((LEN(A2)-LEN(SUBSTITUTE(A2,"_CHO_","")))/LEN("_CHO_"))*2-((LEN(A2)-LEN(SUBSTITUTE(A2,"_COOH_","")))/LEN("_COOH_"))*2 -> 73 | I2: =10+((LEN(A2)-LEN(SUBSTITUTE(A2,"_OH_","")))/LEN("_OH_"))*1+((LEN(A2)-LEN(SUBSTITUTE(A2,"_OOH_","")))/LEN("_OOH_"))*2+((LEN(A2)-LEN(SUBSTITUTE(A2,"_O_","")))/LEN("_O_"))*1+((LEN(A2)-LEN(SUBSTITUTE(A2,"_CHO_","")))/LEN("_CHO_"))*1+((LEN(A2)-LEN(SUBSTITUTE(A2,"_COOH_","")))/LEN("_COOH_"))*2 -> 10 | J2: 1 | L2: =CONCATENATE("C",G2,"H",H2,"O",I2,"P",J2) -> C38H73O10P1 | M2: =(G2*12.0107)+(H2*1.00794)+(I2*15.9994)+(J2*30.973762) -> 720.953982 | N2: =(G2*12)+(H2*1.0078246)+(I2*15.994915)+(J2*30.973763) -> 720.4941088 | O2: =N2+1.0078246-0.00055 -> 721.5013834 | P2: =O2-18.01057-0.00055 -> 703.4902634 | Q2: =N2+18.03437-0.00055 -> 738.5279288 | R2: =N2+22.98977-0.00055 -> 743.4833288 | S2: =N2+38.96371-0.00055 -> 759.4572688 | T2: =N2+7.01601-0.00055 -> 727.5095688 | U2: =N2-1.0078246+0.00055 -> 719.4868342 | V2: =N2+44.99767+0.00055 -> 765.4923288 | W2: =N2+59.01332+0.00055 -> 779.5079788
A3: PG(18:1_18:1)__CHO__ | B3: =IF(ISNUMBER(SEARCH("(",A3)),IF(ISNUMBER(SEARCH("/",A3)),CONCATENATE(MID(A3,1,2)," ",(SUM(MID(A3,FIND("(",A3)+1,FIND(":",A3)-FIND("(",A3)-1),MID(A3,FIND("/",A3)+1,FIND(":",A3,FIND("/",A3))-FIND("/",A3)-1))),":",SUM(MID(A3,FIND(":",A3)+1,FIND("/",A3)-FIND(":",A3)-1),MID(A3,FIND(":",A3,FIND("/",A3))+1,FIND(")",A3)-FIND(":",A3,FIND("/",A3))-1)),MID(A3,(FIND(")",A3)+1),100)),CONCATENATE(MID(A3,1,2)," ",(SUM(MID(A3,FIND("(",A3)+1,FIND(":",A3)-FIND("(",A3)-1),MID(A3,FIND("_",A3)+1,FIND(":",A3,FIND("_",A3))-FIND("_",A3)-1))),":",SUM(MID(A3,FIND(":",A3)+1,FIND("_",A3)-FIND(":",A3)-1),MID(A3,FIND(":",A3,FIND("_",A3))+1,FIND(")",A3)-FIND(":",A3,FIND("_",A3))-1)),MID(A3,(FIND(")",A3)+1),100))),A3) -> PG 36:2__CHO__ | C3: =MID(B3,4,FIND(":",B3)-FIND(" ",B3)-1) -> 36 | D3: =IF(ISNUMBER(SEARCH("__",B3)),MID(B3,FIND(":",B3)+1,FIND("__",B3)-FIND(":",B3)-1),MID(B3,FIND(":",B3)+1,7)) -> 2 | G3: =C3+6 -> 42 | H3: =2*G3-(2*D3)-1-((LEN(A3)-LEN(SUBSTITUTE(A3,"_O_","")))/LEN("_O_"))*2-((LEN(A3)-LEN(SUBSTITUTE(A3,"_CHO_","")))/LEN("_CHO_"))*2-((LEN(A3)-LEN(SUBSTITUTE(A3,"_COOH_","")))/LEN("_COOH_"))*2 -> 77 | I3: =10+((LEN(A3)-LEN(SUBSTITUTE(A3,"_OH_","")))/LEN("_OH_"))*1+((LEN(A3)-LEN(SUBSTITUTE(A3,"_OOH_","")))/LEN("_OOH_"))*2+((LEN(A3)-LEN(SUBSTITUTE(A3,"_O_","")))/LEN("_O_"))*1+((LEN(A3)-LEN(SUBSTITUTE(A3,"_CHO_","")))/LEN("_CHO_"))*1+((LEN(A3)-LEN(SUBSTITUTE(A3,"_COOH_","")))/LEN("_COOH_"))*2 -> 11 | J3: 1 | L3: =CONCATENATE("C",G3,"H",H3,"O",I3,"P",J3) -> C42H77O11P1 | M3: =(G3*12.0107)+(H3*1.00794)+(I3*15.9994)+(J3*30.973762) -> 789.027942 | N3: =(G3*12)+(H3*1.0078246)+(I3*15.994915)+(J3*30.973763) -> 788.5203222 | O3: =N3+1.0078246-0.00055 -> 789.5275968 | P3: =O3-18.01057-0.00055 -> 771.5164768 | Q3: =N3+18.03437-0.00055 -> 806.5541422 | R3: =N3+22.98977-0.00055 -> 811.5095422 | S3: =N3+38.96371-0.00055 -> 827.4834822 | T3: =N3+7.01601-0.00055 -> 795.5357822 | U3: =N3-1.0078246+0.00055 -> 787.5130476 | V3: =N3+44.99767+0.00055 -> 833.5185422 | W3: =N3+59.01332+0.00055 -> 847.5341922
A4: PG(16:1/18:1) | B4: =IF(ISNUMBER(SEARCH("(",A4)),IF(ISNUMBER(SEARCH("/",A4)),CONCATENATE(MID(A4,1,2)," ",(SUM(MID(A4,FIND("(",A4)+1,FIND(":",A4)-FIND("(",A4)-1),MID(A4,FIND("/",A4)+1,FIND(":",A4,FIND("/",A4))-FIND("/",A4)-1))),":",SUM(MID(A4,FIND(":",A4)+1,FIND("/",A4)-FIND(":",A4)-1),MID(A4,FIND(":",A4,FIND("/",A4))+1,FIND(")",A4)-FIND(":",A4,FIND("/",A4))-1)),MID(A4,(FIND(")",A4)+1),100)),CONCATENATE(MID(A4,1,2)," ",(SUM(MID(A4,FIND("(",A4)+1,FIND(":",A4)-FIND("(",A4)-1),MID(A4,FIND("_",A4)+1,FIND(":",A4,FIND("_",A4))-FIND("_",A4)-1))),":",SUM(MID(A4,FIND(":",A4)+1,FIND("_",A4)-FIND(":",A4)-1),MID(A4,FIND(":",A4,FIND("_",A4))+1,FIND(")",A4)-FIND(":",A4,FIND("_",A4))-1)),MID(A4,(FIND(")",A4)+1),100))),A4) -> PG 34:2 | C4: =MID(B4,4,FIND(":",B4)-FIND(" ",B4)-1) -> 34 | D4: =IF(ISNUMBER(SEARCH("__",B4)),MID(B4,FIND(":",B4)+1,FIND("__",B4)-FIND(":",B4)-1),MID(B4,FIND(":",B4)+1,7)) -> 2 | G4: =C4+6 -> 40 | H4: =2*G4-(2*D4)-1-((LEN(A4)-LEN(SUBSTITUTE(A4,"_O_","")))/LEN("_O_"))*2-((LEN(A4)-LEN(SUBSTITUTE(A4,"_CHO_","")))/LEN("_CHO_"))*2-((LEN(A4)-LEN(SUBSTITUTE(A4,"_COOH_","")))/LEN("_COOH_"))*2 -> 75 | I4: =10+((LEN(A4)-LEN(SUBSTITUTE(A4,"_OH_","")))/LEN("_OH_"))*1+((LEN(A4)-LEN(SUBSTITUTE(A4,"_OOH_","")))/LEN("_OOH_"))*2+((LEN(A4)-LEN(SUBSTITUTE(A4,"_O_","")))/LEN("_O_"))*1+((LEN(A4)-LEN(SUBSTITUTE(A4,"_CHO_","")))/LEN("_CHO_"))*1+((LEN(A4)-LEN(SUBSTITUTE(A4,"_COOH_","")))/LEN("_COOH_"))*2 -> 10 | J4: 1 | L4: =CONCATENATE("C",G4,"H",H4,"O",I4,"P",J4) -> C40H75O10P1 | M4: =(G4*12.0107)+(H4*1.00794)+(I4*15.9994)+(J4*30.973762) -> 746.991262 | N4: =(G4*12)+(H4*1.0078246)+(I4*15.994915)+(J4*30.973763) -> 746.509758 | O4: =N4+1.0078246-0.00055 -> 747.5170326 | P4: =O4-18.01057-0.00055 -> 729.5059126 | Q4: =N4+18.03437-0.00055 -> 764.543578 | R4: =N4+22.98977-0.00055 -> 769.498978 | S4: =N4+38.96371-0.00055 -> 785.472918 | T4: =N4+7.01601-0.00055 -> 753.525218 | U4: =N4-1.0078246+0.00055 -> 745.5024834 | V4: =N4+44.99767+0.00055 -> 791.507978 | W4: =N4+59.01332+0.00055 -> 805.523628

Sheet LPI
A1: Lipid | B1: Sum Composition | E1: #C | F1: #H | G1: #O | H1: #P | L1: Formula | M1: Molecular Weight | N1: Neutral Mass | O1: [M+H]+ | P1: [M+H-H2O]+ | Q1: [M+NH4]+ | R1: [M+Na]+ | S1: [M+K]+ | T1: [M+Li]+ | U1: [M-H]- | V1: [M+HCOO]- | W1: [M+CH3COO]-
A2: LPI 16:0 | B2: =IF(ISNUMBER(SEARCH("(",A2)),IF(ISNUMBER(SEARCH("/",A2)),CONCATENATE(MID(A2,1,2)," ",(SUM(MID(A2,FIND("(",A2)+1,FIND(":",A2)-FIND("(",A2)-1),MID(A2,FIND("/",A2)+1,FIND(":",A2,FIND("/",A2))-FIND("/",A2)-1))),":",SUM(MID(A2,FIND(":",A2)+1,FIND("/",A2)-FIND(":",A2)-1),MID(A2,FIND(":",A2,FIND("/",A2))+1,FIND(")",A2)-FIND(":",A2,FIND("/",A2))-1)),MID(A2,(FIND(")",A2)+1),100)),CONCATENATE(MID(A2,1,2)," ",(SUM(MID(A2,FIND("(",A2)+1,FIND(":",A2)-FIND("(",A2)-1),MID(A2,FIND("_",A2)+1,FIND(":",A2,FIND("_",A2))-FIND("_",A2)-1))),":",SUM(MID(A2,FIND(":",A2)+1,FIND("_",A2)-FIND(":",A2)-1),MID(A2,FIND(":",A2,FIND("_",A2))+1,FIND(")",A2)-FIND(":",A2,FIND("_",A2))-1)),MID(A2,(FIND(")",A2)+1),100))),A2) -> LPI 16:0 | C2: =MID(B2,5,FIND(":",B2)-FIND(" ",B2)-1) -> 16 | D2: =IF(ISNUMBER(SEARCH("__",B2)),MID(B2,FIND(":",B2)+1,FIND("__",B2)-FIND(":",B2)-1),MID(B2,FIND(":",B2)+1,7)) -> 0 | E2: =C2+9 -> 25 | F2: =2*E2-(2*D2)-1-((LEN(A2)-LEN(SUBSTITUTE(A2,"_O_","")))/LEN("_O_"))*2-((LEN(A2)-LEN(SUBSTITUTE(A2,"_CHO_","")))/LEN("_CHO_"))*2-((LEN(A2)-LEN(SUBSTITUTE(A2,"_COOH_","")))/LEN("_COOH_"))*2 -> 49 | G2: =12+((LEN(A2)-LEN(SUBSTITUTE(A2,"_OH_","")))/LEN("_OH_"))*1+((LEN(A2)-LEN(SUBSTITUTE(A2,"_OOH_","")))/LEN("_OOH_"))*2+((LEN(A2)-LEN(SUBSTITUTE(A2,"_O_","")))/LEN("_O_"))*1+((LEN(A2)-LEN(SUBSTITUTE(A2,"_CHO_","")))/LEN("_CHO_"))*1+((LEN(A2)-LEN(SUBSTITUTE(A2,"_COOH_","")))/LEN("_COOH_"))*2 -> 12 | H2: 1 | L2: =CONCATENATE("C",E2,"H",F2,"O",G2,"P",H2) -> C25H49O12P1 | M2: =(E2*12.0107)+(F2*1.00794)+(G2*15.9994)+(H2*30.973762) -> 572.623122 | N2: =(E2*12)+(F2*1.0078246)+(G2*15.994915)+(H2*30.973763) -> 572.2961484 | O2: =N2+1.0078246-0.00055 -> 573.303423 | P2: =O2-18.01057-0.00055 -> 555.292303 | Q2: =N2+18.03437-0.00055 -> 590.3299684 | R2: =N2+22.98977-0.00055 -> 595.2853684 | S2: =N2+38.96371-0.00055 -> 611.2593084 | T2: =N2+7.01601-0.00055 -> 579.3116084 | U2: =N2-1.0078246+0.00055 -> 571.2888738 | V2: =N2+44.99767+0.00055 -> 617.2943684 | W2: =N2+59.01332+0.00055 -> 631.3100184
A3: LPI 16:1 | B3: =IF(ISNUMBER(SEARCH("(",A3)),IF(ISNUMBER(SEARCH("/",A3)),CONCATENATE(MID(A3,1,2)," ",(SUM(MID(A3,FIND("(",A3)+1,FIND(":",A3)-FIND("(",A3)-1),MID(A3,FIND("/",A3)+1,FIND(":",A3,FIND("/",A3))-FIND("/",A3)-1))),":",SUM(MID(A3,FIND(":",A3)+1,FIND("/",A3)-FIND(":",A3)-1),MID(A3,FIND(":",A3,FIND("/",A3))+1,FIND(")",A3)-FIND(":",A3,FIND("/",A3))-1)),MID(A3,(FIND(")",A3)+1),100)),CONCATENATE(MID(A3,1,2)," ",(SUM(MID(A3,FIND("(",A3)+1,FIND(":",A3)-FIND("(",A3)-1),MID(A3,FIND("_",A3)+1,FIND(":",A3,FIND("_",A3))-FIND("_",A3)-1))),":",SUM(MID(A3,FIND(":",A3)+1,FIND("_",A3)-FIND(":",A3)-1),MID(A3,FIND(":",A3,FIND("_",A3))+1,FIND(")",A3)-FIND(":",A3,FIND("_",A3))-1)),MID(A3,(FIND(")",A3)+1),100))),A3) -> LPI 16:1 | C3: =MID(B3,5,FIND(":",B3)-FIND(" ",B3)-1) -> 16 | D3: =IF(ISNUMBER(SEARCH("__",B3)),MID(B3,FIND(":",B3)+1,FIND("__",B3)-FIND(":",B3)-1),MID(B3,FIND(":",B3)+1,7)) -> 1 | E3: =C3+9 -> 25 | F3: =2*E3-(2*D3)-1-((LEN(A3)-LEN(SUBSTITUTE(A3,"_O_","")))/LEN("_O_"))*2-((LEN(A3)-LEN(SUBSTITUTE(A3,"_CHO_","")))/LEN("_CHO_"))*2-((LEN(A3)-LEN(SUBSTITUTE(A3,"_COOH_","")))/LEN("_COOH_"))*2 -> 47 | G3: =12+((LEN(A3)-LEN(SUBSTITUTE(A3,"_OH_","")))/LEN("_OH_"))*1+((LEN(A3)-LEN(SUBSTITUTE(A3,"_OOH_","")))/LEN("_OOH_"))*2+((LEN(A3)-LEN(SUBSTITUTE(A3,"_O_","")))/LEN("_O_"))*1+((LEN(A3)-LEN(SUBSTITUTE(A3,"_CHO_","")))/LEN("_CHO_"))*1+((LEN(A3)-LEN(SUBSTITUTE(A3,"_COOH_","")))/LEN("_COOH_"))*2 -> 12 | H3: 1 | L3: =CONCATENATE("C",E3,"H",F3,"O",G3,"P",H3) -> C25H47O12P1 | M3: =(E3*12.0107)+(F3*1.00794)+(G3*15.9994)+(H3*30.973762) -> 570.607242 | N3: =(E3*12)+(F3*1.0078246)+(G3*15.994915)+(H3*30.973763) -> 570.2804992 | O3: =N3+1.0078246-0.00055 -> 571.2877738 | P3: =O3-18.01057-0.00055 -> 553.2766538 | Q3: =N3+18.03437-0.00055 -> 588.3143192 | R3: =N3+22.98977-0.00055 -> 593.2697192 | S3: =N3+38.96371-0.00055 -> 609.2436592 | T3: =N3+7.01601-0.00055 -> 577.2959592 | U3: =N3-1.0078246+0.00055 -> 569.2732246 | V3: =N3+44.99767+0.00055 -> 615.2787192 | W3: =N3+59.01332+0.00055 -> 629.2943692

Sheet PI
A1: Lipid | B1: Sum Composition | E1: #C | F1: #H | G1: #O | H1: #P | L1: Formula | M1: Molecular Weight | N1: Neutral Mass | O1: [M+H]+ | P1: [M+H-H2O]+ | Q1: [M+NH4]+ | R1: [M+Na]+ | S1: [M+K]+ | T1: [M+Li]+ | U1: [M-H]- | V1: [M+HCOO]- | W1: [M+CH3COO]-
A2: PI 32:0 | B2: =IF(ISNUMBER(SEARCH("(",A2)),IF(ISNUMBER(SEARCH("/",A2)),CONCATENATE(MID(A2,1,2)," ",(SUM(MID(A2,FIND("(",A2)+1,FIND(":",A2)-FIND("(",A2)-1),MID(A2,FIND("/",A2)+1,FIND(":",A2,FIND("/",A2))-FIND("/",A2)-1))),":",SUM(MID(A2,FIND(":",A2)+1,FIND("/",A2)-FIND(":",A2)-1),MID(A2,FIND(":",A2,FIND("/",A2))+1,FIND(")",A2)-FIND(":",A2,FIND("/",A2))-1)),MID(A2,(FIND(")",A2)+1),100)),CONCATENATE(MID(A2,1,2)," ",(SUM(MID(A2,FIND("(",A2)+1,FIND(":",A2)-FIND("(",A2)-1),MID(A2,FIND("_",A2)+1,FIND(":",A2,FIND("_",A2))-FIND("_",A2)-1))),":",SUM(MID(A2,FIND(":",A2)+1,FIND("_",A2)-FIND(":",A2)-1),MID(A2,FIND(":",A2,FIND("_",A2))+1,FIND(")",A2)-FIND(":",A2,FIND("_",A2))-1)),MID(A2,(FIND(")",A2)+1),100))),A2) -> PI 32:0 | C2: =MID(B2,4,FIND(":",B2)-FIND(" ",B2)-1) -> 32 | D2: =IF(ISNUMBER(SEARCH("__",B2)),MID(B2,FIND(":",B2)+1,FIND("__",B2)-FIND(":",B2)-1),MID(B2,FIND(":",B2)+1,7)) -> 0 | E2: =C2+9 -> 41 | F2: =2*E2-(2*D2)-3-((LEN(A2)-LEN(SUBSTITUTE(A2,"_O_","")))/LEN("_O_"))*2-((LEN(A2)-LEN(SUBSTITUTE(A2,"_CHO_","")))/LEN("_CHO_"))*2-((LEN(A2)-LEN(SUBSTITUTE(A2,"_COOH_","")))/LEN("_COOH_"))*2 -> 79 | G2: =13+((LEN(A2)-LEN(SUBSTITUTE(A2,"_OH_","")))/LEN("_OH_"))*1+((LEN(A2)-LEN(SUBSTITUTE(A2,"_OOH_","")))/LEN("_OOH_"))*2+((LEN(A2)-LEN(SUBSTITUTE(A2,"_O_","")))/LEN("_O_"))*1+((LEN(A2)-LEN(SUBSTITUTE(A2,"_CHO_","")))/LEN("_CHO_"))*1+((LEN(A2)-LEN(SUBSTITUTE(A2,"_COOH_","")))/LEN("_COOH_"))*2 -> 13 | H2: 1 | L2: =CONCATENATE("C",E2,"H",F2,"O",G2,"P",H2) -> C41H79O13P1 | M2: =(E2*12.0107)+(F2*1.00794)+(G2*15.9994)+(H2*30.973762) -> 811.031922 | N2: =(E2*12)+(F2*1.0078246)+(G2*15.994915)+(H2*30.973763) -> 810.5258014 | O2: =N2+1.0078246-0.00055 -> 811.533076 | P2: =O2-18.01057-0.00055 -> 793.521956 | Q2: =N2+18.03437-0.00055 -> 828.5596214 | R2: =N2+22.98977-0.00055 -> 833.5150214 | S2: =N2+38.96371-0.00055 -> 849.4889614 | T2: =N2+7.01601-0.00055 -> 817.5412614 | U2: =N2-1.0078246+0.00055 -> 809.5185268 | V2: =N2+44.99767+0.00055 -> 855.5240214 | W2: =N2+59.01332+0.00055 -> 869.5396714
A3: PI 32:1 | B3: =IF(ISNUMBER(SEARCH("(",A3)),IF(ISNUMBER(SEARCH("/",A3)),CONCATENATE(MID(A3,1,2)," ",(SUM(MID(A3,FIND("(",A3)+1,FIND(":",A3)-FIND("(",A3)-1),MID(A3,FIND("/",A3)+1,FIND(":",A3,FIND("/",A3))-FIND("/",A3)-1))),":",SUM(MID(A3,FIND(":",A3)+1,FIND("/",A3)-FIND(":",A3)-1),MID(A3,FIND(":",A3,FIND("/",A3))+1,FIND(")",A3)-FIND(":",A3,FIND("/",A3))-1)),MID(A3,(FIND(")",A3)+1),100)),CONCATENATE(MID(A3,1,2)," ",(SUM(MID(A3,FIND("(",A3)+1,FIND(":",A3)-FIND("(",A3)-1),MID(A3,FIND("_",A3)+1,FIND(":",A3,FIND("_",A3))-FIND("_",A3)-1))),":",SUM(MID(A3,FIND(":",A3)+1,FIND("_",A3)-FIND(":",A3)-1),MID(A3,FIND(":",A3,FIND("_",A3))+1,FIND(")",A3)-FIND(":",A3,FIND("_",A3))-1)),MID(A3,(FIND(")",A3)+1),100))),A3) -> PI 32:1 | C3: =MID(B3,4,FIND(":",B3)-FIND(" ",B3)-1) -> 32 | D3: =IF(ISNUMBER(SEARCH("__",B3)),MID(B3,FIND(":",B3)+1,FIND("__",B3)-FIND(":",B3)-1),MID(B3,FIND(":",B3)+1,7)) -> 1 | E3: =C3+9 -> 41 | F3: =2*E3-(2*D3)-3-((LEN(A3)-LEN(SUBSTITUTE(A3,"_O_","")))/LEN("_O_"))*2-((LEN(A3)-LEN(SUBSTITUTE(A3,"_CHO_","")))/LEN("_CHO_"))*2-((LEN(A3)-LEN(SUBSTITUTE(A3,"_COOH_","")))/LEN("_COOH_"))*2 -> 77 | G3: =13+((LEN(A3)-LEN(SUBSTITUTE(A3,"_OH_","")))/LEN("_OH_"))*1+((LEN(A3)-LEN(SUBSTITUTE(A3,"_OOH_","")))/LEN("_OOH_"))*2+((LEN(A3)-LEN(SUBSTITUTE(A3,"_O_","")))/LEN("_O_"))*1+((LEN(A3)-LEN(SUBSTITUTE(A3,"_CHO_","")))/LEN("_CHO_"))*1+((LEN(A3)-LEN(SUBSTITUTE(A3,"_COOH_","")))/LEN("_COOH_"))*2 -> 13 | H3: 1 | L3: =CONCATENATE("C",E3,"H",F3,"O",G3,"P",H3) -> C41H77O13P1 | M3: =(E3*12.0107)+(F3*1.00794)+(G3*15.9994)+(H3*30.973762) -> 809.016042 | N3: =(E3*12)+(F3*1.0078246)+(G3*15.994915)+(H3*30.973763) -> 808.5101522 | O3: =N3+1.0078246-0.00055 -> 809.5174268 | P3: =O3-18.01057-0.00055 -> 791.5063068 | Q3: =N3+18.03437-0.00055 -> 826.5439722 | R3: =N3+22.98977-0.00055 -> 831.4993722 | S3: =N3+38.96371-0.00055 -> 847.4733122 | T3: =N3+7.01601-0.00055 -> 815.5256122 | U3: =N3-1.0078246+0.00055 -> 807.5028776 | V3: =N3+44.99767+0.00055 -> 853.5083722 | W3: =N3+59.01332+0.00055 -> 867.5240222
A4: PI (16:0/18:1)__CHO__ | B4: =IF(ISNUMBER(SEARCH("(",A4)),IF(ISNUMBER(SEARCH("/",A4)),CONCATENATE(MID(A4,1,2)," ",(SUM(MID(A4,FIND("(",A4)+1,FIND(":",A4)-FIND("(",A4)-1),MID(A4,FIND("/",A4)+1,FIND(":",A4,FIND("/",A4))-FIND("/",A4)-1))),":",SUM(MID(A4,FIND(":",A4)+1,FIND("/",A4)-FIND(":",A4)-1),MID(A4,FIND(":",A4,FIND("/",A4))+1,FIND(")",A4)-FIND(":",A4,FIND("/",A4))-1)),MID(A4,(FIND(")",A4)+1),100)),CONCATENATE(MID(A4,1,2)," ",(SUM(MID(A4,FIND("(",A4)+1,FIND(":",A4)-FIND("(",A4)-1),MID(A4,FIND("_",A4)+1,FIND(":",A4,FIND("_",A4))-FIND("_",A4)-1))),":",SUM(MID(A4,FIND(":",A4)+1,FIND("_",A4)-FIND(":",A4)-1),MID(A4,FIND(":",A4,FIND("_",A4))+1,FIND(")",A4)-FIND(":",A4,FIND("_",A4))-1)),MID(A4,(FIND(")",A4)+1),100))),A4) -> PI 34:1__CHO__ | C4: =MID(B4,4,FIND(":",B4)-FIND(" ",B4)-1) -> 34 | D4: =IF(ISNUMBER(SEARCH("__",B4)),MID(B4,FIND(":",B4)+1,FIND("__",B4)-FIND(":",B4)-1),MID(B4,FIND(":",B4)+1,7)) -> 1 | E4: 43 | F4: =2*E4-(2*D4)-3-((LEN(A4)-LEN(SUBSTITUTE(A4,"_O_","")))/LEN("_O_"))*2-((LEN(A4)-LEN(SUBSTITUTE(A4,"_CHO_","")))/LEN("_CHO_"))*2-((LEN(A4)-LEN(SUBSTITUTE(A4,"_COOH_","")))/LEN("_COOH_"))*2 -> 79 | G4: =13+((LEN(A4)-LEN(SUBSTITUTE(A4,"_OH_","")))/LEN("_OH_"))*1+((LEN(A4)-LEN(SUBSTITUTE(A4,"_OOH_","")))/LEN("_OOH_"))*2+((LEN(A4)-LEN(SUBSTITUTE(A4,"_O_","")))/LEN("_O_"))*1+((LEN(A4)-LEN(SUBSTITUTE(A4,"_CHO_","")))/LEN("_CHO_"))*1+((LEN(A4)-LEN(SUBSTITUTE(A4,"_COOH_","")))/LEN("_COOH_"))*2 -> 14 | H4: 1 | L4: =CONCATENATE("C",E4,"H",F4,"O",G4,"P",H4) -> C43H79O14P1 | M4: =(E4*12.0107)+(F4*1.00794)+(G4*15.9994)+(H4*30.973762) -> 851.052722 | N4: =(E4*12)+(F4*1.0078246)+(G4*15.994915)+(H4*30.973763) -> 850.5207164 | O4: =N4+1.0078246-0.00055 -> 851.527991 | P4: =O4-18.01057-0.00055 -> 833.516871 | Q4: =N4+18.03437-0.00055 -> 868.5545364 | R4: =N4+22.98977-0.00055 -> 873.5099364 | S4: =N4+38.96371-0.00055 -> 889.4838764 | T4: =N4+7.01601-0.00055 -> 857.5361764 | U4: =N4-1.0078246+0.00055 -> 849.5134418 | V4: =N4+44.99767+0.00055 -> 895.5189364 | W4: =N4+59.01332+0.00055 -> 909.5345864

Sheet LPS
A1: Lipid | B1: Sum Composition | E1: #C | F1: #H | G1: #N | H1: #O | I1: #P | L1: Formula | M1: Molecular Weight | N1: Neutral Mass | O1: [M+H]+ | P1: [M+H-H2O]+ | Q1: [M+NH4]+ | R1: [M+Na]+ | S1: [M+K]+ | T1: [M+Li]+ | U1: [M-H]- | V1: [M+HCOO]- | W1: [M+CH3COO]-
A2: LPS 18:0 | B2: =IF(ISNUMBER(SEARCH("(",A2)),IF(ISNUMBER(SEARCH("/",A2)),CONCATENATE(MID(A2,1,2)," ",(SUM(MID(A2,FIND("(",A2)+1,FIND(":",A2)-FIND("(",A2)-1),MID(A2,FIND("/",A2)+1,FIND(":",A2,FIND("/",A2))-FIND("/",A2)-1))),":",SUM(MID(A2,FIND(":",A2)+1,FIND("/",A2)-FIND(":",A2)-1),MID(A2,FIND(":",A2,FIND("/",A2))+1,FIND(")",A2)-FIND(":",A2,FIND("/",A2))-1)),MID(A2,(FIND(")",A2)+1),100)),CONCATENATE(MID(A2,1,2)," ",(SUM(MID(A2,FIND("(",A2)+1,FIND(":",A2)-FIND("(",A2)-1),MID(A2,FIND("_",A2)+1,FIND(":",A2,FIND("_",A2))-FIND("_",A2)-1))),":",SUM(MID(A2,FIND(":",A2)+1,FIND("_",A2)-FIND(":",A2)-1),MID(A2,FIND(":",A2,FIND("_",A2))+1,FIND(")",A2)-FIND(":",A2,FIND("_",A2))-1)),MID(A2,(FIND(")",A2)+1),100))),A2) -> LPS 18:0 | C2: =MID(B2,5,FIND(":",B2)-FIND(" ",B2)-1) -> 18 | D2: =IF(ISNUMBER(SEARCH("__",B2)),MID(B2,FIND(":",B2)+1,FIND("__",B2)-FIND(":",B2)-1),MID(B2,FIND(":",B2)+1,7)) -> 0 | E2: =C2+6 -> 24 | F2: =2*E2-(2*D2)-((LEN(A2)-LEN(SUBSTITUTE(A2,"_O_","")))/LEN("_O_"))*2-((LEN(A2)-LEN(SUBSTITUTE(A2,"_CHO_","")))/LEN("_CHO_"))*2-((LEN(A2)-LEN(SUBSTITUTE(A2,"_COOH_","")))/LEN("_COOH_"))*2 -> 48 | G2: 1 | H2: =9+((LEN(A2)-LEN(SUBSTITUTE(A2,"_OH_","")))/LEN("_OH_"))*1+((LEN(A2)-LEN(SUBSTITUTE(A2,"_OOH_","")))/LEN("_OOH_"))*2+((LEN(A2)-LEN(SUBSTITUTE(A2,"_O_","")))/LEN("_O_"))*1+((LEN(A2)-LEN(SUBSTITUTE(A2,"_CHO_","")))/LEN("_CHO_"))*1+((LEN(A2)-LEN(SUBSTITUTE(A2,"_COOH_","")))/LEN("_COOH_"))*2 -> 9 | I2: 1 | L2: =CONCATENATE("C",E2,"H",F2,"N",G2,"O",H2,"P",I2) -> C24H48N1O9P1 | M2: =(E2*12.0107)+(F2*1.00794)+(G2*14.0067)+(H2*15.9994)+(I2*30.973762) -> 525.612982 | N2: =(E2*12)+(F2*1.0078246)+(G2*14.003074)+(H2*15.994915)+(I2*30.973763) -> 525.3066528 | O2: =N2+1.0078246-0.00055 -> 526.3139274 | P2: =O2-18.01057-0.00055 -> 508.3028074 | Q2: =N2+18.03437-0.00055 -> 543.3404728 | R2: =N2+22.98977-0.00055 -> 548.2958728 | S2: =N2+38.96371-0.00055 -> 564.2698128 | T2: =N2+7.01601-0.00055 -> 532.3221128 | U2: =N2-1.0078246+0.00055 -> 524.2993782 | V2: =N2+44.99767+0.00055 -> 570.3048728 | W2: =N2+59.01332+0.00055 -> 584.3205228
A3: LPS 18:1 | B3: =IF(ISNUMBER(SEARCH("(",A3)),IF(ISNUMBER(SEARCH("/",A3)),CONCATENATE(MID(A3,1,2)," ",(SUM(MID(A3,FIND("(",A3)+1,FIND(":",A3)-FIND("(",A3)-1),MID(A3,FIND("/",A3)+1,FIND(":",A3,FIND("/",A3))-FIND("/",A3)-1))),":",SUM(MID(A3,FIND(":",A3)+1,FIND("/",A3)-FIND(":",A3)-1),MID(A3,FIND(":",A3,FIND("/",A3))+1,FIND(")",A3)-FIND(":",A3,FIND("/",A3))-1)),MID(A3,(FIND(")",A3)+1),100)),CONCATENATE(MID(A3,1,2)," ",(SUM(MID(A3,FIND("(",A3)+1,FIND(":",A3)-FIND("(",A3)-1),MID(A3,FIND("_",A3)+1,FIND(":",A3,FIND("_",A3))-FIND("_",A3)-1))),":",SUM(MID(A3,FIND(":",A3)+1,FIND("_",A3)-FIND(":",A3)-1),MID(A3,FIND(":",A3,FIND("_",A3))+1,FIND(")",A3)-FIND(":",A3,FIND("_",A3))-1)),MID(A3,(FIND(")",A3)+1),100))),A3) -> LPS 18:1 | C3: =MID(B3,5,FIND(":",B3)-FIND(" ",B3)-1) -> 18 | D3: =IF(ISNUMBER(SEARCH("__",B3)),MID(B3,FIND(":",B3)+1,FIND("__",B3)-FIND(":",B3)-1),MID(B3,FIND(":",B3)+1,7)) -> 1 | E3: =C3+6 -> 24 | F3: =2*E3-(2*D3)-((LEN(A3)-LEN(SUBSTITUTE(A3,"_O_","")))/LEN("_O_"))*2-((LEN(A3)-LEN(SUBSTITUTE(A3,"_CHO_","")))/LEN("_CHO_"))*2-((LEN(A3)-LEN(SUBSTITUTE(A3,"_COOH_","")))/LEN("_COOH_"))*2 -> 46 | G3: 1 | H3: =9+((LEN(A3)-LEN(SUBSTITUTE(A3,"_OH_","")))/LEN("_OH_"))*1+((LEN(A3)-LEN(SUBSTITUTE(A3,"_OOH_","")))/LEN("_OOH_"))*2+((LEN(A3)-LEN(SUBSTITUTE(A3,"_O_","")))/LEN("_O_"))*1+((LEN(A3)-LEN(SUBSTITUTE(A3,"_CHO_","")))/LEN("_CHO_"))*1+((LEN(A3)-LEN(SUBSTITUTE(A3,"_COOH_","")))/LEN("_COOH_"))*2 -> 9 | I3: 1 | L3: =CONCATENATE("C",E3,"H",F3,"N",G3,"O",H3,"P",I3) -> C24H46N1O9P1 | M3: =(E3*12.0107)+(F3*1.00794)+(G3*14.0067)+(H3*15.9994)+(I3*30.973762) -> 523.597102 | N3: =(E3*12)+(F3*1.0078246)+(G3*14.003074)+(H3*15.994915)+(I3*30.973763) -> 523.2910036 | O3: =N3+1.0078246-0.00055 -> 524.2982782 | P3: =O3-18.01057-0.00055 -> 506.2871582 | Q3: =N3+18.03437-0.00055 -> 541.3248236 | R3: =N3+22.98977-0.00055 -> 546.2802236 | S3: =N3+38.96371-0.00055 -> 562.2541636 | T3: =N3+7.01601-0.00055 -> 530.3064636 | U3: =N3-1.0078246+0.00055 -> 522.283729 | V3: =N3+44.99767+0.00055 -> 568.2892236 | W3: =N3+59.01332+0.00055 -> 582.3048736

Sheet PS
A1: Lipid | B1: Sum Composition | E1: #C | F1: #H | G1: #N | H1: #O | I1: #P | L1: Formula | M1: Molecular Weight | N1: Neutral Mass | O1: [M+H]+ | P1: [M+H-H2O]+ | Q1: [M+NH4]+ | R1: [M+Na]+ | S1: [M+K]+ | T1: [M+Li]+ | U1: [M-H]- | V1: [M+HCOO]- | W1: [M+CH3COO]-
A2: PS 32:1 | B2: =IF(ISNUMBER(SEARCH("(",A2)),IF(ISNUMBER(SEARCH("/",A2)),CONCATENATE(MID(A2,1,2)," ",(SUM(MID(A2,FIND("(",A2)+1,FIND(":",A2)-FIND("(",A2)-1),MID(A2,FIND("/",A2)+1,FIND(":",A2,FIND("/",A2))-FIND("/",A2)-1))),":",SUM(MID(A2,FIND(":",A2)+1,FIND("/",A2)-FIND(":",A2)-1),MID(A2,FIND(":",A2,FIND("/",A2))+1,FIND(")",A2)-FIND(":",A2,FIND("/",A2))-1)),MID(A2,(FIND(")",A2)+1),100)),CONCATENATE(MID(A2,1,2)," ",(SUM(MID(A2,FIND("(",A2)+1,FIND(":",A2)-FIND("(",A2)-1),MID(A2,FIND("_",A2)+1,FIND(":",A2,FIND("_",A2))-FIND("_",A2)-1))),":",SUM(MID(A2,FIND(":",A2)+1,FIND("_",A2)-FIND(":",A2)-1),MID(A2,FIND(":",A2,FIND("_",A2))+1,FIND(")",A2)-FIND(":",A2,FIND("_",A2))-1)),MID(A2,(FIND(")",A2)+1),100))),A2) -> PS 32:1 | C2: =MID(B2,4,FIND(":",B2)-FIND(" ",B2)-1) -> 32 | D2: =IF(ISNUMBER(SEARCH("__",B2)),MID(B2,FIND(":",B2)+1,FIND("__",B2)-FIND(":",B2)-1),MID(B2,FIND(":",B2)+1,7)) -> 1 | E2: =C2+6 -> 38 | F2: =2*E2-(2*D2)-2-((LEN(A2)-LEN(SUBSTITUTE(A2,"_O_","")))/LEN("_O_"))*2-((LEN(A2)-LEN(SUBSTITUTE(A2,"_CHO_","")))/LEN("_CHO_"))*2-((LEN(A2)-LEN(SUBSTITUTE(A2,"_COOH_","")))/LEN("_COOH_"))*2 -> 72 | G2: 1 | H2: =10+((LEN(A2)-LEN(SUBSTITUTE(A2,"_OH_","")))/LEN("_OH_"))*1+((LEN(A2)-LEN(SUBSTITUTE(A2,"_OOH_","")))/LEN("_OOH_"))*2+((LEN(A2)-LEN(SUBSTITUTE(A2,"_O_","")))/LEN("_O_"))*1+((LEN(A2)-LEN(SUBSTITUTE(A2,"_CHO_","")))/LEN("_CHO_"))*1+((LEN(A2)-LEN(SUBSTITUTE(A2,"_COOH_","")))/LEN("_COOH_"))*2 -> 10 | I2: 1 | L2: =CONCATENATE("C",E2,"H",F2,"N",G2,"O",H2,"P",I2) -> C38H72N1O10P1 | M2: =(E2*12.0107)+(F2*1.00794)+(G2*14.0067)+(H2*15.9994)+(I2*30.973762) -> 733.952742 | N2: =(E2*12)+(F2*1.0078246)+(G2*14.003074)+(H2*15.994915)+(I2*30.973763) -> 733.4893582 | O2: =N2+1.0078246-0.00055 -> 734.4966328 | P2: =O2-18.01057-0.00055 -> 716.4855128 | Q2: =N2+18.03437-0.00055 -> 751.5231782 | R2: =N2+22.98977-0.00055 -> 756.4785782 | S2: =N2+38.96371-0.00055 -> 772.4525182 | T2: =N2+7.01601-0.00055 -> 740.5048182 | U2: =N2-1.0078246+0.00055 -> 732.4820836 | V2: =N2+44.99767+0.00055 -> 778.4875782 | W2: =N2+59.01332+0.00055 -> 792.5032282
A3: PS(18:1_18:2) | B3: =IF(ISNUMBER(SEARCH("(",A3)),IF(ISNUMBER(SEARCH("/",A3)),CONCATENATE(MID(A3,1,2)," ",(SUM(MID(A3,FIND("(",A3)+1,FIND(":",A3)-FIND("(",A3)-1),MID(A3,FIND("/",A3)+1,FIND(":",A3,FIND("/",A3))-FIND("/",A3)-1))),":",SUM(MID(A3,FIND(":",A3)+1,FIND("/",A3)-FIND(":",A3)-1),MID(A3,FIND(":",A3,FIND("/",A3))+1,FIND(")",A3)-FIND(":",A3,FIND("/",A3))-1)),MID(A3,(FIND(")",A3)+1),100)),CONCATENATE(MID(A3,1,2)," ",(SUM(MID(A3,FIND("(",A3)+1,FIND(":",A3)-FIND("(",A3)-1),MID(A3,FIND("_",A3)+1,FIND(":",A3,FIND("_",A3))-FIND("_",A3)-1))),":",SUM(MID(A3,FIND(":",A3)+1,FIND("_",A3)-FIND(":",A3)-1),MID(A3,FIND(":",A3,FIND("_",A3))+1,FIND(")",A3)-FIND(":",A3,FIND("_",A3))-1)),MID(A3,(FIND(")",A3)+1),100))),A3) -> PS 36:3 | C3: =MID(B3,4,FIND(":",B3)-FIND(" ",B3)-1) -> 36 | D3: =IF(ISNUMBER(SEARCH("__",B3)),MID(B3,FIND(":",B3)+1,FIND("__",B3)-FIND(":",B3)-1),MID(B3,FIND(":",B3)+1,7)) -> 3 | E3: =C3+6 -> 42 | F3: =2*E3-(2*D3)-2-((LEN(A3)-LEN(SUBSTITUTE(A3,"_O_","")))/LEN("_O_"))*2-((LEN(A3)-LEN(SUBSTITUTE(A3,"_CHO_","")))/LEN("_CHO_"))*2-((LEN(A3)-LEN(SUBSTITUTE(A3,"_COOH_","")))/LEN("_COOH_"))*2 -> 76 | G3: 1 | H3: =10+((LEN(A3)-LEN(SUBSTITUTE(A3,"_OH_","")))/LEN("_OH_"))*1+((LEN(A3)-LEN(SUBSTITUTE(A3,"_OOH_","")))/LEN("_OOH_"))*2+((LEN(A3)-LEN(SUBSTITUTE(A3,"_O_","")))/LEN("_O_"))*1+((LEN(A3)-LEN(SUBSTITUTE(A3,"_CHO_","")))/LEN("_CHO_"))*1+((LEN(A3)-LEN(SUBSTITUTE(A3,"_COOH_","")))/LEN("_COOH_"))*2 -> 10 | I3: 1 | L3: =CONCATENATE("C",E3,"H",F3,"N",G3,"O",H3,"P",I3) -> C42H76N1O10P1 | M3: =(E3*12.0107)+(F3*1.00794)+(G3*14.0067)+(H3*15.9994)+(I3*30.973762) -> 786.027302 | N3: =(E3*12)+(F3*1.0078246)+(G3*14.003074)+(H3*15.994915)+(I3*30.973763) -> 785.5206566 | O3: =N3+1.0078246-0.00055 -> 786.5279312 | P3: =O3-18.01057-0.00055 -> 768.5168112 | Q3: =N3+18.03437-0.00055 -> 803.5544766 | R3: =N3+22.98977-0.00055 -> 808.5098766 | S3: =N3+38.96371-0.00055 -> 824.4838166 | T3: =N3+7.01601-0.00055 -> 792.5361166 | U3: =N3-1.0078246+0.00055 -> 784.513382 | V3: =N3+44.99767+0.00055 -> 830.5188766 | W3: =N3+59.01332+0.00055 -> 844.5345266
A4: PS(16:1/18:2) | B4: =IF(ISNUMBER(SEARCH("(",A4)),IF(ISNUMBER(SEARCH("/",A4)),CONCATENATE(MID(A4,1,2)," ",(SUM(MID(A4,FIND("(",A4)+1,FIND(":",A4)-FIND("(",A4)-1),MID(A4,FIND("/",A4)+1,FIND(":",A4,FIND("/",A4))-FIND("/",A4)-1))),":",SUM(MID(A4,FIND(":",A4)+1,FIND("/",A4)-FIND(":",A4)-1),MID(A4,FIND(":",A4,FIND("/",A4))+1,FIND(")",A4)-FIND(":",A4,FIND("/",A4))-1)),MID(A4,(FIND(")",A4)+1),100)),CONCATENATE(MID(A4,1,2)," ",(SUM(MID(A4,FIND("(",A4)+1,FIND(":",A4)-FIND("(",A4)-1),MID(A4,FIND("_",A4)+1,FIND(":",A4,FIND("_",A4))-FIND("_",A4)-1))),":",SUM(MID(A4,FIND(":",A4)+1,FIND("_",A4)-FIND(":",A4)-1),MID(A4,FIND(":",A4,FIND("_",A4))+1,FIND(")",A4)-FIND(":",A4,FIND("_",A4))-1)),MID(A4,(FIND(")",A4)+1),100))),A4) -> PS 34:3 | C4: =MID(B4,4,FIND(":",B4)-FIND(" ",B4)-1) -> 34 | D4: =IF(ISNUMBER(SEARCH("__",B4)),MID(B4,FIND(":",B4)+1,FIND("__",B4)-FIND(":",B4)-1),MID(B4,FIND(":",B4)+1,7)) -> 3 | E4: =C4+6 -> 40 | F4: =2*E4-(2*D4)-2-((LEN(A4)-LEN(SUBSTITUTE(A4,"_O_","")))/LEN("_O_"))*2-((LEN(A4)-LEN(SUBSTITUTE(A4,"_CHO_","")))/LEN("_CHO_"))*2-((LEN(A4)-LEN(SUBSTITUTE(A4,"_COOH_","")))/LEN("_COOH_"))*2 -> 72 | G4: 1 | H4: =10+((LEN(A4)-LEN(SUBSTITUTE(A4,"_OH_","")))/LEN("_OH_"))*1+((LEN(A4)-LEN(SUBSTITUTE(A4,"_OOH_","")))/LEN("_OOH_"))*2+((LEN(A4)-LEN(SUBSTITUTE(A4,"_O_","")))/LEN("_O_"))*1+((LEN(A4)-LEN(SUBSTITUTE(A4,"_CHO_","")))/LEN("_CHO_"))*1+((LEN(A4)-LEN(SUBSTITUTE(A4,"_COOH_","")))/LEN("_COOH_"))*2 -> 10 | I4: 1 | L4: =CONCATENATE("C",E4,"H",F4,"N",G4,"O",H4,"P",I4) -> C40H72N1O10P1 | M4: =(E4*12.0107)+(F4*1.00794)+(G4*14.0067)+(H4*15.9994)+(I4*30.973762) -> 757.974142 | N4: =(E4*12)+(F4*1.0078246)+(G4*14.003074)+(H4*15.994915)+(I4*30.973763) -> 757.4893582 | O4: =N4+1.0078246-0.00055 -> 758.4966328 | P4: =O4-18.01057-0.00055 -> 740.4855128 | Q4: =N4+18.03437-0.00055 -> 775.5231782 | R4: =N4+22.98977-0.00055 -> 780.4785782 | S4: =N4+38.96371-0.00055 -> 796.4525182 | T4: =N4+7.01601-0.00055 -> 764.5048182 | U4: =N4-1.0078246+0.00055 -> 756.4820836 | V4: =N4+44.99767+0.00055 -> 802.4875782 | W4: =N4+59.01332+0.00055 -> 816.5032282

Sheet SM
A1: Lipid | B1: Sum Composition | E1: #C | F1: #H | G1: #N | H1: #O | I1: #P | L1: Formula | M1: Molecular Weight | N1: Neutral Mass | O1: [M+H]+ | P1: [M+H-H2O]+ | Q1: [M+NH4]+ | R1: [M+Na]+ | S1: [M+K]+ | T1: [M+Li]+ | U1: [M-H]- | V1: [M+HCOO]- | W1: [M+CH3COO]-
A2: SM d28:0 | B2: =IF(ISNUMBER(SEARCH("(",A2)),IF(ISNUMBER(SEARCH("/",A2)),CONCATENATE(MID(A2,1,2)," ","d",(SUM(MID(A2,FIND("(",A2)+2,FIND(":",A2)-FIND("(",A2)-2),MID(A2,FIND("/",A2)+1,FIND(":",A2,FIND("/",A2))-FIND("/",A2)-1))),":",SUM(MID(A2,FIND(":",A2)+1,FIND("/",A2)-FIND(":",A2)-1),MID(A2,FIND(":",A2,FIND("/",A2))+1,FIND(")",A2)-FIND(":",A2,FIND("/",A2))-1)),MID(A2,(FIND(")",A2)+1),100)),CONCATENATE(MID(A2,1,2)," ","d",(SUM(MID(A2,FIND("(",A2)+2,FIND(":",A2)-FIND("(",A2)-2),MID(A2,FIND("_",A2)+1,FIND(":",A2,FIND("_",A2))-FIND("_",A2)-1))),":",SUM(MID(A2,FIND(":",A2)+1,FIND("_",A2)-FIND(":",A2)-1),MID(A2,FIND(":",A2,FIND("_",A2))+1,FIND(")",A2)-FIND(":",A2,FIND("_",A2))-1)),MID(A2,(FIND(")",A2)+1),100))),CONCATENATE(MID(A2,1,2)," ","d",MID(A2,5,100))) -> SM d28:0 | C2: =MID(B2,5,FIND(":",B2)-FIND("d",B2)-1) -> 28 | D2: =IF(ISNUMBER(SEARCH("__",B2)),MID(B2,FIND(":",B2)+1,FIND("__",B2)-FIND(":",B2)-1),MID(B2,FIND(":",B2)+1,7)) -> 0 | E2: =C2+5 -> 33 | F2: =2*E2-(2*D2)+3-((LEN(A2)-LEN(SUBSTITUTE(A2,"_O_","")))/LEN("_O_"))*2-((LEN(A2)-LEN(SUBSTITUTE(A2,"_CHO_","")))/LEN("_CHO_"))*2-((LEN(A2)-LEN(SUBSTITUTE(A2,"_COOH_","")))/LEN("_COOH_"))*2 -> 69 | G2: 2 | H2: =6+((LEN(A2)-LEN(SUBSTITUTE(A2,"_OH_","")))/LEN("_OH_"))*1+((LEN(A2)-LEN(SUBSTITUTE(A2,"_OOH_","")))/LEN("_OOH_"))*2+((LEN(A2)-LEN(SUBSTITUTE(A2,"_O_","")))/LEN("_O_"))*1+((LEN(A2)-LEN(SUBSTITUTE(A2,"_CHO_","")))/LEN("_CHO_"))*1+((LEN(A2)-LEN(SUBSTITUTE(A2,"_COOH_","")))/LEN("_COOH_"))*2 -> 6 | I2: 1 | L2: =CONCATENATE("C",E2,"H",F2,"N",G2,"O",H2,"P",I2) -> C33H69N2O6P1 | M2: =(E2*12.0107)+(F2*1.00794)+(G2*14.0067)+(H2*15.9994)+(I2*30.973762) -> 620.884522 | N2: =(E2*12)+(F2*1.0078246)+(G2*14.003074)+(H2*15.994915)+(I2*30.973763) -> 620.4892984 | O2: =N2+1.0078246-0.00055 -> 621.496573 | P2: =O2-18.01057-0.00055 -> 603.485453 | Q2: =N2+18.03437-0.00055 -> 638.5231184 | R2: =N2+22.98977-0.00055 -> 643.4785184 | S2: =N2+38.96371-0.00055 -> 659.4524584 | T2: =N2+7.01601-0.00055 -> 627.5047584 | U2: =N2-1.0078246+0.00055 -> 619.4820238 | V2: =N2+44.99767+0.00055 -> 665.4875184 | W2: =N2+59.01332+0.00055 -> 679.5031684
A3: SM(d18:1/16:0) | B3: =IF(ISNUMBER(SEARCH("(",A3)),IF(ISNUMBER(SEARCH("/",A3)),CONCATENATE(MID(A3,1,2)," ","d",(SUM(MID(A3,FIND("(",A3)+2,FIND(":",A3)-FIND("(",A3)-2),MID(A3,FIND("/",A3)+1,FIND(":",A3,FIND("/",A3))-FIND("/",A3)-1))),":",SUM(MID(A3,FIND(":",A3)+1,FIND("/",A3)-FIND(":",A3)-1),MID(A3,FIND(":",A3,FIND("/",A3))+1,FIND(")",A3)-FIND(":",A3,FIND("/",A3))-1)),MID(A3,(FIND(")",A3)+1),100)),CONCATENATE(MID(A3,1,2)," ","d",(SUM(MID(A3,FIND("(",A3)+2,FIND(":",A3)-FIND("(",A3)-2),MID(A3,FIND("_",A3)+1,FIND(":",A3,FIND("_",A3))-FIND("_",A3)-1))),":",SUM(MID(A3,FIND(":",A3)+1,FIND("_",A3)-FIND(":",A3)-1),MID(A3,FIND(":",A3,FIND("_",A3))+1,FIND(")",A3)-FIND(":",A3,FIND("_",A3))-1)),MID(A3,(FIND(")",A3)+1),100))),CONCATENATE(MID(A3,1,2)," ","d",MID(A3,5,100))) -> SM d34:1 | C3: =MID(B3,5,FIND(":",B3)-FIND("d",B3)-1) -> 34 | D3: =IF(ISNUMBER(SEARCH("__",B3)),MID(B3,FIND(":",B3)+1,FIND("__",B3)-FIND(":",B3)-1),MID(B3,FIND(":",B3)+1,7)) -> 1 | E3: =C3+5 -> 39 | F3: =2*E3-(2*D3)+3-((LEN(A3)-LEN(SUBSTITUTE(A3,"_O_","")))/LEN("_O_"))*2-((LEN(A3)-LEN(SUBSTITUTE(A3,"_CHO_","")))/LEN("_CHO_"))*2-((LEN(A3)-LEN(SUBSTITUTE(A3,"_COOH_","")))/LEN("_COOH_"))*2 -> 79 | G3: 2 | H3: =6+((LEN(A3)-LEN(SUBSTITUTE(A3,"_OH_","")))/LEN("_OH_"))*1+((LEN(A3)-LEN(SUBSTITUTE(A3,"_OOH_","")))/LEN("_OOH_"))*2+((LEN(A3)-LEN(SUBSTITUTE(A3,"_O_","")))/LEN("_O_"))*1+((LEN(A3)-LEN(SUBSTITUTE(A3,"_CHO_","")))/LEN("_CHO_"))*1+((LEN(A3)-LEN(SUBSTITUTE(A3,"_COOH_","")))/LEN("_COOH_"))*2 -> 6 | I3: 1 | L3: =CONCATENATE("C",E3,"H",F3,"N",G3,"O",H3,"P",I3) -> C39H79N2O6P1 | M3: =(E3*12.0107)+(F3*1.00794)+(G3*14.0067)+(H3*15.9994)+(I3*30.973762) -> 703.028122 | N3: =(E3*12)+(F3*1.0078246)+(G3*14.003074)+(H3*15.994915)+(I3*30.973763) -> 702.5675444 | O3: =N3+1.0078246-0.00055 -> 703.574819 | P3: =O3-18.01057-0.00055 -> 685.563699 | Q3: =N3+18.03437-0.00055 -> 720.6013644 | R3: =N3+22.98977-0.00055 -> 725.5567644 | S3: =N3+38.96371-0.00055 -> 741.5307044 | T3: =N3+7.01601-0.00055 -> 709.5830044 | U3: =N3-1.0078246+0.00055 -> 701.5602698 | V3: =N3+44.99767+0.00055 -> 747.5657644 | W3: =N3+59.01332+0.00055 -> 761.5814144

Sheet LSM
A1: Lipid | B1: Sum Composition | G1: #C | H1: #H | I1: #N | J1: #O | K1: #P | L1: Formula | M1: Molecular Weight | N1: Neutral Mass | O1: [M+H]+ | P1: [M+H-H2O]+ | Q1: [M+NH4]+ | R1: [M+Na]+ | S1: [M+K]+ | T1: [M+Li]+ | U1: [M-H]- | V1: [M+HCOO]- | W1: [M+CH3COO]-
A2: LSM d18:1 | B2: =IF(ISNUMBER(SEARCH("(",A2)),IF(ISNUMBER(SEARCH("/",A2)),CONCATENATE(MID(A2,1,3)," ","d",(SUM(MID(A2,FIND("(",A2)+2,FIND(":",A2)-FIND("(",A2)-2),MID(A2,FIND("/",A2)+1,FIND(":",A2,FIND("/",A2))-FIND("/",A2)-1))),":",SUM(MID(A2,FIND(":",A2)+1,FIND("/",A2)-FIND(":",A2)-1),MID(A2,FIND(":",A2,FIND("/",A2))+1,FIND(")",A2)-FIND(":",A2,FIND("/",A2))-1)),MID(A2,(FIND(")",A2)+1),100)),CONCATENATE(MID(A2,1,3)," ","d",(SUM(MID(A2,FIND("(",A2)+2,FIND(":",A2)-FIND("(",A2)-2),MID(A2,FIND("_",A2)+1,FIND(":",A2,FIND("_",A2))-FIND("_",A2)-1))),":",SUM(MID(A2,FIND(":",A2)+1,FIND("_",A2)-FIND(":",A2)-1),MID(A2,FIND(":",A2,FIND("_",A2))+1,FIND(")",A2)-FIND(":",A2,FIND("_",A2))-1)),MID(A2,(FIND(")",A2)+1),100))),CONCATENATE(MID(A2,1,3)," ","d",MID(A2,6,100))) -> LSM d18:1 | C2: =MID(B2,6,FIND(":",B2)-FIND("d",B2)-1) -> 18 | D2: =IF(ISNUMBER(SEARCH("__",B2)),MID(B2,FIND(":",B2)+1,FIND("__",B2)-FIND(":",B2)-1),MID(B2,FIND(":",B2)+1,7)) -> 1 | E2: =C2+5 -> 23 | F2: =D2 -> 1 | G2: =E2 -> 23 | H2: =2*G2-(2*F2)+5-((LEN(A2)-LEN(SUBSTITUTE(A2,"_O_","")))/LEN("_O_"))*2-((LEN(A2)-LEN(SUBSTITUTE(A2,"_CHO_","")))/LEN("_CHO_"))*2-((LEN(A2)-LEN(SUBSTITUTE(A2,"_COOH_","")))/LEN("_COOH_"))*2 -> 49 | I2: 2 | J2: =6-1+((LEN(A2)-LEN(SUBSTITUTE(A2,"_OH_","")))/LEN("_OH_"))*1+((LEN(A2)-LEN(SUBSTITUTE(A2,"_OOH_","")))/LEN("_OOH_"))*2+((LEN(A2)-LEN(SUBSTITUTE(A2,"_O_","")))/LEN("_O_"))*1+((LEN(A2)-LEN(SUBSTITUTE(A2,"_CHO_","")))/LEN("_CHO_"))*1+((LEN(A2)-LEN(SUBSTITUTE(A2,"_COOH_","")))/LEN("_COOH_"))*2 -> 5 | K2: 1 | L2: =CONCATENATE("C",G2,"H",H2,"N",I2,"O",J2,"P",K2) -> C23H49N2O5P1 | M2: =(G2*12.0107)+(H2*1.00794)+(I2*14.0067)+(J2*15.9994)+(K2*30.973762) -> 464.619322 | N2: =(G2*12)+(H2*1.0078246)+(I2*14.003074)+(J2*15.994915)+(K2*30.973763) -> 464.3378914 | O2: =N2+1.0078246-0.00055 -> 465.345166 | P2: =O2-18.01057-0.00055 -> 447.334046 | Q2: =N2+18.03437-0.00055 -> 482.3717114 | R2: =N2+22.98977-0.00055 -> 487.3271114 | S2: =N2+38.96371-0.00055 -> 503.3010514 | T2: =N2+7.01601-0.00055 -> 471.3533514 | U2: =N2-1.0078246+0.00055 -> 463.3306168 | V2: =N2+44.99767+0.00055 -> 509.3361114 | W2: =N2+59.01332+0.00055 -> 523.3517614
A3: LSM d18:1 | B3: =IF(ISNUMBER(SEARCH("(",A3)),IF(ISNUMBER(SEARCH("/",A3)),CONCATENATE(MID(A3,1,3)," ",(SUM(MID(A3,FIND("(",A3)+2,FIND(":",A3)-FIND("(",A3)-2),MID(A3,FIND("/",A3)+1,FIND(":",A3,FIND("/",A3))-FIND("/",A3)-1))),":",SUM(MID(A3,FIND(":",A3)+1,FIND("/",A3)-FIND(":",A3)-1),MID(A3,FIND(":",A3,FIND("/",A3))+1,FIND(")",A3)-FIND(":",A3,FIND("/",A3))-1)),MID(A3,(FIND(")",A3)+1),100)),CONCATENATE(MID(A3,1,3)," ",(SUM(MID(A3,FIND("(",A3)+2,FIND(":",A3)-FIND("(",A3)-2),MID(A3,FIND("_",A3)+1,FIND(":",A3,FIND("_",A3))-FIND("_",A3)-1))),":",SUM(MID(A3,FIND(":",A3)+1,FIND("_",A3)-FIND(":",A3)-1),MID(A3,FIND(":",A3,FIND("_",A3))+1,FIND(")",A3)-FIND(":",A3,FIND("_",A3))-1)),MID(A3,(FIND(")",A3)+1),100))),CONCATENATE(MID(A3,1,3)," ",MID(A3,6,100))) -> LSM 18:1 | C3: =MID(B3,5,FIND(":",B3)-FIND(" ",B3)-1) -> 18 | D3: =IF(ISNUMBER(SEARCH("__",B3)),MID(B3,FIND(":",B3)+1,FIND("__",B3)-FIND(":",B3)-1),MID(B3,FIND(":",B3)+1,7)) -> 1 | E3: =C3+5 -> 23 | F3: =D3 -> 1 | G3: =E3 -> 23 | H3: =2*G3-(2*F3)+5-((LEN(A3)-LEN(SUBSTITUTE(A3,"_O_","")))/LEN("_O_"))*2-((LEN(A3)-LEN(SUBSTITUTE(A3,"_CHO_","")))/LEN("_CHO_"))*2-((LEN(A3)-LEN(SUBSTITUTE(A3,"_COOH_","")))/LEN("_COOH_"))*2 -> 49 | I3: 2 | J3: =6-1+((LEN(A3)-LEN(SUBSTITUTE(A3,"_OH_","")))/LEN("_OH_"))*1+((LEN(A3)-LEN(SUBSTITUTE(A3,"_OOH_","")))/LEN("_OOH_"))*2+((LEN(A3)-LEN(SUBSTITUTE(A3,"_O_","")))/LEN("_O_"))*1+((LEN(A3)-LEN(SUBSTITUTE(A3,"_CHO_","")))/LEN("_CHO_"))*1+((LEN(A3)-LEN(SUBSTITUTE(A3,"_COOH_","")))/LEN("_COOH_"))*2 -> 5 | K3: 1 | L3: =CONCATENATE("C",G3,"H",H3,"N",I3,"O",J3,"P",K3) -> C23H49N2O5P1 | M3: =(G3*12.0107)+(H3*1.00794)+(I3*14.0067)+(J3*15.9994)+(K3*30.973762) -> 464.619322 | N3: =(G3*12)+(H3*1.0078246)+(I3*14.003074)+(J3*15.994915)+(K3*30.973763) -> 464.3378914 | O3: =N3+1.0078246-0.00055 -> 465.345166 | P3: =O3-18.01057-0.00055 -> 447.334046 | Q3: =N3+18.03437-0.00055 -> 482.3717114 | R3: =N3+22.98977-0.00055 -> 487.3271114 | S3: =N3+38.96371-0.00055 -> 503.3010514 | T3: =N3+7.01601-0.00055 -> 471.3533514 | U3: =N3-1.0078246+0.00055 -> 463.3306168 | V3: =N3+44.99767+0.00055 -> 509.3361114 | W3: =N3+59.01332+0.00055 -> 523.3517614

Sheet dMePE
A1: Lipid | B1: Sum Composition | G1: #C | H1: #H | I1: #N | J1: #O | K1: #P | L1: Formula | M1: Molecular Weight | N1: Neutral Mass | O1: [M+H]+ | P1: [M+H-H2O]+ | Q1: [M+NH4]+ | R1: [M+Na]+ | S1: [M+K]+ | T1: [M+Li]+ | U1: [M-H]- | V1: [M+HCOO]- | W1: [M+CH3COO]-
A2: dMePE 24:0 | B2: =IF(ISNUMBER(SEARCH("(",A2)),IF(ISNUMBER(SEARCH("/",A2)),CONCATENATE(MID(A2,1,5)," ",(SUM(MID(A2,FIND("(",A2)+1,FIND(":",A2)-FIND("(",A2)-1),MID(A2,FIND("/",A2)+1,FIND(":",A2,FIND("/",A2))-FIND("/",A2)-1))),":",SUM(MID(A2,FIND(":",A2)+1,FIND("/",A2)-FIND(":",A2)-1),MID(A2,FIND(":",A2,FIND("/",A2))+1,FIND(")",A2)-FIND(":",A2,FIND("/",A2))-1)),MID(A2,(FIND(")",A2)+1),100)),CONCATENATE(MID(A2,1,5)," ",(SUM(MID(A2,FIND("(",A2)+1,FIND(":",A2)-FIND("(",A2)-1),MID(A2,FIND("_",A2)+1,FIND(":",A2,FIND("_",A2))-FIND("_",A2)-1))),":",SUM(MID(A2,FIND(":",A2)+1,FIND("_",A2)-FIND(":",A2)-1),MID(A2,FIND(":",A2,FIND("_",A2))+1,FIND(")",A2)-FIND(":",A2,FIND("_",A2))-1)),MID(A2,(FIND(")",A2)+1),100))),A2) -> dMePE 24:0 | C2: =MID(B2,7,FIND(":",B2)-FIND(" ",B2)-1) -> 24 | D2: =IF(ISNUMBER(SEARCH("__",B2)),MID(B2,FIND(":",B2)+1,FIND("__",B2)-FIND(":",B2)-1),MID(B2,FIND(":",B2)+1,7)) -> 0 | G2: =C2+7 -> 31 | H2: =2*G2-(2*D2)-((LEN(A2)-LEN(SUBSTITUTE(A2,"_O_","")))/LEN("_O_"))*2-((LEN(A2)-LEN(SUBSTITUTE(A2,"_CHO_","")))/LEN("_CHO_"))*2-((LEN(A2)-LEN(SUBSTITUTE(A2,"_COOH_","")))/LEN("_COOH_"))*2 -> 62 | I2: 1 | J2: =8+((LEN(A2)-LEN(SUBSTITUTE(A2,"_OH_","")))/LEN("_OH_"))*1+((LEN(A2)-LEN(SUBSTITUTE(A2,"_OOH_","")))/LEN("_OOH_"))*2+((LEN(A2)-LEN(SUBSTITUTE(A2,"_O_","")))/LEN("_O_"))*1+((LEN(A2)-LEN(SUBSTITUTE(A2,"_CHO_","")))/LEN("_CHO_"))*1+((LEN(A2)-LEN(SUBSTITUTE(A2,"_COOH_","")))/LEN("_COOH_"))*2 -> 8 | K2: 1 | L2: =CONCATENATE("C",G2,"H",H2,"N",I2,"O",J2,"P",K2) -> C31H62N1O8P1 | M2: =(G2*12.0107)+(H2*1.00794)+(I2*14.0067)+(J2*15.9994)+(K2*30.973762) -> 607.799642 | N2: =(G2*12)+(H2*1.0078246)+(I2*14.003074)+(J2*15.994915)+(K2*30.973763) -> 607.4212822 | O2: =N2+1.0078246-0.00055 -> 608.4285568 | P2: =O2-18.01057-0.00055 -> 590.4174368 | Q2: =N2+18.03437-0.00055 -> 625.4551022 | R2: =N2+22.98977-0.00055 -> 630.4105022 | S2: =N2+38.96371-0.00055 -> 646.3844422 | T2: =N2+7.01601-0.00055 -> 614.4367422 | U2: =N2-1.0078246+0.00055 -> 606.4140076 | V2: =N2+44.99767+0.00055 -> 652.4195022 | W2: =N2+59.01332+0.00055 -> 666.4351522
A3: dMePE(16:0/16:0) | B3: =IF(ISNUMBER(SEARCH("(",A3)),IF(ISNUMBER(SEARCH("/",A3)),CONCATENATE(MID(A3,1,5)," ",(SUM(MID(A3,FIND("(",A3)+1,FIND(":",A3)-FIND("(",A3)-1),MID(A3,FIND("/",A3)+1,FIND(":",A3,FIND("/",A3))-FIND("/",A3)-1))),":",SUM(MID(A3,FIND(":",A3)+1,FIND("/",A3)-FIND(":",A3)-1),MID(A3,FIND(":",A3,FIND("/",A3))+1,FIND(")",A3)-FIND(":",A3,FIND("/",A3))-1)),MID(A3,(FIND(")",A3)+1),100)),CONCATENATE(MID(A3,1,5)," ",(SUM(MID(A3,FIND("(",A3)+1,FIND(":",A3)-FIND("(",A3)-1),MID(A3,FIND("_",A3)+1,FIND(":",A3,FIND("_",A3))-FIND("_",A3)-1))),":",SUM(MID(A3,FIND(":",A3)+1,FIND("_",A3)-FIND(":",A3)-1),MID(A3,FIND(":",A3,FIND("_",A3))+1,FIND(")",A3)-FIND(":",A3,FIND("_",A3))-1)),MID(A3,(FIND(")",A3)+1),100))),A3) -> dMePE 32:0 | C3: =MID(B3,7,FIND(":",B3)-FIND(" ",B3)-1) -> 32 | D3: =IF(ISNUMBER(SEARCH("__",B3)),MID(B3,FIND(":",B3)+1,FIND("__",B3)-FIND(":",B3)-1),MID(B3,FIND(":",B3)+1,7)) -> 0 | G3: =C3+7 -> 39 | H3: =2*G3-(2*D3)-((LEN(A3)-LEN(SUBSTITUTE(A3,"_O_","")))/LEN("_O_"))*2-((LEN(A3)-LEN(SUBSTITUTE(A3,"_CHO_","")))/LEN("_CHO_"))*2-((LEN(A3)-LEN(SUBSTITUTE(A3,"_COOH_","")))/LEN("_COOH_"))*2 -> 78 | I3: 1 | J3: =8+((LEN(A3)-LEN(SUBSTITUTE(A3,"_OH_","")))/LEN("_OH_"))*1+((LEN(A3)-LEN(SUBSTITUTE(A3,"_OOH_","")))/LEN("_OOH_"))*2+((LEN(A3)-LEN(SUBSTITUTE(A3,"_O_","")))/LEN("_O_"))*1+((LEN(A3)-LEN(SUBSTITUTE(A3,"_CHO_","")))/LEN("_CHO_"))*1+((LEN(A3)-LEN(SUBSTITUTE(A3,"_COOH_","")))/LEN("_COOH_"))*2 -> 8 | K3: 1 | L3: =CONCATENATE("C",G3,"H",H3,"N",I3,"O",J3,"P",K3) -> C39H78N1O8P1 | M3: =(G3*12.0107)+(H3*1.00794)+(I3*14.0067)+(J3*15.9994)+(K3*30.973762) -> 720.012282 | N3: =(G3*12)+(H3*1.0078246)+(I3*14.003074)+(J3*15.994915)+(K3*30.973763) -> 719.5464758 | O3: =N3+1.0078246-0.00055 -> 720.5537504 | P3: =O3-18.01057-0.00055 -> 702.5426304 | Q3: =N3+18.03437-0.00055 -> 737.5802958 | R3: =N3+22.98977-0.00055 -> 742.5356958 | S3: =N3+38.96371-0.00055 -> 758.5096358 | T3: =N3+7.01601-0.00055 -> 726.5619358 | U3: =N3-1.0078246+0.00055 -> 718.5392012 | V3: =N3+44.99767+0.00055 -> 764.5446958 | W3: =N3+59.01332+0.00055 -> 778.5603458
A4: dMePE 32:2__O__ | B4: dMePE 32:2__O__ | C4: 32 | D4: 2 | G4: 39 | H4: 72 | I4: 1 | J4: 9 | K4: 1 | L4: C39H72N1O9P1 | M4: =(G4*12.0107)+(H4*1.00794)+(I4*14.0067)+(J4*15.9994)+(K4*30.973762) -> 729.964042 | N4: 729.4944432 | O4: 730.5017178 | P4: 712.4905978 | Q4: 747.5282632 | R4: 752.4836632 | S4: 768.4576032 | T4: 736.5099032 | U4: 728.4871686 | V4: 774.4926632 | W4: 788.5083132
A5: dMePE 33:2 | B5: dMePE 33:2 | C5: 33 | D5: 2 | G5: 40 | H5: 76 | I5: 1 | J5: 8 | K5: 1 | L5: C40H76N1O8P1 | M5: =(G5*12.0107)+(H5*1.00794)+(I5*14.0067)+(J5*15.9994)+(K5*30.973762) -> 730.007102 | N5: 729.5308266 | O5: 730.5381012 | P5: 712.5269812 | Q5: 747.5646466 | R5: 752.5200466 | S5: 768.4939866 | T5: 736.5462866 | U5: 728.523552 | V5: 774.5290466 | W5: 788.5446966
A6: dMePE(18:1_18:2) | B6: =IF(ISNUMBER(SEARCH("(",A6)),IF(ISNUMBER(SEARCH("/",A6)),CONCATENATE(MID(A6,1,5)," ",(SUM(MID(A6,FIND("(",A6)+1,FIND(":",A6)-FIND("(",A6)-1),MID(A6,FIND("/",A6)+1,FIND(":",A6,FIND("/",A6))-FIND("/",A6)-1))),":",SUM(MID(A6,FIND(":",A6)+1,FIND("/",A6)-FIND(":",A6)-1),MID(A6,FIND(":",A6,FIND("/",A6))+1,FIND(")",A6)-FIND(":",A6,FIND("/",A6))-1)),MID(A6,(FIND(")",A6)+1),100)),CONCATENATE(MID(A6,1,5)," ",(SUM(MID(A6,FIND("(",A6)+1,FIND(":",A6)-FIND("(",A6)-1),MID(A6,FIND("_",A6)+1,FIND(":",A6,FIND("_",A6))-FIND("_",A6)-1))),":",SUM(MID(A6,FIND(":",A6)+1,FIND("_",A6)-FIND(":",A6)-1),MID(A6,FIND(":",A6,FIND("_",A6))+1,FIND(")",A6)-FIND(":",A6,FIND("_",A6))-1)),MID(A6,(FIND(")",A6)+1),100))),A6) -> dMePE 36:3 | C6: =MID(B6,7,FIND(":",B6)-FIND(" ",B6)-1) -> 36 | D6: =IF(ISNUMBER(SEARCH("__",B6)),MID(B6,FIND(":",B6)+1,FIND("__",B6)-FIND(":",B6)-1),MID(B6,FIND(":",B6)+1,7)) -> 3 | G6: =C6+7 -> 43 | H6: =2*G6-(2*D6)-((LEN(A6)-LEN(SUBSTITUTE(A6,"_O_","")))/LEN("_O_"))*2-((LEN(A6)-LEN(SUBSTITUTE(A6,"_CHO_","")))/LEN("_CHO_"))*2-((LEN(A6)-LEN(SUBSTITUTE(A6,"_COOH_","")))/LEN("_COOH_"))*2 -> 80 | I6: 1 | J6: =8+((LEN(A6)-LEN(SUBSTITUTE(A6,"_OH_","")))/LEN("_OH_"))*1+((LEN(A6)-LEN(SUBSTITUTE(A6,"_OOH_","")))/LEN("_OOH_"))*2+((LEN(A6)-LEN(SUBSTITUTE(A6,"_O_","")))/LEN("_O_"))*1+((LEN(A6)-LEN(SUBSTITUTE(A6,"_CHO_","")))/LEN("_CHO_"))*1+((LEN(A6)-LEN(SUBSTITUTE(A6,"_COOH_","")))/LEN("_COOH_"))*2 -> 8 | K6: 1 | L6: C43H80N1O8P1 | M6: =(G6*12.0107)+(H6*1.00794)+(I6*14.0067)+(J6*15.9994)+(K6*30.973762) -> 770.070962 | N6: 769.562125 | O6: =N6+1.0078246-0.00055 -> 770.5693996 | P6: =O6-18.01057-0.00055 -> 752.5582796 | Q6: =N6+18.03437-0.00055 -> 787.595945 | R6: =N6+22.98977-0.00055 -> 792.551345 | S6: =N6+38.96371-0.00055 -> 808.525285 | T6: =N6+7.01601-0.00055 -> 776.577585 | U6: =N6-1.0078246+0.00055 -> 768.5548504 | V6: =N6+44.99767+0.00055 -> 814.560345 | W6: =N6+59.01332+0.00055 -> 828.575995

Sheet LdMePE
A1: Lipid | B1: Sum Composition | E1: #C | F1: #H | G1: #N | H1: #O | I1: #P | L1: Formula | M1: Molecular Weight | N1: Neutral Mass | O1: [M+H]+ | P1: [M+H-H2O]+ | Q1: [M+NH4]+ | R1: [M+Na]+ | S1: [M+K]+ | T1: [M+Li]+ | U1: [M-H]- | V1: [M+HCOO]- | W1: [M+CH3COO]-
A2: LdMePE 14:0__O__ | B2: =IF(ISNUMBER(SEARCH("(",A2)),IF(ISNUMBER(SEARCH("/",A2)),CONCATENATE(MID(A2,1,6)," ",(SUM(MID(A2,FIND("(",A2)+1,FIND(":",A2)-FIND("(",A2)-1),MID(A2,FIND("/",A2)+1,FIND(":",A2,FIND("/",A2))-FIND("/",A2)-1))),":",SUM(MID(A2,FIND(":",A2)+1,FIND("/",A2)-FIND(":",A2)-1),MID(A2,FIND(":",A2,FIND("/",A2))+1,FIND(")",A2)-FIND(":",A2,FIND("/",A2))-1)),MID(A2,(FIND(")",A2)+1),100)),CONCATENATE(MID(A2,1,6)," ",(SUM(MID(A2,FIND("(",A2)+1,FIND(":",A2)-FIND("(",A2)-1),MID(A2,FIND("_",A2)+1,FIND(":",A2,FIND("_",A2))-FIND("_",A2)-1))),":",SUM(MID(A2,FIND(":",A2)+1,FIND("_",A2)-FIND(":",A2)-1),MID(A2,FIND(":",A2,FIND("_",A2))+1,FIND(")",A2)-FIND(":",A2,FIND("_",A2))-1)),MID(A2,(FIND(")",A2)+1),100))),A2) -> LdMePE 14:0__O__ | C2: =MID(B2,8,FIND(":",B2)-FIND(" ",B2)-1) -> 14 | D2: =IF(ISNUMBER(SEARCH("__",B2)),MID(B2,FIND(":",B2)+1,FIND("__",B2)-FIND(":",B2)-1),MID(B2,FIND(":",B2)+1,7)) -> 0 | E2: =C2+7 -> 21 | F2: =2*E2-(2*D2)+2-((LEN(A2)-LEN(SUBSTITUTE(A2,"_O_","")))/LEN("_O_"))*2-((LEN(A2)-LEN(SUBSTITUTE(A2,"_CHO_","")))/LEN("_CHO_"))*2-((LEN(A2)-LEN(SUBSTITUTE(A2,"_COOH_","")))/LEN("_COOH_"))*2 -> 42 | G2: 1 | H2: =7+((LEN(A2)-LEN(SUBSTITUTE(A2,"_OH_","")))/LEN("_OH_"))*1+((LEN(A2)-LEN(SUBSTITUTE(A2,"_OOH_","")))/LEN("_OOH_"))*2+((LEN(A2)-LEN(SUBSTITUTE(A2,"_O_","")))/LEN("_O_"))*1+((LEN(A2)-LEN(SUBSTITUTE(A2,"_CHO_","")))/LEN("_CHO_"))*1+((LEN(A2)-LEN(SUBSTITUTE(A2,"_COOH_","")))/LEN("_COOH_"))*2 -> 8 | I2: 1 | L2: =CONCATENATE("C",E2,"H",F2,"N",G2,"O",H2,"P",I2) -> C21H42N1O8P1 | M2: =(E2*12.0107)+(F2*1.00794)+(G2*14.0067)+(H2*15.9994)+(I2*30.973762) -> 467.533842 | N2: =(E2*12)+(F2*1.0078246)+(G2*14.003074)+(H2*15.994915)+(I2*30.973763) -> 467.2647902 | O2: =N2+1.0078246-0.00055 -> 468.2720648 | P2: =O2-18.01057-0.00055 -> 450.2609448 | Q2: =N2+18.03437-0.00055 -> 485.2986102 | R2: =N2+22.98977-0.00055 -> 490.2540102 | S2: =N2+38.96371-0.00055 -> 506.2279502 | T2: =N2+7.01601-0.00055 -> 474.2802502 | U2: =N2-1.0078246+0.00055 -> 466.2575156 | V2: =N2+44.99767+0.00055 -> 512.2630102 | W2: =N2+59.01332+0.00055 -> 526.2786602
A3: LdMePE 16:0 | B3: =IF(ISNUMBER(SEARCH("(",A3)),IF(ISNUMBER(SEARCH("/",A3)),CONCATENATE(MID(A3,1,6)," ",(SUM(MID(A3,FIND("(",A3)+1,FIND(":",A3)-FIND("(",A3)-1),MID(A3,FIND("/",A3)+1,FIND(":",A3,FIND("/",A3))-FIND("/",A3)-1))),":",SUM(MID(A3,FIND(":",A3)+1,FIND("/",A3)-FIND(":",A3)-1),MID(A3,FIND(":",A3,FIND("/",A3))+1,FIND(")",A3)-FIND(":",A3,FIND("/",A3))-1)),MID(A3,(FIND(")",A3)+1),100)),CONCATENATE(MID(A3,1,6)," ",(SUM(MID(A3,FIND("(",A3)+1,FIND(":",A3)-FIND("(",A3)-1),MID(A3,FIND("_",A3)+1,FIND(":",A3,FIND("_",A3))-FIND("_",A3)-1))),":",SUM(MID(A3,FIND(":",A3)+1,FIND("_",A3)-FIND(":",A3)-1),MID(A3,FIND(":",A3,FIND("_",A3))+1,FIND(")",A3)-FIND(":",A3,FIND("_",A3))-1)),MID(A3,(FIND(")",A3)+1),100))),A3) -> LdMePE 16:0 | C3: =MID(B3,8,FIND(":",B3)-FIND(" ",B3)-1) -> 16 | D3: =IF(ISNUMBER(SEARCH("__",B3)),MID(B3,FIND(":",B3)+1,FIND("__",B3)-FIND(":",B3)-1),MID(B3,FIND(":",B3)+1,7)) -> 0 | E3: =C3+7 -> 23 | F3: =2*E3-(2*D3)+2-((LEN(A3)-LEN(SUBSTITUTE(A3,"_O_","")))/LEN("_O_"))*2-((LEN(A3)-LEN(SUBSTITUTE(A3,"_CHO_","")))/LEN("_CHO_"))*2-((LEN(A3)-LEN(SUBSTITUTE(A3,"_COOH_","")))/LEN("_COOH_"))*2 -> 48 | G3: 1 | H3: =7+((LEN(A3)-LEN(SUBSTITUTE(A3,"_OH_","")))/LEN("_OH_"))*1+((LEN(A3)-LEN(SUBSTITUTE(A3,"_OOH_","")))/LEN("_OOH_"))*2+((LEN(A3)-LEN(SUBSTITUTE(A3,"_O_","")))/LEN("_O_"))*1+((LEN(A3)-LEN(SUBSTITUTE(A3,"_CHO_","")))/LEN("_CHO_"))*1+((LEN(A3)-LEN(SUBSTITUTE(A3,"_COOH_","")))/LEN("_COOH_"))*2 -> 7 | I3: 1 | L3: =CONCATENATE("C",E3,"H",F3,"N",G3,"O",H3,"P",I3) -> C23H48N1O7P1 | M3: =(E3*12.0107)+(F3*1.00794)+(G3*14.0067)+(H3*15.9994)+(I3*30.973762) -> 481.603482 | N3: =(E3*12)+(F3*1.0078246)+(G3*14.003074)+(H3*15.994915)+(I3*30.973763) -> 481.3168228 | O3: =N3+1.0078246-0.00055 -> 482.3240974 | P3: =O3-18.01057-0.00055 -> 464.3129774 | Q3: =N3+18.03437-0.00055 -> 499.3506428 | R3: =N3+22.98977-0.00055 -> 504.3060428 | S3: =N3+38.96371-0.00055 -> 520.2799828 | T3: =N3+7.01601-0.00055 -> 488.3322828 | U3: =N3-1.0078246+0.00055 -> 480.3095482 | V3: =N3+44.99767+0.00055 -> 526.3150428 | W3: =N3+59.01332+0.00055 -> 540.3306928

Sheet cPA
A1: Lipid | B1: Sum Composition | E1: #C | F1: #H | G1: #N | H1: #O | I1: #P | L1: Formula | M1: Molecular Weight | N1: Neutral Mass | O1: [M+H]+ | P1: [M+H-H2O]+ | Q1: [M+NH4]+ | R1: [M+Na]+ | S1: [M+K]+ | T1: [M+Li]+ | U1: [M-H]- | V1: [M+HCOO]- | W1: [M+CH3COO]-
A2: cPA 16:0 | B2: =IF(ISNUMBER(SEARCH("(",A2)),IF(ISNUMBER(SEARCH("/",A2)),CONCATENATE(MID(A2,1,3)," ",(SUM(MID(A2,FIND("(",A2)+1,FIND(":",A2)-FIND("(",A2)-1),MID(A2,FIND("/",A2)+1,FIND(":",A2,FIND("/",A2))-FIND("/",A2)-1))),":",SUM(MID(A2,FIND(":",A2)+1,FIND("/",A2)-FIND(":",A2)-1),MID(A2,FIND(":",A2,FIND("/",A2))+1,FIND(")",A2)-FIND(":",A2,FIND("/",A2))-1)),MID(A2,(FIND(")",A2)+1),100)),CONCATENATE(MID(A2,1,3)," ",(SUM(MID(A2,FIND("(",A2)+1,FIND(":",A2)-FIND("(",A2)-1),MID(A2,FIND("_",A2)+1,FIND(":",A2,FIND("_",A2))-FIND("_",A2)-1))),":",SUM(MID(A2,FIND(":",A2)+1,FIND("_",A2)-FIND(":",A2)-1),MID(A2,FIND(":",A2,FIND("_",A2))+1,FIND(")",A2)-FIND(":",A2,FIND("_",A2))-1)),MID(A2,(FIND(")",A2)+1),100))),A2) -> cPA 16:0 | C2: =MID(B2,5,FIND(":",B2)-FIND(" ",B2)-1) -> 16 | D2: =IF(ISNUMBER(SEARCH("__",B2)),MID(B2,FIND(":",B2)+1,FIND("__",B2)-FIND(":",B2)-1),MID(B2,FIND(":",B2)+1,7)) -> 0 | E2: =C2+3 -> 19 | F2: =2*E2-(2*D2)-1-((LEN(A2)-LEN(SUBSTITUTE(A2,"_O_","")))/LEN("_O_"))*2-((LEN(A2)-LEN(SUBSTITUTE(A2,"_CHO_","")))/LEN("_CHO_"))*2-((LEN(A2)-LEN(SUBSTITUTE(A2,"_COOH_","")))/LEN("_COOH_"))*2 -> 37 | G2: 0 | H2: =6+((LEN(A2)-LEN(SUBSTITUTE(A2,"_OH_","")))/LEN("_OH_"))*1+((LEN(A2)-LEN(SUBSTITUTE(A2,"_OOH_","")))/LEN("_OOH_"))*2+((LEN(A2)-LEN(SUBSTITUTE(A2,"_O_","")))/LEN("_O_"))*1+((LEN(A2)-LEN(SUBSTITUTE(A2,"_CHO_","")))/LEN("_CHO_"))*1+((LEN(A2)-LEN(SUBSTITUTE(A2,"_COOH_","")))/LEN("_COOH_"))*2 -> 6 | I2: 1 | L2: =CONCATENATE("C",E2,"H",F2,"O",H2,"P",I2) -> C19H37O6P1 | M2: =(E2*12.0107)+(F2*1.00794)+(G2*14.0067)+(H2*15.9994)+(I2*30.973762) -> 392.467242 | N2: =(E2*12)+(F2*1.0078246)+(G2*14.003074)+(H2*15.994915)+(I2*30.973763) -> 392.2327632 | O2: =N2+1.0078246-0.00055 -> 393.2400378 | P2: =O2-18.01057-0.00055 -> 375.2289178 | Q2: =N2+18.03437-0.00055 -> 410.2665832 | R2: =N2+22.98977-0.00055 -> 415.2219832 | S2: =N2+38.96371-0.00055 -> 431.1959232 | T2: =N2+7.01601-0.00055 -> 399.2482232 | U2: =N2-1.0078246+0.00055 -> 391.2254886 | V2: =N2+44.99767+0.00055 -> 437.2309832 | W2: =N2+59.01332+0.00055 -> 451.2466332
A3: cPA 18:1 | B3: =IF(ISNUMBER(SEARCH("(",A3)),IF(ISNUMBER(SEARCH("/",A3)),CONCATENATE(MID(A3,1,3)," ",(SUM(MID(A3,FIND("(",A3)+1,FIND(":",A3)-FIND("(",A3)-1),MID(A3,FIND("/",A3)+1,FIND(":",A3,FIND("/",A3))-FIND("/",A3)-1))),":",SUM(MID(A3,FIND(":",A3)+1,FIND("/",A3)-FIND(":",A3)-1),MID(A3,FIND(":",A3,FIND("/",A3))+1,FIND(")",A3)-FIND(":",A3,FIND("/",A3))-1)),MID(A3,(FIND(")",A3)+1),100)),CONCATENATE(MID(A3,1,3)," ",(SUM(MID(A3,FIND("(",A3)+1,FIND(":",A3)-FIND("(",A3)-1),MID(A3,FIND("_",A3)+1,FIND(":",A3,FIND("_",A3))-FIND("_",A3)-1))),":",SUM(MID(A3,FIND(":",A3)+1,FIND("_",A3)-FIND(":",A3)-1),MID(A3,FIND(":",A3,FIND("_",A3))+1,FIND(")",A3)-FIND(":",A3,FIND("_",A3))-1)),MID(A3,(FIND(")",A3)+1),100))),A3) -> cPA 18:1 | C3: =MID(B3,5,FIND(":",B3)-FIND(" ",B3)-1) -> 18 | D3: =IF(ISNUMBER(SEARCH("__",B3)),MID(B3,FIND(":",B3)+1,FIND("__",B3)-FIND(":",B3)-1),MID(B3,FIND(":",B3)+1,7)) -> 1 | E3: =C3+3 -> 21 | F3: =2*E3-(2*D3)-1-((LEN(A3)-LEN(SUBSTITUTE(A3,"_O_","")))/LEN("_O_"))*2-((LEN(A3)-LEN(SUBSTITUTE(A3,"_CHO_","")))/LEN("_CHO_"))*2-((LEN(A3)-LEN(SUBSTITUTE(A3,"_COOH_","")))/LEN("_COOH_"))*2 -> 39 | G3: 0 | H3: =6+((LEN(A3)-LEN(SUBSTITUTE(A3,"_OH_","")))/LEN("_OH_"))*1+((LEN(A3)-LEN(SUBSTITUTE(A3,"_OOH_","")))/LEN("_OOH_"))*2+((LEN(A3)-LEN(SUBSTITUTE(A3,"_O_","")))/LEN("_O_"))*1+((LEN(A3)-LEN(SUBSTITUTE(A3,"_CHO_","")))/LEN("_CHO_"))*1+((LEN(A3)-LEN(SUBSTITUTE(A3,"_COOH_","")))/LEN("_COOH_"))*2 -> 6 | I3: 1 | L3: =CONCATENATE("C",E3,"H",F3,"O",H3,"P",I3) -> C21H39O6P1 | M3: =(E3*12.0107)+(F3*1.00794)+(G3*14.0067)+(H3*15.9994)+(I3*30.973762) -> 418.504522 | N3: =(E3*12)+(F3*1.0078246)+(G3*14.003074)+(H3*15.994915)+(I3*30.973763) -> 418.2484124 | O3: =N3+1.0078246-0.00055 -> 419.255687 | P3: =O3-18.01057-0.00055 -> 401.244567 | Q3: =N3+18.03437-0.00055 -> 436.2822324 | R3: =N3+22.98977-0.00055 -> 441.2376324 | S3: =N3+38.96371-0.00055 -> 457.2115724 | T3: =N3+7.01601-0.00055 -> 425.2638724 | U3: =N3-1.0078246+0.00055 -> 417.2411378 | V3: =N3+44.99767+0.00055 -> 463.2466324 | W3: =N3+59.01332+0.00055 -> 477.2622824

Sheet PEt
A1: Lipid | B1: Sum Composition | E1: #C | F1: #H | G1: #N | H1: #O | I1: #P | L1: Formula | M1: Molecular Weight | N1: Neutral Mass | O1: [M+H]+ | P1: [M+H-H2O]+ | Q1: [M+NH4]+ | R1: [M+Na]+ | S1: [M+K]+ | T1: [M+Li]+ | U1: [M-H]- | V1: [M+HCOO]- | W1: [M+CH3COO]-
A2: PEt 33:0 | B2: =IF(ISNUMBER(SEARCH("(",A2)),IF(ISNUMBER(SEARCH("/",A2)),CONCATENATE(MID(A2,1,3)," ",(SUM(MID(A2,FIND("(",A2)+1,FIND(":",A2)-FIND("(",A2)-1),MID(A2,FIND("/",A2)+1,FIND(":",A2,FIND("/",A2))-FIND("/",A2)-1))),":",SUM(MID(A2,FIND(":",A2)+1,FIND("/",A2)-FIND(":",A2)-1),MID(A2,FIND(":",A2,FIND("/",A2))+1,FIND(")",A2)-FIND(":",A2,FIND("/",A2))-1)),MID(A2,(FIND(")",A2)+1),100)),CONCATENATE(MID(A2,1,3)," ",(SUM(MID(A2,FIND("(",A2)+1,FIND(":",A2)-FIND("(",A2)-1),MID(A2,FIND("_",A2)+1,FIND(":",A2,FIND("_",A2))-FIND("_",A2)-1))),":",SUM(MID(A2,FIND(":",A2)+1,FIND("_",A2)-FIND(":",A2)-1),MID(A2,FIND(":",A2,FIND("_",A2))+1,FIND(")",A2)-FIND(":",A2,FIND("_",A2))-1)),MID(A2,(FIND(")",A2)+1),100))),A2) -> PEt 33:0 | C2: =MID(B2,5,FIND(":",B2)-FIND(" ",B2)-1) -> 33 | D2: =IF(ISNUMBER(SEARCH("__",B2)),MID(B2,FIND(":",B2)+1,FIND("__",B2)-FIND(":",B2)-1),MID(B2,FIND(":",B2)+1,7)) -> 0 | E2: =C2+5 -> 38 | F2: =2*E2-(2*D2)-1-((LEN(A2)-LEN(SUBSTITUTE(A2,"_O_","")))/LEN("_O_"))*2-((LEN(A2)-LEN(SUBSTITUTE(A2,"_CHO_","")))/LEN("_CHO_"))*2-((LEN(A2)-LEN(SUBSTITUTE(A2,"_COOH_","")))/LEN("_COOH_"))*2 -> 75 | G2: 0 | H2: =8+((LEN(A2)-LEN(SUBSTITUTE(A2,"_OH_","")))/LEN("_OH_"))*1+((LEN(A2)-LEN(SUBSTITUTE(A2,"_OOH_","")))/LEN("_OOH_"))*2+((LEN(A2)-LEN(SUBSTITUTE(A2,"_O_","")))/LEN("_O_"))*1+((LEN(A2)-LEN(SUBSTITUTE(A2,"_CHO_","")))/LEN("_CHO_"))*1+((LEN(A2)-LEN(SUBSTITUTE(A2,"_COOH_","")))/LEN("_COOH_"))*2 -> 8 | I2: 1 | L2: =CONCATENATE("C",E2,"H",F2,"O",H2,"P",I2) -> C38H75O8P1 | M2: =(E2*12.0107)+(F2*1.00794)+(G2*14.0067)+(H2*15.9994)+(I2*30.973762) -> 690.971062 | N2: =(E2*12)+(F2*1.0078246)+(G2*14.003074)+(H2*15.994915)+(I2*30.973763) -> 690.519928 | O2: =N2+1.0078246-0.00055 -> 691.5272026 | P2: =O2-18.01057-0.00055 -> 673.5160826 | Q2: =N2+18.03437-0.00055 -> 708.553748 | R2: =N2+22.98977-0.00055 -> 713.509148 | S2: =N2+38.96371-0.00055 -> 729.483088 | T2: =N2+7.01601-0.00055 -> 697.535388 | U2: =N2-1.0078246+0.00055 -> 689.5126534 | V2: =N2+44.99767+0.00055 -> 735.518148 | W2: =N2+59.01332+0.00055 -> 749.533798
A3: PEt(16:0/18:2) | B3: =IF(ISNUMBER(SEARCH("(",A3)),IF(ISNUMBER(SEARCH("/",A3)),CONCATENATE(MID(A3,1,3)," ",(SUM(MID(A3,FIND("(",A3)+1,FIND(":",A3)-FIND("(",A3)-1),MID(A3,FIND("/",A3)+1,FIND(":",A3,FIND("/",A3))-FIND("/",A3)-1))),":",SUM(MID(A3,FIND(":",A3)+1,FIND("/",A3)-FIND(":",A3)-1),MID(A3,FIND(":",A3,FIND("/",A3))+1,FIND(")",A3)-FIND(":",A3,FIND("/",A3))-1)),MID(A3,(FIND(")",A3)+1),100)),CONCATENATE(MID(A3,1,3)," ",(SUM(MID(A3,FIND("(",A3)+1,FIND(":",A3)-FIND("(",A3)-1),MID(A3,FIND("_",A3)+1,FIND(":",A3,FIND("_",A3))-FIND("_",A3)-1))),":",SUM(MID(A3,FIND(":",A3)+1,FIND("_",A3)-FIND(":",A3)-1),MID(A3,FIND(":",A3,FIND("_",A3))+1,FIND(")",A3)-FIND(":",A3,FIND("_",A3))-1)),MID(A3,(FIND(")",A3)+1),100))),A3) -> PEt 34:2 | C3: =MID(B3,5,FIND(":",B3)-FIND(" ",B3)-1) -> 34 | D3: =IF(ISNUMBER(SEARCH("__",B3)),MID(B3,FIND(":",B3)+1,FIND("__",B3)-FIND(":",B3)-1),MID(B3,FIND(":",B3)+1,7)) -> 2 | E3: =C3+5 -> 39 | F3: =2*E3-(2*D3)-1-((LEN(A3)-LEN(SUBSTITUTE(A3,"_O_","")))/LEN("_O_"))*2-((LEN(A3)-LEN(SUBSTITUTE(A3,"_CHO_","")))/LEN("_CHO_"))*2-((LEN(A3)-LEN(SUBSTITUTE(A3,"_COOH_","")))/LEN("_COOH_"))*2 -> 73 | G3: 0 | H3: =8+((LEN(A3)-LEN(SUBSTITUTE(A3,"_OH_","")))/LEN("_OH_"))*1+((LEN(A3)-LEN(SUBSTITUTE(A3,"_OOH_","")))/LEN("_OOH_"))*2+((LEN(A3)-LEN(SUBSTITUTE(A3,"_O_","")))/LEN("_O_"))*1+((LEN(A3)-LEN(SUBSTITUTE(A3,"_CHO_","")))/LEN("_CHO_"))*1+((LEN(A3)-LEN(SUBSTITUTE(A3,"_COOH_","")))/LEN("_COOH_"))*2 -> 8 | I3: 1 | L3: =CONCATENATE("C",E3,"H",F3,"O",H3,"P",I3) -> C39H73O8P1 | M3: =(E3*12.0107)+(F3*1.00794)+(G3*14.0067)+(H3*15.9994)+(I3*30.973762) -> 700.965882 | N3: =(E3*12)+(F3*1.0078246)+(G3*14.003074)+(H3*15.994915)+(I3*30.973763) -> 700.5042788 | O3: =N3+1.0078246-0.00055 -> 701.5115534 | P3: =O3-18.01057-0.00055 -> 683.5004334 | Q3: =N3+18.03437-0.00055 -> 718.5380988 | R3: =N3+22.98977-0.00055 -> 723.4934988 | S3: =N3+38.96371-0.00055 -> 739.4674388 | T3: =N3+7.01601-0.00055 -> 707.5197388 | U3: =N3-1.0078246+0.00055 -> 699.4970042 | V3: =N3+44.99767+0.00055 -> 745.5024988 | W3: =N3+59.01332+0.00055 -> 759.5181488
A4: PEt(18:1_18:2)__CHO__ | B4: =IF(ISNUMBER(SEARCH("(",A4)),IF(ISNUMBER(SEARCH("/",A4)),CONCATENATE(MID(A4,1,3)," ",(SUM(MID(A4,FIND("(",A4)+1,FIND(":",A4)-FIND("(",A4)-1),MID(A4,FIND("/",A4)+1,FIND(":",A4,FIND("/",A4))-FIND("/",A4)-1))),":",SUM(MID(A4,FIND(":",A4)+1,FIND("/",A4)-FIND(":",A4)-1),MID(A4,FIND(":",A4,FIND("/",A4))+1,FIND(")",A4)-FIND(":",A4,FIND("/",A4))-1)),MID(A4,(FIND(")",A4)+1),100)),CONCATENATE(MID(A4,1,3)," ",(SUM(MID(A4,FIND("(",A4)+1,FIND(":",A4)-FIND("(",A4)-1),MID(A4,FIND("_",A4)+1,FIND(":",A4,FIND("_",A4))-FIND("_",A4)-1))),":",SUM(MID(A4,FIND(":",A4)+1,FIND("_",A4)-FIND(":",A4)-1),MID(A4,FIND(":",A4,FIND("_",A4))+1,FIND(")",A4)-FIND(":",A4,FIND("_",A4))-1)),MID(A4,(FIND(")",A4)+1),100))),A4) -> PEt 36:3__CHO__ | C4: =MID(B4,5,FIND(":",B4)-FIND(" ",B4)-1) -> 36 | D4: =IF(ISNUMBER(SEARCH("__",B4)),MID(B4,FIND(":",B4)+1,FIND("__",B4)-FIND(":",B4)-1),MID(B4,FIND(":",B4)+1,7)) -> 3 | E4: 41 | F4: =2*E4-(2*D4)-1-((LEN(A4)-LEN(SUBSTITUTE(A4,"_O_","")))/LEN("_O_"))*2-((LEN(A4)-LEN(SUBSTITUTE(A4,"_CHO_","")))/LEN("_CHO_"))*2-((LEN(A4)-LEN(SUBSTITUTE(A4,"_COOH_","")))/LEN("_COOH_"))*2 -> 73 | G4: 0 | H4: =8+((LEN(A4)-LEN(SUBSTITUTE(A4,"_OH_","")))/LEN("_OH_"))*1+((LEN(A4)-LEN(SUBSTITUTE(A4,"_OOH_","")))/LEN("_OOH_"))*2+((LEN(A4)-LEN(SUBSTITUTE(A4,"_O_","")))/LEN("_O_"))*1+((LEN(A4)-LEN(SUBSTITUTE(A4,"_CHO_","")))/LEN("_CHO_"))*1+((LEN(A4)-LEN(SUBSTITUTE(A4,"_COOH_","")))/LEN("_COOH_"))*2 -> 9 | I4: 1 | L4: =CONCATENATE("C",E4,"H",F4,"O",H4,"P",I4) -> C41H73O9P1 | M4: =(E4*12.0107)+(F4*1.00794)+(G4*14.0067)+(H4*15.9994)+(I4*30.973762) -> 740.986682 | N4: 740.4991938 | O4: =N4+1.0078246-0.00055 -> 741.5064684 | P4: =O4-18.01057-0.00055 -> 723.4953484 | Q4: =N4+18.03437-0.00055 -> 758.5330138 | R4: =N4+22.98977-0.00055 -> 763.4884138 | S4: =N4+38.96371-0.00055 -> 779.4623538 | T4: =N4+7.01601-0.00055 -> 747.5146538 | U4: =N4-1.0078246+0.00055 -> 739.4919192 | V4: =N4+44.99767+0.00055 -> 785.4974138 | W4: =N4+59.01332+0.00055 -> 799.5130638

Sheet PIP
A1: Lipid | B1: Sum Composition | E1: #C | F1: #H | G1: #N | H1: #O | I1: #P | L1: Formula | M1: Molecular Weight | N1: Neutral Mass | O1: [M+H]+ | P1: [M+H-H2O]+ | Q1: [M+NH4]+ | R1: [M+Na]+ | S1: [M+K]+ | T1: [M+Li]+ | U1: [M-H]- | V1: [M+HCOO]- | W1: [M+CH3COO]-
A2: PIP 54:5 | B2: =IF(ISNUMBER(SEARCH("(",A2)),IF(ISNUMBER(SEARCH("/",A2)),CONCATENATE(MID(A2,1,3)," ",(SUM(MID(A2,FIND("(",A2)+1,FIND(":",A2)-FIND("(",A2)-1),MID(A2,FIND("/",A2)+1,FIND(":",A2,FIND("/",A2))-FIND("/",A2)-1))),":",SUM(MID(A2,FIND(":",A2)+1,FIND("/",A2)-FIND(":",A2)-1),MID(A2,FIND(":",A2,FIND("/",A2))+1,FIND(")",A2)-FIND(":",A2,FIND("/",A2))-1)),MID(A2,(FIND(")",A2)+1),100)),CONCATENATE(MID(A2,1,3)," ",(SUM(MID(A2,FIND("(",A2)+1,FIND(":",A2)-FIND("(",A2)-1),MID(A2,FIND("_",A2)+1,FIND(":",A2,FIND("_",A2))-FIND("_",A2)-1))),":",SUM(MID(A2,FIND(":",A2)+1,FIND("_",A2)-FIND(":",A2)-1),MID(A2,FIND(":",A2,FIND("_",A2))+1,FIND(")",A2)-FIND(":",A2,FIND("_",A2))-1)),MID(A2,(FIND(")",A2)+1),100))),A2) -> PIP 54:5 | C2: =MID(B2,5,FIND(":",B2)-FIND(" ",B2)-1) -> 54 | D2: =IF(ISNUMBER(SEARCH("__",B2)),MID(B2,FIND(":",B2)+1,FIND("__",B2)-FIND(":",B2)-1),MID(B2,FIND(":",B2)+1,7)) -> 5 | E2: =C2+9 -> 63 | F2: =2*E2-(2*D2)-2-((LEN(A2)-LEN(SUBSTITUTE(A2,"_O_","")))/LEN("_O_"))*2-((LEN(A2)-LEN(SUBSTITUTE(A2,"_CHO_","")))/LEN("_CHO_"))*2-((LEN(A2)-LEN(SUBSTITUTE(A2,"_COOH_","")))/LEN("_COOH_"))*2 -> 114 | G2: 0 | H2: =16+((LEN(A2)-LEN(SUBSTITUTE(A2,"_OH_","")))/LEN("_OH_"))*1+((LEN(A2)-LEN(SUBSTITUTE(A2,"_OOH_","")))/LEN("_OOH_"))*2+((LEN(A2)-LEN(SUBSTITUTE(A2,"_O_","")))/LEN("_O_"))*1+((LEN(A2)-LEN(SUBSTITUTE(A2,"_CHO_","")))/LEN("_CHO_"))*1+((LEN(A2)-LEN(SUBSTITUTE(A2,"_COOH_","")))/LEN("_COOH_"))*2 -> 16 | I2: 2 | L2: =CONCATENATE("C",E2,"H",F2,"O",H2,"P",I2) -> C63H114O16P2 | M2: =(E2*12.0107)+(F2*1.00794)+(G2*14.0067)+(H2*15.9994)+(I2*30.973762) -> 1189.517184 | N2: =(E2*12)+(F2*1.0078246)+(G2*14.003074)+(H2*15.994915)+(I2*30.973763) -> 1188.75817 | O2: =N2+1.0078246-0.00055 -> 1189.765445 | P2: =O2-18.01057-0.00055 -> 1171.754325 | Q2: =N2+18.03437-0.00055 -> 1206.79199 | R2: =N2+22.98977-0.00055 -> 1211.74739 | S2: =N2+38.96371-0.00055 -> 1227.72133 | T2: =N2+7.01601-0.00055 -> 1195.77363 | U2: =N2-1.0078246+0.00055 -> 1187.750896 | V2: =N2+44.99767+0.00055 -> 1233.75639 | W2: =N2+59.01332+0.00055 -> 1247.77204
A3: PIP(16:1/18:1) | B3: =IF(ISNUMBER(SEARCH("(",A3)),IF(ISNUMBER(SEARCH("/",A3)),CONCATENATE(MID(A3,1,3)," ",(SUM(MID(A3,FIND("(",A3)+1,FIND(":",A3)-FIND("(",A3)-1),MID(A3,FIND("/",A3)+1,FIND(":",A3,FIND("/",A3))-FIND("/",A3)-1))),":",SUM(MID(A3,FIND(":",A3)+1,FIND("/",A3)-FIND(":",A3)-1),MID(A3,FIND(":",A3,FIND("/",A3))+1,FIND(")",A3)-FIND(":",A3,FIND("/",A3))-1)),MID(A3,(FIND(")",A3)+1),100)),CONCATENATE(MID(A3,1,3)," ",(SUM(MID(A3,FIND("(",A3)+1,FIND(":",A3)-FIND("(",A3)-1),MID(A3,FIND("_",A3)+1,FIND(":",A3,FIND("_",A3))-FIND("_",A3)-1))),":",SUM(MID(A3,FIND(":",A3)+1,FIND("_",A3)-FIND(":",A3)-1),MID(A3,FIND(":",A3,FIND("_",A3))+1,FIND(")",A3)-FIND(":",A3,FIND("_",A3))-1)),MID(A3,(FIND(")",A3)+1),100))),A3) -> PIP 34:2 | C3: =MID(B3,5,FIND(":",B3)-FIND(" ",B3)-1) -> 34 | D3: =IF(ISNUMBER(SEARCH("__",B3)),MID(B3,FIND(":",B3)+1,FIND("__",B3)-FIND(":",B3)-1),MID(B3,FIND(":",B3)+1,7)) -> 2 | E3: =C3+9 -> 43 | F3: =2*E3-(2*D3)-2-((LEN(A3)-LEN(SUBSTITUTE(A3,"_O_","")))/LEN("_O_"))*2-((LEN(A3)-LEN(SUBSTITUTE(A3,"_CHO_","")))/LEN("_CHO_"))*2-((LEN(A3)-LEN(SUBSTITUTE(A3,"_COOH_","")))/LEN("_COOH_"))*2 -> 80 | G3: 0 | H3: =16+((LEN(A3)-LEN(SUBSTITUTE(A3,"_OH_","")))/LEN("_OH_"))*1+((LEN(A3)-LEN(SUBSTITUTE(A3,"_OOH_","")))/LEN("_OOH_"))*2+((LEN(A3)-LEN(SUBSTITUTE(A3,"_O_","")))/LEN("_O_"))*1+((LEN(A3)-LEN(SUBSTITUTE(A3,"_CHO_","")))/LEN("_CHO_"))*1+((LEN(A3)-LEN(SUBSTITUTE(A3,"_COOH_","")))/LEN("_COOH_"))*2 -> 16 | I3: 2 | L3: =CONCATENATE("C",E3,"H",F3,"O",H3,"P",I3) -> C43H80O16P2 | M3: =(E3*12.0107)+(F3*1.00794)+(G3*14.0067)+(H3*15.9994)+(I3*30.973762) -> 915.033224 | N3: =(E3*12)+(F3*1.0078246)+(G3*14.003074)+(H3*15.994915)+(I3*30.973763) -> 914.492134 | O3: =N3+1.0078246-0.00055 -> 915.4994086 | P3: =O3-18.01057-0.00055 -> 897.4882886 | Q3: =N3+18.03437-0.00055 -> 932.525954 | R3: =N3+22.98977-0.00055 -> 937.481354 | S3: =N3+38.96371-0.00055 -> 953.455294 | T3: =N3+7.01601-0.00055 -> 921.507594 | U3: =N3-1.0078246+0.00055 -> 913.4848594 | V3: =N3+44.99767+0.00055 -> 959.490354 | W3: =N3+59.01332+0.00055 -> 973.506004
A4: PIP(18:1_18:2)__CHO__ | B4: =IF(ISNUMBER(SEARCH("(",A4)),IF(ISNUMBER(SEARCH("/",A4)),CONCATENATE(MID(A4,1,3)," ",(SUM(MID(A4,FIND("(",A4)+1,FIND(":",A4)-FIND("(",A4)-1),MID(A4,FIND("/",A4)+1,FIND(":",A4,FIND("/",A4))-FIND("/",A4)-1))),":",SUM(MID(A4,FIND(":",A4)+1,FIND("/",A4)-FIND(":",A4)-1),MID(A4,FIND(":",A4,FIND("/",A4))+1,FIND(")",A4)-FIND(":",A4,FIND("/",A4))-1)),MID(A4,(FIND(")",A4)+1),100)),CONCATENATE(MID(A4,1,3)," ",(SUM(MID(A4,FIND("(",A4)+1,FIND(":",A4)-FIND("(",A4)-1),MID(A4,FIND("_",A4)+1,FIND(":",A4,FIND("_",A4))-FIND("_",A4)-1))),":",SUM(MID(A4,FIND(":",A4)+1,FIND("_",A4)-FIND(":",A4)-1),MID(A4,FIND(":",A4,FIND("_",A4))+1,FIND(")",A4)-FIND(":",A4,FIND("_",A4))-1)),MID(A4,(FIND(")",A4)+1),100))),A4) -> PIP 36:3__CHO__ | C4: =MID(B4,5,FIND(":",B4)-FIND(" ",B4)-1) -> 36 | D4: =IF(ISNUMBER(SEARCH("__",B4)),MID(B4,FIND(":",B4)+1,FIND("__",B4)-FIND(":",B4)-1),MID(B4,FIND(":",B4)+1,7)) -> 3 | E4: =C4+9 -> 45 | F4: =2*E4-(2*D4)-2-((LEN(A4)-LEN(SUBSTITUTE(A4,"_O_","")))/LEN("_O_"))*2-((LEN(A4)-LEN(SUBSTITUTE(A4,"_CHO_","")))/LEN("_CHO_"))*2-((LEN(A4)-LEN(SUBSTITUTE(A4,"_COOH_","")))/LEN("_COOH_"))*2 -> 80 | G4: 0 | H4: =16+((LEN(A4)-LEN(SUBSTITUTE(A4,"_OH_","")))/LEN("_OH_"))*1+((LEN(A4)-LEN(SUBSTITUTE(A4,"_OOH_","")))/LEN("_OOH_"))*2+((LEN(A4)-LEN(SUBSTITUTE(A4,"_O_","")))/LEN("_O_"))*1+((LEN(A4)-LEN(SUBSTITUTE(A4,"_CHO_","")))/LEN("_CHO_"))*1+((LEN(A4)-LEN(SUBSTITUTE(A4,"_COOH_","")))/LEN("_COOH_"))*2 -> 17 | I4: 2 | L4: C45H80O17P2 | M4: =(E4*12.0107)+(F4*1.00794)+(G4*14.0067)+(H4*15.9994)+(I4*30.973762) -> 955.054024 | N4: =(E4*12)+(F4*1.0078246)+(G4*14.003074)+(H4*15.994915)+(I4*30.973763) -> 954.487049 | O4: =N4+1.0078246-0.00055 -> 955.4943236 | P4: =O4-18.01057-0.00055 -> 937.4832036 | Q4: =N4+18.03437-0.00055 -> 972.520869 | R4: =N4+22.98977-0.00055 -> 977.476269 | S4: =N4+38.96371-0.00055 -> 993.450209 | T4: =N4+7.01601-0.00055 -> 961.502509 | U4: =N4-1.0078246+0.00055 -> 953.4797744 | V4: =N4+44.99767+0.00055 -> 999.485269 | W4: =N4+59.01332+0.00055 -> 1013.500919

Sheet PMe
A1: Lipid | B1: Sum Composition | E1: #C | F1: #H | G1: #N | H1: #O | I1: #P | L1: Formula | M1: Molecular Weight | N1: Neutral Mass | O1: [M+H]+ | P1: [M+H-H2O]+ | Q1: [M+NH4]+ | R1: [M+Na]+ | S1: [M+K]+ | T1: [M+Li]+ | U1: [M-H]- | V1: [M+HCOO]- | W1: [M+CH3COO]-
A2: PMe 38:0 | B2: =IF(ISNUMBER(SEARCH("(",A2)),IF(ISNUMBER(SEARCH("/",A2)),CONCATENATE(MID(A2,1,3)," ",(SUM(MID(A2,FIND("(",A2)+1,FIND(":",A2)-FIND("(",A2)-1),MID(A2,FIND("/",A2)+1,FIND(":",A2,FIND("/",A2))-FIND("/",A2)-1))),":",SUM(MID(A2,FIND(":",A2)+1,FIND("/",A2)-FIND(":",A2)-1),MID(A2,FIND(":",A2,FIND("/",A2))+1,FIND(")",A2)-FIND(":",A2,FIND("/",A2))-1)),MID(A2,(FIND(")",A2)+1),100)),CONCATENATE(MID(A2,1,3)," ",(SUM(MID(A2,FIND("(",A2)+1,FIND(":",A2)-FIND("(",A2)-1),MID(A2,FIND("_",A2)+1,FIND(":",A2,FIND("_",A2))-FIND("_",A2)-1))),":",SUM(MID(A2,FIND(":",A2)+1,FIND("_",A2)-FIND(":",A2)-1),MID(A2,FIND(":",A2,FIND("_",A2))+1,FIND(")",A2)-FIND(":",A2,FIND("_",A2))-1)),MID(A2,(FIND(")",A2)+1),100))),A2) -> PMe 38:0 | C2: =MID(B2,5,FIND(":",B2)-FIND(" ",B2)-1) -> 38 | D2: =IF(ISNUMBER(SEARCH("__",B2)),MID(B2,FIND(":",B2)+1,FIND("__",B2)-FIND(":",B2)-1),MID(B2,FIND(":",B2)+1,7)) -> 0 | E2: =C2+4 -> 42 | F2: =2*E2-(2*D2)-1-((LEN(A2)-LEN(SUBSTITUTE(A2,"_O_","")))/LEN("_O_"))*2-((LEN(A2)-LEN(SUBSTITUTE(A2,"_CHO_","")))/LEN("_CHO_"))*2-((LEN(A2)-LEN(SUBSTITUTE(A2,"_COOH_","")))/LEN("_COOH_"))*2 -> 83 | G2: 0 | H2: =8+((LEN(A2)-LEN(SUBSTITUTE(A2,"_OH_","")))/LEN("_OH_"))*1+((LEN(A2)-LEN(SUBSTITUTE(A2,"_OOH_","")))/LEN("_OOH_"))*2+((LEN(A2)-LEN(SUBSTITUTE(A2,"_O_","")))/LEN("_O_"))*1+((LEN(A2)-LEN(SUBSTITUTE(A2,"_CHO_","")))/LEN("_CHO_"))*1+((LEN(A2)-LEN(SUBSTITUTE(A2,"_COOH_","")))/LEN("_COOH_"))*2 -> 8 | I2: 1 | L2: =CONCATENATE("C",E2,"H",F2,"O",H2,"P",I2) -> C42H83O8P1 | M2: =(E2*12.0107)+(F2*1.00794)+(G2*14.0067)+(H2*15.9994)+(I2*30.973762) -> 747.077382 | N2: =(E2*12)+(F2*1.0078246)+(G2*14.003074)+(H2*15.994915)+(I2*30.973763) -> 746.5825248 | O2: =N2+1.0078246-0.00055 -> 747.5897994 | P2: =O2-18.01057-0.00055 -> 729.5786794 | Q2: =N2+18.03437-0.00055 -> 764.6163448 | R2: =N2+22.98977-0.00055 -> 769.5717448 | S2: =N2+38.96371-0.00055 -> 785.5456848 | T2: =N2+7.01601-0.00055 -> 753.5979848 | U2: =N2-1.0078246+0.00055 -> 745.5752502 | V2: =N2+44.99767+0.00055 -> 791.5807448 | W2: =N2+59.01332+0.00055 -> 805.5963948
A3: PMe(16:0/18:1) | B3: =IF(ISNUMBER(SEARCH("(",A3)),IF(ISNUMBER(SEARCH("/",A3)),CONCATENATE(MID(A3,1,3)," ",(SUM(MID(A3,FIND("(",A3)+1,FIND(":",A3)-FIND("(",A3)-1),MID(A3,FIND("/",A3)+1,FIND(":",A3,FIND("/",A3))-FIND("/",A3)-1))),":",SUM(MID(A3,FIND(":",A3)+1,FIND("/",A3)-FIND(":",A3)-1),MID(A3,FIND(":",A3,FIND("/",A3))+1,FIND(")",A3)-FIND(":",A3,FIND("/",A3))-1)),MID(A3,(FIND(")",A3)+1),100)),CONCATENATE(MID(A3,1,3)," ",(SUM(MID(A3,FIND("(",A3)+1,FIND(":",A3)-FIND("(",A3)-1),MID(A3,FIND("_",A3)+1,FIND(":",A3,FIND("_",A3))-FIND("_",A3)-1))),":",SUM(MID(A3,FIND(":",A3)+1,FIND("_",A3)-FIND(":",A3)-1),MID(A3,FIND(":",A3,FIND("_",A3))+1,FIND(")",A3)-FIND(":",A3,FIND("_",A3))-1)),MID(A3,(FIND(")",A3)+1),100))),A3) -> PMe 34:1 | C3: =MID(B3,5,FIND(":",B3)-FIND(" ",B3)-1) -> 34 | D3: =IF(ISNUMBER(SEARCH("__",B3)),MID(B3,FIND(":",B3)+1,FIND("__",B3)-FIND(":",B3)-1),MID(B3,FIND(":",B3)+1,7)) -> 1 | E3: =C3+4 -> 38 | F3: =2*E3-(2*D3)-1-((LEN(A3)-LEN(SUBSTITUTE(A3,"_O_","")))/LEN("_O_"))*2-((LEN(A3)-LEN(SUBSTITUTE(A3,"_CHO_","")))/LEN("_CHO_"))*2-((LEN(A3)-LEN(SUBSTITUTE(A3,"_COOH_","")))/LEN("_COOH_"))*2 -> 73 | G3: 0 | H3: =8+((LEN(A3)-LEN(SUBSTITUTE(A3,"_OH_","")))/LEN("_OH_"))*1+((LEN(A3)-LEN(SUBSTITUTE(A3,"_OOH_","")))/LEN("_OOH_"))*2+((LEN(A3)-LEN(SUBSTITUTE(A3,"_O_","")))/LEN("_O_"))*1+((LEN(A3)-LEN(SUBSTITUTE(A3,"_CHO_","")))/LEN("_CHO_"))*1+((LEN(A3)-LEN(SUBSTITUTE(A3,"_COOH_","")))/LEN("_COOH_"))*2 -> 8 | I3: 1 | L3: =CONCATENATE("C",E3,"H",F3,"O",H3,"P",I3) -> C38H73O8P1 | M3: =(E3*12.0107)+(F3*1.00794)+(G3*14.0067)+(H3*15.9994)+(I3*30.973762) -> 688.955182 | N3: =(E3*12)+(F3*1.0078246)+(G3*14.003074)+(H3*15.994915)+(I3*30.973763) -> 688.5042788 | O3: =N3+1.0078246-0.00055 -> 689.5115534 | P3: =O3-18.01057-0.00055 -> 671.5004334 | Q3: =N3+18.03437-0.00055 -> 706.5380988 | R3: =N3+22.98977-0.00055 -> 711.4934988 | S3: =N3+38.96371-0.00055 -> 727.4674388 | T3: =N3+7.01601-0.00055 -> 695.5197388 | U3: =N3-1.0078246+0.00055 -> 687.4970042 | V3: =N3+44.99767+0.00055 -> 733.5024988 | W3: =N3+59.01332+0.00055 -> 747.5181488
A4: PMe(18:1/18:2)__COOH__ | B4: =IF(ISNUMBER(SEARCH("(",A4)),IF(ISNUMBER(SEARCH("/",A4)),CONCATENATE(MID(A4,1,3)," ",(SUM(MID(A4,FIND("(",A4)+1,FIND(":",A4)-FIND("(",A4)-1),MID(A4,FIND("/",A4)+1,FIND(":",A4,FIND("/",A4))-FIND("/",A4)-1))),":",SUM(MID(A4,FIND(":",A4)+1,FIND("/",A4)-FIND(":",A4)-1),MID(A4,FIND(":",A4,FIND("/",A4))+1,FIND(")",A4)-FIND(":",A4,FIND("/",A4))-1)),MID(A4,(FIND(")",A4)+1),100)),CONCATENATE(MID(A4,1,3)," ",(SUM(MID(A4,FIND("(",A4)+1,FIND(":",A4)-FIND("(",A4)-1),MID(A4,FIND("_",A4)+1,FIND(":",A4,FIND("_",A4))-FIND("_",A4)-1))),":",SUM(MID(A4,FIND(":",A4)+1,FIND("_",A4)-FIND(":",A4)-1),MID(A4,FIND(":",A4,FIND("_",A4))+1,FIND(")",A4)-FIND(":",A4,FIND("_",A4))-1)),MID(A4,(FIND(")",A4)+1),100))),A4) -> PMe 36:3__COOH__ | C4: =MID(B4,5,FIND(":",B4)-FIND(" ",B4)-1) -> 36 | D4: =IF(ISNUMBER(SEARCH("__",B4)),MID(B4,FIND(":",B4)+1,FIND("__",B4)-FIND(":",B4)-1),MID(B4,FIND(":",B4)+1,7)) -> 3 | E4: =C4+4 -> 40 | F4: =2*E4-(2*D4)-1-((LEN(A4)-LEN(SUBSTITUTE(A4,"_O_","")))/LEN("_O_"))*2-((LEN(A4)-LEN(SUBSTITUTE(A4,"_CHO_","")))/LEN("_CHO_"))*2-((LEN(A4)-LEN(SUBSTITUTE(A4,"_COOH_","")))/LEN("_COOH_"))*2 -> 71 | G4: 0 | H4: =8+((LEN(A4)-LEN(SUBSTITUTE(A4,"_OH_","")))/LEN("_OH_"))*1+((LEN(A4)-LEN(SUBSTITUTE(A4,"_OOH_","")))/LEN("_OOH_"))*2+((LEN(A4)-LEN(SUBSTITUTE(A4,"_O_","")))/LEN("_O_"))*1+((LEN(A4)-LEN(SUBSTITUTE(A4,"_CHO_","")))/LEN("_CHO_"))*1+((LEN(A4)-LEN(SUBSTITUTE(A4,"_COOH_","")))/LEN("_COOH_"))*2 -> 10 | I4: 1 | L4: =CONCATENATE("C",E4,"H",F4,"O",H4,"P",I4) -> C40H71O10P1 | M4: =(E4*12.0107)+(F4*1.00794)+(G4*14.0067)+(H4*15.9994)+(I4*30.973762) -> 742.959502 | N4: =(E4*12)+(F4*1.0078246)+(G4*14.003074)+(H4*15.994915)+(I4*30.973763) -> 742.4784596 | O4: =N4+1.0078246-0.00055 -> 743.4857342 | P4: =O4-18.01057-0.00055 -> 725.4746142 | Q4: =N4+18.03437-0.00055 -> 760.5122796 | R4: =N4+22.98977-0.00055 -> 765.4676796 | S4: =N4+38.96371-0.00055 -> 781.4416196 | T4: =N4+7.01601-0.00055 -> 749.4939196 | U4: =N4-1.0078246+0.00055 -> 741.471185 | V4: =N4+44.99767+0.00055 -> 787.4766796 | W4: =N4+59.01332+0.00055 -> 801.4923296

Sheet MGDG
A1: Lipid | B1: Sum Composition | E1: #C | F1: #H | G1: #N | H1: #O | I1: #P | L1: Formula | M1: Molecular Weight | N1: Neutral Mass | O1: [M+H]+ | P1: [M+H-H2O]+ | Q1: [M+NH4]+ | R1: [M+Na]+ | S1: [M+K]+ | T1: [M+Li]+ | U1: [M-H]- | V1: [M+HCOO]- | W1: [M+CH3COO]-
A2: MGDG 36:4__O__ | B2: =IF(ISNUMBER(SEARCH("(",A2)),IF(ISNUMBER(SEARCH("/",A2)),CONCATENATE(MID(A2,1,4)," ",(SUM(MID(A2,FIND("(",A2)+1,FIND(":",A2)-FIND("(",A2)-1),MID(A2,FIND("/",A2)+1,FIND(":",A2,FIND("/",A2))-FIND("/",A2)-1))),":",SUM(MID(A2,FIND(":",A2)+1,FIND("/",A2)-FIND(":",A2)-1),MID(A2,FIND(":",A2,FIND("/",A2))+1,FIND(")",A2)-FIND(":",A2,FIND("/",A2))-1)),MID(A2,(FIND(")",A2)+1),100)),CONCATENATE(MID(A2,1,4)," ",(SUM(MID(A2,FIND("(",A2)+1,FIND(":",A2)-FIND("(",A2)-1),MID(A2,FIND("_",A2)+1,FIND(":",A2,FIND("_",A2))-FIND("_",A2)-1))),":",SUM(MID(A2,FIND(":",A2)+1,FIND("_",A2)-FIND(":",A2)-1),MID(A2,FIND(":",A2,FIND("_",A2))+1,FIND(")",A2)-FIND(":",A2,FIND("_",A2))-1)),MID(A2,(FIND(")",A2)+1),100))),A2) -> MGDG 36:4__O__ | C2: =MID(B2,6,FIND(":",B2)-FIND(" ",B2)-1) -> 36 | D2: =IF(ISNUMBER(SEARCH("__",B2)),MID(B2,FIND(":",B2)+1,FIND("__",B2)-FIND(":",B2)-1),MID(B2,FIND(":",B2)+1,7)) -> 4 | E2: =C2+9 -> 45 | F2: =2*E2-(2*D2)-4-((LEN(A2)-LEN(SUBSTITUTE(A2,"_O_","")))/LEN("_O_"))*2-((LEN(A2)-LEN(SUBSTITUTE(A2,"_CHO_","")))/LEN("_CHO_"))*2-((LEN(A2)-LEN(SUBSTITUTE(A2,"_COOH_","")))/LEN("_COOH_"))*2 -> 76 | G2: 0 | H2: =10+((LEN(A2)-LEN(SUBSTITUTE(A2,"_OH_","")))/LEN("_OH_"))*1+((LEN(A2)-LEN(SUBSTITUTE(A2,"_OOH_","")))/LEN("_OOH_"))*2+((LEN(A2)-LEN(SUBSTITUTE(A2,"_O_","")))/LEN("_O_"))*1+((LEN(A2)-LEN(SUBSTITUTE(A2,"_CHO_","")))/LEN("_CHO_"))*1+((LEN(A2)-LEN(SUBSTITUTE(A2,"_COOH_","")))/LEN("_COOH_"))*2 -> 11 | I2: 0 | L2: =CONCATENATE("C",E2,"H",F2,"O",H2,) -> C45H76O11 | M2: =(E2*12.0107)+(F2*1.00794)+(G2*14.0067)+(H2*15.9994)+(I2*30.973762) -> 793.07834 | N2: =(E2*12)+(F2*1.0078246)+(G2*14.003074)+(H2*15.994915)+(I2*30.973763) -> 792.5387346 | O2: =N2+1.0078246-0.00055 -> 793.5460092 | P2: =O2-18.01057-0.00055 -> 775.5348892 | Q2: =N2+18.03437-0.00055 -> 810.5725546 | R2: =N2+22.98977-0.00055 -> 815.5279546 | S2: =N2+38.96371-0.00055 -> 831.5018946 | T2: =N2+7.01601-0.00055 -> 799.5541946 | U2: =N2-1.0078246+0.00055 -> 791.53146 | V2: =N2+44.99767+0.00055 -> 837.5369546 | W2: =N2+59.01332+0.00055 -> 851.5526046
A3: MGDG(16:0/22:6)__O__ | B3: =IF(ISNUMBER(SEARCH("(",A3)),IF(ISNUMBER(SEARCH("/",A3)),CONCATENATE(MID(A3,1,4)," ",(SUM(MID(A3,FIND("(",A3)+1,FIND(":",A3)-FIND("(",A3)-1),MID(A3,FIND("/",A3)+1,FIND(":",A3,FIND("/",A3))-FIND("/",A3)-1))),":",SUM(MID(A3,FIND(":",A3)+1,FIND("/",A3)-FIND(":",A3)-1),MID(A3,FIND(":",A3,FIND("/",A3))+1,FIND(")",A3)-FIND(":",A3,FIND("/",A3))-1)),MID(A3,(FIND(")",A3)+1),100)),CONCATENATE(MID(A3,1,4)," ",(SUM(MID(A3,FIND("(",A3)+1,FIND(":",A3)-FIND("(",A3)-1),MID(A3,FIND("_",A3)+1,FIND(":",A3,FIND("_",A3))-FIND("_",A3)-1))),":",SUM(MID(A3,FIND(":",A3)+1,FIND("_",A3)-FIND(":",A3)-1),MID(A3,FIND(":",A3,FIND("_",A3))+1,FIND(")",A3)-FIND(":",A3,FIND("_",A3))-1)),MID(A3,(FIND(")",A3)+1),100))),A3) -> MGDG 38:6__O__ | C3: =MID(B3,6,FIND(":",B3)-FIND(" ",B3)-1) -> 38 | D3: =IF(ISNUMBER(SEARCH("__",B3)),MID(B3,FIND(":",B3)+1,FIND("__",B3)-FIND(":",B3)-1),MID(B3,FIND(":",B3)+1,7)) -> 6 | E3: =C3+9 -> 47 | F3: =2*E3-(2*D3)-4-((LEN(A3)-LEN(SUBSTITUTE(A3,"_O_","")))/LEN("_O_"))*2-((LEN(A3)-LEN(SUBSTITUTE(A3,"_CHO_","")))/LEN("_CHO_"))*2-((LEN(A3)-LEN(SUBSTITUTE(A3,"_COOH_","")))/LEN("_COOH_"))*2 -> 76 | G3: 0 | H3: =10+((LEN(A3)-LEN(SUBSTITUTE(A3,"_OH_","")))/LEN("_OH_"))*1+((LEN(A3)-LEN(SUBSTITUTE(A3,"_OOH_","")))/LEN("_OOH_"))*2+((LEN(A3)-LEN(SUBSTITUTE(A3,"_O_","")))/LEN("_O_"))*1+((LEN(A3)-LEN(SUBSTITUTE(A3,"_CHO_","")))/LEN("_CHO_"))*1+((LEN(A3)-LEN(SUBSTITUTE(A3,"_COOH_","")))/LEN("_COOH_"))*2 -> 11 | I3: 0 | L3: =CONCATENATE("C",E3,"H",F3,"O",H3,) -> C47H76O11 | M3: =(E3*12.0107)+(F3*1.00794)+(G3*14.0067)+(H3*15.9994)+(I3*30.973762) -> 817.09974 | N3: =(E3*12)+(F3*1.0078246)+(G3*14.003074)+(H3*15.994915)+(I3*30.973763) -> 816.5387346 | O3: =N3+1.0078246-0.00055 -> 817.5460092 | P3: =O3-18.01057-0.00055 -> 799.5348892 | Q3: =N3+18.03437-0.00055 -> 834.5725546 | R3: =N3+22.98977-0.00055 -> 839.5279546 | S3: =N3+38.96371-0.00055 -> 855.5018946 | T3: =N3+7.01601-0.00055 -> 823.5541946 | U3: =N3-1.0078246+0.00055 -> 815.53146 | V3: =N3+44.99767+0.00055 -> 861.5369546 | W3: =N3+59.01332+0.00055 -> 875.5526046
A4: MGDG(16:0_22:6) | B4: =IF(ISNUMBER(SEARCH("(",A4)),IF(ISNUMBER(SEARCH("/",A4)),CONCATENATE(MID(A4,1,4)," ",(SUM(MID(A4,FIND("(",A4)+1,FIND(":",A4)-FIND("(",A4)-1),MID(A4,FIND("/",A4)+1,FIND(":",A4,FIND("/",A4))-FIND("/",A4)-1))),":",SUM(MID(A4,FIND(":",A4)+1,FIND("/",A4)-FIND(":",A4)-1),MID(A4,FIND(":",A4,FIND("/",A4))+1,FIND(")",A4)-FIND(":",A4,FIND("/",A4))-1)),MID(A4,(FIND(")",A4)+1),100)),CONCATENATE(MID(A4,1,4)," ",(SUM(MID(A4,FIND("(",A4)+1,FIND(":",A4)-FIND("(",A4)-1),MID(A4,FIND("_",A4)+1,FIND(":",A4,FIND("_",A4))-FIND("_",A4)-1))),":",SUM(MID(A4,FIND(":",A4)+1,FIND("_",A4)-FIND(":",A4)-1),MID(A4,FIND(":",A4,FIND("_",A4))+1,FIND(")",A4)-FIND(":",A4,FIND("_",A4))-1)),MID(A4,(FIND(")",A4)+1),100))),A4) -> MGDG 38:6 | C4: =MID(B4,6,FIND(":",B4)-FIND(" ",B4)-1) -> 38 | D4: =IF(ISNUMBER(SEARCH("__",B4)),MID(B4,FIND(":",B4)+1,FIND("__",B4)-FIND(":",B4)-1),MID(B4,FIND(":",B4)+1,7)) -> 6 | E4: =C4+9 -> 47 | F4: =2*E4-(2*D4)-4-((LEN(A4)-LEN(SUBSTITUTE(A4,"_O_","")))/LEN("_O_"))*2-((LEN(A4)-LEN(SUBSTITUTE(A4,"_CHO_","")))/LEN("_CHO_"))*2-((LEN(A4)-LEN(SUBSTITUTE(A4,"_COOH_","")))/LEN("_COOH_"))*2 -> 78 | G4: 0 | H4: =10+((LEN(A4)-LEN(SUBSTITUTE(A4,"_OH_","")))/LEN("_OH_"))*1+((LEN(A4)-LEN(SUBSTITUTE(A4,"_OOH_","")))/LEN("_OOH_"))*2+((LEN(A4)-LEN(SUBSTITUTE(A4,"_O_","")))/LEN("_O_"))*1+((LEN(A4)-LEN(SUBSTITUTE(A4,"_CHO_","")))/LEN("_CHO_"))*1+((LEN(A4)-LEN(SUBSTITUTE(A4,"_COOH_","")))/LEN("_COOH_"))*2 -> 10 | I4: 0 | L4: =CONCATENATE("C",E4,"H",F4,"O",H4,) -> C47H78O10 | M4: =(E4*12.0107)+(F4*1.00794)+(G4*14.0067)+(H4*15.9994)+(I4*30.973762) -> 803.11622 | N4: 802.5594688 | O4: =N4+1.0078246-0.00055 -> 803.5667434 | P4: =O4-18.01057-0.00055 -> 785.5556234 | Q4: =N4+18.03437-0.00055 -> 820.5932888 | R4: =N4+22.98977-0.00055 -> 825.5486888 | S4: =N4+38.96371-0.00055 -> 841.5226288 | T4: =N4+7.01601-0.00055 -> 809.5749288 | U4: =N4-1.0078246+0.00055 -> 801.5521942 | V4: =N4+44.99767+0.00055 -> 847.5576888 | W4: =N4+59.01332+0.00055 -> 861.5733388

Sheet OAHFA
A1: Lipid | B1: Sum Composition | E1: #C | F1: #H | G1: #N | H1: #O | I1: #P | L1: Formula | M1: Molecular Weight | N1: Neutral Mass | O1: [M+H]+ | P1: [M+H-H2O]+ | Q1: [M+NH4]+ | R1: [M+Na]+ | S1: [M+K]+ | T1: [M+Li]+ | U1: [M-H]- | V1: [M+HCOO]- | W1: [M+CH3COO]-
A2: OAHFA 34:0 | B2: =IF(ISNUMBER(SEARCH("(",A2)),IF(ISNUMBER(SEARCH("/",A2)),CONCATENATE(MID(A2,1,5)," ",(SUM(MID(A2,FIND("(",A2)+1,FIND(":",A2)-FIND("(",A2)-1),MID(A2,FIND("/",A2)+1,FIND(":",A2,FIND("/",A2))-FIND("/",A2)-1))),":",SUM(MID(A2,FIND(":",A2)+1,FIND("/",A2)-FIND(":",A2)-1),MID(A2,FIND(":",A2,FIND("/",A2))+1,FIND(")",A2)-FIND(":",A2,FIND("/",A2))-1)),MID(A2,(FIND(")",A2)+1),100)),CONCATENATE(MID(A2,1,5)," ",(SUM(MID(A2,FIND("(",A2)+1,FIND(":",A2)-FIND("(",A2)-1),MID(A2,FIND("_",A2)+1,FIND(":",A2,FIND("_",A2))-FIND("_",A2)-1))),":",SUM(MID(A2,FIND(":",A2)+1,FIND("_",A2)-FIND(":",A2)-1),MID(A2,FIND(":",A2,FIND("_",A2))+1,FIND(")",A2)-FIND(":",A2,FIND("_",A2))-1)),MID(A2,(FIND(")",A2)+1),100))),A2) -> OAHFA 34:0 | C2: =MID(B2,7,FIND(":",B2)-FIND(" ",B2)-1) -> 34 | D2: =IF(ISNUMBER(SEARCH("__",B2)),MID(B2,FIND(":",B2)+1,FIND("__",B2)-FIND(":",B2)-1),MID(B2,FIND(":",B2)+1,7)) -> 0 | E2: =C2 -> 34 | F2: =2*E2-(2*D2)-2-((LEN(A2)-LEN(SUBSTITUTE(A2,"_O_","")))/LEN("_O_"))*2-((LEN(A2)-LEN(SUBSTITUTE(A2,"_CHO_","")))/LEN("_CHO_"))*2-((LEN(A2)-LEN(SUBSTITUTE(A2,"_COOH_","")))/LEN("_COOH_"))*2 -> 66 | G2: 0 | H2: =4+((LEN(A2)-LEN(SUBSTITUTE(A2,"_OH_","")))/LEN("_OH_"))*1+((LEN(A2)-LEN(SUBSTITUTE(A2,"_OOH_","")))/LEN("_OOH_"))*2+((LEN(A2)-LEN(SUBSTITUTE(A2,"_O_","")))/LEN("_O_"))*1+((LEN(A2)-LEN(SUBSTITUTE(A2,"_CHO_","")))/LEN("_CHO_"))*1+((LEN(A2)-LEN(SUBSTITUTE(A2,"_COOH_","")))/LEN("_COOH_"))*2 -> 4 | I2: 0 | L2: =CONCATENATE("C",E2,"H",F2,"O",H2,) -> C34H66O4 | M2: =(E2*12.0107)+(F2*1.00794)+(G2*14.0067)+(H2*15.9994)+(I2*30.973762) -> 538.88544 | N2: =(E2*12)+(F2*1.0078246)+(G2*14.003074)+(H2*15.994915)+(I2*30.973763) -> 538.4960836 | O2: =N2+1.0078246-0.00055 -> 539.5033582 | P2: =O2-18.01057-0.00055 -> 521.4922382 | Q2: =N2+18.03437-0.00055 -> 556.5299036 | R2: =N2+22.98977-0.00055 -> 561.4853036 | S2: =N2+38.96371-0.00055 -> 577.4592436 | T2: =N2+7.01601-0.00055 -> 545.5115436 | U2: =N2-1.0078246+0.00055 -> 537.488809 | V2: =N2+44.99767+0.00055 -> 583.4943036 | W2: =N2+59.01332+0.00055 -> 597.5099536
A3: OAHFA 36:0 | B3: =IF(ISNUMBER(SEARCH("(",A3)),IF(ISNUMBER(SEARCH("/",A3)),CONCATENATE(MID(A3,1,5)," ",(SUM(MID(A3,FIND("(",A3)+1,FIND(":",A3)-FIND("(",A3)-1),MID(A3,FIND("/",A3)+1,FIND(":",A3,FIND("/",A3))-FIND("/",A3)-1))),":",SUM(MID(A3,FIND(":",A3)+1,FIND("/",A3)-FIND(":",A3)-1),MID(A3,FIND(":",A3,FIND("/",A3))+1,FIND(")",A3)-FIND(":",A3,FIND("/",A3))-1)),MID(A3,(FIND(")",A3)+1),100)),CONCATENATE(MID(A3,1,5)," ",(SUM(MID(A3,FIND("(",A3)+1,FIND(":",A3)-FIND("(",A3)-1),MID(A3,FIND("_",A3)+1,FIND(":",A3,FIND("_",A3))-FIND("_",A3)-1))),":",SUM(MID(A3,FIND(":",A3)+1,FIND("_",A3)-FIND(":",A3)-1),MID(A3,FIND(":",A3,FIND("_",A3))+1,FIND(")",A3)-FIND(":",A3,FIND("_",A3))-1)),MID(A3,(FIND(")",A3)+1),100))),A3) -> OAHFA 36:0 | C3: =MID(B3,7,FIND(":",B3)-FIND(" ",B3)-1) -> 36 | D3: =IF(ISNUMBER(SEARCH("__",B3)),MID(B3,FIND(":",B3)+1,FIND("__",B3)-FIND(":",B3)-1),MID(B3,FIND(":",B3)+1,7)) -> 0 | E3: =C3 -> 36 | F3: =2*E3-(2*D3)-2-((LEN(A3)-LEN(SUBSTITUTE(A3,"_O_","")))/LEN("_O_"))*2-((LEN(A3)-LEN(SUBSTITUTE(A3,"_CHO_","")))/LEN("_CHO_"))*2-((LEN(A3)-LEN(SUBSTITUTE(A3,"_COOH_","")))/LEN("_COOH_"))*2 -> 70 | G3: 0 | H3: =4+((LEN(A3)-LEN(SUBSTITUTE(A3,"_OH_","")))/LEN("_OH_"))*1+((LEN(A3)-LEN(SUBSTITUTE(A3,"_OOH_","")))/LEN("_OOH_"))*2+((LEN(A3)-LEN(SUBSTITUTE(A3,"_O_","")))/LEN("_O_"))*1+((LEN(A3)-LEN(SUBSTITUTE(A3,"_CHO_","")))/LEN("_CHO_"))*1+((LEN(A3)-LEN(SUBSTITUTE(A3,"_COOH_","")))/LEN("_COOH_"))*2 -> 4 | I3: 0 | L3: =CONCATENATE("C",E3,"H",F3,"O",H3,) -> C36H70O4 | M3: =(E3*12.0107)+(F3*1.00794)+(G3*14.0067)+(H3*15.9994)+(I3*30.973762) -> 566.9386 | N3: =(E3*12)+(F3*1.0078246)+(G3*14.003074)+(H3*15.994915)+(I3*30.973763) -> 566.527382 | O3: =N3+1.0078246-0.00055 -> 567.5346566 | P3: =O3-18.01057-0.00055 -> 549.5235366 | Q3: =N3+18.03437-0.00055 -> 584.561202 | R3: =N3+22.98977-0.00055 -> 589.516602 | S3: =N3+38.96371-0.00055 -> 605.490542 | T3: =N3+7.01601-0.00055 -> 573.542842 | U3: =N3-1.0078246+0.00055 -> 565.5201074 | V3: =N3+44.99767+0.00055 -> 611.525602 | W3: =N3+59.01332+0.00055 -> 625.541252

Sheet So
A1: Lipid | E1: #C | F1: #H | G1: #N | H1: #O | I1: #P | L1: Formula | M1: Molecular Weight | N1: Neutral Mass | O1: [M+H]+ | P1: [M+H-H2O]+ | Q1: [M+NH4]+ | R1: [M+Na]+ | S1: [M+K]+ | T1: [M+Li]+ | U1: [M-H]- | V1: [M+HCOO]- | W1: [M+CH3COO]-
A2: So d18:1 | B2: =IF(ISNUMBER(SEARCH("(",A2)),IF(ISNUMBER(SEARCH("/",A2)),CONCATENATE(MID(A2,1,2)," ","d",(SUM(MID(A2,FIND("(",A2)+2,FIND(":",A2)-FIND("(",A2)-2),MID(A2,FIND("/",A2)+1,FIND(":",A2,FIND("/",A2))-FIND("/",A2)-1))),":",SUM(MID(A2,FIND(":",A2)+1,FIND("/",A2)-FIND(":",A2)-1),MID(A2,FIND(":",A2,FIND("/",A2))+1,FIND(")",A2)-FIND(":",A2,FIND("/",A2))-1)),MID(A2,(FIND(")",A2)+1),100)),CONCATENATE(MID(A2,1,2)," ","d",(SUM(MID(A2,FIND("(",A2)+2,FIND(":",A2)-FIND("(",A2)-2),MID(A2,FIND("_",A2)+1,FIND(":",A2,FIND("_",A2))-FIND("_",A2)-1))),":",SUM(MID(A2,FIND(":",A2)+1,FIND("_",A2)-FIND(":",A2)-1),MID(A2,FIND(":",A2,FIND("_",A2))+1,FIND(")",A2)-FIND(":",A2,FIND("_",A2))-1)),MID(A2,(FIND(")",A2)+1),100))),CONCATENATE(MID(A2,1,2)," ","d",MID(A2,5,100))) -> So d18:1 | C2: =MID(B2,5,FIND(":",B2)-FIND("d",B2)-1) -> 18 | D2: =IF(ISNUMBER(SEARCH("__",B2)),MID(B2,FIND(":",B2)+1,FIND("__",B2)-FIND(":",B2)-1),MID(B2,FIND(":",B2)+1,7)) -> 1 | E2: =C2 -> 18 | F2: =2*E2-(2*D2)+3-((LEN(A2)-LEN(SUBSTITUTE(A2,"_O_","")))/LEN("_O_"))*2-((LEN(A2)-LEN(SUBSTITUTE(A2,"_CHO_","")))/LEN("_CHO_"))*2-((LEN(A2)-LEN(SUBSTITUTE(A2,"_COOH_","")))/LEN("_COOH_"))*2 -> 37 | G2: 1 | H2: =2+((LEN(A2)-LEN(SUBSTITUTE(A2,"_OH_","")))/LEN("_OH_"))*1+((LEN(A2)-LEN(SUBSTITUTE(A2,"_OOH_","")))/LEN("_OOH_"))*2+((LEN(A2)-LEN(SUBSTITUTE(A2,"_O_","")))/LEN("_O_"))*1+((LEN(A2)-LEN(SUBSTITUTE(A2,"_CHO_","")))/LEN("_CHO_"))*1+((LEN(A2)-LEN(SUBSTITUTE(A2,"_COOH_","")))/LEN("_COOH_"))*2 -> 2 | I2: 0 | L2: =CONCATENATE("C",E2,"H",F2,"N",G2,"O",H2,) -> C18H37N1O2 | M2: =(E2*12.0107)+(F2*1.00794)+(G2*14.0067)+(H2*15.9994) -> 299.49188 | N2: =(E2*12)+(F2*1.0078246)+(G2*14.003074)+(H2*15.994915) -> 299.2824142 | O2: =N2+1.0078246-0.00055 -> 300.2896888 | P2: =O2-18.01057-0.00055 -> 282.2785688 | Q2: =N2+18.03437-0.00055 -> 317.3162342 | R2: =N2+22.98977-0.00055 -> 322.2716342 | S2: =N2+38.96371-0.00055 -> 338.2455742 | T2: =N2+7.01601-0.00055 -> 306.2978742 | U2: =N2-1.0078246+0.00055 -> 298.2751396 | V2: =N2+44.99767+0.00055 -> 344.2806342 | W2: =N2+59.01332+0.00055 -> 358.2962842
A3: So d18:1__O__ | B3: =IF(ISNUMBER(SEARCH("(",A3)),IF(ISNUMBER(SEARCH("/",A3)),CONCATENATE(MID(A3,1,2)," ",(SUM(MID(A3,FIND("(",A3)+2,FIND(":",A3)-FIND("(",A3)-2),MID(A3,FIND("/",A3)+1,FIND(":",A3,FIND("/",A3))-FIND("/",A3)-1))),":",SUM(MID(A3,FIND(":",A3)+1,FIND("/",A3)-FIND(":",A3)-1),MID(A3,FIND(":",A3,FIND("/",A3))+1,FIND(")",A3)-FIND(":",A3,FIND("/",A3))-1)),MID(A3,(FIND(")",A3)+1),100)),CONCATENATE(MID(A3,1,2)," ",(SUM(MID(A3,FIND("(",A3)+2,FIND(":",A3)-FIND("(",A3)-2),MID(A3,FIND("_",A3)+1,FIND(":",A3,FIND("_",A3))-FIND("_",A3)-1))),":",SUM(MID(A3,FIND(":",A3)+1,FIND("_",A3)-FIND(":",A3)-1),MID(A3,FIND(":",A3,FIND("_",A3))+1,FIND(")",A3)-FIND(":",A3,FIND("_",A3))-1)),MID(A3,(FIND(")",A3)+1),100))),CONCATENATE(MID(A3,1,2)," ",MID(A3,5,100))) -> So 18:1__O__ | C3: =MID(B3,4,FIND(":",B3)-FIND(" ",B3)-1) -> 18 | D3: =IF(ISNUMBER(SEARCH("__",B3)),MID(B3,FIND(":",B3)+1,FIND("__",B3)-FIND(":",B3)-1),MID(B3,FIND(":",B3)+1,7)) -> 1 | E3: =C3 -> 18 | F3: =2*E3-(2*D3)+3-((LEN(A3)-LEN(SUBSTITUTE(A3,"_O_","")))/LEN("_O_"))*2-((LEN(A3)-LEN(SUBSTITUTE(A3,"_CHO_","")))/LEN("_CHO_"))*2-((LEN(A3)-LEN(SUBSTITUTE(A3,"_COOH_","")))/LEN("_COOH_"))*2 -> 35 | G3: 1 | H3: =2+((LEN(A3)-LEN(SUBSTITUTE(A3,"_OH_","")))/LEN("_OH_"))*1+((LEN(A3)-LEN(SUBSTITUTE(A3,"_OOH_","")))/LEN("_OOH_"))*2+((LEN(A3)-LEN(SUBSTITUTE(A3,"_O_","")))/LEN("_O_"))*1+((LEN(A3)-LEN(SUBSTITUTE(A3,"_CHO_","")))/LEN("_CHO_"))*1+((LEN(A3)-LEN(SUBSTITUTE(A3,"_COOH_","")))/LEN("_COOH_"))*2 -> 3 | I3: 0 | L3: =CONCATENATE("C",E3,"H",F3,"N",G3,"O",H3,) -> C18H35N1O3 | M3: =(E3*12.0107)+(F3*1.00794)+(G3*14.0067)+(H3*15.9994) -> 313.4754 | N3: =(E3*12)+(F3*1.0078246)+(G3*14.003074)+(H3*15.994915) -> 313.26168 | O3: =N3+1.0078246-0.00055 -> 314.2689546 | P3: =O3-18.01057-0.00055 -> 296.2578346 | Q3: =N3+18.03437-0.00055 -> 331.2955 | R3: =N3+22.98977-0.00055 -> 336.2509 | S3: =N3+38.96371-0.00055 -> 352.22484 | T3: =N3+7.01601-0.00055 -> 320.27714 | U3: =N3-1.0078246+0.00055 -> 312.2544054 | V3: =N3+44.99767+0.00055 -> 358.2599 | W3: =N3+59.01332+0.00055 -> 372.27555
A4: So d18:1 | B4: =IF(ISNUMBER(SEARCH("(",A4)),IF(ISNUMBER(SEARCH("/",A4)),CONCATENATE(MID(A4,1,2)," ",(SUM(MID(A4,FIND("(",A4)+2,FIND(":",A4)-FIND("(",A4)-2),MID(A4,FIND("/",A4)+1,FIND(":",A4,FIND("/",A4))-FIND("/",A4)-1))),":",SUM(MID(A4,FIND(":",A4)+1,FIND("/",A4)-FIND(":",A4)-1),MID(A4,FIND(":",A4,FIND("/",A4))+1,FIND(")",A4)-FIND(":",A4,FIND("/",A4))-1)),MID(A4,(FIND(")",A4)+1),100)),CONCATENATE(MID(A4,1,2)," ",(SUM(MID(A4,FIND("(",A4)+2,FIND(":",A4)-FIND("(",A4)-2),MID(A4,FIND("_",A4)+1,FIND(":",A4,FIND("_",A4))-FIND("_",A4)-1))),":",SUM(MID(A4,FIND(":",A4)+1,FIND("_",A4)-FIND(":",A4)-1),MID(A4,FIND(":",A4,FIND("_",A4))+1,FIND(")",A4)-FIND(":",A4,FIND("_",A4))-1)),MID(A4,(FIND(")",A4)+1),100))),CONCATENATE(MID(A4,1,2)," ",MID(A4,5,100))) -> So 18:1 | C4: =MID(B4,4,FIND(":",B4)-FIND(" ",B4)-1) -> 18 | D4: =IF(ISNUMBER(SEARCH("__",B4)),MID(B4,FIND(":",B4)+1,FIND("__",B4)-FIND(":",B4)-1),MID(B4,FIND(":",B4)+1,7)) -> 1 | E4: =C4 -> 18 | F4: =2*E4-(2*D4)+3-((LEN(A4)-LEN(SUBSTITUTE(A4,"_O_","")))/LEN("_O_"))*2-((LEN(A4)-LEN(SUBSTITUTE(A4,"_CHO_","")))/LEN("_CHO_"))*2-((LEN(A4)-LEN(SUBSTITUTE(A4,"_COOH_","")))/LEN("_COOH_"))*2 -> 37 | G4: 1 | H4: =2+((LEN(A4)-LEN(SUBSTITUTE(A4,"_OH_","")))/LEN("_OH_"))*1+((LEN(A4)-LEN(SUBSTITUTE(A4,"_OOH_","")))/LEN("_OOH_"))*2+((LEN(A4)-LEN(SUBSTITUTE(A4,"_O_","")))/LEN("_O_"))*1+((LEN(A4)-LEN(SUBSTITUTE(A4,"_CHO_","")))/LEN("_CHO_"))*1+((LEN(A4)-LEN(SUBSTITUTE(A4,"_COOH_","")))/LEN("_COOH_"))*2 -> 2 | I4: 0 | L4: =CONCATENATE("C",E4,"H",F4,"N",G4,"O",H4,) -> C18H37N1O2 | M4: =(E4*12.0107)+(F4*1.00794)+(G4*14.0067)+(H4*15.9994) -> 299.49188 | N4: =(E4*12)+(F4*1.0078246)+(G4*14.003074)+(H4*15.994915) -> 299.2824142 | O4: =N4+1.0078246-0.00055 -> 300.2896888 | P4: =O4-18.01057-0.00055 -> 282.2785688 | Q4: =N4+18.03437-0.00055 -> 317.3162342 | R4: =N4+22.98977-0.00055 -> 322.2716342 | S4: =N4+38.96371-0.00055 -> 338.2455742 | T4: =N4+7.01601-0.00055 -> 306.2978742 | U4: =N4-1.0078246+0.00055 -> 298.2751396 | V4: =N4+44.99767+0.00055 -> 344.2806342 | W4: =N4+59.01332+0.00055 -> 358.2962842

Sheet ZyE
A1: Lipid | B1: Sum Composition | E1: #C | F1: #H | G1: #N | H1: #O | I1: #P | L1: Formula | M1: Molecular Weight | N1: Neutral Mass | O1: [M+H]+ | P1: [M+H-H2O]+ | Q1: [M+NH4]+ | R1: [M+Na]+ | S1: [M+K]+ | T1: [M+Li]+ | U1: [M-H]- | V1: [M+HCOO]- | W1: [M+CH3COO]-
A2: ZyE 16:1 | B2: =IF(ISNUMBER(SEARCH("(",A2)),IF(ISNUMBER(SEARCH("/",A2)),CONCATENATE(MID(A2,1,2)," ",(SUM(MID(A2,FIND("(",A2)+1,FIND(":",A2)-FIND("(",A2)-1),MID(A2,FIND("/",A2)+1,FIND(":",A2,FIND("/",A2))-FIND("/",A2)-1))),":",SUM(MID(A2,FIND(":",A2)+1,FIND("/",A2)-FIND(":",A2)-1),MID(A2,FIND(":",A2,FIND("/",A2))+1,FIND(")",A2)-FIND(":",A2,FIND("/",A2))-1)),MID(A2,(FIND(")",A2)+1),100)),CONCATENATE(MID(A2,1,2)," ",(SUM(MID(A2,FIND("(",A2)+1,FIND(":",A2)-FIND("(",A2)-1),MID(A2,FIND("_",A2)+1,FIND(":",A2,FIND("_",A2))-FIND("_",A2)-1))),":",SUM(MID(A2,FIND(":",A2)+1,FIND("_",A2)-FIND(":",A2)-1),MID(A2,FIND(":",A2,FIND("_",A2))+1,FIND(")",A2)-FIND(":",A2,FIND("_",A2))-1)),MID(A2,(FIND(")",A2)+1),100))),A2) -> ZyE 16:1 | C2: =MID(B2,5,FIND(":",B2)-FIND(" ",B2)-1) -> 16 | D2: =IF(ISNUMBER(SEARCH("__",B2)),MID(B2,FIND(":",B2)+1,FIND("__",B2)-FIND(":",B2)-1),MID(B2,FIND(":",B2)+1,7)) -> 1 | E2: =C2+27 -> 43 | F2: =2*E2-(2*D2)-12-((LEN(A2)-LEN(SUBSTITUTE(A2,"_O_","")))/LEN("_O_"))*2-((LEN(A2)-LEN(SUBSTITUTE(A2,"_CHO_","")))/LEN("_CHO_"))*2-((LEN(A2)-LEN(SUBSTITUTE(A2,"_COOH_","")))/LEN("_COOH_"))*2 -> 72 | G2: 0 | H2: =2+((LEN(A2)-LEN(SUBSTITUTE(A2,"_OH_","")))/LEN("_OH_"))*1+((LEN(A2)-LEN(SUBSTITUTE(A2,"_OOH_","")))/LEN("_OOH_"))*2+((LEN(A2)-LEN(SUBSTITUTE(A2,"_O_","")))/LEN("_O_"))*1+((LEN(A2)-LEN(SUBSTITUTE(A2,"_CHO_","")))/LEN("_CHO_"))*1+((LEN(A2)-LEN(SUBSTITUTE(A2,"_COOH_","")))/LEN("_COOH_"))*2 -> 2 | I2: 0 | L2: =CONCATENATE("C",E2,"H",F2,"O",H2) -> C43H72O2 | M2: =(E2*12.0107)+(F2*1.00794)+(G2*14.0067)+(H2*15.9994)+(I2*30.973762) -> 621.03058 | N2: =(E2*12)+(F2*1.0078246)+(G2*14.003074)+(H2*15.994915)+(I2*30.973763) -> 620.5532012 | O2: =N2+1.0078246-0.00055 -> 621.5604758 | P2: =O2-18.01057-0.00055 -> 603.5493558 | Q2: =N2+18.03437-0.00055 -> 638.5870212 | R2: =N2+22.98977-0.00055 -> 643.5424212 | S2: =N2+38.96371-0.00055 -> 659.5163612 | T2: =N2+7.01601-0.00055 -> 627.5686612 | U2: =N2-1.0078246+0.00055 -> 619.5459266 | V2: =N2+44.99767+0.00055 -> 665.5514212 | W2: =N2+59.01332+0.00055 -> 679.5670712
A3: ZyE 18:2 | B3: =IF(ISNUMBER(SEARCH("(",A3)),IF(ISNUMBER(SEARCH("/",A3)),CONCATENATE(MID(A3,1,2)," ",(SUM(MID(A3,FIND("(",A3)+1,FIND(":",A3)-FIND("(",A3)-1),MID(A3,FIND("/",A3)+1,FIND(":",A3,FIND("/",A3))-FIND("/",A3)-1))),":",SUM(MID(A3,FIND(":",A3)+1,FIND("/",A3)-FIND(":",A3)-1),MID(A3,FIND(":",A3,FIND("/",A3))+1,FIND(")",A3)-FIND(":",A3,FIND("/",A3))-1)),MID(A3,(FIND(")",A3)+1),100)),CONCATENATE(MID(A3,1,2)," ",(SUM(MID(A3,FIND("(",A3)+1,FIND(":",A3)-FIND("(",A3)-1),MID(A3,FIND("_",A3)+1,FIND(":",A3,FIND("_",A3))-FIND("_",A3)-1))),":",SUM(MID(A3,FIND(":",A3)+1,FIND("_",A3)-FIND(":",A3)-1),MID(A3,FIND(":",A3,FIND("_",A3))+1,FIND(")",A3)-FIND(":",A3,FIND("_",A3))-1)),MID(A3,(FIND(")",A3)+1),100))),A3) -> ZyE 18:2 | C3: =MID(B3,5,FIND(":",B3)-FIND(" ",B3)-1) -> 18 | D3: =IF(ISNUMBER(SEARCH("__",B3)),MID(B3,FIND(":",B3)+1,FIND("__",B3)-FIND(":",B3)-1),MID(B3,FIND(":",B3)+1,7)) -> 2 | E3: =C3+27 -> 45 | F3: =2*E3-(2*D3)-12-((LEN(A3)-LEN(SUBSTITUTE(A3,"_O_","")))/LEN("_O_"))*2-((LEN(A3)-LEN(SUBSTITUTE(A3,"_CHO_","")))/LEN("_CHO_"))*2-((LEN(A3)-LEN(SUBSTITUTE(A3,"_COOH_","")))/LEN("_COOH_"))*2 -> 74 | G3: 0 | H3: =2+((LEN(A3)-LEN(SUBSTITUTE(A3,"_OH_","")))/LEN("_OH_"))*1+((LEN(A3)-LEN(SUBSTITUTE(A3,"_OOH_","")))/LEN("_OOH_"))*2+((LEN(A3)-LEN(SUBSTITUTE(A3,"_O_","")))/LEN("_O_"))*1+((LEN(A3)-LEN(SUBSTITUTE(A3,"_CHO_","")))/LEN("_CHO_"))*1+((LEN(A3)-LEN(SUBSTITUTE(A3,"_COOH_","")))/LEN("_COOH_"))*2 -> 2 | I3: 0 | L3: =CONCATENATE("C",E3,"H",F3,"O",H3) -> C45H74O2 | M3: =(E3*12.0107)+(F3*1.00794)+(G3*14.0067)+(H3*15.9994)+(I3*30.973762) -> 647.06786 | N3: =(E3*12)+(F3*1.0078246)+(G3*14.003074)+(H3*15.994915)+(I3*30.973763) -> 646.5688504 | O3: =N3+1.0078246-0.00055 -> 647.576125 | P3: =O3-18.01057-0.00055 -> 629.565005 | Q3: =N3+18.03437-0.00055 -> 664.6026704 | R3: =N3+22.98977-0.00055 -> 669.5580704 | S3: =N3+38.96371-0.00055 -> 685.5320104 | T3: =N3+7.01601-0.00055 -> 653.5843104 | U3: =N3-1.0078246+0.00055 -> 645.5615758 | V3: =N3+44.99767+0.00055 -> 691.5670704 | W3: =N3+59.01332+0.00055 -> 705.5827204
A4: ZyE 18:3 | B4: =IF(ISNUMBER(SEARCH("(",A4)),IF(ISNUMBER(SEARCH("/",A4)),CONCATENATE(MID(A4,1,2)," ",(SUM(MID(A4,FIND("(",A4)+1,FIND(":",A4)-FIND("(",A4)-1),MID(A4,FIND("/",A4)+1,FIND(":",A4,FIND("/",A4))-FIND("/",A4)-1))),":",SUM(MID(A4,FIND(":",A4)+1,FIND("/",A4)-FIND(":",A4)-1),MID(A4,FIND(":",A4,FIND("/",A4))+1,FIND(")",A4)-FIND(":",A4,FIND("/",A4))-1)),MID(A4,(FIND(")",A4)+1),100)),CONCATENATE(MID(A4,1,2)," ",(SUM(MID(A4,FIND("(",A4)+1,FIND(":",A4)-FIND("(",A4)-1),MID(A4,FIND("_",A4)+1,FIND(":",A4,FIND("_",A4))-FIND("_",A4)-1))),":",SUM(MID(A4,FIND(":",A4)+1,FIND("_",A4)-FIND(":",A4)-1),MID(A4,FIND(":",A4,FIND("_",A4))+1,FIND(")",A4)-FIND(":",A4,FIND("_",A4))-1)),MID(A4,(FIND(")",A4)+1),100))),A4) -> ZyE 18:3 | C4: 18 | D4: 3 | E4: =C4+27 -> 45 | F4: =2*E4-(2*D4)-12-((LEN(A4)-LEN(SUBSTITUTE(A4,"_O_","")))/LEN("_O_"))*2-((LEN(A4)-LEN(SUBSTITUTE(A4,"_CHO_","")))/LEN("_CHO_"))*2-((LEN(A4)-LEN(SUBSTITUTE(A4,"_COOH_","")))/LEN("_COOH_"))*2 -> 72 | G4: 0 | H4: =2+((LEN(A4)-LEN(SUBSTITUTE(A4,"_OH_","")))/LEN("_OH_"))*1+((LEN(A4)-LEN(SUBSTITUTE(A4,"_OOH_","")))/LEN("_OOH_"))*2+((LEN(A4)-LEN(SUBSTITUTE(A4,"_O_","")))/LEN("_O_"))*1+((LEN(A4)-LEN(SUBSTITUTE(A4,"_CHO_","")))/LEN("_CHO_"))*1+((LEN(A4)-LEN(SUBSTITUTE(A4,"_COOH_","")))/LEN("_COOH_"))*2 -> 2 | I4: 0 | L4: =CONCATENATE("C",E4,"H",F4,"O",H4) -> C45H72O2 | M4: =(E4*12.0107)+(F4*1.00794)+(G4*14.0067)+(H4*15.9994)+(I4*30.973762) -> 645.05198 | N4: =(E4*12)+(F4*1.0078246)+(G4*14.003074)+(H4*15.994915)+(I4*30.973763) -> 644.5532012 | O4: =N4+1.0078246-0.00055 -> 645.5604758 | P4: =O4-18.01057-0.00055 -> 627.5493558 | Q4: =N4+18.03437-0.00055 -> 662.5870212 | R4: =N4+22.98977-0.00055 -> 667.5424212 | S4: =N4+38.96371-0.00055 -> 683.5163612 | T4: =N4+7.01601-0.00055 -> 651.5686612 | U4: =N4-1.0078246+0.00055 -> 643.5459266 | V4: =N4+44.99767+0.00055 -> 689.5514212 | W4: =N4+59.01332+0.00055 -> 703.5670712
A5: ZyE 20:4 | B5: =IF(ISNUMBER(SEARCH("(",A5)),IF(ISNUMBER(SEARCH("/",A5)),CONCATENATE(MID(A5,1,2)," ",(SUM(MID(A5,FIND("(",A5)+1,FIND(":",A5)-FIND("(",A5)-1),MID(A5,FIND("/",A5)+1,FIND(":",A5,FIND("/",A5))-FIND("/",A5)-1))),":",SUM(MID(A5,FIND(":",A5)+1,FIND("/",A5)-FIND(":",A5)-1),MID(A5,FIND(":",A5,FIND("/",A5))+1,FIND(")",A5)-FIND(":",A5,FIND("/",A5))-1)),MID(A5,(FIND(")",A5)+1),100)),CONCATENATE(MID(A5,1,2)," ",(SUM(MID(A5,FIND("(",A5)+1,FIND(":",A5)-FIND("(",A5)-1),MID(A5,FIND("_",A5)+1,FIND(":",A5,FIND("_",A5))-FIND("_",A5)-1))),":",SUM(MID(A5,FIND(":",A5)+1,FIND("_",A5)-FIND(":",A5)-1),MID(A5,FIND(":",A5,FIND("_",A5))+1,FIND(")",A5)-FIND(":",A5,FIND("_",A5))-1)),MID(A5,(FIND(")",A5)+1),100))),A5) -> ZyE 20:4 | C5: 20 | D5: 4 | E5: =C5+27 -> 47 | F5: =2*E5-(2*D5)-12-((LEN(A5)-LEN(SUBSTITUTE(A5,"_O_","")))/LEN("_O_"))*2-((LEN(A5)-LEN(SUBSTITUTE(A5,"_CHO_","")))/LEN("_CHO_"))*2-((LEN(A5)-LEN(SUBSTITUTE(A5,"_COOH_","")))/LEN("_COOH_"))*2 -> 74 | G5: 0 | H5: =2+((LEN(A5)-LEN(SUBSTITUTE(A5,"_OH_","")))/LEN("_OH_"))*1+((LEN(A5)-LEN(SUBSTITUTE(A5,"_OOH_","")))/LEN("_OOH_"))*2+((LEN(A5)-LEN(SUBSTITUTE(A5,"_O_","")))/LEN("_O_"))*1+((LEN(A5)-LEN(SUBSTITUTE(A5,"_CHO_","")))/LEN("_CHO_"))*1+((LEN(A5)-LEN(SUBSTITUTE(A5,"_COOH_","")))/LEN("_COOH_"))*2 -> 2 | I5: 0 | L5: =CONCATENATE("C",E5,"H",F5,"O",H5) -> C47H74O2 | M5: =(E5*12.0107)+(F5*1.00794)+(G5*14.0067)+(H5*15.9994)+(I5*30.973762) -> 671.08926 | N5: =(E5*12)+(F5*1.0078246)+(G5*14.003074)+(H5*15.994915)+(I5*30.973763) -> 670.5688504 | O5: =N5+1.0078246-0.00055 -> 671.576125 | P5: =O5-18.01057-0.00055 -> 653.565005 | Q5: =N5+18.03437-0.00055 -> 688.6026704 | R5: =N5+22.98977-0.00055 -> 693.5580704 | S5: =N5+38.96371-0.00055 -> 709.5320104 | T5: =N5+7.01601-0.00055 -> 677.5843104 | U5: =N5-1.0078246+0.00055 -> 669.5615758 | V5: =N5+44.99767+0.00055 -> 715.5670704 | W5: =N5+59.01332+0.00055 -> 729.5827204
A6: ZyE 20:0 | B6: =IF(ISNUMBER(SEARCH("(",A6)),IF(ISNUMBER(SEARCH("/",A6)),CONCATENATE(MID(A6,1,2)," ",(SUM(MID(A6,FIND("(",A6)+1,FIND(":",A6)-FIND("(",A6)-1),MID(A6,FIND("/",A6)+1,FIND(":",A6,FIND("/",A6))-FIND("/",A6)-1))),":",SUM(MID(A6,FIND(":",A6)+1,FIND("/",A6)-FIND(":",A6)-1),MID(A6,FIND(":",A6,FIND("/",A6))+1,FIND(")",A6)-FIND(":",A6,FIND("/",A6))-1)),MID(A6,(FIND(")",A6)+1),100)),CONCATENATE(MID(A6,1,2)," ",(SUM(MID(A6,FIND("(",A6)+1,FIND(":",A6)-FIND("(",A6)-1),MID(A6,FIND("_",A6)+1,FIND(":",A6,FIND("_",A6))-FIND("_",A6)-1))),":",SUM(MID(A6,FIND(":",A6)+1,FIND("_",A6)-FIND(":",A6)-1),MID(A6,FIND(":",A6,FIND("_",A6))+1,FIND(")",A6)-FIND(":",A6,FIND("_",A6))-1)),MID(A6,(FIND(")",A6)+1),100))),A6) -> ZyE 20:0 | C6: =MID(B6,5,FIND(":",B6)-FIND(" ",B6)-1) -> 20 | D6: =IF(ISNUMBER(SEARCH("__",B6)),MID(B6,FIND(":",B6)+1,FIND("__",B6)-FIND(":",B6)-1),MID(B6,FIND(":",B6)+1,7)) -> 0 | E6: =C6+27 -> 47 | F6: =2*E6-(2*D6)-12-((LEN(A6)-LEN(SUBSTITUTE(A6,"_O_","")))/LEN("_O_"))*2-((LEN(A6)-LEN(SUBSTITUTE(A6,"_CHO_","")))/LEN("_CHO_"))*2-((LEN(A6)-LEN(SUBSTITUTE(A6,"_COOH_","")))/LEN("_COOH_"))*2 -> 82 | G6: 0 | H6: =2+((LEN(A6)-LEN(SUBSTITUTE(A6,"_OH_","")))/LEN("_OH_"))*1+((LEN(A6)-LEN(SUBSTITUTE(A6,"_OOH_","")))/LEN("_OOH_"))*2+((LEN(A6)-LEN(SUBSTITUTE(A6,"_O_","")))/LEN("_O_"))*1+((LEN(A6)-LEN(SUBSTITUTE(A6,"_CHO_","")))/LEN("_CHO_"))*1+((LEN(A6)-LEN(SUBSTITUTE(A6,"_COOH_","")))/LEN("_COOH_"))*2 -> 2 | I6: 0 | L6: =CONCATENATE("C",E6,"H",F6,"O",H6) -> C47H82O2 | M6: =(E6*12.0107)+(F6*1.00794)+(G6*14.0067)+(H6*15.9994)+(I6*30.973762) -> 679.15278 | N6: =(E6*12)+(F6*1.0078246)+(G6*14.003074)+(H6*15.994915)+(I6*30.973763) -> 678.6314472 | O6: =N6+1.0078246-0.00055 -> 679.6387218 | P6: =O6-18.01057-0.00055 -> 661.6276018 | Q6: =N6+18.03437-0.00055 -> 696.6652672 | R6: =N6+22.98977-0.00055 -> 701.6206672 | S6: =N6+38.96371-0.00055 -> 717.5946072 | T6: =N6+7.01601-0.00055 -> 685.6469072 | U6: =N6-1.0078246+0.00055 -> 677.6241726 | V6: =N6+44.99767+0.00055 -> 723.6296672 | W6: =N6+59.01332+0.00055 -> 737.6453172

Sheet Extra
A1: Lipid | B1: Common Name | F1: #C | G1: #H | H1: #N | I1: #O | J1: #P | K1: #I | L1: Formula | M1: Molecular Weight | N1: Neutral Mass | O1: [M+H]+ | P1: [M+NH4]+ | Q1: [M+Na]+ | R1: [M+HCOO]- | S1: [M+CH3COO]- | T1: [M-H]- | U1: [M+H-H2O]+
A2: dhSph | B2: sphinganine | C2: 18 | D2: 0 | E2: =MID(A2,6,1) ->  | F2: =C2 -> 18 | G2: =2*F2-(2*D2)+3 -> 39 | H2: 1 | I2: =2+((LEN(A2)-LEN(SUBSTITUTE(A2,"_OH_","")))/LEN("_OH_"))*1+((LEN(A2)-LEN(SUBSTITUTE(A2,"_OOH_","")))/LEN("_OOH_"))*2+((LEN(A2)-LEN(SUBSTITUTE(A2,"_O_","")))/LEN("_O_"))*1+((LEN(A2)-LEN(SUBSTITUTE(A2,"_CHO_","")))/LEN("_CHO_"))*1+((LEN(A2)-LEN(SUBSTITUTE(A2,"_COOH_","")))/LEN("_COOH_"))*2 -> 2 | J2: 0 | K2: 0 | L2: =CONCATENATE("C",F2,"H",G2,IF(H2>0,CONCATENATE("N",H2),""),"O",I2,IF(J2>0,CONCATENATE("P",J2),""),IF(K2>0,CONCATENATE("I",K2),"")) -> C18H39N1O2 | M2: =(F2*12.0107)+(G2*1.00794)+(H2*14.0067)+(I2*15.9994)+(J2*30.973762)+(K2*126.90447) -> 301.50776 | N2: =(F2*12)+(G2*1.0078246)+(H2*14.003074)+(I2*15.994915)+(J2*30.973763)+(K2*126.904477) -> 301.2980634 | O2: =N2+1.0078246 -> 302.305888 | P2: =N2+18.0338257 -> 319.3318891 | Q2: =N2+22.9892213 -> 324.2872847 | R2: =N2+44.9976546 -> 346.295718 | S2: =N2+59.0133038 -> 360.3113672 | T2: =N2-1.0078246 -> 300.2902388 | U2: =N2-17.0027396 -> 284.2953238
A3: dhS1P | B3: sphinganine-1-phosphate | C3: 18 | D3: 0 | F3: 18 | G3: =2*F3-(2*D3)+4 -> 40 | H3: =2-1 -> 1 | I3: =6-1+((LEN(A2)-LEN(SUBSTITUTE(A2,"_OH_","")))/LEN("_OH_"))*1+((LEN(A2)-LEN(SUBSTITUTE(A2,"_OOH_","")))/LEN("_OOH_"))*2+((LEN(A2)-LEN(SUBSTITUTE(A2,"_O_","")))/LEN("_O_"))*1+((LEN(A2)-LEN(SUBSTITUTE(A2,"_CHO_","")))/LEN("_CHO_"))*1+((LEN(A2)-LEN(SUBSTITUTE(A2,"_COOH_","")))/LEN("_COOH_"))*2 -> 5 | J3: 1 | K3: 0 | L3: =CONCATENATE("C",F3,"H",G3,IF(H3>0,CONCATENATE("N",H3),""),"O",I3,IF(J3>0,CONCATENATE("P",J3),""),IF(K3>0,CONCATENATE("I",K3),"")) -> C18H40N1O5P1 | M3: 381.487662 | N3: =(F3*12)+(G3*1.0078246)+(H3*14.003074)+(I3*15.994915)+(J3*30.973763)+(K3*126.904477) -> 381.264396 | O3: 382.2722206 | P3: 399.2982217 | Q3: 404.2536173 | R3: 426.2620506 | S3: 440.2776998 | T3: 380.2565714 | U3: 364.2616564
A4: Sph | B4: sphingosine | C4: 18 | D4: 1 | F4: 18 | G4: =2*F4-(2*D4)+3 -> 37 | H4: 1 | I4: 2 | J4: 0 | K4: 0 | L4: C18H37N1O2 | M4: 299.49188 | N4: 299.2824142 | O4: 300.2902388 | P4: 317.3162399 | Q4: 322.2716355 | R4: 344.2800688 | S4: 358.295718 | T4: 298.2745896 | U4: 282.2796746
A5: S1P | B5: sphingosine-1-phosphate | C5: 18 | D5: 1 | F5: 18 | G5: =2*F5-(2*D5)+4 -> 38 | H5: =2-1 -> 1 | I5: =6-1 -> 5 | J5: 1 | K5: 0 | L5: C18H38N1O5P1 | M5: 379.471782 | N5: 379.2487468 | O5: 380.2565714 | P5: 397.2825725 | Q5: 402.2379681 | R5: 424.2464014 | S5: 438.2620506 | T5: 378.2409222 | U5: 362.2460072
A6: d16:1 S1P | C6: =MID(A6,2,2) -> 16 | D6: =MID(A6,5,1) -> 1 | F6: 16 | G6: =2*F6-(2*D6)+4 -> 34 | H6: 1 | I6: 5 | J6: 1 | K6: 0 | L6: C16H34N1O5P1 | M6: 351.418622 | N6: 351.2174484 | O6: =N6+1.0078246 -> 352.225273 | P6: =N6+18.0338257 -> 369.2512741 | Q6: 374.2066697 | R6: 396.215103 | S6: 410.2307522 | T6: 350.2096238 | U6: 334.2147088
A7: d18:2 S1P | C7: =MID(A7,2,2) -> 18 | D7: =MID(A7,5,1) -> 2 | E7: =MID(A7,6,1) ->  | F7: 18 | G7: =2*F7-(2*D7)+4 -> 36 | H7: 1 | I7: 5 | J7: 1 | K7: 0 | L7: C18H36N1O5P1 | M7: 377.455902 | N7: 377.2330976 | O7: =N7+1.0078246 -> 378.2409222 | P7: =N7+18.0338257 -> 395.2669233 | Q7: 400.2223189 | R7: 422.2307522 | S7: 436.2464014 | T7: 376.225273 | U7: 360.230358
A9: HexSph | B9: Psychosine | F9: 24 | G9: =2*F9-(2*D9)-1 -> 47 | H9: 1 | I9: 7 | J9: 0 | K9: 0 | L9: C24H47N1O7 | M9: =(F9*12.0107)+(G9*1.00794)+(H9*14.0067)+(I9*15.9994)+(J9*30.973762)+(K9*126.90447) -> 461.63248 | N9: 461.3352352 | O9: =N9+1.0078246 -> 462.3430598 | P9: =N9+18.0338257 -> 479.3690609 | Q9: 484.3244565 | R9: 506.3328898 | S9: 520.348539 | T9: =N9-1.0078246 -> 460.3274106 | U9: 444.3324956
A10: LacSph | F10: 30 | G10: =2*F10-(2*D10)-3 -> 57 | H10: 1 | I10: 12 | J10: 0 | K10: 0 | L10: C30H57N1O12 | M10: =(F10*12.0107)+(G10*1.00794)+(H10*14.0067)+(I10*15.9994)+(J10*30.973762)+(K10*126.90447) -> 623.77308 | N10: 623.3880562 | O10: =N10+1.0078246 -> 624.3958808 | P10: =N10+18.0338257 -> 641.4218819 | Q10: 646.3772775 | R10: 668.3857108 | S10: 682.40136 | T10: 622.3802316 | U10: 606.3853166
A12: cholesterol | C12: 27 | D12: 0 | F12: =C12 -> 27 | G12: =2*F12-(2*D12)-8 -> 46 | H12: 0 | I12: 1 | J12: 0 | K12: 0 | L12: C27H46O1 | M12: =(F12*12.0107)+(G12*1.00794)+(H12*14.0067)+(I12*15.9994)+(J12*30.973762)+(K12*126.90447) -> 386.65354 | N12: 386.3548466 | O12: =N12+1.0078246 -> 387.3626712 | P12: =N12+18.0338257 -> 404.3886723 | Q12: 409.3440679 | R12: 431.3525012 | S12: 445.3681504 | T12: 385.347022 | U12: =N12-17.0027396 -> 369.352107
A13: thyroxine | C13: 15 | D13: 0 | F13: =C13 -> 15 | G13: =F13-4 -> 11 | H13: 1 | I13: 4 | J13: 0 | K13: 4 | L13: C15H11N1O4I4 | M13: =(F13*12.0107)+(G13*1.00794)+(H13*14.0067)+(I13*15.9994)+(J13*30.973762)+(K13*126.90447) -> 776.87002 | N13: 776.6867126 | O13: 777.6945372 | P13: =N13+18.0338257 -> 794.7205383 | Q13: 799.6759339 | R13: 821.6843672 | S13: 835.7000164 | T13: 775.678888 | U13: =N13-17.0027396 -> 759.683973

Sheet Bile Acids
A1: Bile Acid | D1: #C | E1: #H | F1: #N | G1: #O | H1: #S | L1: Formula | M1: Molecular Weight | N1: Neutral Mass | O1: [M+H]+ | P1: [M+H-H2O]+ | Q1: [M+NH4]+ | R1: [M+Na]+ | S1: [M+K]+ | T1: [M+Li]+ | U1: [M-H]- | V1: [M+HCOO]- | W1: [M+CH3COO]-
A2: 12-Ketochenodeoxycholic acid | B2: 12-KCDCA | D2: 24 | E2: 38 | F2: 0 | G2: 5 | H2: 0 | L2: =CONCATENATE("C",D2,"H",E2,IF(F2>0,CONCATENATE("N",F2),""),"O",G2,IF(H2>0,CONCATENATE("S",H2),"")) -> C24H38O5 | M2: =(D2*12.0107)+(E2*1.00794)+(F2*14.0067)+(G2*15.9994)+(H2*32.065) -> 406.55552 | N2: =(D2*12)+(E2*1.0078246)+(F2*14.003074)+(G2*15.994915)+(H2*31.972072) -> 406.2719098 | O2: =N2+1.0078246 -> 407.2797344 | P2: =O2-18.01057-0.00055 -> 389.2686144 | Q2: =N2+18.03437-0.00055 -> 424.3057298 | R2: =N2+22.98977-0.00055 -> 429.2611298 | S2: =N2+38.96371-0.00055 -> 445.2350698 | T2: =N2+7.01601-0.00055 -> 413.2873698 | U2: =N2-1.0078246+0.00055 -> 405.2646352 | V2: =N2+44.99767+0.00055 -> 451.2701298 | W2: =N2+59.01332+0.00055 -> 465.2857798
A3: 12-Ketolithocholic acid | B3: 12-KLCA | D3: 24 | E3: 38 | F3: 0 | G3: 4 | H3: 0 | L3: C24H38O4 | M3: 390.55612 | N3: 390.2769948 | O3: =N3+1.0078246 -> 391.2848194 | P3: =O3-18.01057-0.00055 -> 373.2736994 | Q3: =N3+18.03437-0.00055 -> 408.3108148 | R3: =N3+22.98977-0.00055 -> 413.2662148 | S3: =N3+38.96371-0.00055 -> 429.2401548 | T3: =N3+7.01601-0.00055 -> 397.2924548 | U3: =N3-1.0078246+0.00055 -> 389.2697202 | V3: =N3+44.99767+0.00055 -> 435.2752148 | W3: =N3+59.01332+0.00055 -> 449.2908648
A4: 12-oxo-chenodeoxycholic acid | B4: 12-oxo-CDCA | D4: 24 | E4: 38 | F4: 0 | G4: 5 | H4: 0 | L4: C24H38O5 | M4: 406.55552 | N4: 406.2719098 | O4: 407.2797344 | P4: 389.2686144 | Q4: 424.3057298 | R4: 429.2611298 | S4: 445.2350698 | T4: 413.2873698 | U4: 405.2646352 | V4: 451.2701298 | W4: 465.2857798
A5: 12-oxo-Lithocholic acid | B5: 12-oxo-LCA | D5: 24 | E5: 38 | F5: 0 | G5: 4 | H5: 0 | L5: C24H38O4 | M5: 390.55612 | N5: 390.2769948 | O5: =N5+1.0078246 -> 391.2848194 | P5: =O5-18.01057-0.00055 -> 373.2736994 | Q5: =N5+18.03437-0.00055 -> 408.3108148 | R5: =N5+22.98977-0.00055 -> 413.2662148 | S5: =N5+38.96371-0.00055 -> 429.2401548 | T5: =N5+7.01601-0.00055 -> 397.2924548 | U5: =N5-1.0078246+0.00055 -> 389.2697202 | V5: =N5+44.99767+0.00055 -> 435.2752148 | W5: =N5+59.01332+0.00055 -> 449.2908648
A6: 3-dehydrocholic acid | B6: 3-DHCA | D6: 24 | E6: 38 | F6: 0 | G6: 5 | H6: 0 | L6: C24H38O5 | M6: 406.55552 | N6: 406.2719098 | O6: 407.2797344 | P6: 389.2686144 | Q6: 424.3057298 | R6: 429.2611298 | S6: 445.2350698 | T6: 413.2873698 | U6: 405.2646352 | V6: 451.2701298 | W6: 465.2857798
A7: 3-Oxocholic acid | B7: 3-oxo-CA | D7: 24 | E7: 38 | F7: 0 | G7: 5 | H7: 0 | L7: C24H38O5 | M7: 406.55552 | N7: 406.2719098 | O7: =N7+1.0078246 -> 407.2797344 | P7: =O7-18.01057-0.00055 -> 389.2686144 | Q7: =N7+18.03437-0.00055 -> 424.3057298 | R7: =N7+22.98977-0.00055 -> 429.2611298 | S7: =N7+38.96371-0.00055 -> 445.2350698 | T7: =N7+7.01601-0.00055 -> 413.2873698 | U7: =N7-1.0078246+0.00055 -> 405.2646352 | V7: =N7+44.99767+0.00055 -> 451.2701298 | W7: =N7+59.01332+0.00055 -> 465.2857798
A8: 3α,6α,7α,12α-Tetrahydroxy-5b-cholanoic acid | D8: 24 | E8: 40 | F8: 0 | G8: 6 | H8: 0 | L8: C24H40O6 | M8: 424.5708 | N8: 424.282474 | O8: 425.2902986 | P8: 407.2791786 | Q8: 442.316294 | R8: 447.271694 | S8: 463.245634 | T8: 431.297934 | U8: 423.2751994 | V8: 469.280694 | W8: 483.296344
A9: 3α,6β,7α,12α-Tetrahydroxy-5b-cholanoic acid | D9: 24 | E9: 40 | F9: 0 | G9: 6 | H9: 0 | L9: C24H40O6 | M9: 424.5708 | N9: 424.282474 | O9: =N9+1.0078246 -> 425.2902986 | P9: =O9-18.01057-0.00055 -> 407.2791786 | Q9: =N9+18.03437-0.00055 -> 442.316294 | R9: =N9+22.98977-0.00055 -> 447.271694 | S9: =N9+38.96371-0.00055 -> 463.245634 | T9: =N9+7.01601-0.00055 -> 431.297934 | U9: =N9-1.0078246+0.00055 -> 423.2751994 | V9: =N9+44.99767+0.00055 -> 469.280694 | W9: =N9+59.01332+0.00055 -> 483.296344
A10: 6,7-Diketolithocholic acid | B10: 6,7-DKLCA | D10: 24 | E10: 36 | F10: 0 | G10: 5 | H10: 0 | L10: C24H36O5 | M10: 404.53964 | N10: 404.2562606 | O10: =N10+1.0078246 -> 405.2640852 | P10: =O10-18.01057-0.00055 -> 387.2529652 | Q10: =N10+18.03437-0.00055 -> 422.2900806 | R10: =N10+22.98977-0.00055 -> 427.2454806 | S10: =N10+38.96371-0.00055 -> 443.2194206 | T10: =N10+7.01601-0.00055 -> 411.2717206 | U10: =N10-1.0078246+0.00055 -> 403.248986 | V10: =N10+44.99767+0.00055 -> 449.2544806 | W10: =N10+59.01332+0.00055 -> 463.2701306
A11: 7,12-Diketolithocholic acid | B11: 7,12-DKLCA | D11: 24 | E11: 36 | F11: 0 | G11: 5 | H11: 0 | L11: =CONCATENATE("C",D11,"H",E11,IF(F11>0,CONCATENATE("N",F11),""),"O",G11,IF(H11>0,CONCATENATE("S",H11),"")) -> C24H36O5 | M11: 404.53964 | N11: =(D11*12)+(E11*1.0078246)+(F11*14.003074)+(G11*15.994915)+(H11*31.972072) -> 404.2562606 | O11: =N11+1.0078246 -> 405.2640852 | P11: =O11-18.01057-0.00055 -> 387.2529652 | Q11: =N11+18.03437-0.00055 -> 422.2900806 | R11: =N11+22.98977-0.00055 -> 427.2454806 | S11: =N11+38.96371-0.00055 -> 443.2194206 | T11: =N11+7.01601-0.00055 -> 411.2717206 | U11: =N11-1.0078246+0.00055 -> 403.248986 | V11: =N11+44.99767+0.00055 -> 449.2544806 | W11: =N11+59.01332+0.00055 -> 463.2701306
A12: 6-oxo-Lithocholic acid | B12: 6-oxo-LCA | D12: 24 | E12: 38 | F12: 0 | G12: 4 | H12: 0 | L12: C24H38O4 | M12: 390.55612 | N12: 390.2769948 | O12: 391.2848194 | P12: 373.2736994 | Q12: 408.3108148 | R12: 413.2662148 | S12: 429.2401548 | T12: 397.2924548 | U12: 389.2697202 | V12: 435.2752148 | W12: 449.2908648
A13: 7-Ketodeoxycholic acid | B13: 7-KDCA | D13: 24 | E13: 38 | F13: 0 | G13: 5 | H13: 0 | L13: C24H38O5 | M13: 406.55552 | N13: 406.2719098 | O13: =N13+1.0078246 -> 407.2797344 | P13: =O13-18.01057-0.00055 -> 389.2686144 | Q13: =N13+18.03437-0.00055 -> 424.3057298 | R13: =N13+22.98977-0.00055 -> 429.2611298 | S13: =N13+38.96371-0.00055 -> 445.2350698 | T13: =N13+7.01601-0.00055 -> 413.2873698 | U13: =N13-1.0078246+0.00055 -> 405.2646352 | V13: =N13+44.99767+0.00055 -> 451.2701298 | W13: =N13+59.01332+0.00055 -> 465.2857798
A14: 7-Ketolithocholic acid | B14: 7-KLCA | D14: 24 | E14: 38 | F14: 0 | G14: 4 | H14: 0 | L14: C24H38O4 | M14: 390.55612 | N14: 390.2769948 | O14: =N14+1.0078246 -> 391.2848194 | P14: =O14-18.01057-0.00055 -> 373.2736994 | Q14: =N14+18.03437-0.00055 -> 408.3108148 | R14: =N14+22.98977-0.00055 -> 413.2662148 | S14: =N14+38.96371-0.00055 -> 429.2401548 | T14: =N14+7.01601-0.00055 -> 397.2924548 | U14: =N14-1.0078246+0.00055 -> 389.2697202 | V14: =N14+44.99767+0.00055 -> 435.2752148 | W14: =N14+59.01332+0.00055 -> 449.2908648
A15: 7-oxo-Lithocholic acid | B15: 7-oxo-LCA | D15: 24 | E15: 38 | F15: 0 | G15: 4 | H15: 0 | L15: C24H38O4 | M15: 390.55612 | N15: 390.2769948 | O15: 391.2848194 | P15: 373.2736994 | Q15: 408.3108148 | R15: 413.2662148 | S15: 429.2401548 | T15: 397.2924548 | U15: 389.2697202 | V15: 435.2752148 | W15: 449.2908648
A16: Allocholic acid | B16: ACA | D16: 24 | E16: 40 | F16: 0 | G16: 5 | H16: 0 | L16: C24H40O5 | M16: 408.5714 | N16: 408.287559 | O16: =N16+1.0078246 -> 409.2953836 | P16: =O16-18.01057-0.00055 -> 391.2842636 | Q16: =N16+18.03437-0.00055 -> 426.321379 | R16: =N16+22.98977-0.00055 -> 431.276779 | S16: =N16+38.96371-0.00055 -> 447.250719 | T16: =N16+7.01601-0.00055 -> 415.303019 | U16: =N16-1.0078246+0.00055 -> 407.2802844 | V16: =N16+44.99767+0.00055 -> 453.285779 | W16: =N16+59.01332+0.00055 -> 467.301429
A17: Alloisolithocholic acid | D17: 24 | E17: 40 | F17: 0 | G17: 3 | H17: 0 | L17: C24H40O3 | M17: 376.5726 | N17: 376.297729 | O17: 377.3055536 | P17: 359.2944336 | Q17: 394.331549 | R17: 399.286949 | S17: 415.260889 | T17: 383.313189 | U17: 375.2904544 | V17: 421.295949 | W17: 435.311599
A18: Chenodeoxycholic acid | B18: CDCA | D18: 24 | E18: 40 | F18: 0 | G18: 4 | H18: 0 | L18: C24H40O4 | M18: 392.572 | N18: 392.292644 | O18: 393.3004686 | P18: 375.2893486 | Q18: 410.326464 | R18: 415.281864 | S18: 431.255804 | T18: 399.308104 | U18: 391.2853694 | V18: 437.290864 | W18: 451.306514
A19: Chenodeoxycholic acid-Sulfate | B19: CDCA-S | D19: 24 | E19: 40 | F19: 0 | G19: 7 | H19: 1 | L19: C24H40O7S1 | M19: 472.6352 | N19: 472.249461 | O19: 473.2572856 | P19: 455.2461656 | Q19: 490.283281 | R19: 495.238681 | S19: 511.212621 | T19: 479.264921 | U19: 471.2421864 | V19: 517.247681 | W19: 531.263331
A20: Cholic acid | B20: CA | D20: 24 | E20: 40 | F20: 0 | G20: 5 | H20: 0 | L20: C24H40O5 | M20: 408.5714 | N20: 408.287559 | O20: 409.2953836 | P20: 391.2842636 | Q20: 426.321379 | R20: 431.276779 | S20: 447.250719 | T20: 415.303019 | U20: 407.2802844 | V20: 453.285779 | W20: 467.301429
A21: Cholic acid-Sulfate | B21: CA-S | D21: 24 | E21: 40 | F21: 0 | G21: 8 | H21: 1 | L21: C24H40O8S1 | M21: 488.6346 | N21: 488.244376 | O21: 489.2522006 | P21: 471.2410806 | Q21: 506.278196 | R21: 511.233596 | S21: 527.207536 | T21: 495.259836 | U21: 487.2371014 | V21: 533.242596 | W21: 547.258246
A22: Dehydrocholic acid | B22: DHCA | D22: 24 | E22: 34 | F22: 0 | G22: 5 | H22: 0 | L22: C24H34O5 | M22: 402.52376 | N22: 402.2406114 | O22: 403.248436 | P22: 385.237316 | Q22: 420.2744314 | R22: 425.2298314 | S22: 441.2037714 | T22: 409.2560714 | U22: 401.2333368 | V22: 447.2388314 | W22: 461.2544814
A23: Dehydrolithocholic acid | B23: DHLCA | D23: 24 | E23: 38 | F23: 0 | G23: 3 | H23: 0 | L23: C24H38O3 | M23: 374.55672 | N23: 374.2820798 | O23: =N23+1.0078246-0.00055 -> 375.2893544 | P23: 357.2782344 | Q23: 392.3158998 | R23: 397.2712998 | S23: 413.2452398 | T23: 381.2975398 | U23: 373.2748052 | V23: 419.2802998 | W23: 433.2959498
A24: Deoxycholic acid | B24: DCA | D24: 24 | E24: 40 | F24: 0 | G24: 4 | H24: 0 | L24: C24H40O4 | M24: 392.572 | N24: 392.292644 | O24: =N24+1.0078246 -> 393.3004686 | P24: 375.2893486 | Q24: 410.326464 | R24: 415.281864 | S24: 431.255804 | T24: 399.308104 | U24: 391.2853694 | V24: 437.290864 | W24: 451.306514
A25: Deoxycholic acid-Sulfate | B25: DCA-S | D25: 23 | E25: 38 | F25: 0 | G25: 7 | H25: 1 | L25: C23H38O7S1 | M25: 458.60862 | N25: 458.2338118 | O25: 459.2416364 | P25: 441.2305164 | Q25: 476.2676318 | R25: 481.2230318 | S25: 497.1969718 | T25: 465.2492718 | U25: 457.2265372 | V25: 503.2320318 | W25: 517.2476818
A26: Dioxolithocholic acid | D26: 24 | E26: 36 | F26: 0 | G26: 5 | H26: 0 | L26: C24H36O5 | M26: 404.53964 | N26: 404.2562606 | O26: 405.2640852 | P26: 387.2529652 | Q26: 422.2900806 | R26: 427.2454806 | S26: 443.2194206 | T26: 411.2717206 | U26: 403.248986 | V26: 449.2544806 | W26: 463.2701306
A27: Glycoallocholic acid | B27: GACA | D27: 26 | E27: 43 | F27: 1 | G27: 6 | H27: 0 | L27: C26H43N1O6 | M27: 465.62272 | N27: 465.3090218 | O27: 466.3168464 | P27: 448.3057264 | Q27: 483.3428418 | R27: 488.2982418 | S27: 504.2721818 | T27: 472.3244818 | U27: 464.3017472 | V27: 510.3072418 | W27: 524.3228918
A28: Glycochenodeoxycholic acid-Sulfate | B28: GCDCA-S | D28: 26 | E28: 43 | F28: 1 | G28: 8 | H28: 1 | L28: C26H43N1O8S1 | M28: 529.68652 | N28: 529.2709238 | O28: 530.2787484 | P28: 512.2676284 | Q28: 547.3047438 | R28: 552.2601438 | S28: 568.2340838 | T28: 536.2863838 | U28: 528.2636492 | V28: 574.2691438 | W28: 588.2847938
A29: Glycochenodeoxycholic acid | B29: GCDCA | D29: 26 | E29: 43 | F29: 1 | G29: 5 | H29: 0 | L29: C26H43N1O5 | M29: 449.62332 | N29: 449.3141068 | O29: 450.3219314 | P29: 432.3108114 | Q29: 467.3479268 | R29: 472.3033268 | S29: 488.2772668 | T29: 456.3295668 | U29: 448.3068322 | V29: 494.3123268 | W29: 508.3279768
A30: Glycocholic acid | B30: GCA | D30: 26 | E30: 43 | F30: 1 | G30: 6 | H30: 0 | L30: C26H43N1O6 | M30: 465.62272 | N30: 465.3090218 | O30: 466.3168464 | P30: 448.3057264 | Q30: 483.3428418 | R30: 488.2982418 | S30: 504.2721818 | T30: 472.3244818 | U30: 464.3017472 | V30: 510.3072418 | W30: 524.3228918
A31: Glycocholic acid-sulfate | B31: GCA-S | D31: 26 | E31: 43 | F31: 1 | G31: 9 | H31: 1 | L31: C26H43N1O9S1 | M31: 545.68592 | N31: 545.2658388 | O31: 546.2736634 | P31: 528.2625434 | Q31: 563.2996588 | R31: 568.2550588 | S31: 584.2289988 | T31: 552.2812988 | U31: 544.2585642 | V31: 590.2640588 | W31: 604.2797088
A32: Glycodehydrocholic acid | B32: GDHCA | D32: 26 | E32: 37 | F32: 1 | G32: 6 | H32: 0 | L32: C26H37N1O6 | M32: 459.57508 | N32: 459.2620742 | O32: 460.2698988 | P32: 442.2587788 | Q32: 477.2958942 | R32: 482.2512942 | S32: 498.2252342 | T32: 466.2775342 | U32: 458.2547996 | V32: 504.2602942 | W32: 518.2759442
A33: Glycodeoxycholic acid | B33: GDCA | D33: 26 | E33: 43 | F33: 1 | G33: 5 | H33: 0 | L33: C26H43N1O5 | M33: 449.62332 | N33: 449.3141068 | O33: 450.3219314 | P33: 432.3108114 | Q33: 467.3479268 | R33: 472.3033268 | S33: 488.2772668 | T33: 456.3295668 | U33: 448.3068322 | V33: 494.3123268 | W33: 508.3279768
A34: Glycodeoxycholic acid-Sulfate | B34: GDCA-S | D34: 26 | E34: 43 | F34: 1 | G34: 8 | H34: 1 | L34: C26H43N1O8S1 | M34: =(D34*12.0107)+(E34*1.00794)+(F34*14.0067)+(G34*15.9994)+(H34*32.065) -> 529.68652 | N34: 529.2709238 | O34: 530.2787484 | P34: 512.2676284 | Q34: 547.3047438 | R34: 552.2601438 | S34: 568.2340838 | T34: 536.2863838 | U34: 528.2636492 | V34: 574.2691438 | W34: 588.2847938
A35: Glycohyocholic acid | B35: GHCA | D35: 26 | E35: 43 | F35: 1 | G35: 6 | H35: 0 | L35: =CONCATENATE("C",D35,"H",E35,IF(F35>0,CONCATENATE("N",F35),""),"O",G35,IF(H35>0,CONCATENATE("S",H35),"")) -> C26H43N1O6 | M35: 465.62272 | N35: =(D35*12)+(E35*1.0078246)+(F35*14.003074)+(G35*15.994915)+(H35*31.972072) -> 465.3090218 | O35: 466.3168464 | P35: 448.3057264 | Q35: 483.3428418 | R35: 488.2982418 | S35: 504.2721818 | T35: 472.3244818 | U35: 464.3017472 | V35: 510.3072418 | W35: 524.3228918
A36: Glycohyodeoxycholic acid | B36: GHDCA | D36: 26 | E36: 43 | F36: 1 | G36: 5 | H36: 0 | L36: C26H43N1O5 | M36: 449.62332 | N36: 449.3141068 | O36: 450.3219314 | P36: 432.3108114 | Q36: 467.3479268 | R36: 472.3033268 | S36: 488.2772668 | T36: 456.3295668 | U36: 448.3068322 | V36: 494.3123268 | W36: 508.3279768
A37: Glycolithocholic acid | B37: GLCA | D37: 26 | E37: 43 | F37: 1 | G37: 4 | H37: 0 | L37: C26H43N1O4 | M37: 433.62392 | N37: 433.3191918 | O37: 434.3270164 | P37: 416.3158964 | Q37: 451.3530118 | R37: 456.3084118 | S37: 472.2823518 | T37: 440.3346518 | U37: 432.3119172 | V37: 478.3174118 | W37: 492.3330618
A38: Glycolithocholic acid sulfate | B38: GLCA-S | D38: 26 | E38: 43 | F38: 1 | G38: 7 | H38: 1 | L38: C26H43N1O7S1 | M38: 513.68712 | N38: 513.2760088 | O38: 514.2838334 | P38: 496.2727134 | Q38: 531.3098288 | R38: 536.2652288 | S38: 552.2391688 | T38: 520.2914688 | U38: 512.2687342 | V38: 558.2742288 | W38: 572.2898788
A39: Glycomuricholic acid | B39: GMCA | D39: 26 | E39: 43 | F39: 1 | G39: 6 | H39: 0 | L39: C26H43N1O6 | M39: 465.62272 | N39: 465.3090218 | O39: 466.3168464 | P39: 448.3057264 | Q39: 483.3428418 | R39: 488.2982418 | S39: 504.2721818 | T39: 472.3244818 | U39: 464.3017472 | V39: 510.3072418 | W39: 524.3228918
A40: Glycomuricholic acid-3-Sulfate | B40: GMCA-S | D40: 26 | E40: 43 | F40: 1 | G40: 9 | H40: 1 | L40: C26H43N1O9S1 | M40: 545.68592 | N40: 545.2658388 | O40: 546.2736634 | P40: 528.2625434 | Q40: 563.2996588 | R40: 568.2550588 | S40: 584.2289988 | T40: 552.2812988 | U40: 544.2585642 | V40: 590.2640588 | W40: 604.2797088
A41: Glycoursocholic acid | B41: GUCA | D41: 26 | E41: 43 | F41: 1 | G41: 5 | H41: 0 | L41: C26H43N1O5 | M41: 449.62332 | N41: 449.3141068 | O41: 450.3219314 | P41: 432.3108114 | Q41: 467.3479268 | R41: 472.3033268 | S41: 488.2772668 | T41: 456.3295668 | U41: 448.3068322 | V41: 494.3123268 | W41: 508.3279768
A42: Glycoursodeoxycholic acid | B42: GUDCA | D42: 26 | E42: 43 | F42: 1 | G42: 5 | H42: 0 | L42: C26H43N1O5 | M42: 449.62332 | N42: 449.3141068 | O42: 450.3219314 | P42: 432.3108114 | Q42: 467.3479268 | R42: 472.3033268 | S42: 488.2772668 | T42: 456.3295668 | U42: 448.3068322 | V42: 494.3123268 | W42: 508.3279768
A43: Glycoursodeoxycholic acid-Sulfate | B43: GUDCA-S | D43: 26 | E43: 43 | F43: 1 | G43: 8 | H43: 1 | L43: C26H43N1O8S1 | M43: 529.68652 | N43: 529.2709238 | O43: 530.2787484 | P43: 512.2676284 | Q43: 547.3047438 | R43: 552.2601438 | S43: 568.2340838 | T43: 536.2863838 | U43: 528.2636492 | V43: 574.2691438 | W43: 588.2847938
A44: Glyco-α-muriholic acid | B44: G-α-MCA | D44: 26 | E44: 43 | F44: 1 | G44: 6 | H44: 0 | L44: C26H43N1O6 | M44: 465.62272 | N44: 465.3090218 | O44: 466.3168464 | P44: 448.3057264 | Q44: 483.3428418 | R44: 488.2982418 | S44: 504.2721818 | T44: 472.3244818 | U44: 464.3017472 | V44: 510.3072418 | W44: 524.3228918
A45: Glyco-β-muricholic acid | B45: G-β-MCA | D45: 26 | E45: 43 | F45: 1 | G45: 6 | H45: 0 | L45: C26H43N1O6 | M45: 465.62272 | N45: 465.3090218 | O45: 466.3168464 | P45: 448.3057264 | Q45: 483.3428418 | R45: 488.2982418 | S45: 504.2721818 | T45: 472.3244818 | U45: 464.3017472 | V45: 510.3072418 | W45: 524.3228918
A46: Glyco-ω-muricholic acid | B46: G-ω-MCA | D46: 26 | E46: 43 | F46: 1 | G46: 6 | H46: 0 | L46: C26H43N1O6 | M46: 465.62272 | N46: 465.3090218 | O46: 466.3168464 | P46: 448.3057264 | Q46: 483.3428418 | R46: 488.2982418 | S46: 504.2721818 | T46: 472.3244818 | U46: 464.3017472 | V46: 510.3072418 | W46: 524.3228918
A47: Hyocholic acid | B47: HCA | D47: 24 | E47: 40 | F47: 0 | G47: 5 | H47: 0 | L47: C24H40O5 | M47: 408.5714 | N47: 408.287559 | O47: 409.2953836 | P47: 391.2842636 | Q47: 426.321379 | R47: 431.276779 | S47: 447.250719 | T47: 415.303019 | U47: 407.2802844 | V47: 453.285779 | W47: 467.301429
A48: Hyodeoxycholic acid | B48: HDCA | D48: 24 | E48: 40 | F48: 0 | G48: 4 | H48: 0 | L48: C24H40O4 | M48: 392.572 | N48: 392.292644 | O48: 393.3004686 | P48: 375.2893486 | Q48: 410.326464 | R48: 415.281864 | S48: 431.255804 | T48: 399.308104 | U48: 391.2853694 | V48: 437.290864 | W48: 451.306514
A49: isoDeoxycholic acid | B49: isoDCA | D49: 24 | E49: 40 | F49: 0 | G49: 4 | H49: 0 | L49: C24H40O4 | M49: 392.572 | N49: 392.292644 | O49: 393.3004686 | P49: 375.2893486 | Q49: 410.326464 | R49: 415.281864 | S49: 431.255804 | T49: 399.308104 | U49: 391.2853694 | V49: 437.290864 | W49: 451.306514
A50: isoLithocholic acid | B50: isoLCA | D50: 24 | E50: 40 | F50: 0 | G50: 3 | H50: 0 | L50: C24H40O3 | M50: 376.5726 | N50: 376.297729 | O50: 377.3055536 | P50: 359.2944336 | Q50: 394.331549 | R50: 399.286949 | S50: 415.260889 | T50: 383.313189 | U50: 375.2904544 | V50: 421.295949 | W50: 435.311599
A51: Lithocholic acid | B51: LCA | D51: 24 | E51: 40 | F51: 0 | G51: 3 | H51: 0 | L51: C24H40O3 | M51: 376.5726 | N51: 376.297729 | O51: 377.3055536 | P51: 359.2944336 | Q51: 394.331549 | R51: 399.286949 | S51: 415.260889 | T51: 383.313189 | U51: 375.2904544 | V51: 421.295949 | W51: 435.311599
A52: Lithocholic acid-Sulfate | B52: LCA-S | D52: 24 | E52: 40 | F52: 0 | G52: 6 | H52: 1 | L52: C24H40O6S1 | M52: 456.6358 | N52: 456.254546 | O52: 457.2623706 | P52: 439.2512506 | Q52: 474.288366 | R52: 479.243766 | S52: 495.217706 | T52: 463.270006 | U52: 455.2472714 | V52: 501.252766 | W52: 515.268416
A53: Muricholic acid-Sulfate | B53: MCA-S | D53: 24 | E53: 40 | F53: 0 | G53: 8 | H53: 1 | L53: C24H40O8S1 | M53: 488.6346 | N53: 488.244376 | O53: 489.2522006 | P53: 471.2410806 | Q53: 506.278196 | R53: 511.233596 | S53: 527.207536 | T53: 495.259836 | U53: 487.2371014 | V53: 533.242596 | W53: 547.258246
A54: Murideoxycholic acid | B54: MDCA | D54: 24 | E54: 40 | F54: 0 | G54: 4 | H54: 0 | L54: C24H40O4 | M54: 392.572 | N54: 392.292644 | O54: 393.3004686 | P54: 375.2893486 | Q54: 410.326464 | R54: 415.281864 | S54: 431.255804 | T54: 399.308104 | U54: 391.2853694 | V54: 437.290864 | W54: 451.306514
A55: Murocholic acid | B55: MC | D55: 24 | E55: 40 | F55: 0 | G55: 4 | H55: 0 | L55: C24H40O4 | M55: 392.572 | N55: 392.292644 | O55: 393.3004686 | P55: 375.2893486 | Q55: 410.326464 | R55: 415.281864 | S55: 431.255804 | T55: 399.308104 | U55: 391.2853694 | V55: 437.290864 | W55: 451.306514
A56: Norcholic acid | B56: NCA | D56: 23 | E56: 38 | F56: 0 | G56: 5 | H56: 0 | L56: C23H38O5 | M56: 394.54482 | N56: 394.2719098 | O56: 395.2797344 | P56: 377.2686144 | Q56: 412.3057298 | R56: 417.2611298 | S56: 433.2350698 | T56: 401.2873698 | U56: 393.2646352 | V56: 439.2701298 | W56: 453.2857798
A57: Nordeoxycholic acid | B57: NDCA | D57: 23 | E57: 38 | F57: 0 | G57: 4 | H57: 0 | L57: C23H38O4 | M57: 378.54542 | N57: 378.2769948 | O57: 379.2848194 | P57: 361.2736994 | Q57: 396.3108148 | R57: 401.2662148 | S57: 417.2401548 | T57: 385.2924548 | U57: 377.2697202 | V57: 423.2752148 | W57: 437.2908648
A58: Tauro-3α,6α,7α,12α-tetrahydroxy bile acid | D58: 26 | E58: 45 | F58: 1 | G58: 8 | H58: 1 | L58: C26H45N1O8S1 | M58: 531.7024 | N58: 531.286573 | O58: 532.2943976 | P58: 514.2832776 | Q58: 549.320393 | R58: 554.275793 | S58: 570.249733 | T58: 538.302033 | U58: 530.2792984 | V58: 576.284793 | W58: 590.300443
A59: Tauroallocholic acid | B59: TAC | D59: 26 | E59: 45 | F59: 1 | G59: 7 | H59: 1 | L59: C26H45N1O7S1 | M59: 515.703 | N59: 515.291658 | O59: 516.2994826 | P59: 498.2883626 | Q59: 533.325478 | R59: 538.280878 | S59: 554.254818 | T59: 522.307118 | U59: 514.2843834 | V59: 560.289878 | W59: 574.305528
A60: Taurochenodeoxycholic acid | B60: TCDCA | D60: 26 | E60: 45 | F60: 1 | G60: 6 | H60: 1 | L60: C26H45N1O6S1 | M60: 499.7036 | N60: 499.296743 | O60: 500.3045676 | P60: 482.2934476 | Q60: 517.330563 | R60: 522.285963 | S60: 538.259903 | T60: 506.312203 | U60: 498.2894684 | V60: 544.294963 | W60: 558.310613
A61: Taurochenodeoxycholic acid-sulfate | B61: TCDCA-S | D61: 26 | E61: 45 | F61: 1 | G61: 9 | H61: 2 | L61: C26H45N1O9S2 | M61: 579.7668 | N61: 579.25356 | O61: 580.2613846 | P61: 562.2502646 | Q61: 597.28738 | R61: 602.24278 | S61: 618.21672 | T61: 586.26902 | U61: 578.2462854 | V61: 624.25178 | W61: 638.26743
A62: Taurocholic acid | B62: TCA | D62: 26 | E62: 45 | F62: 1 | G62: 7 | H62: 1 | L62: C26H45N1O7S1 | M62: 515.703 | N62: 515.291658 | O62: 516.2994826 | P62: 498.2883626 | Q62: 533.325478 | R62: 538.280878 | S62: 554.254818 | T62: 522.307118 | U62: 514.2843834 | V62: 560.289878 | W62: 574.305528
A63: Taurocholic acid-sulfate | B63: TCA-S | D63: 26 | E63: 45 | F63: 1 | G63: 10 | H63: 2 | L63: C26H45N1O10S2 | M63: 595.7662 | N63: 595.248475 | O63: 516.2994826 | P63: 498.2883626 | Q63: 533.325478 | R63: 538.280878 | S63: 554.254818 | T63: 522.307118 | U63: 514.2843834 | V63: 560.289878 | W63: 574.305528
A64: Taurodeoxycholic acid | B64: TDCA | D64: 26 | E64: 45 | F64: 1 | G64: 6 | H64: 1 | L64: C26H45N1O6S1 | M64: 499.7036 | N64: 499.296743 | O64: =N64+1.0078246 -> 500.3045676 | P64: =O64-18.01057-0.00055 -> 482.2934476 | Q64: =N64+18.03437-0.00055 -> 517.330563 | R64: =N64+22.98977-0.00055 -> 522.285963 | S64: =N64+38.96371-0.00055 -> 538.259903 | T64: =N64+7.01601-0.00055 -> 506.312203 | U64: =N64-1.0078246+0.00055 -> 498.2894684 | V64: =N64+44.99767+0.00055 -> 544.294963 | W64: =N64+59.01332+0.00055 -> 558.310613
A65: Taurodeoxycholic acid-sulfate | B65: TDCA-S | D65: 26 | E65: 45 | F65: 1 | G65: 9 | H65: 2 | L65: C26H45N1O9S2 | M65: 579.7668 | N65: 579.25356 | O65: 580.2613846 | P65: 562.2502646 | Q65: 597.28738 | R65: 602.24278 | S65: 618.21672 | T65: 586.26902 | U65: 578.2462854 | V65: 624.25178 | W65: 638.26743
A66: Taurohyocholic acid | B66: THCA | D66: 26 | E66: 45 | F66: 1 | G66: 7 | H66: 1 | L66: C26H45N1O7S1 | M66: =(D66*12.0107)+(E66*1.00794)+(F66*14.0067)+(G66*15.9994)+(H66*32.065) -> 515.703 | N66: 515.291658 | O66: 516.2994826 | P66: 498.2883626 | Q66: 533.325478 | R66: 538.280878 | S66: 554.254818 | T66: 522.307118 | U66: 514.2843834 | V66: 560.289878 | W66: 574.305528
A67: Taurohyodeoxyocholic acid | B67: THDCA | D67: 26 | E67: 45 | F67: 1 | G67: 6 | H67: 1 | L67: =CONCATENATE("C",D67,"H",E67,IF(F67>0,CONCATENATE("N",F67),""),"O",G67,IF(H67>0,CONCATENATE("S",H67),"")) -> C26H45N1O6S1 | M67: 499.7036 | N67: =(D67*12)+(E67*1.0078246)+(F67*14.003074)+(G67*15.994915)+(H67*31.972072) -> 499.296743 | O67: 500.3045676 | P67: 482.2934476 | Q67: 517.330563 | R67: 522.285963 | S67: 538.259903 | T67: 506.312203 | U67: 498.2894684 | V67: 544.294963 | W67: 558.310613
A68: Taurolithocholic acid | B68: TLCA | D68: 26 | E68: 45 | F68: 1 | G68: 5 | H68: 1 | L68: C26H45N1O5S1 | M68: 483.7042 | N68: 483.301828 | O68: 484.3096526 | P68: 466.2985326 | Q68: 501.335648 | R68: 506.291048 | S68: 522.264988 | T68: 490.317288 | U68: 482.2945534 | V68: 528.300048 | W68: 542.315698
A69: Taurolithocholic acid-sulfate | B69: TLCA-S | D69: 26 | E69: 45 | F69: 1 | G69: 8 | H69: 2 | L69: C26H45N1O8S2 | M69: 563.7674 | N69: 563.258645 | O69: 564.2664696 | P69: 546.2553496 | Q69: 581.292465 | R69: 586.247865 | S69: 602.221805 | T69: 570.274105 | U69: 562.2513704 | V69: 608.256865 | W69: 622.272515
A70: Tauromuricholic acid (a+b) | B70: TMCA(a+b) | D70: 26 | E70: 45 | F70: 1 | G70: 7 | H70: 1 | L70: C26H45N1O7S1 | M70: 515.703 | N70: 515.291658 | O70: 516.2994826 | P70: 498.2883626 | Q70: 533.325478 | R70: 538.280878 | S70: 554.254818 | T70: 522.307118 | U70: 514.2843834 | V70: 560.289878 | W70: 574.305528
A71: Tauromuricholic acid-Sulfate | B71: TMCA-S | D71: 26 | E71: 45 | F71: 1 | G71: 10 | H71: 2 | L71: C26H45N1O10S2 | M71: 595.7662 | N71: 595.248475 | O71: 596.2562996 | P71: 578.2451796 | Q71: 613.282295 | R71: 618.237695 | S71: 634.211635 | T71: 602.263935 | U71: 594.2412004 | V71: 640.246695 | W71: 654.262345
A72: Tauroursodeoxycholic acid | B72: TUDCA | D72: 26 | E72: 45 | F72: 1 | G72: 6 | H72: 1 | L72: C26H45N1O6S1 | M72: 499.7036 | N72: 499.296743 | O72: 500.3045676 | P72: 482.2934476 | Q72: 517.330563 | R72: 522.285963 | S72: 538.259903 | T72: 506.312203 | U72: 498.2894684 | V72: 544.294963 | W72: 558.310613
A73: Tauroursodeoxycholic acid-sulfate | B73: TUDCA-S | D73: 26 | E73: 45 | F73: 1 | G73: 9 | H73: 2 | L73: C26H45N1O9S2 | M73: 579.7668 | N73: 579.25356 | O73: 580.2613846 | P73: 562.2502646 | Q73: 597.28738 | R73: 602.24278 | S73: 618.21672 | T73: 586.26902 | U73: 578.2462854 | V73: 624.25178 | W73: 638.26743
A74: Tauro-α-muricholic acid | B74: TαMCA | D74: 26 | E74: 45 | F74: 1 | G74: 7 | H74: 1 | L74: C26H45N1O7S1 | M74: 515.703 | N74: 515.291658 | O74: 516.2994826 | P74: 498.2883626 | Q74: 533.325478 | R74: 538.280878 | S74: 554.254818 | T74: 522.307118 | U74: 514.2843834 | V74: 560.289878 | W74: 574.305528
A75: Tauro-β-muricholic acid | B75: TβMCA | D75: 26 | E75: 45 | F75: 1 | G75: 7 | H75: 1 | L75: C26H45N1O7S1 | M75: 515.703 | N75: 515.291658 | O75: 516.2994826 | P75: 498.2883626 | Q75: 533.325478 | R75: 538.280878 | S75: 554.254818 | T75: 522.307118 | U75: 514.2843834 | V75: 560.289878 | W75: 574.305528
A76: Tauro-ω-muricholic acid | B76: TωMCA | D76: 26 | E76: 45 | F76: 1 | G76: 7 | H76: 1 | L76: C26H45N1O7S1 | M76: 515.703 | N76: 515.291658 | O76: 516.2994826 | P76: 498.2883626 | Q76: 533.325478 | R76: 538.280878 | S76: 554.254818 | T76: 522.307118 | U76: 514.2843834 | V76: 560.289878 | W76: 574.305528
A77: Ursocholic acid | B77: UCA | D77: 24 | E77: 40 | F77: 0 | G77: 5 | H77: 0 | L77: C24H40O5 | M77: 408.5714 | N77: 408.287559 | O77: 409.2953836 | P77: 391.2842636 | Q77: 426.321379 | R77: 431.276779 | S77: 447.250719 | T77: 415.303019 | U77: 407.2802844 | V77: 453.285779 | W77: 467.301429
A78: Ursodeoxycholic acid | B78: UDCA | D78: 24 | E78: 40 | F78: 0 | G78: 4 | H78: 0 | L78: C24H40O4 | M78: 392.572 | N78: 392.292644 | O78: 393.3004686 | P78: 375.2893486 | Q78: 410.326464 | R78: 415.281864 | S78: 431.255804 | T78: 399.308104 | U78: 391.2853694 | V78: 437.290864 | W78: 451.306514
A79: Ursodeoxycholic acid-Sulfate | B79: UDCA-S | D79: 24 | E79: 40 | F79: 0 | G79: 7 | H79: 1 | L79: C24H40O7S1 | M79: 472.6352 | N79: 472.249461 | O79: 473.2572856 | P79: 455.2461656 | Q79: 490.283281 | R79: 495.238681 | S79: 511.212621 | T79: 479.264921 | U79: 471.2421864 | V79: 517.247681 | W79: 531.263331
A80: α-Muricholic acid | B80: MCA(α) | D80: 24 | E80: 40 | F80: 0 | G80: 5 | H80: 0 | L80: C24H40O5 | M80: 408.5714 | N80: 408.287559 | O80: 409.2953836 | P80: 391.2842636 | Q80: 426.321379 | R80: 431.276779 | S80: 447.250719 | T80: 415.303019 | U80: 407.2802844 | V80: 453.285779 | W80: 467.301429
A81: β-Muricholic acid | B81: MCA(β) | D81: 24 | E81: 40 | F81: 0 | G81: 5 | H81: 0 | L81: C24H40O5 | M81: 408.5714 | N81: 408.287559 | O81: 409.2953836 | P81: 391.2842636 | Q81: 426.321379 | R81: 431.276779 | S81: 447.250719 | T81: 415.303019 | U81: 407.2802844 | V81: 453.285779 | W81: 467.301429
A82: λ-muricholic acid | B82: MCA(λ) | D82: 24 | E82: 40 | F82: 0 | G82: 5 | H82: 0 | L82: C24H40O5 | M82: 408.5714 | N82: 408.287559 | O82: 409.2953836 | P82: 391.2842636 | Q82: 426.321379 | R82: 431.276779 | S82: 447.250719 | T82: 415.303019 | U82: 407.2802844 | V82: 453.285779 | W82: 467.301429
A83: ω-Muricholic acid | B83: MCA(ω) | D83: 24 | E83: 40 | F83: 0 | G83: 5 | H83: 0 | L83: C24H40O5 | M83: 408.5714 | N83: 408.287559 | O83: 409.2953836 | P83: 391.2842636 | Q83: 426.321379 | R83: 431.276779 | S83: 447.250719 | T83: 415.303019 | U83: 407.2802844 | V83: 453.285779 | W83: 467.301429

Sheet Eicosanoids
A1: Eicosanoid | C1: #C | D1: #H | E1: #N | F1: #O | G1: #S | L1: Formula | M1: Molecular Weight | N1: Neutral Mass | O1: [M+H]+ | P1: [M+H-H2O]+ | Q1: [M+NH4]+ | R1: [M+Na]+ | S1: [M+K]+ | T1: [M+Li]+ | U1: [M-H]- | V1: [M+HCOO]- | W1: [M+CH3COO]-
A2: 10,11-EpDPE | C2: 22 | D2: 32 | E2: 0 | F2: 3 | G2: 0 | L2: =CONCATENATE("C",C2,"H",D2,IF(E2>0,CONCATENATE("N",E2),""),"O",F2,IF(G2>0,CONCATENATE("S",G2),"")) -> C22H32O3 | M2: =(C2*12.0107)+(D2*1.00794)+(E2*14.0067)+(F2*15.9994)+(G2*32.065) -> 344.48768 | N2: =(C2*12)+(D2*1.0078246)+(E2*14.003074)+(F2*15.994915)+(G2*31.972072) -> 344.2351322 | O2: =N2+1.0078246-0.00055 -> 345.2424068 | P2: =O2-18.01057-0.00055 -> 327.2312868 | Q2: =N2+18.03437-0.00055 -> 362.2689522 | R2: =N2+22.98977-0.00055 -> 367.2243522 | S2: =N2+38.96371-0.00055 -> 383.1982922 | T2: =N2+7.01601-0.00055 -> 351.2505922 | U2: =N2-1.0078246+0.00055 -> 343.2278576 | V2: =N2+44.99767+0.00055 -> 389.2333522 | W2: =N2+59.01332+0.00055 -> 403.2490022
A3: 10,17-diHDHA | C3: 22 | D3: 32 | E3: 0 | F3: 4 | G3: 0 | L3: C22H32O4 | M3: 360.48708 | N3: 360.2300472 | O3: 361.2373218 | P3: 343.2262018 | Q3: 378.2638672 | R3: 383.2192672 | S3: 399.1932072 | T3: 367.2455072 | U3: 359.2227726 | V3: 405.2282672 | W3: 419.2439172
A4: 10,17-DiHDoHE | C4: 22 | D4: 32 | E4: 0 | F4: 4 | G4: 0 | L4: C22H32O4 | M4: 360.48708 | N4: 360.2300472 | O4: =N4+1.0078246-0.00055 -> 361.2373218 | P4: =O4-18.01057-0.00055 -> 343.2262018 | Q4: =N4+18.03437-0.00055 -> 378.2638672 | R4: =N4+22.98977-0.00055 -> 383.2192672 | S4: =N4+38.96371-0.00055 -> 399.1932072 | T4: =N4+7.01601-0.00055 -> 367.2455072 | U4: =N4-1.0078246+0.00055 -> 359.2227726 | V4: =N4+44.99767+0.00055 -> 405.2282672 | W4: =N4+59.01332+0.00055 -> 419.2439172
A5: 10-HDoHE | C5: 22 | D5: 32 | E5: 0 | F5: 3 | G5: 0 | L5: C22H32O3 | M5: 344.48768 | N5: 344.2351322 | O5: 345.2424068 | P5: 327.2312868 | Q5: 362.2689522 | R5: 367.2243522 | S5: 383.1982922 | T5: 351.2505922 | U5: 343.2278576 | V5: 389.2333522 | W5: 403.2490022
